Workbook

Sheet Range names (hidden)
A1: Range Name | B1: RefersTo | C1: Scope | D1: Parent
A2: _xlfn.COUNTIFS | B2: =#NAME? ->  | C2: Workbook | D2: LTFP_General_Main_Workfile.xlsm
A3: _xlfn.SUMIFS | B3: =#NAME? ->  | C3: Workbook | D3: LTFP_General_Main_Workfile.xlsm
A4: asset_class_list_general | B4: =OFFSET('IPP&E Reconciliation'!$A$5,0,0,COUNTA('IPP&E Reconciliation'!$A$5:$A$35)-COUNTBLANK('IPP&E Reconciliation'!$A$5:$A$35),1) ->  | C4: Workbook | D4: LTFP_General_Main_Workfile.xlsm
A5: balance_sheet_general_main | B5: ='Balance Sheet'!$A$3 -> BALANCE SHEET - GENERAL FUND | C5: Workbook | D5: LTFP_General_Main_Workfile.xlsm
A6: balance_sheet_list_general | B6: ='IS-BS table general'!$R$5:$R$21 -> Receivables | C6: Workbook | D6: LTFP_General_Main_Workfile.xlsm
A7: balance_sheet_workings_general_main | B7: ='BS workings'!$A$3 -> BALANCE SHEET - GENERAL FUND - WORKINGS | C7: Workbook | D7: LTFP_General_Main_Workfile.xlsm
A8: BS_area_1_general | B8: ='Balance Sheet'!$6:$71 -> 0 | C8: Workbook | D8: LTFP_General_Main_Workfile.xlsm
A9: BS_area_10_general | B9: ='BS workings'!$474:$488 ->  | C9: Workbook | D9: LTFP_General_Main_Workfile.xlsm
A10: BS_area_11_general | B10: ='BS workings'!$489:$504 ->  | C10: Workbook | D10: LTFP_General_Main_Workfile.xlsm
A11: BS_area_12_general | B11: ='BS workings'!$505:$782 ->  | C11: Workbook | D11: LTFP_General_Main_Workfile.xlsm
A12: BS_area_14_general | B12: ='BS workings'!$783:$948 ->  | C12: Workbook | D12: LTFP_General_Main_Workfile.xlsm
A13: BS_area_16_general | B13: ='Balance Sheet'!$153:$377 ->  | C13: Workbook | D13: LTFP_General_Main_Workfile.xlsm
A14: BS_area_3_general | B14: ='BS workings'!$358:$370 ->  | C14: Workbook | D14: LTFP_General_Main_Workfile.xlsm
A15: BS_area_5_general | B15: ='BS workings'!$373:$390 ->  | C15: Workbook | D15: LTFP_General_Main_Workfile.xlsm
A16: BS_area_6_general | B16: ='BS workings'!$391:$405 ->  | C16: Workbook | D16: LTFP_General_Main_Workfile.xlsm
A17: BS_area_7_general | B17: ='BS workings'!$406:$522 ->  | C17: Workbook | D17: LTFP_General_Main_Workfile.xlsm
A18: BS_area_8_general | B18: ='BS workings'!$457:$458 ->  | C18: Workbook | D18: LTFP_General_Main_Workfile.xlsm
A19: BS_area_9_general | B19: ='BS workings'!$459:$473 ->  | C19: Workbook | D19: LTFP_General_Main_Workfile.xlsm
A20: BS_workings_area_1_general | B20: ='BS workings'!$B$6:$P$63 -> 0 | C20: Workbook | D20: LTFP_General_Main_Workfile.xlsm
A21: BS_workings_area_10_general | B21: ='BS workings'!$C$160:$P$176 ->  | C21: Workbook | D21: LTFP_General_Main_Workfile.xlsm
A22: BS_workings_area_11_general | B22: ='BS workings'!$C$178:$P$180 ->  | C22: Workbook | D22: LTFP_General_Main_Workfile.xlsm
A23: BS_workings_area_12_general | B23: ='BS workings'!$C$183:$P$222 ->  | C23: Workbook | D23: LTFP_General_Main_Workfile.xlsm
A24: BS_workings_area_13_general | B24: ='BS workings'!$C$224:$P$226 ->  | C24: Workbook | D24: LTFP_General_Main_Workfile.xlsm
A25: BS_workings_area_14_general | B25: ='BS workings'!$C$229:$P$251 ->  | C25: Workbook | D25: LTFP_General_Main_Workfile.xlsm
A26: BS_workings_area_15_general | B26: ='BS workings'!$C$252:$P$332 ->  | C26: Workbook | D26: LTFP_General_Main_Workfile.xlsm
A27: BS_workings_area_16_general | B27: ='BS workings'!$C$334:$P$339 ->  | C27: Workbook | D27: LTFP_General_Main_Workfile.xlsm
A28: BS_workings_area_17_general | B28: ='BS workings'!$C$342:$P$373 ->  | C28: Workbook | D28: LTFP_General_Main_Workfile.xlsm
A29: BS_workings_area_18_general | B29: ='BS workings'!$C$375:$P$380 ->  | C29: Workbook | D29: LTFP_General_Main_Workfile.xlsm
A30: BS_workings_area_19_general | B30: ='BS workings'!$C$383:$P$391 ->  | C30: Workbook | D30: LTFP_General_Main_Workfile.xlsm
A31: BS_workings_area_2_general | B31: ='BS workings'!$C$66:$P$84 ->  | C31: Workbook | D31: LTFP_General_Main_Workfile.xlsm
... 38 more rows

Sheet Check Range names (hidden)

Sheet drop down list (hidden)
B1: HIDE SHEET
B2: Primary Statement drop down list | E2: Sec 94 drop down list | H2: RE drop down list | K2: Other drop down list | N2: Data input drop down list
B3: =IF(C3="","","Income Statement") -> Income Statement | C3: =sheetname_general(income_statement_general_main) -> Income Statement | E3: =IF(F3="","","Summary") ->  | F3: =sheetname_general(Dev_contributions_summary_general_main) ->  | H3: =IF(I3="","","Capital Works - Summary") ->  | I3: =sheetname_general(CAPEX_summary_general_main) ->  | K3: =IF(L3="","","Cover Page") -> Cover Page | L3: =sheetname_general(main_file_general) -> Cover Page | N3: =IF(O3="","","Income Statement - Workings") ->  | O3: =sheetname_general(income_statement_workings_general_main) -> 
B4: =IF(C4="","","Income Statement - Workings") ->  | C4: =sheetname_general(income_statement_workings_general_main) ->  | E4: =IF(F4="","","Plan Index") ->  | F4: =sheetname_general(general_dev_contr_plans_number) ->  | H4: =IF(I4="","","Capital Works - Program") ->  | I4: =sheetname_general(CAPEX_dump_general_main) ->  | K4: =IF(L4="","","Checklist") -> Checklist | L4: =sheetname_general(checklist_general_main) -> Checklist | N4: =IF(O4="","","Balance Sheet - Workings") ->  | O4: =sheetname_general(balance_sheet_workings_general_main) -> 
B5: =IF(C5="","","Balance Sheet") -> Balance Sheet | C5: =sheetname_general(balance_sheet_general_main) -> Balance Sheet | H5: =IF(AND(H3="",H4=""),"","---------------------------------------------------") ->  | I5: =IF(AND(H3="",H4=""),"","-------------------------------") ->  | K5: --------------------------------------------------- | L5: ------------------------------- | N5: =IF(O5="","","Cash Flow Statement - Workings") ->  | O5: =sheetname_general(cash_flow_workings_general_main) -> 
B6: =IF(C6="","","Balance Sheet - Workings") ->  | C6: =sheetname_general(balance_sheet_workings_general_main) ->  | E6: =IF(F6="","","Plan "&'S94 Plans'!$A7&" - "&'S94 Plans'!$B7) ->  | F6: =sheetname_general(general_main_dev_contr_plan_1) ->  | H6: =IF(I6="","","Major Projects - Summary") ->  | I6: =sheetname_general(major_projects_summary_general_main) ->  | K6: =IF(L6="","","Scenarios") ->  | L6: =sheetname_general(scenarios_general_main) ->  | N6: =IF(O6="","","Equity Statement - Workings") ->  | O6: =sheetname_general(equity_statement_workings_general_main) -> 
B7: =IF(C7="","","Cash Flow Statement") -> Cash Flow Statement | C7: =sheetname_general(cash_flow_general_main) -> Cash Flow | H7: =IF(I7="","","Major Projects - Program") ->  | I7: =sheetname_general(major_projects_dump_general_main) ->  | K7: =IF(L7="","","Charts") -> Charts | L7: =sheetname_general(charts_general_main) -> Charts | N7: --------------------------------------------------- | O7: -------------------------------
B8: =IF(C8="","","Cash Flow Statement - Workings") ->  | C8: =sheetname_general(cash_flow_workings_general_main) ->  | H8: =IF(AND(H6="",H7=""),"","---------------------------------------------------") ->  | I8: =IF(AND(H6="",H7=""),"","-------------------------------") ->  | K8: --------------------------------------------------- | L8: ------------------------------- | N8: =IF(O8="","","Target % for Balance Sheet") ->  | O8: =sheetname_general(target_percent_general_main) -> 
B9: =IF(C9="","","Equity Statement") -> Equity Statement | C9: =sheetname_general(equity_statement_general_main) -> Equity Statement | H9: =IF(I9="","","Real Estate Summary") ->  | I9: =sheetname_general(RE_summary_general_main) ->  | K9: =IF(L9="","","Key Performance Indicators - Snapshot") -> Key Performance Indicators - Snapshot | L9: =sheetname_general(KPI_general_main) -> KPI - Snapshot | N9: --------------------------------------------------- | O9: -------------------------------
B10: =IF(C10="","","Equity Statement - Workings") ->  | C10: =sheetname_general(equity_statement_workings_general_main) ->  | H10: =IF(I10="","","RE Project "&'check RE Dev'!$B$4) ->  | I10: =sheetname_general(general_main_RE_Dev_project_1) ->  | N10: =IF(O10="","","Global Indexation Changes") -> Global Indexation Changes | O10: =sheetname_general(global_changes_general) -> Global Indexation
B11: --------------------------------------------------- | C11: ------------------------------- | H11: =IF(I11="","","Spare RE Project") ->  | I11: =sheetname_general(general_main_RE_Dev_project_spare) ->  | K11: =IF(AND(K12=""),"","---------------------------------------------------") ->  | L11: =IF(AND(K12=""),"","-------------------------------") ->  | N11: --------------------------------------------------- | O11: -------------------------------
B12: =IF(C12="","","This Year - Last Year LTFP Comparison") ->  | C12: =sheetname_general(primary_statement_comparison_general_main) ->  | H12: =IF(AND(H9="",H10="",H11=""),"","---------------------------------------------------") ->  | I12: =IF(AND(H9="",H10="",H11=""),"","-------------------------------") ->  | K12: =IF(L12="","","Historical Data") ->  | L12: =sheetname_general(historical_data_general_main) ->  | N12: =IF(O12="","","Interest Calculation") ->  | O12: =sheetname_general(Interest_calculation_general_main) -> 
B13: --------------------------------------------------- | C13: ------------------------------- | H13: =IF(I13="","","Assets - Disposals & Transfers") ->  | I13: =sheetname_general(IPPE_movements_general_main) ->  | N13: --------------------------------------------------- | O13: -------------------------------
B14: =IF(C14="","","Budget Summary - Detailed Income/Expense Type") ->  | C14: =sheetname_general(BU_summary_stat_general_main) ->  | H14: =IF(I14="","","IPPE - Maintenance & Revaluations") ->  | I14: =sheetname_general(IPPE_maintenance_reval_general_main) ->  | K14: --------------------------------------------------- | L14: ------------------------------- | N14: =IF(O14="","","Key Performance Indicators - Targets") ->  | O14: =sheetname_general(KPI_target_general_main) -> 
B15: =IF(C15="","","Budget Summary - High Level") ->  | C15: =sheetname_general(budget_summary_general_main) ->  | K15: =IF(L15="","","Population Indexation Changes") -> Population Indexation Changes | L15: =sheetname_general(population_changes_general) -> Population Indexation | N15: =IF(O15="","","Key Performance Indicators - Calculation") -> Key Performance Indicators - Calculation | O15: =sheetname_general(KPI_calculation_general) -> KPI calculation
B16: =IF(C16="","","Budget Reconciliation") ->  | C16: =sheetname_general(budget_reconciliation_general_main) ->  | N16: =IF(AND(N17="",N18=""),"","---------------------------------------------------") ->  | O16: =IF(AND(N17="",N18=""),"","-------------------------------") -> 
B17: --------------------------------------------------- | C17: ------------------------------- | N17: =IF(O17="","","Plan "&general_main_dev_contr_plan_1&" - "&'S94 - Plan 1'!$C$5) ->  | O17: =sheetname_general(general_main_dev_contr_plan_1) -> 
B18: =IF(C18="","","Capital Expenditure Summary") ->  | C18: =sheetname_general(cap_exp_summary_general_main) ->  | N18: =IF(O18="","","Plan "&general_main_dev_contr_plan_nup&" - "&'S94 - Not under Plan'!$C$5) ->  | O18: =sheetname_general(general_main_dev_contr_plan_nup) -> 
B19: =IF(C19="","","Expenditure Type Summary") ->  | C19: =sheetname_general(exp_type_summary_general_main) ->  | N19: =IF(AND(N20=""),"","---------------------------------------------------") ->  | O19: =IF(AND(N20=""),"","-------------------------------") -> 
B20: =IF(C20="","","Working Capital") ->  | C20: =sheetname_general(working_capital_general_main) ->  | N20: =IF(O20="","","RE Project "&'check RE Dev'!$B$4) ->  | O20: =sheetname_general(general_main_RE_Dev_project_1) -> 
B21: =IF(C21="","","Interest Calculation") ->  | C21: =sheetname_general(Interest_calculation_general_main) ->  | N21: =IF(AND(N22="",N26=""),"","---------------------------------------------------") ->  | O21: =IF(AND(N22="",N26=""),"","-------------------------------") -> 
B22: =IF(AND(B23="",B24="",B25="",B26="",B27="",B28="",B29="",B30="",B31="",B32=""),"","---------------------------------------------------") ->  | C22: =IF(AND(B23="",B24="",B25="",B26="",B27="",B28="",B29="",B30="",B31="",B32=""),"","-------------------------------") ->  | N22: =IF(O22="","","Capital Works - Summary") ->  | O22: =sheetname_general(CAPEX_summary_general_main) -> 
B23: =IF(C23="","","Summary "&'Summary L1'!A$6) ->  | C23: =sheetname_general(general_level_6_summary) ->  | N23: =IF(O23="","","Capital Works - Program") ->  | O23: =sheetname_general(CAPEX_dump_general_main) -> 
B24: =IF(C24="","","Summary "&'Summary L2'!A$6) ->  | C24: =sheetname_general(general_level_5_summary) ->  | K24: --------------------------------------------------- | L24: ------------------------------- | N24: =IF(AND(N22="",N23=""),"","---------------------------------------------------") ->  | O24: =IF(AND(N22="",N23=""),"","-------------------------------") -> 
B25: =IF(C25="","","Summary "&'Summary L3'!A$6) ->  | C25: =sheetname_general(general_level_4_summary) ->  | K25: =IF(L25="","","Reserve Schedule - Internal") -> Reserve Schedule - Internal | L25: =sheetname_general(reserves_internal_general_main) -> Internal Reserves | N25: =IF(O25="","","Major Projects - Summary") ->  | O25: =sheetname_general(major_projects_summary_general_main) -> 
B26: =IF(C26="","","Summary "&'Summary L4'!A$6) ->  | C26: =sheetname_general(general_level_3_summary) ->  | K26: =IF(L26="","","Reserve Schedule - External") -> Reserve Schedule - External | L26: =sheetname_general(reserves_external_general_main) -> External Reserves | N26: =IF(O26="","","Major Projects - Program") ->  | O26: =sheetname_general(major_projects_dump_general_main) -> 
B27: =IF(C27="","","Summary "&'Summary L5'!A$6) ->  | C27: =sheetname_general(general_level_2_summary) ->  | E27: =IF(F27="","","Plan "&general_main_dev_contr_plan_nup&" - "&'S94 - Not under Plan'!$C$5) ->  | F27: =sheetname_general(general_main_dev_contr_plan_nup) ->  | K27: --------------------------------------------------- | L27: ------------------------------- | N27: --------------------------------------------------- | O27: -------------------------------
B28: =IF(C28="","","Summary "&'Summary L6'!A$6) ->  | C28: =sheetname_general(general_level_1_summary) ->  | K28: =IF(L28="","","Database") ->  | L28: =sheetname_general(general_database_unique_key) ->  | N28: =IF(O28="","","Assets - Disposals & Transfers") ->  | O28: =sheetname_general(IPPE_movements_general_main) -> 
B29: =IF(C29="","","Summary "&'Summary F1'!A$6) ->  | C29: =sheetname_general(general_function_1_summary) ->  | N29: =IF(O29="","","IPPE - Maintenance & Revaluations") ->  | O29: =sheetname_general(IPPE_maintenance_reval_general_main) -> 
B30: =IF(C30="","","Summary "&'Summary F2'!A$6) ->  | C30: =sheetname_general(general_function_2_summary) ->  | K30: =IF(L30="","","Database errors") ->  | L30: =sheetname_general(writing_errors_general) ->  | N30: =IF(AND(N31="",N32="",N33="",N34=""),"","---------------------------------------------------") -> --------------------------------------------------- | O30: =IF(AND(N31="",N32="",N33="",N34=""),"","-------------------------------") -> -------------------------------
B31: =IF(C31="","","Summary "&'Summary F3'!A$6) ->  | C31: =sheetname_general(general_function_3_summary) ->  | N31: =IF(O31="","","External Loans - Summary") -> External Loans - Summary | O31: =sheetname_general(loans_external_general_main) -> Loans - External
B32: =IF(C32="","","Summary "&'Summary F4'!A$6) ->  | C32: =sheetname_general(general_function_4_summary) ->  | N32: =IF(O32="","","External Loans - Operating Purpose Schedules") ->  | O32: =sheetname_general(general_loans_Op_start_section) -> 
B33: =IF(AND(B34="",B35=""),"","---------------------------------------------------") ->  | C33: =IF(AND(B34="",B35=""),"","-------------------------------") ->  | N33: =IF(O33="","","External Loans - Capital Purpose Schedules") ->  | O33: =sheetname_general(general_loans_Cap_start_section) -> 
B34: =IF(C34="","","Budget Summary by level - Detailed Income/Expense Type") ->  | C34: =sheetname_general(budget_type_sum_level_general) ->  | N34: =IF(O34="","","External Loans - Major Projects Purpose Schedules") ->  | O34: =sheetname_general(general_loans_major_start_section) -> 
B35: =IF(C35="","","Budget Summary by level - High level") ->  | C35: =sheetname_general(budget_summary_level_general) ->  | N35: =IF(AND(N36="",N37=""),"","---------------------------------------------------") ->  | O35: =IF(AND(N36="",N37=""),"","-------------------------------") -> 
N36: =IF(O36="","","Finance Leases - Summary") ->  | O36: =sheetname_general(lease_schedule_external_general) -> 
N37: =IF(O37="","","Finance Leases - Schedules") ->  | O37: =sheetname_general(general_finance_leases_start_section) -> 
N38: =IF(AND(N39="",N40="",N41=""),"","---------------------------------------------------") ->  | O38: =IF(AND(N39="",N40="",N41=""),"","-------------------------------") -> 
N39: =IF(O39="","","Internal Loans Payable - Summary") ->  | O39: =sheetname_general(loan_schedule_internal_general) -> 
N40: =IF(O40="","","Internal Loans Payable - Schedules") ->  | O40: =sheetname_general(general_loans_internal_start_section) -> 
N41: =IF(O41="","","Internal Loans Receivable - Summary") ->  | O41: =sheetname_general(loan_schedule_rec_internal_general) -> 
N42: --------------------------------------------------- | O42: -------------------------------
N43: =IF(O43="","","Reserve Schedule - Internal") -> Reserve Schedule - Internal | O43: =sheetname_general(reserves_internal_general_main) -> Internal Reserves
N44: =IF(O44="","","Reserve Schedule - External") -> Reserve Schedule - External | O44: =sheetname_general(reserves_external_general_main) -> External Reserves
N45: --------------------------------------------------- | O45: -------------------------------
K46: =IF(L46="","","Drop Down List") ->  | L46: =sheetname_general(general_main_drop_down_list) ->  | N46: =IF(O46="","","Database Extract") ->  | O46: =sheetname_general(general_extract_overall_check) -> 
N47: =IF(O47="","","Data dump bulk upload") ->  | O47: =sheetname_general(general_data_dump_unique_key) -> 
N48: --------------------------------------------------- | O48: -------------------------------
N49: =IF(O49="","","General Ledger Table") ->  | O49: =sheetname_general(GL_table_general) -> 
N50: --------------------------------------------------- | O50: -------------------------------
N51: =IF(O51="","","CoA Mapping Table - Operating Expenses") ->  | O51: =sheetname_general(general_op_exp_coa_gl_account) -> 
N52: =IF(O52="","","CoA Mapping Table - Operating Income") ->  | O52: =sheetname_general(general_op_inc_coa_gl_account) -> 
N53: =IF(O53="","","CoA Mapping Table - Capital Expenses") ->  | O53: =sheetname_general(general_cap_exp_coa_gl_account) -> 
N54: =IF(O54="","","CoA Mapping Table - Capital Income") ->  | O54: =sheetname_general(general_cap_inc_coa_gl_account) -> 
N55: =IF(O55="","","CoA Mapping Table - Reserve Expenses") ->  | O55: =sheetname_general(general_res_exp_coa_gl_account) -> 
N56: =IF(O56="","","CoA Mapping Table - Reserve Income") ->  | O56: =sheetname_general(general_res_inc_coa_gl_account) -> 
N57: =IF(O57="","","CoA Mapping Table - Internal Expenses") ->  | O57: =sheetname_general(general_int_exp_coa_gl_account) -> 
N58: =IF(O58="","","CoA Mapping Table - Internal Income") ->  | O58: =sheetname_general(general_int_inc_coa_gl_account) -> 
N59: --------------------------------------------------- | O59: -------------------------------
N60: =IF(O60="","","Levels (Org Structure)") ->  | O60: =sheetname_general(general_levels_level_6_code) -> 
N61: =IF(O61="","","Functions (Functional Structure)") ->  | O61: =sheetname_general(general_functions_function_1_code) -> 

Sheet Cover Page
A3: ='[1]Cover Page'!$A$3 -> Armidale Regional Council
A5: ='[1]Cover Page'!$A$5 -> 10 Year Financial Plan for the Years ending 30 June 2031 | L5: Starting Year: | N5: 2021
C11: Scenario Name: | E11: Permanent 8.5% SV plus 2% rate peg 2021/22
C13: Fund Name: | E13: ='[1]Cover Page'!$C$13 -> General Fund
K16: hide this column
K19: =IF(K20=2,TRUE,FALSE) -> FALSE
K20: 1
K22: FALSE
K27: 2
K40: TRUE
K42: TRUE
K44: TRUE
K46: TRUE
K48: TRUE
K50: TRUE
K52: TRUE

Sheet year (hidden)
C5: Starting Year: | E5: =[1]!Starting_year -> 2021

Sheet Checklist
C1: Overall | D1: =Starting_year_general-1&"/"&RIGHT(Starting_year_general,2) -> 2020/21 | E1: =Starting_year_general&"/"&RIGHT(Starting_year_general+1,2) -> 2021/22 | F1: =Starting_year_general+1&"/"&RIGHT(Starting_year_general+2,2) -> 2022/23 | G1: =Starting_year_general+2&"/"&RIGHT(Starting_year_general+3,2) -> 2023/24 | H1: =Starting_year_general+3&"/"&RIGHT(Starting_year_general+4,2) -> 2024/25 | I1: =Starting_year_general+4&"/"&RIGHT(Starting_year_general+5,2) -> 2025/26 | J1: =Starting_year_general+5&"/"&RIGHT(Starting_year_general+6,2) -> 2026/27 | K1: =Starting_year_general+6&"/"&RIGHT(Starting_year_general+7,2) -> 2027/28 | L1: =Starting_year_general+7&"/"&RIGHT(Starting_year_general+8,2) -> 2028/29 | M1: =Starting_year_general+8&"/"&RIGHT(Starting_year_general+9,2) -> 2029/30 | N1: =Starting_year_general+9&"/"&RIGHT(Starting_year_general+10,2) -> 2030/31 | AA1: hide | AB1: hide | AC1: hide | AD1: hide | AE1: hide | AF1: hide | AG1: hide | AH1: hide | AI1: hide | AJ1: hide | AK1: hide | AL1: hide | AM1: hide | AN1: hide | AO1: hide | AP1: hide | AQ1: hide | AR1: hide | AS1: hide | AT1: hide | AU1: hide | AV1: hide | AW1: hide | AX1: hide | AY1: hide | AZ1: hide | BA1: hide | BB1: hide | BC1: hide | BD1: hide | BE1: hide | BF1: hide | BG1: hide | BH1: hide | BI1: hide | BJ1: hide | BK1: hide | BL1: hide | BM1: hide | BN1: hide | BO1: hide | BP1: hide | BQ1: hide | BR1: hide | BS1: hide | BT1: hide | BU1: hide | BV1: hide | BW1: hide | BX1: hide | BY1: hide | BZ1: hide | CA1: hide | CB1: hide | CC1: hide | CD1: hide | CE1: hide | CF1: hide | CG1: hide | CH1: hide | CI1: hide | CJ1: hide | CK1: hide | CL1: hide | CM1: hide | CN1: hide | CO1: hide | CP1: hide | CQ1: hide | CR1: hide | CS1: hide | CT1: hide | CU1: hide | CV1: hide | CW1: hide | CX1: hide | CY1: hide | CZ1: hide | DA1: hide | DB1: hide | DC1: hide | DD1: hide | DE1: hide | DF1: hide | DG1: hide | DH1: hide | DI1: hide | DJ1: hide | DK1: hide | DL1: hide | DM1: hide | DN1: hide | DO1: hide | DP1: hide | DQ1: hide | DR1: hide | DS1: hide | DT1: hide | DU1: hide | DV1: hide | DW1: hide | DX1: hide | DY1: hide | DZ1: hide | EA1: hide | EB1: hide | EC1: hide | ED1: hide | EE1: hide | EF1: hide | EG1: hide | EH1: hide | EI1: hide | EJ1: hide | EK1: hide | EL1: hide | EM1: hide | EN1: hide | EO1: hide | EP1: hide | EQ1: hide | ER1: hide | ES1: hide | ET1: hide | EU1: hide | EV1: hide | EW1: hide | EX1: hide | EY1: hide | EZ1: hide | FA1: hide | FB1: hide | FC1: hide | FD1: hide | FE1: hide | FF1: hide | FG1: hide | FH1: hide | FI1: hide | FJ1: hide | FK1: hide | FL1: hide | FM1: hide | FN1: hide | FO1: hide | FP1: hide | FQ1: hide | FR1: hide | FS1: hide | FT1: hide | FU1: hide | FV1: hide | FW1: hide | FX1: hide | FY1: hide | FZ1: hide | GA1: hide | GB1: hide | GC1: hide | GD1: hide | GE1: hide | GF1: hide | GG1: hide | GH1: hide | GI1: hide | GJ1: hide | GK1: hide | GL1: hide | GM1: hide | GN1: hide | GO1: hide | GP1: hide | GQ1: hide | GR1: hide | GS1: hide | GT1: hide | GU1: hide | GV1: hide | GW1: hide | GX1: hide | GY1: hide | GZ1: hide | HA1: hide | HB1: hide | HC1: hide | HD1: hide | HE1: hide | HF1: hide | HG1: hide | HH1: hide | HI1: hide | HJ1: hide | HK1: hide | HL1: hide | HM1: hide | HN1: hide | HO1: hide | HP1: hide | HQ1: hide | HR1: hide | HS1: hide | HT1: hide | HU1: hide | HV1: hide | HW1: hide | HX1: hide | HY1: hide | HZ1: hide | IA1: hide | IB1: hide | IC1: hide | ID1: hide | IE1: hide | IF1: hide | IG1: hide | IH1: hide | II1: hide | IJ1: hide | IK1: hide | IL1: hide | IM1: hide | IN1: hide | IO1: hide | IP1: hide | IQ1: hide | IR1: hide | IS1: hide | IT1: hide | IU1: hide | IV1: hide | IW1: hide | IX1: hide | IY1: hide | IZ1: hide | JA1: hide | JB1: hide | JC1: hide | JD1: hide | JE1: hide | JF1: hide | JG1: hide | JH1: hide | JI1: hide | JJ1: hide | JK1: hide | JL1: hide | JM1: hide | JN1: hide | JO1: hide | JP1: hide | JQ1: hide | JR1: hide | JS1: hide | JT1: hide | JU1: hide | JV1: hide | JW1: hide | JX1: hide | JY1: hide | JZ1: hide | KA1: hide | KB1: hide | KC1: hide | KD1: hide | KE1: hide | KF1: hide | KG1: hide | KH1: hide | KI1: hide | KJ1: hide | KK1: hide | KL1: hide | KM1: hide | KN1: hide | KO1: hide | KP1: hide | KQ1: hide | KR1: hide | KS1: hide | KT1: hide | KU1: hide | KV1: hide | KW1: hide | KX1: hide | KY1: hide | KZ1: hide | LA1: hide | LB1: hide | LC1: hide | LD1: hide | LE1: hide | LF1: hide | LG1: hide | LH1: hide | LI1: hide | LJ1: hide | LK1: hide | LL1: hide | LM1: hide | LN1: hide | LO1: hide | LP1: hide | LQ1: hide | LR1: hide | LS1: hide | LT1: hide | LU1: hide | LV1: hide | LW1: hide | LX1: hide | LY1: hide | LZ1: hide
A3: =PROPER(general_fund_name)&" - Database updated & Data Integrity" -> General Fund - Database updated & Data Integrity
A5: =PROPER(general_fund_name)&" workfile" -> General Fund workfile | B5: =PROPER(general_fund_name)&" Database has been updated" -> General Fund Database has been updated | C5: 1 | D5: =IF(C5=1,"","Changes have been made to the database ("&PROPER(general_fund_name)&") but has not been updated.") -> 
D6: =IF(C5=1,"","To update the database go to worksheet """&IF(ISERROR(sheetname_general(general_database_unique_key))=TRUE,"<activate macros>",sheetname_general(general_database_unique_key))&""" and click on the") -> 
D7: =IF(C5=1,"","button ""Update database"" to update database and the LTFP.") -> 
A9: =PROPER(general_fund_name)&" workfile" -> General Fund workfile | B9: Integrity Check has been run | C9: 1 | D9: =IF(C9=1,"","The last time a Data Integrity Check has been run, errors have ocurred.") -> 
D10: =IF(C9=1,"","Go to worksheet """&IF(ISERROR(sheetname_general(writing_errors_general))=TRUE,"<activate macros>",sheetname_general(writing_errors_general))&""", view all errors and fix errors.") -> 
D11: =IF(C9=1,"","After errors have been fixed, run the Data Integrity Check again to ensure all errors have been fixed.") -> 
A13: =PROPER(general_fund_name)&" workfile" -> General Fund workfile | B13: G/L Table has been updated | C13: 1 | D13: =IF(C13=1,"","Changes have been made to the G/L Table but it has not been updated.") -> 
D14: =IF(C13=1,"","To update the G/L Table click on the button ""Update G/L Table"".") -> 
D15: =IF(C13=1,"","") -> 
A17: =PROPER(general_fund_name)&" workfile" -> General Fund workfile | B17: COA Tables have been updated | C17: 1 | D17: =IF(C17=1,"","Changes have been made to the COA Tables but they have not been updated.") -> 
D18: =IF(C17=1,"","To update the COA Tables click on the button ""Update COA Tables"".") -> 
D19: =IF(C17=1,"","") -> 
A21: =PROPER(general_fund_name)&" workfile" -> General Fund workfile | B21: Reserve Schedules have been updated | C21: =IF(OR(MAX([1]!reserves_external_data_time,[1]!reserves_internal_data_time)>reserve_schedule_general_updated,[1]!internal_reserve_schedule_update_consol<>"",[1]!external_reserve_schedule_update_consol<>""),-2,1) -> 1 | D21: =IF(C21=1,"","Changes have been made to the Reserve Schedules in the Consolidated") -> 
D22: =IF(C21=1,"",IF(OR([1]!internal_reserve_schedule_update_consol<>"",[1]!external_reserve_schedule_update_consol<>""),"working file but the Schedules have not been updated in the consolidated file.","working file but the Schedules have not been updated in this fund file.")) -> 
D23: =IF(C21=1,"",IF(OR([1]!internal_reserve_schedule_update_consol<>"",[1]!external_reserve_schedule_update_consol<>""),"Update first the Schedules in the consolidated file and then in this fund file.","To update the Schedules click on the button ""Update Reserve Schedules"".")) -> 
A25: =PROPER(general_fund_name)&" workfile" -> General Fund workfile | B25: Global changes % in matrix agree to database (i.e. database has been updated for global changes %). | C25: =IF(SUM('Global Indexation'!AB428:AK428)<>0,-2,1) -> 1 | D25: =IF(C25=1,"","The database has not been updated for global changes %.") -> 
D26: =IF(C25=1,"","To update the database click on the button .") -> 
A28: =PROPER(general_fund_name)&" workfile" -> General Fund workfile | B28: Population changes % in matrix agree to database (i.e. database has been updated for population changes %). | C28: =IF(SUM('Population Indexation'!Y173:AH173)<>0,-2,1) -> 1 | D28: =IF(C28=1,"","The database has not been updated for population changes %.") -> 
D29: =IF(C28=1,"","To update the database click on the button .") -> 
... 29 more rows

Sheet Income Statement
A1: hide | B1: ='Cover Page'!$A$3 -> Armidale Regional Council | R1: hide | S1: hide | T1: hide | U1: hide | V1: hide | W1: hide | X1: hide | Y1: hide | Z1: hide | AA1: hide | AB1: hide | AC1: hide | AD1: hide | AE1: hide | AF1: hide | AG1: hide | AH1: hide | AI1: hide | AJ1: hide | AK1: hide | AL1: hide | AM1: hide | AN1: hide | AO1: hide | AP1: hide | AQ1: hide | AR1: hide | AS1: hide | AT1: hide | AU1: hide | AV1: hide | AW1: hide | AX1: hide | AY1: hide | AZ1: hide | BA1: hide | BB1: hide | BC1: hide | BD1: hide | BE1: hide | BF1: hide | BG1: hide | BH1: hide | BI1: hide | BJ1: hide | BK1: hide | BL1: hide | BM1: hide | BN1: hide | BO1: hide | BP1: hide | BQ1: hide | BR1: hide | BS1: hide | BT1: hide | BU1: hide | BV1: hide | BW1: hide | BX1: hide | BY1: hide | BZ1: hide | CA1: hide | CB1: hide | CC1: hide | CD1: hide | CE1: hide | CF1: hide | CG1: hide | CH1: hide | CI1: hide | CJ1: hide | CK1: hide | CL1: hide | CM1: hide | CN1: hide | CO1: hide | CP1: hide | CQ1: hide | CR1: hide | CS1: hide | CT1: hide | CU1: hide | CV1: hide | CW1: hide | CX1: hide | CY1: hide | CZ1: hide | DA1: hide | DB1: hide | DC1: hide | DD1: hide | DE1: hide | DF1: hide | DG1: hide | DH1: hide | DI1: hide | DJ1: hide | DK1: hide | DL1: hide | DM1: hide | DN1: hide | DO1: hide | DP1: hide | DQ1: hide | DR1: hide | DS1: hide | DT1: hide | DU1: hide | DV1: hide | DW1: hide | DX1: hide | DY1: hide
B2: ='Cover Page'!$A$5 -> 10 Year Financial Plan for the Years ending 30 June 2031 | DY2: hide
B3: ="INCOME STATEMENT - "&UPPER(general_fund_name) -> INCOME STATEMENT - GENERAL FUND | D3: Actuals | F3: Current Year | H3: Projected Years | AG3: Forecasted Income | DY3: hide
B4: ="Scenario: "&general_scenario_name -> Scenario: Permanent 8.5% SV plus 2% rate peg 2021/22 | D4: =Starting_year_general-2&"/"&RIGHT(Starting_year_general-1,2) -> 2019/20 | F4: =Starting_year_general-1&"/"&RIGHT(Starting_year_general,2) -> 2020/21 | H4: =Starting_year_general&"/"&RIGHT(Starting_year_general+1,2) -> 2021/22 | I4: =Starting_year_general+1&"/"&RIGHT(Starting_year_general+2,2) -> 2022/23 | J4: =Starting_year_general+2&"/"&RIGHT(Starting_year_general+3,2) -> 2023/24 | K4: =Starting_year_general+3&"/"&RIGHT(Starting_year_general+4,2) -> 2024/25 | L4: =Starting_year_general+4&"/"&RIGHT(Starting_year_general+5,2) -> 2025/26 | M4: =Starting_year_general+5&"/"&RIGHT(Starting_year_general+6,2) -> 2026/27 | N4: =Starting_year_general+6&"/"&RIGHT(Starting_year_general+7,2) -> 2027/28 | O4: =Starting_year_general+7&"/"&RIGHT(Starting_year_general+8,2) -> 2028/29 | P4: =Starting_year_general+8&"/"&RIGHT(Starting_year_general+9,2) -> 2029/30 | Q4: =Starting_year_general+9&"/"&RIGHT(Starting_year_general+10,2) -> 2030/31 | U4: =F4 -> 2020/21 | V4: =H4 -> 2021/22 | W4: 2022/23 | X4: 2023/24 | Y4: 2024/25 | Z4: 2025/26 | AA4: 2026/27 | AB4: 2027/28 | AC4: 2028/29 | AD4: 2029/30 | AE4: 2030/31 | AG4: =LEFT(Q4,4)+1&"/"&RIGHT(LEFT(Q4,4)+2,2) -> 2031/32 | AH4: =LEFT(AG4,4)+1&"/"&RIGHT(LEFT(AG4,4)+2,2) -> 2032/33 | AI4: 2033/34 | AJ4: 2034/35 | AK4: 2035/36 | AL4: 2036/37 | AM4: 2037/38 | AN4: 2038/39 | AO4: 2039/40 | AP4: 2040/41 | BD4: Non-cash Income | CD4: Cash Income | DD4: Cash Receivables | DY4: hide
D5: =IF('Cover Page'!$K$19=TRUE,"$","$'000") -> $'000 | F5: =IF('Cover Page'!$K$19=TRUE,"$","$'000") -> $'000 | H5: =IF('Cover Page'!$K$19=TRUE,"$","$'000") -> $'000 | I5: =IF('Cover Page'!$K$19=TRUE,"$","$'000") -> $'000 | J5: =IF('Cover Page'!$K$19=TRUE,"$","$'000") -> $'000 | K5: =IF('Cover Page'!$K$19=TRUE,"$","$'000") -> $'000 | L5: =IF('Cover Page'!$K$19=TRUE,"$","$'000") -> $'000 | M5: =IF('Cover Page'!$K$19=TRUE,"$","$'000") -> $'000 | N5: =IF('Cover Page'!$K$19=TRUE,"$","$'000") -> $'000 | O5: =IF('Cover Page'!$K$19=TRUE,"$","$'000") -> $'000 | P5: =IF('Cover Page'!$K$19=TRUE,"$","$'000") -> $'000 | Q5: =IF('Cover Page'!$K$19=TRUE,"$","$'000") -> $'000 | BD5: =F4 -> 2020/21 | BE5: =H4 -> 2021/22 | BF5: 2022/23 | BG5: 2023/24 | BH5: 2024/25 | BI5: 2025/26 | BJ5: 2026/27 | BK5: 2027/28 | BL5: 2028/29 | BM5: 2029/30 | BN5: 2030/31 | BO5: =AG4 -> 2031/32 | BP5: =AH4 -> 2032/33 | BQ5: 2033/34 | BR5: 2034/35 | BS5: 2035/36 | BT5: 2036/37 | BU5: 2037/38 | BV5: 2038/39 | BW5: 2039/40 | BX5: 2040/41 | CD5: =BD5 -> 2020/21 | CE5: =BE5 -> 2021/22 | CF5: 2022/23 | CG5: 2023/24 | CH5: 2024/25 | CI5: 2025/26 | CJ5: 2026/27 | CK5: 2027/28 | CL5: 2028/29 | CM5: 2029/30 | CN5: 2030/31 | CO5: 2031/32 | CP5: 2032/33 | CQ5: 2033/34 | CR5: =BR5 -> 2034/35 | CS5: =BS5 -> 2035/36 | CT5: =BT5 -> 2036/37 | CU5: =BU5 -> 2037/38 | CV5: =BV5 -> 2038/39 | CW5: =BW5 -> 2039/40 | CX5: 2040/41 | DD5: =CD5 -> 2020/21 | DE5: =CE5 -> 2021/22 | DF5: 2022/23 | DG5: 2023/24 | DH5: 2024/25 | DI5: 2025/26 | DJ5: 2026/27 | DK5: 2027/28 | DL5: 2028/29 | DM5: 2029/30 | DN5: 2030/31 | DO5: 2031/32 | DP5: 2032/33 | DQ5: 2033/34 | DR5: 2034/35 | DS5: 2035/36 | DT5: 2036/37 | DU5: 2037/38 | DV5: =CV5 -> 2038/39 | DW5: =CW5 -> 2039/40 | DX5: 2040/41 | DY5: hide
B6: Income from Continuing Operations | DY6: hide
A7: Code | B7: Revenue: | DY7: hide
A8: =B8 -> Rates & Annual Charges | B8: Rates & Annual Charges | D8: =SUM('Historical Data'!C655)*1000 -> 25390000 | F8: ='IS Workings'!E22 -> 26732592 | H8: ='IS Workings'!G22 -> 27590057 | I8: ='IS Workings'!H22 -> 28570606 | J8: ='IS Workings'!I22 -> 28986378 | K8: ='IS Workings'!J22 -> 30020653 | L8: ='IS Workings'!K22 -> 31092212 | M8: ='IS Workings'!L22 -> 31902416 | N8: ='IS Workings'!M22 -> 31943669 | O8: ='IS Workings'!N22 -> 33093158 | P8: ='IS Workings'!O22 -> 34284397 | Q8: ='IS Workings'!P22 -> 35518913 | S8: yes | U8: =IF($S8="yes",F8-BD8,0) -> 26732592 | V8: =IF($S8="yes",H8-BE8,0) -> 27590057 | W8: 28570606 | X8: 28986378 | Y8: 30020653 | Z8: 31092212 | AA8: 31902416 | AB8: 31943669 | AC8: 33093158 | AD8: 34284397 | AE8: 35518913 | BD8: =SUMIF('Budget Summary 1'!$C:$C,$A8,'Budget Summary 1'!BC:BC) -> 0 | BE8: =SUMIF('Budget Summary 1'!$C:$C,$A8,'Budget Summary 1'!BD:BD) -> 0 | BF8: =SUMIF('Budget Summary 1'!$C:$C,$A8,'Budget Summary 1'!BE:BE) -> 0 | BG8: =SUMIF('Budget Summary 1'!$C:$C,$A8,'Budget Summary 1'!BF:BF) -> 0 | BH8: =SUMIF('Budget Summary 1'!$C:$C,$A8,'Budget Summary 1'!BG:BG) -> 0 | BI8: =SUMIF('Budget Summary 1'!$C:$C,$A8,'Budget Summary 1'!BH:BH) -> 0 | BJ8: =SUMIF('Budget Summary 1'!$C:$C,$A8,'Budget Summary 1'!BI:BI) -> 0 | BK8: =SUMIF('Budget Summary 1'!$C:$C,$A8,'Budget Summary 1'!BJ:BJ) -> 0 | BL8: =SUMIF('Budget Summary 1'!$C:$C,$A8,'Budget Summary 1'!BK:BK) -> 0 | BM8: =SUMIF('Budget Summary 1'!$C:$C,$A8,'Budget Summary 1'!BL:BL) -> 0 | BN8: =SUMIF('Budget Summary 1'!$C:$C,$A8,'Budget Summary 1'!BM:BM) -> 0 | CD8: =F8-BD8 -> 26732592 | CE8: =H8-BE8 -> 27590057 | CF8: 28570606 | CG8: 28986378 | CH8: 30020653 | CI8: 31092212 | CJ8: 31902416 | CK8: 31943669 | CL8: 33093158 | CM8: 34284397 | CN8: 35518913 | DD8: =IF($S8="yes",CD8,0) -> 26732592 | DE8: =IF($S8="yes",CE8,0) -> 27590057 | DF8: 28570606 | DG8: 28986378 | DH8: 30020653 | DI8: 31092212 | DJ8: 31902416 | DK8: 31943669 | DL8: 33093158 | DM8: 34284397 | DN8: 35518913 | DY8: hide
A9: =B9 -> User Charges & Fees | B9: User Charges & Fees | D9: =SUM('Historical Data'!C656)*1000 -> 12526000 | F9: ='IS Workings'!E43 -> 12355050 | H9: ='IS Workings'!G43 -> 13518682 | I9: ='IS Workings'!H43 -> 14026334 | J9: ='IS Workings'!I43 -> 14553077 | K9: ='IS Workings'!J43 -> 15099632 | L9: ='IS Workings'!K43 -> 15666743 | M9: ='IS Workings'!L43 -> 16255186 | N9: ='IS Workings'!M43 -> 16865759 | O9: ='IS Workings'!N43 -> 17499298 | P9: ='IS Workings'!O43 -> 18156669 | Q9: ='IS Workings'!P43 -> 18838768 | S9: yes | U9: =IF($S9="yes",F9-BD9,0) -> 12355050 | V9: 13518682 | W9: 14026334 | X9: 14553077 | Y9: 15099632 | Z9: 15666743 | AA9: 16255186 | AB9: 16865759 | AC9: 17499298 | AD9: 18156669 | AE9: 18838768 | BD9: =SUMIF('Budget Summary 1'!$C:$C,$A9,'Budget Summary 1'!BC:BC) -> 0 | BE9: =SUMIF('Budget Summary 1'!$C:$C,$A9,'Budget Summary 1'!BD:BD) -> 0 | BF9: =SUMIF('Budget Summary 1'!$C:$C,$A9,'Budget Summary 1'!BE:BE) -> 0 | BG9: =SUMIF('Budget Summary 1'!$C:$C,$A9,'Budget Summary 1'!BF:BF) -> 0 | BH9: =SUMIF('Budget Summary 1'!$C:$C,$A9,'Budget Summary 1'!BG:BG) -> 0 | BI9: =SUMIF('Budget Summary 1'!$C:$C,$A9,'Budget Summary 1'!BH:BH) -> 0 | BJ9: =SUMIF('Budget Summary 1'!$C:$C,$A9,'Budget Summary 1'!BI:BI) -> 0 | BK9: =SUMIF('Budget Summary 1'!$C:$C,$A9,'Budget Summary 1'!BJ:BJ) -> 0 | BL9: =SUMIF('Budget Summary 1'!$C:$C,$A9,'Budget Summary 1'!BK:BK) -> 0 | BM9: =SUMIF('Budget Summary 1'!$C:$C,$A9,'Budget Summary 1'!BL:BL) -> 0 | BN9: =SUMIF('Budget Summary 1'!$C:$C,$A9,'Budget Summary 1'!BM:BM) -> 0 | CD9: =F9-BD9 -> 12355050 | CE9: =H9-BE9 -> 13518682 | CF9: =I9-BF9 -> 14026334 | CG9: =J9-BG9 -> 14553077 | CH9: =K9-BH9 -> 15099632 | CI9: =L9-BI9 -> 15666743 | CJ9: =M9-BJ9 -> 16255186 | CK9: =N9-BK9 -> 16865759 | CL9: =O9-BL9 -> 17499298 | CM9: =P9-BM9 -> 18156669 | CN9: =Q9-BN9 -> 18838768 | DD9: =IF($S9="yes",CD9,0) -> 12355050 | DE9: 13518682 | DF9: 14026334 | DG9: 14553077 | DH9: 15099632 | DI9: 15666743 | DJ9: 16255186 | DK9: 16865759 | DL9: 17499298 | DM9: 18156669 | DN9: 18838768 | DY9: hide
A10: =IF(R10="","Interest & Investment Revenues - Other","Interest & Investment Revenue") -> Interest & Investment Revenue | B10: Interest & Investment Revenue | D10: =SUM('Historical Data'!C657)*1000 -> 438000 | F10: ='IS Workings'!E65 -> 342000 | H10: ='IS Workings'!G65 -> 280809 | I10: ='IS Workings'!H65 -> 259663 | J10: ='IS Workings'!I65 -> 250152 | K10: ='IS Workings'!J65 -> 238839 | L10: ='IS Workings'!K65 -> 232167 | M10: ='IS Workings'!L65 -> 240931 | N10: ='IS Workings'!M65 -> 245165 | O10: ='IS Workings'!N65 -> 277569 | P10: ='IS Workings'!O65 -> 331011 | Q10: ='IS Workings'!P65 -> 380735 | R10: rc | S10: yes | U10: 342000 | V10: 280809 | W10: 259663 | X10: 250152 | Y10: 238839 | Z10: 232167 | AA10: 240931 | AB10: 245165 | AC10: 277569 | AD10: 331011 | AE10: 380735 | BD10: =SUMIF('Budget Summary 1'!$C:$C,$A10,'Budget Summary 1'!BC:BC) -> 0 | BE10: =SUMIF('Budget Summary 1'!$C:$C,$A10,'Budget Summary 1'!BD:BD) -> 0 | BF10: =SUMIF('Budget Summary 1'!$C:$C,$A10,'Budget Summary 1'!BE:BE) -> 0 | BG10: =SUMIF('Budget Summary 1'!$C:$C,$A10,'Budget Summary 1'!BF:BF) -> 0 | BH10: =SUMIF('Budget Summary 1'!$C:$C,$A10,'Budget Summary 1'!BG:BG) -> 0 | BI10: =SUMIF('Budget Summary 1'!$C:$C,$A10,'Budget Summary 1'!BH:BH) -> 0 | BJ10: =SUMIF('Budget Summary 1'!$C:$C,$A10,'Budget Summary 1'!BI:BI) -> 0 | BK10: =SUMIF('Budget Summary 1'!$C:$C,$A10,'Budget Summary 1'!BJ:BJ) -> 0 | BL10: =SUMIF('Budget Summary 1'!$C:$C,$A10,'Budget Summary 1'!BK:BK) -> 0 | BM10: =SUMIF('Budget Summary 1'!$C:$C,$A10,'Budget Summary 1'!BL:BL) -> 0 | BN10: =SUMIF('Budget Summary 1'!$C:$C,$A10,'Budget Summary 1'!BM:BM) -> 0 | CD10: =+SUMIF('Budget Summary 1'!$C:$C,$A10,'Budget Summary 1'!J:J)-BD10 -> 342000 | CE10: =+SUMIF('Budget Summary 1'!$C:$C,$A10,'Budget Summary 1'!L:L)-BE10 -> 280809 | CF10: =+SUMIF('Budget Summary 1'!$C:$C,$A10,'Budget Summary 1'!M:M)-BF10 -> 259663 | CG10: =+SUMIF('Budget Summary 1'!$C:$C,$A10,'Budget Summary 1'!N:N)-BG10 -> 250152 | CH10: =+SUMIF('Budget Summary 1'!$C:$C,$A10,'Budget Summary 1'!O:O)-BH10 -> 238839 | CI10: =+SUMIF('Budget Summary 1'!$C:$C,$A10,'Budget Summary 1'!P:P)-BI10 -> 232167 | CJ10: =+SUMIF('Budget Summary 1'!$C:$C,$A10,'Budget Summary 1'!Q:Q)-BJ10 -> 240931 | CK10: =+SUMIF('Budget Summary 1'!$C:$C,$A10,'Budget Summary 1'!R:R)-BK10 -> 245165 | CL10: =+SUMIF('Budget Summary 1'!$C:$C,$A10,'Budget Summary 1'!S:S)-BL10 -> 277569 | CM10: =+SUMIF('Budget Summary 1'!$C:$C,$A10,'Budget Summary 1'!T:T)-BM10 -> 331011 | CN10: =+SUMIF('Budget Summary 1'!$C:$C,$A10,'Budget Summary 1'!U:U)-BN10 -> 380735 | DD10: 342000 | DE10: 280809 | DF10: 259663 | DG10: 250152 | DH10: 238839 | DI10: 232167 | DJ10: 240931 | DK10: 245165 | DL10: 277569 | DM10: 331011 | DN10: 380735 | DY10: hide
A11: =B11 -> Other Revenues | B11: Other Revenues | D11: =SUM('Historical Data'!C658)*1000 -> 2698000 | F11: ='IS Workings'!E86 -> 2185350 | H11: ='IS Workings'!G86 -> 2239987 | I11: ='IS Workings'!H86 -> 2295993 | J11: ='IS Workings'!I86 -> 2353392 | K11: ='IS Workings'!J86 -> 2412227 | L11: ='IS Workings'!K86 -> 2472533 | M11: ='IS Workings'!L86 -> 2534346 | N11: ='IS Workings'!M86 -> 2597707 | O11: ='IS Workings'!N86 -> 2662650 | P11: ='IS Workings'!O86 -> 2729217 | Q11: ='IS Workings'!P86 -> 2797448 | S11: yes | U11: 2185350 | V11: 2239987 | W11: 2295993 | X11: 2353392 | Y11: 2412227 | Z11: 2472533 | AA11: 2534346 | AB11: 2597707 | AC11: 2662650 | AD11: 2729217 | AE11: 2797448 | BD11: =SUMIF('Budget Summary 1'!$C:$C,$A11,'Budget Summary 1'!BC:BC) -> 0 | BE11: =SUMIF('Budget Summary 1'!$C:$C,$A11,'Budget Summary 1'!BD:BD) -> 0 | BF11: =SUMIF('Budget Summary 1'!$C:$C,$A11,'Budget Summary 1'!BE:BE) -> 0 | BG11: =SUMIF('Budget Summary 1'!$C:$C,$A11,'Budget Summary 1'!BF:BF) -> 0 | BH11: =SUMIF('Budget Summary 1'!$C:$C,$A11,'Budget Summary 1'!BG:BG) -> 0 | BI11: =SUMIF('Budget Summary 1'!$C:$C,$A11,'Budget Summary 1'!BH:BH) -> 0 | BJ11: =SUMIF('Budget Summary 1'!$C:$C,$A11,'Budget Summary 1'!BI:BI) -> 0 | BK11: =SUMIF('Budget Summary 1'!$C:$C,$A11,'Budget Summary 1'!BJ:BJ) -> 0 | BL11: =SUMIF('Budget Summary 1'!$C:$C,$A11,'Budget Summary 1'!BK:BK) -> 0 | BM11: =SUMIF('Budget Summary 1'!$C:$C,$A11,'Budget Summary 1'!BL:BL) -> 0 | BN11: =SUMIF('Budget Summary 1'!$C:$C,$A11,'Budget Summary 1'!BM:BM) -> 0 | CD11: 2185350 | CE11: 2239987 | CF11: 2295993 | CG11: 2353392 | CH11: 2412227 | CI11: 2472533 | CJ11: 2534346 | CK11: 2597707 | CL11: 2662650 | CM11: 2729217 | CN11: 2797448 | DD11: 2185350 | DE11: 2239987 | DF11: 2295993 | DG11: 2353392 | DH11: 2412227 | DI11: 2472533 | DJ11: 2534346 | DK11: 2597707 | DL11: 2662650 | DM11: 2729217 | DN11: 2797448 | DY11: hide
A12: =B12 -> Grants & Contributions provided for Operating Purposes | B12: Grants & Contributions provided for Operating Purposes | D12: =SUM('Historical Data'!C659)*1000 -> 15495000 | F12: ='IS Workings'!E106 -> 13154852 | H12: ='IS Workings'!G106 -> 10837659 | I12: ='IS Workings'!H106 -> 11054414 | J12: ='IS Workings'!I106 -> 11275501 | K12: ='IS Workings'!J106 -> 11501012 | L12: ='IS Workings'!K106 -> 11731033 | M12: ='IS Workings'!L106 -> 11965654 | N12: ='IS Workings'!M106 -> 12204968 | O12: ='IS Workings'!N106 -> 12449067 | P12: ='IS Workings'!O106 -> 12698048 | Q12: ='IS Workings'!P106 -> 12952012 | S12: yes | U12: 13154852 | V12: 10837659 | W12: 11054414 | X12: 11275501 | Y12: 11501012 | Z12: 11731033 | AA12: 11965654 | AB12: 12204968 | AC12: 12449067 | AD12: 12698048 | AE12: 12952012 | BD12: =SUMIF('Budget Summary 1'!$C:$C,$A12,'Budget Summary 1'!BC:BC) -> 0 | BE12: =SUMIF('Budget Summary 1'!$C:$C,$A12,'Budget Summary 1'!BD:BD) -> 0 | BF12: =SUMIF('Budget Summary 1'!$C:$C,$A12,'Budget Summary 1'!BE:BE) -> 0 | BG12: =SUMIF('Budget Summary 1'!$C:$C,$A12,'Budget Summary 1'!BF:BF) -> 0 | BH12: =SUMIF('Budget Summary 1'!$C:$C,$A12,'Budget Summary 1'!BG:BG) -> 0 | BI12: =SUMIF('Budget Summary 1'!$C:$C,$A12,'Budget Summary 1'!BH:BH) -> 0 | BJ12: =SUMIF('Budget Summary 1'!$C:$C,$A12,'Budget Summary 1'!BI:BI) -> 0 | BK12: =SUMIF('Budget Summary 1'!$C:$C,$A12,'Budget Summary 1'!BJ:BJ) -> 0 | BL12: =SUMIF('Budget Summary 1'!$C:$C,$A12,'Budget Summary 1'!BK:BK) -> 0 | BM12: =SUMIF('Budget Summary 1'!$C:$C,$A12,'Budget Summary 1'!BL:BL) -> 0 | BN12: =SUMIF('Budget Summary 1'!$C:$C,$A12,'Budget Summary 1'!BM:BM) -> 0 | CD12: 13154852 | CE12: 10837659 | CF12: 11054414 | CG12: 11275501 | CH12: 11501012 | CI12: 11731033 | CJ12: 11965654 | CK12: 12204968 | CL12: 12449067 | CM12: 12698048 | CN12: 12952012 | DD12: 13154852 | DE12: 10837659 | DF12: 11054414 | DG12: 11275501 | DH12: 11501012 | DI12: 11731033 | DJ12: 11965654 | DK12: 12204968 | DL12: 12449067 | DM12: 12698048 | DN12: 12952012 | DY12: hide
A13: =B13 -> Grants & Contributions provided for Capital Purposes | B13: Grants & Contributions provided for Capital Purposes | D13: =SUM('Historical Data'!C660)*1000 -> 19304000 | F13: ='IS Workings'!E132 -> 16068092 | H13: ='IS Workings'!G132 -> 7466934 | I13: ='IS Workings'!H132 -> 1816523 | J13: ='IS Workings'!I132 -> 1659983 | K13: ='IS Workings'!J132 -> 1998355 | L13: ='IS Workings'!K132 -> 2063756 | M13: ='IS Workings'!L132 -> 1680733 | N13: ='IS Workings'!M132 -> 1534373 | O13: ='IS Workings'!N132 -> 3531210 | P13: ='IS Workings'!O132 -> 1970950 | Q13: ='IS Workings'!P132 -> 1264543 | S13: yes | U13: 16068092 | V13: 7466934 | W13: 1816523 | X13: 1659983 | Y13: 1998355 | Z13: 2063756 | AA13: 1680733 | AB13: 1534373 | AC13: 3531210 | AD13: 1970950 | AE13: 1264543 | BD13: =SUMIF('Budget Summary 1'!$C:$C,$A13,'Budget Summary 1'!BC:BC) -> 0 | BE13: =SUMIF('Budget Summary 1'!$C:$C,$A13,'Budget Summary 1'!BD:BD) -> 0 | BF13: =SUMIF('Budget Summary 1'!$C:$C,$A13,'Budget Summary 1'!BE:BE) -> 0 | BG13: =SUMIF('Budget Summary 1'!$C:$C,$A13,'Budget Summary 1'!BF:BF) -> 0 | BH13: =SUMIF('Budget Summary 1'!$C:$C,$A13,'Budget Summary 1'!BG:BG) -> 0 | BI13: =SUMIF('Budget Summary 1'!$C:$C,$A13,'Budget Summary 1'!BH:BH) -> 0 | BJ13: =SUMIF('Budget Summary 1'!$C:$C,$A13,'Budget Summary 1'!BI:BI) -> 0 | BK13: =SUMIF('Budget Summary 1'!$C:$C,$A13,'Budget Summary 1'!BJ:BJ) -> 0 | BL13: =SUMIF('Budget Summary 1'!$C:$C,$A13,'Budget Summary 1'!BK:BK) -> 0 | BM13: =SUMIF('Budget Summary 1'!$C:$C,$A13,'Budget Summary 1'!BL:BL) -> 0 | BN13: =SUMIF('Budget Summary 1'!$C:$C,$A13,'Budget Summary 1'!BM:BM) -> 0 | CD13: 16068092 | CE13: 7466934 | CF13: 1816523 | CG13: 1659983 | CH13: 1998355 | CI13: 2063756 | CJ13: 1680733 | CK13: 1534373 | CL13: 3531210 | CM13: 1970950 | CN13: 1264543 | DD13: 16068092 | DE13: 7466934 | DF13: 1816523 | DG13: 1659983 | DH13: 1998355 | DI13: 2063756 | DJ13: 1680733 | DK13: 1534373 | DL13: 3531210 | DM13: 1970950 | DN13: 1264543 | DY13: hide
B14: Other Income: | DY14: hide
A15: =B15 -> Net gains from the disposal of assets | B15: Net gains from the disposal of assets | D15: =SUM('Historical Data'!C662)*1000 -> 0 | F15: ='IS Workings'!E159 -> 0 | H15: ='IS Workings'!G159 -> 0 | I15: ='IS Workings'!H159 -> 0 | J15: ='IS Workings'!I159 -> 0 | K15: ='IS Workings'!J159 -> 0 | L15: ='IS Workings'!K159 -> 0 | M15: ='IS Workings'!L159 -> 0 | N15: ='IS Workings'!M159 -> 0 | O15: ='IS Workings'!N159 -> 0 | P15: ='IS Workings'!O159 -> 0 | Q15: ='IS Workings'!P159 -> 0 | S15: yes | U15: 0 | V15: =IF($S15="yes",H15-BE15,0) -> 0 | W15: =IF($S15="yes",I15-BF15,0) -> 0 | X15: =IF($S15="yes",J15-BG15,0) -> 0 | Y15: =IF($S15="yes",K15-BH15,0) -> 0 | Z15: =IF($S15="yes",L15-BI15,0) -> 0 | AA15: =IF($S15="yes",M15-BJ15,0) -> 0 | AB15: =IF($S15="yes",N15-BK15,0) -> 0 | AC15: =IF($S15="yes",O15-BL15,0) -> 0 | AD15: =IF($S15="yes",P15-BM15,0) -> 0 | AE15: =IF($S15="yes",Q15-BN15,0) -> 0 | BB15: different formula | BD15: =F15 -> 0 | BE15: =H15 -> 0 | BF15: =I15 -> 0 | BG15: 0 | BH15: 0 | BI15: 0 | BJ15: 0 | BK15: 0 | BL15: 0 | BM15: 0 | BN15: 0 | CD15: =F15-BD15 -> 0 | CE15: =H15-BE15 -> 0 | CF15: =I15-BF15 -> 0 | CG15: =J15-BG15 -> 0 | CH15: =K15-BH15 -> 0 | CI15: =L15-BI15 -> 0 | CJ15: =M15-BJ15 -> 0 | CK15: =N15-BK15 -> 0 | CL15: =O15-BL15 -> 0 | CM15: =P15-BM15 -> 0 | CN15: =Q15-BN15 -> 0 | DD15: =IF($S15="yes",CD15,0) -> 0 | DE15: =IF($S15="yes",CE15,0) -> 0 | DF15: 0 | DG15: 0 | DH15: 0 | DI15: 0 | DJ15: 0 | DK15: 0 | DL15: 0 | DM15: 0 | DN15: 0 | DY15: hide
A16: =B16 -> Fair value increment on investment properties | B16: Fair value increment on investment properties | D16: =SUM('Historical Data'!C663)*1000 -> 0 | F16: ='IS Workings'!E179 -> 0 | H16: ='IS Workings'!G179 -> 0 | I16: ='IS Workings'!H179 -> 0 | J16: ='IS Workings'!I179 -> 0 | K16: ='IS Workings'!J179 -> 0 | L16: ='IS Workings'!K179 -> 0 | M16: ='IS Workings'!L179 -> 0 | N16: ='IS Workings'!M179 -> 0 | O16: ='IS Workings'!N179 -> 0 | P16: ='IS Workings'!O179 -> 0 | Q16: ='IS Workings'!P179 -> 0 | S16: yes | U16: =IF($S16="yes",F16-BD16,0) -> 0 | V16: =IF($S16="yes",H16-BE16,0) -> 0 | W16: =IF($S16="yes",I16-BF16,0) -> 0 | X16: =IF($S16="yes",J16-BG16,0) -> 0 | Y16: =IF($S16="yes",K16-BH16,0) -> 0 | Z16: =IF($S16="yes",L16-BI16,0) -> 0 | AA16: =IF($S16="yes",M16-BJ16,0) -> 0 | AB16: =IF($S16="yes",N16-BK16,0) -> 0 | AC16: =IF($S16="yes",O16-BL16,0) -> 0 | AD16: =IF($S16="yes",P16-BM16,0) -> 0 | AE16: =IF($S16="yes",Q16-BN16,0) -> 0 | BB16: different formula | BD16: =F16 -> 0 | BE16: =H16 -> 0 | BF16: =I16 -> 0 | BG16: =J16 -> 0 | BH16: =K16 -> 0 | BI16: =L16 -> 0 | BJ16: =M16 -> 0 | BK16: =N16 -> 0 | BL16: =O16 -> 0 | BM16: =P16 -> 0 | BN16: =Q16 -> 0 | CD16: =F16-BD16 -> 0 | CE16: =H16-BE16 -> 0 | CF16: =I16-BF16 -> 0 | CG16: =J16-BG16 -> 0 | CH16: =K16-BH16 -> 0 | CI16: =L16-BI16 -> 0 | CJ16: =M16-BJ16 -> 0 | CK16: =N16-BK16 -> 0 | CL16: =O16-BL16 -> 0 | CM16: =P16-BM16 -> 0 | CN16: =Q16-BN16 -> 0 | DD16: =IF($S16="yes",CD16,0) -> 0 | DE16: =IF($S16="yes",CE16,0) -> 0 | DF16: =IF($S16="yes",CF16,0) -> 0 | DG16: =IF($S16="yes",CG16,0) -> 0 | DH16: =IF($S16="yes",CH16,0) -> 0 | DI16: =IF($S16="yes",CI16,0) -> 0 | DJ16: =IF($S16="yes",CJ16,0) -> 0 | DK16: =IF($S16="yes",CK16,0) -> 0 | DL16: =IF($S16="yes",CL16,0) -> 0 | DM16: =IF($S16="yes",CM16,0) -> 0 | DN16: =IF($S16="yes",CN16,0) -> 0 | DY16: hide
A17: Reversal of revaluation decrements on IPPE previously expensed | B17: Reversal of revaluation decrements on IPPE previously expensed | D17: =SUM('Historical Data'!C664)*1000 -> 0 | F17: ='IS Workings'!E196 -> 0 | H17: ='IS Workings'!G196 -> 0 | I17: ='IS Workings'!H196 -> 0 | J17: ='IS Workings'!I196 -> 0 | K17: ='IS Workings'!J196 -> 0 | L17: ='IS Workings'!K196 -> 0 | M17: ='IS Workings'!L196 -> 0 | N17: ='IS Workings'!M196 -> 0 | O17: ='IS Workings'!N196 -> 0 | P17: ='IS Workings'!O196 -> 0 | Q17: ='IS Workings'!P196 -> 0 | S17: yes | U17: 0 | V17: 0 | W17: 0 | X17: 0 | Y17: 0 | Z17: 0 | AA17: 0 | AB17: 0 | AC17: 0 | AD17: 0 | AE17: 0 | BB17: different formula | BD17: =F17 -> 0 | BE17: =H17 -> 0 | BF17: =I17 -> 0 | BG17: =J17 -> 0 | BH17: =K17 -> 0 | BI17: =L17 -> 0 | BJ17: =M17 -> 0 | BK17: =N17 -> 0 | BL17: =O17 -> 0 | BM17: =P17 -> 0 | BN17: =Q17 -> 0 | CD17: =F17-BD17 -> 0 | CE17: =H17-BE17 -> 0 | CF17: =I17-BF17 -> 0 | CG17: =J17-BG17 -> 0 | CH17: =K17-BH17 -> 0 | CI17: =L17-BI17 -> 0 | CJ17: =M17-BJ17 -> 0 | CK17: =N17-BK17 -> 0 | CL17: =O17-BL17 -> 0 | CM17: =P17-BM17 -> 0 | CN17: =Q17-BN17 -> 0 | DD17: =IF($S17="yes",CD17,0) -> 0 | DE17: =IF($S17="yes",CE17,0) -> 0 | DF17: =IF($S17="yes",CF17,0) -> 0 | DG17: =IF($S17="yes",CG17,0) -> 0 | DH17: =IF($S17="yes",CH17,0) -> 0 | DI17: =IF($S17="yes",CI17,0) -> 0 | DJ17: =IF($S17="yes",CJ17,0) -> 0 | DK17: =IF($S17="yes",CK17,0) -> 0 | DL17: =IF($S17="yes",CL17,0) -> 0 | DM17: =IF($S17="yes",CM17,0) -> 0 | DN17: =IF($S17="yes",CN17,0) -> 0 | DY17: hide
A18: Reversal of impairment losses on receivables | B18: Reversal of impairment losses on receivables | D18: =SUM('Historical Data'!C665)*1000 -> 0 | F18: ='IS Workings'!E211 -> 0 | H18: ='IS Workings'!G211 -> 0 | I18: ='IS Workings'!H211 -> 0 | J18: ='IS Workings'!I211 -> 0 | K18: ='IS Workings'!J211 -> 0 | L18: ='IS Workings'!K211 -> 0 | M18: ='IS Workings'!L211 -> 0 | N18: ='IS Workings'!M211 -> 0 | O18: ='IS Workings'!N211 -> 0 | P18: ='IS Workings'!O211 -> 0 | Q18: ='IS Workings'!P211 -> 0 | S18: yes | U18: 0 | V18: 0 | W18: 0 | X18: 0 | Y18: 0 | Z18: 0 | AA18: 0 | AB18: 0 | AC18: 0 | AD18: 0 | AE18: 0 | BB18: different formula | BD18: =F18 -> 0 | BE18: =H18 -> 0 | BF18: =I18 -> 0 | BG18: =J18 -> 0 | BH18: =K18 -> 0 | BI18: =L18 -> 0 | BJ18: =M18 -> 0 | BK18: =N18 -> 0 | BL18: =O18 -> 0 | BM18: =P18 -> 0 | BN18: =Q18 -> 0 | CD18: =F18-BD18 -> 0 | CE18: =H18-BE18 -> 0 | CF18: =I18-BF18 -> 0 | CG18: =J18-BG18 -> 0 | CH18: =K18-BH18 -> 0 | CI18: =L18-BI18 -> 0 | CJ18: =M18-BJ18 -> 0 | CK18: =N18-BK18 -> 0 | CL18: =O18-BL18 -> 0 | CM18: =P18-BM18 -> 0 | CN18: =Q18-BN18 -> 0 | DD18: =IF($S18="yes",CD18,0) -> 0 | DE18: =IF($S18="yes",CE18,0) -> 0 | DF18: =IF($S18="yes",CF18,0) -> 0 | DG18: =IF($S18="yes",CG18,0) -> 0 | DH18: =IF($S18="yes",CH18,0) -> 0 | DI18: =IF($S18="yes",CI18,0) -> 0 | DJ18: =IF($S18="yes",CJ18,0) -> 0 | DK18: =IF($S18="yes",CK18,0) -> 0 | DL18: =IF($S18="yes",CL18,0) -> 0 | DM18: =IF($S18="yes",CM18,0) -> 0 | DN18: =IF($S18="yes",CN18,0) -> 0 | DY18: hide
A19: =B19&" - Gain" -> Joint Ventures & Associated Entities - Gain | B19: Joint Ventures & Associated Entities | D19: =SUM('Historical Data'!C666)*1000 -> 0 | F19: ='IS Workings'!E228 -> 0 | H19: ='IS Workings'!G228 -> 0 | I19: ='IS Workings'!H228 -> 0 | J19: ='IS Workings'!I228 -> 0 | K19: ='IS Workings'!J228 -> 0 | L19: ='IS Workings'!K228 -> 0 | M19: ='IS Workings'!L228 -> 0 | N19: ='IS Workings'!M228 -> 0 | O19: ='IS Workings'!N228 -> 0 | P19: ='IS Workings'!O228 -> 0 | Q19: ='IS Workings'!P228 -> 0 | S19: yes | U19: 0 | V19: 0 | W19: 0 | X19: 0 | Y19: 0 | Z19: 0 | AA19: 0 | AB19: 0 | AC19: 0 | AD19: 0 | AE19: 0 | BB19: different formula | BD19: =F19 -> 0 | BE19: =H19 -> 0 | BF19: =I19 -> 0 | BG19: =J19 -> 0 | BH19: =K19 -> 0 | BI19: =L19 -> 0 | BJ19: =M19 -> 0 | BK19: =N19 -> 0 | BL19: =O19 -> 0 | BM19: =P19 -> 0 | BN19: =Q19 -> 0 | CD19: =F19-BD19 -> 0 | CE19: =H19-BE19 -> 0 | CF19: =I19-BF19 -> 0 | CG19: =J19-BG19 -> 0 | CH19: =K19-BH19 -> 0 | CI19: =L19-BI19 -> 0 | CJ19: =M19-BJ19 -> 0 | CK19: =N19-BK19 -> 0 | CL19: =O19-BL19 -> 0 | CM19: =P19-BM19 -> 0 | CN19: =Q19-BN19 -> 0 | DD19: =IF($S19="yes",CD19,0) -> 0 | DE19: 0 | DF19: 0 | DG19: 0 | DH19: 0 | DI19: 0 | DJ19: 0 | DK19: 0 | DL19: 0 | DM19: 0 | DN19: 0 | DY19: hide
B20: Total Income from Continuing Operations | D20: =SUM(D7:D19) -> 75851000 | F20: 70837936 | H20: 61934128 | I20: 58023533 | J20: 59078483 | K20: 61270718 | L20: 63258444 | M20: 64579266 | N20: 65391641 | O20: 69512952 | P20: 70170292 | Q20: 71752419 | U20: =SUM(U8:U19) -> 70837936 | V20: =SUM(V8:V19) -> 61934128 | W20: =SUM(W8:W19) -> 58023533 | X20: 59078483 | Y20: 61270718 | Z20: 63258444 | AA20: 64579266 | AB20: 65391641 | AC20: 69512952 | AD20: 70170292 | AE20: 71752419 | BD20: =SUM(BD7:BD19) -> 0 | BE20: 0 | BF20: 0 | BG20: 0 | BH20: 0 | BI20: 0 | BJ20: 0 | BK20: 0 | BL20: 0 | BM20: 0 | BN20: 0 | CD20: =SUM(CD7:CD19) -> 70837936 | CE20: 61934128 | CF20: 58023533 | CG20: 59078483 | CH20: 61270718 | CI20: 63258444 | CJ20: 64579266 | CK20: 65391641 | CL20: 69512952 | CM20: 70170292 | CN20: 71752419 | DD20: =SUM(DD7:DD19) -> 70837936 | DE20: 61934128 | DF20: 58023533 | DG20: 59078483 | DH20: 61270718 | DI20: 63258444 | DJ20: 64579266 | DK20: 65391641 | DL20: 69512952 | DM20: 70170292 | DN20: 71752419 | DY20: hide
DY21: hide
B22: Expenses from Continuing Operations | AF22: Forecasted Expenditure | BD22: Non-cash Expenditure | CD22: Cash Expenditure | DD22: Cash Payables | DY22: hide
A23: =B23 -> Employee Benefits & On-Costs | B23: Employee Benefits & On-Costs | D23: =SUM('Historical Data'!C670)*1000 -> 20169000 | F23: ='IS Workings'!E258 -> 22186780 | H23: ='IS Workings'!G258 -> 22454655 | I23: ='IS Workings'!H258 -> 23016030 | J23: ='IS Workings'!I258 -> 23591427 | K23: ='IS Workings'!J258 -> 24181220 | L23: ='IS Workings'!K258 -> 24785754 | M23: ='IS Workings'!L258 -> 25405392 | N23: ='IS Workings'!M258 -> 26040535 | O23: ='IS Workings'!N258 -> 26691548 | P23: ='IS Workings'!O258 -> 27358836 | Q23: ='IS Workings'!P258 -> 28042811 | S23: yes | BD23: =SUMIF('Budget Summary 1'!$C:$C,$A23,'Budget Summary 1'!BC:BC) -> 0 | BE23: =SUMIF('Budget Summary 1'!$C:$C,$A23,'Budget Summary 1'!BD:BD) -> 0 | BF23: =SUMIF('Budget Summary 1'!$C:$C,$A23,'Budget Summary 1'!BE:BE) -> 0 | BG23: =SUMIF('Budget Summary 1'!$C:$C,$A23,'Budget Summary 1'!BF:BF) -> 0 | BH23: =SUMIF('Budget Summary 1'!$C:$C,$A23,'Budget Summary 1'!BG:BG) -> 0 | BI23: =SUMIF('Budget Summary 1'!$C:$C,$A23,'Budget Summary 1'!BH:BH) -> 0 | BJ23: =SUMIF('Budget Summary 1'!$C:$C,$A23,'Budget Summary 1'!BI:BI) -> 0 | BK23: =SUMIF('Budget Summary 1'!$C:$C,$A23,'Budget Summary 1'!BJ:BJ) -> 0 | BL23: =SUMIF('Budget Summary 1'!$C:$C,$A23,'Budget Summary 1'!BK:BK) -> 0 | BM23: =SUMIF('Budget Summary 1'!$C:$C,$A23,'Budget Summary 1'!BL:BL) -> 0 | BN23: =SUMIF('Budget Summary 1'!$C:$C,$A23,'Budget Summary 1'!BM:BM) -> 0 | CD23: =F23-BD23 -> 22186780 | CE23: =H23-BE23 -> 22454655 | CF23: =I23-BF23 -> 23016030 | CG23: =J23-BG23 -> 23591427 | CH23: =K23-BH23 -> 24181220 | CI23: =L23-BI23 -> 24785754 | CJ23: =M23-BJ23 -> 25405392 | CK23: =N23-BK23 -> 26040535 | CL23: =O23-BL23 -> 26691548 | CM23: =P23-BM23 -> 27358836 | CN23: =Q23-BN23 -> 28042811 | DD23: =IF($S23="yes",CD23,0) -> 22186780 | DE23: =IF($S23="yes",CE23,0) -> 22454655 | DF23: 23016030 | DG23: 23591427 | DH23: 24181220 | DI23: 24785754 | DJ23: 25405392 | DK23: 26040535 | DL23: 26691548 | DM23: 27358836 | DN23: 28042811 | DY23: hide
A24: =B24 -> Borrowing Costs | B24: Borrowing Costs | D24: =SUM('Historical Data'!C671)*1000 -> 1672000 | F24: ='IS Workings'!E285 -> 989360 | H24: ='IS Workings'!G285 -> 850573 | I24: ='IS Workings'!H285 -> 706056 | J24: ='IS Workings'!I285 -> 505915 | K24: ='IS Workings'!J285 -> 387768 | L24: ='IS Workings'!K285 -> 274055 | M24: ='IS Workings'!L285 -> 170255 | N24: ='IS Workings'!M285 -> 99525 | O24: ='IS Workings'!N285 -> 61973 | P24: ='IS Workings'!O285 -> 26812 | Q24: ='IS Workings'!P285 -> 7011 | S24: yes | BD24: =SUMIF('Budget Summary 1'!$C:$C,$A24,'Budget Summary 1'!BC:BC) -> 0 | BE24: =SUMIF('Budget Summary 1'!$C:$C,$A24,'Budget Summary 1'!BD:BD) -> 0 | BF24: =SUMIF('Budget Summary 1'!$C:$C,$A24,'Budget Summary 1'!BE:BE) -> 0 | BG24: =SUMIF('Budget Summary 1'!$C:$C,$A24,'Budget Summary 1'!BF:BF) -> 0 | BH24: =SUMIF('Budget Summary 1'!$C:$C,$A24,'Budget Summary 1'!BG:BG) -> 0 | BI24: =SUMIF('Budget Summary 1'!$C:$C,$A24,'Budget Summary 1'!BH:BH) -> 0 | BJ24: =SUMIF('Budget Summary 1'!$C:$C,$A24,'Budget Summary 1'!BI:BI) -> 0 | BK24: =SUMIF('Budget Summary 1'!$C:$C,$A24,'Budget Summary 1'!BJ:BJ) -> 0 | BL24: =SUMIF('Budget Summary 1'!$C:$C,$A24,'Budget Summary 1'!BK:BK) -> 0 | BM24: =SUMIF('Budget Summary 1'!$C:$C,$A24,'Budget Summary 1'!BL:BL) -> 0 | BN24: =SUMIF('Budget Summary 1'!$C:$C,$A24,'Budget Summary 1'!BM:BM) -> 0 | CD24: =F24-BD24 -> 989360 | CE24: =H24-BE24 -> 850573 | CF24: =I24-BF24 -> 706056 | CG24: =J24-BG24 -> 505915 | CH24: =K24-BH24 -> 387768 | CI24: =L24-BI24 -> 274055 | CJ24: =M24-BJ24 -> 170255 | CK24: =N24-BK24 -> 99525 | CL24: =O24-BL24 -> 61973 | CM24: =P24-BM24 -> 26812 | CN24: =Q24-BN24 -> 7011 | DD24: =IF($S24="yes",CD24,0) -> 989360 | DE24: 850573 | DF24: 706056 | DG24: 505915 | DH24: 387768 | DI24: 274055 | DJ24: 170255 | DK24: 99525 | DL24: 61973 | DM24: 26812 | DN24: 7011 | DY24: hide
A25: Materials & Contracts | B25: Materials & Contracts | D25: =SUM('Historical Data'!C672)*1000 -> 11767000 | F25: ='IS Workings'!E318 -> 10335612 | H25: ='IS Workings'!G318 -> 10378326 | I25: ='IS Workings'!H318 -> 10799076 | J25: ='IS Workings'!I318 -> 11238713 | K25: ='IS Workings'!J318 -> 11698164 | L25: ='IS Workings'!K318 -> 12178411 | M25: ='IS Workings'!L318 -> 12680402 | N25: ='IS Workings'!M318 -> 13205234 | O25: ='IS Workings'!N318 -> 13753984 | P25: ='IS Workings'!O318 -> 14327804 | Q25: ='IS Workings'!P318 -> 14927934 | S25: yes | BD25: =SUMIF('Budget Summary 1'!$C:$C,$A25,'Budget Summary 1'!BC:BC) -> 0 | BE25: =SUMIF('Budget Summary 1'!$C:$C,$A25,'Budget Summary 1'!BD:BD) -> 0 | BF25: =SUMIF('Budget Summary 1'!$C:$C,$A25,'Budget Summary 1'!BE:BE) -> 0 | BG25: =SUMIF('Budget Summary 1'!$C:$C,$A25,'Budget Summary 1'!BF:BF) -> 0 | BH25: =SUMIF('Budget Summary 1'!$C:$C,$A25,'Budget Summary 1'!BG:BG) -> 0 | BI25: =SUMIF('Budget Summary 1'!$C:$C,$A25,'Budget Summary 1'!BH:BH) -> 0 | BJ25: =SUMIF('Budget Summary 1'!$C:$C,$A25,'Budget Summary 1'!BI:BI) -> 0 | BK25: =SUMIF('Budget Summary 1'!$C:$C,$A25,'Budget Summary 1'!BJ:BJ) -> 0 | BL25: =SUMIF('Budget Summary 1'!$C:$C,$A25,'Budget Summary 1'!BK:BK) -> 0 | BM25: =SUMIF('Budget Summary 1'!$C:$C,$A25,'Budget Summary 1'!BL:BL) -> 0 | BN25: =SUMIF('Budget Summary 1'!$C:$C,$A25,'Budget Summary 1'!BM:BM) -> 0 | CD25: 10335612 | CE25: 10378326 | CF25: 10799076 | CG25: 11238713 | CH25: 11698164 | CI25: 12178411 | CJ25: 12680402 | CK25: 13205234 | CL25: 13753984 | CM25: 14327804 | CN25: 14927934 | DD25: 10335612 | DE25: 10378326 | DF25: 10799076 | DG25: 11238713 | DH25: 11698164 | DI25: 12178411 | DJ25: 12680402 | DK25: 13205234 | DL25: 13753984 | DM25: 14327804 | DN25: 14927934 | DY25: hide
A26: Depreciation & Amortisation | B26: Depreciation & Amortisation | D26: =SUM('Historical Data'!C673)*1000 -> 12201000 | F26: ='IS Workings'!E340 -> 12404600 | H26: ='IS Workings'!G340 -> 12714715 | I26: ='IS Workings'!H340 -> 13032586 | J26: ='IS Workings'!I340 -> 13358404 | K26: ='IS Workings'!J340 -> 13692367 | L26: ='IS Workings'!K340 -> 14034677 | M26: ='IS Workings'!L340 -> 14385547 | N26: ='IS Workings'!M340 -> 14745187 | O26: ='IS Workings'!N340 -> 15113814 | P26: ='IS Workings'!O340 -> 15491662 | Q26: ='IS Workings'!P340 -> 15878954 | S26: yes | BD26: =SUMIF('Budget Summary 1'!$C:$C,$A26,'Budget Summary 1'!BC:BC) -> 12404600 | BE26: =SUMIF('Budget Summary 1'!$C:$C,$A26,'Budget Summary 1'!BD:BD) -> 12714715 | BF26: =SUMIF('Budget Summary 1'!$C:$C,$A26,'Budget Summary 1'!BE:BE) -> 13032586 | BG26: =SUMIF('Budget Summary 1'!$C:$C,$A26,'Budget Summary 1'!BF:BF) -> 13358404 | BH26: =SUMIF('Budget Summary 1'!$C:$C,$A26,'Budget Summary 1'!BG:BG) -> 13692367 | BI26: =SUMIF('Budget Summary 1'!$C:$C,$A26,'Budget Summary 1'!BH:BH) -> 14034677 | BJ26: =SUMIF('Budget Summary 1'!$C:$C,$A26,'Budget Summary 1'!BI:BI) -> 14385547 | BK26: =SUMIF('Budget Summary 1'!$C:$C,$A26,'Budget Summary 1'!BJ:BJ) -> 14745187 | BL26: =SUMIF('Budget Summary 1'!$C:$C,$A26,'Budget Summary 1'!BK:BK) -> 15113814 | BM26: =SUMIF('Budget Summary 1'!$C:$C,$A26,'Budget Summary 1'!BL:BL) -> 15491662 | BN26: =SUMIF('Budget Summary 1'!$C:$C,$A26,'Budget Summary 1'!BM:BM) -> 15878954 | CD26: 0 | CE26: 0 | CF26: 0 | CG26: 0 | CH26: 0 | CI26: 0 | CJ26: 0 | CK26: 0 | CL26: 0 | CM26: 0 | CN26: 0 | DD26: 0 | DE26: 0 | DF26: 0 | DG26: 0 | DH26: 0 | DI26: 0 | DJ26: 0 | DK26: 0 | DL26: 0 | DM26: 0 | DN26: 0 | DY26: hide
A27: Impairment of investments | B27: Impairment of investments | D27: =SUM('Historical Data'!C674)*1000 -> 0 | F27: ='IS Workings'!E355 -> 0 | H27: ='IS Workings'!G355 -> 0 | I27: ='IS Workings'!H355 -> 0 | J27: ='IS Workings'!I355 -> 0 | K27: ='IS Workings'!J355 -> 0 | L27: ='IS Workings'!K355 -> 0 | M27: ='IS Workings'!L355 -> 0 | N27: ='IS Workings'!M355 -> 0 | O27: ='IS Workings'!N355 -> 0 | P27: ='IS Workings'!O355 -> 0 | Q27: ='IS Workings'!P355 -> 0 | S27: yes | BD27: =SUMIF('Budget Summary 1'!$C:$C,$A27,'Budget Summary 1'!BC:BC) -> 0 | BE27: =SUMIF('Budget Summary 1'!$C:$C,$A27,'Budget Summary 1'!BD:BD) -> 0 | BF27: =SUMIF('Budget Summary 1'!$C:$C,$A27,'Budget Summary 1'!BE:BE) -> 0 | BG27: =SUMIF('Budget Summary 1'!$C:$C,$A27,'Budget Summary 1'!BF:BF) -> 0 | BH27: =SUMIF('Budget Summary 1'!$C:$C,$A27,'Budget Summary 1'!BG:BG) -> 0 | BI27: =SUMIF('Budget Summary 1'!$C:$C,$A27,'Budget Summary 1'!BH:BH) -> 0 | BJ27: =SUMIF('Budget Summary 1'!$C:$C,$A27,'Budget Summary 1'!BI:BI) -> 0 | BK27: =SUMIF('Budget Summary 1'!$C:$C,$A27,'Budget Summary 1'!BJ:BJ) -> 0 | BL27: =SUMIF('Budget Summary 1'!$C:$C,$A27,'Budget Summary 1'!BK:BK) -> 0 | BM27: =SUMIF('Budget Summary 1'!$C:$C,$A27,'Budget Summary 1'!BL:BL) -> 0 | BN27: =SUMIF('Budget Summary 1'!$C:$C,$A27,'Budget Summary 1'!BM:BM) -> 0 | CD27: =F27-BD27 -> 0 | CE27: =H27-BE27 -> 0 | CF27: =I27-BF27 -> 0 | CG27: =J27-BG27 -> 0 | CH27: =K27-BH27 -> 0 | CI27: =L27-BI27 -> 0 | CJ27: =M27-BJ27 -> 0 | CK27: =N27-BK27 -> 0 | CL27: =O27-BL27 -> 0 | CM27: =P27-BM27 -> 0 | CN27: =Q27-BN27 -> 0 | DD27: 0 | DE27: 0 | DF27: 0 | DG27: 0 | DH27: 0 | DI27: 0 | DJ27: 0 | DK27: 0 | DL27: 0 | DM27: 0 | DN27: 0 | DY27: hide
A28: Impairment of receivables | B28: Impairment of receivables | D28: =SUM('Historical Data'!C675)*1000 -> 0 | F28: ='IS Workings'!E370 -> 0 | H28: ='IS Workings'!G370 -> 0 | I28: ='IS Workings'!H370 -> 0 | J28: ='IS Workings'!I370 -> 0 | K28: ='IS Workings'!J370 -> 0 | L28: ='IS Workings'!K370 -> 0 | M28: ='IS Workings'!L370 -> 0 | N28: ='IS Workings'!M370 -> 0 | O28: ='IS Workings'!N370 -> 0 | P28: ='IS Workings'!O370 -> 0 | Q28: ='IS Workings'!P370 -> 0 | S28: yes | BB28: different formula | BD28: =F28 -> 0 | BE28: =H28 -> 0 | BF28: =I28 -> 0 | BG28: =J28 -> 0 | BH28: =K28 -> 0 | BI28: =L28 -> 0 | BJ28: =M28 -> 0 | BK28: =N28 -> 0 | BL28: =O28 -> 0 | BM28: =P28 -> 0 | BN28: =Q28 -> 0 | CD28: 0 | CE28: =H28-BE28 -> 0 | CF28: =I28-BF28 -> 0 | CG28: =J28-BG28 -> 0 | CH28: =K28-BH28 -> 0 | CI28: =L28-BI28 -> 0 | CJ28: =M28-BJ28 -> 0 | CK28: =N28-BK28 -> 0 | CL28: =O28-BL28 -> 0 | CM28: =P28-BM28 -> 0 | CN28: =Q28-BN28 -> 0 | DD28: =IF($S28="yes",CD28,0) -> 0 | DE28: =IF($S28="yes",CE28,0) -> 0 | DF28: =IF($S28="yes",CF28,0) -> 0 | DG28: =IF($S28="yes",CG28,0) -> 0 | DH28: =IF($S28="yes",CH28,0) -> 0 | DI28: =IF($S28="yes",CI28,0) -> 0 | DJ28: =IF($S28="yes",CJ28,0) -> 0 | DK28: =IF($S28="yes",CK28,0) -> 0 | DL28: =IF($S28="yes",CL28,0) -> 0 | DM28: =IF($S28="yes",CM28,0) -> 0 | DN28: =IF($S28="yes",CN28,0) -> 0 | DY28: hide
A29: Other Expenses | B29: Other Expenses | D29: =SUM('Historical Data'!C676)*1000 -> 7008000 | F29: ='IS Workings'!E396 -> 10309969 | H29: ='IS Workings'!G396 -> 10090903 | I29: ='IS Workings'!H396 -> 10304027 | J29: ='IS Workings'!I396 -> 10521690 | K29: ='IS Workings'!J396 -> 10744001 | L29: ='IS Workings'!K396 -> 10971061 | M29: ='IS Workings'!L396 -> 11202960 | N29: ='IS Workings'!M396 -> 11439826 | O29: ='IS Workings'!N396 -> 11681741 | P29: ='IS Workings'!O396 -> 11928826 | Q29: ='IS Workings'!P396 -> 12181201 | S29: yes | BD29: =SUMIF('Budget Summary 1'!$C:$C,$A29,'Budget Summary 1'!BC:BC) -> 0 | BE29: =SUMIF('Budget Summary 1'!$C:$C,$A29,'Budget Summary 1'!BD:BD) -> 0 | BF29: =SUMIF('Budget Summary 1'!$C:$C,$A29,'Budget Summary 1'!BE:BE) -> 0 | BG29: =SUMIF('Budget Summary 1'!$C:$C,$A29,'Budget Summary 1'!BF:BF) -> 0 | BH29: =SUMIF('Budget Summary 1'!$C:$C,$A29,'Budget Summary 1'!BG:BG) -> 0 | BI29: =SUMIF('Budget Summary 1'!$C:$C,$A29,'Budget Summary 1'!BH:BH) -> 0 | BJ29: =SUMIF('Budget Summary 1'!$C:$C,$A29,'Budget Summary 1'!BI:BI) -> 0 | BK29: =SUMIF('Budget Summary 1'!$C:$C,$A29,'Budget Summary 1'!BJ:BJ) -> 0 | BL29: =SUMIF('Budget Summary 1'!$C:$C,$A29,'Budget Summary 1'!BK:BK) -> 0 | BM29: =SUMIF('Budget Summary 1'!$C:$C,$A29,'Budget Summary 1'!BL:BL) -> 0 | BN29: =SUMIF('Budget Summary 1'!$C:$C,$A29,'Budget Summary 1'!BM:BM) -> 0 | CD29: 10309969 | CE29: 10090903 | CF29: 10304027 | CG29: 10521690 | CH29: 10744001 | CI29: 10971061 | CJ29: 11202960 | CK29: 11439826 | CL29: 11681741 | CM29: 11928826 | CN29: 12181201 | DD29: 10309969 | DE29: 10090903 | DF29: 10304027 | DG29: 10521690 | DH29: 10744001 | DI29: 10971061 | DJ29: 11202960 | DK29: 11439826 | DL29: 11681741 | DM29: 11928826 | DN29: 12181201 | DY29: hide
A30: Interest & Investment Losses | B30: Interest & Investment Losses | D30: =SUM('Historical Data'!C677)*1000 -> 0 | F30: ='IS Workings'!E67 -> 0 | H30: ='IS Workings'!G67 -> 0 | I30: ='IS Workings'!H67 -> 0 | J30: ='IS Workings'!I67 -> 0 | K30: ='IS Workings'!J67 -> 0 | L30: ='IS Workings'!K67 -> 0 | M30: ='IS Workings'!L67 -> 0 | N30: ='IS Workings'!M67 -> 0 | O30: ='IS Workings'!N67 -> 0 | P30: ='IS Workings'!O67 -> 0 | Q30: ='IS Workings'!P67 -> 0 | S30: yes | BD30: =SUMIF('Budget Summary 1'!$C:$C,$A30,'Budget Summary 1'!BC:BC) -> 0 | BE30: =SUMIF('Budget Summary 1'!$C:$C,$A30,'Budget Summary 1'!BD:BD) -> 0 | BF30: =SUMIF('Budget Summary 1'!$C:$C,$A30,'Budget Summary 1'!BE:BE) -> 0 | BG30: =SUMIF('Budget Summary 1'!$C:$C,$A30,'Budget Summary 1'!BF:BF) -> 0 | BH30: =SUMIF('Budget Summary 1'!$C:$C,$A30,'Budget Summary 1'!BG:BG) -> 0 | BI30: =SUMIF('Budget Summary 1'!$C:$C,$A30,'Budget Summary 1'!BH:BH) -> 0 | BJ30: =SUMIF('Budget Summary 1'!$C:$C,$A30,'Budget Summary 1'!BI:BI) -> 0 | BK30: =SUMIF('Budget Summary 1'!$C:$C,$A30,'Budget Summary 1'!BJ:BJ) -> 0 | BL30: =SUMIF('Budget Summary 1'!$C:$C,$A30,'Budget Summary 1'!BK:BK) -> 0 | BM30: =SUMIF('Budget Summary 1'!$C:$C,$A30,'Budget Summary 1'!BL:BL) -> 0 | BN30: =SUMIF('Budget Summary 1'!$C:$C,$A30,'Budget Summary 1'!BM:BM) -> 0 | CD30: 0 | CE30: 0 | CF30: 0 | CG30: 0 | CH30: 0 | CI30: 0 | CJ30: 0 | CK30: 0 | CL30: 0 | CM30: 0 | CN30: 0 | DD30: 0 | DE30: 0 | DF30: 0 | DG30: 0 | DH30: 0 | DI30: 0 | DJ30: 0 | DK30: 0 | DL30: 0 | DM30: 0 | DN30: 0 | DY30: hide
A31: Net Losses from the Disposal of Assets | B31: Net Losses from the Disposal of Assets | D31: =SUM('Historical Data'!C678)*1000 -> 1454000 | F31: ='IS Workings'!E161 -> 0 | H31: ='IS Workings'!G161 -> 0 | I31: ='IS Workings'!H161 -> 0 | J31: ='IS Workings'!I161 -> 0 | K31: ='IS Workings'!J161 -> 0 | L31: ='IS Workings'!K161 -> 0 | M31: ='IS Workings'!L161 -> 0 | N31: ='IS Workings'!M161 -> 0 | O31: ='IS Workings'!N161 -> 0 | P31: ='IS Workings'!O161 -> 0 | Q31: ='IS Workings'!P161 -> 0 | S31: yes | BB31: different formula | BD31: =F31 -> 0 | BE31: =H31 -> 0 | BF31: =I31 -> 0 | BG31: =J31 -> 0 | BH31: =K31 -> 0 | BI31: =L31 -> 0 | BJ31: =M31 -> 0 | BK31: =N31 -> 0 | BL31: =O31 -> 0 | BM31: =P31 -> 0 | BN31: =Q31 -> 0 | CD31: 0 | CE31: 0 | CF31: 0 | CG31: 0 | CH31: 0 | CI31: 0 | CJ31: 0 | CK31: 0 | CL31: 0 | CM31: 0 | CN31: 0 | DD31: 0 | DE31: 0 | DF31: 0 | DG31: 0 | DH31: 0 | DI31: 0 | DJ31: 0 | DK31: 0 | DL31: 0 | DM31: 0 | DN31: 0 | DY31: hide
... 38 more rows

Sheet IS Workings (hidden)
A1: ='Cover Page'!$A$3 -> Armidale Regional Council | R1: hide | S1: hide
A2: ='Cover Page'!$A$5 -> 10 Year Financial Plan for the Years ending 30 June 2031
A3: ="INCOME STATEMENT - "&UPPER(general_fund_name)&" - WORKINGS" -> INCOME STATEMENT - GENERAL FUND - WORKINGS | E3: Current Year | G3: Projected Years
A4: ="Scenario: "&general_scenario_name -> Scenario: Permanent 8.5% SV plus 2% rate peg 2021/22 | E4: =Starting_year_general-1&"/"&RIGHT(Starting_year_general,2) -> 2020/21 | G4: =Starting_year_general&"/"&RIGHT(Starting_year_general+1,2) -> 2021/22 | H4: =Starting_year_general+1&"/"&RIGHT(Starting_year_general+2,2) -> 2022/23 | I4: =Starting_year_general+2&"/"&RIGHT(Starting_year_general+3,2) -> 2023/24 | J4: =Starting_year_general+3&"/"&RIGHT(Starting_year_general+4,2) -> 2024/25 | K4: =Starting_year_general+4&"/"&RIGHT(Starting_year_general+5,2) -> 2025/26 | L4: =Starting_year_general+5&"/"&RIGHT(Starting_year_general+6,2) -> 2026/27 | M4: =Starting_year_general+6&"/"&RIGHT(Starting_year_general+7,2) -> 2027/28 | N4: =Starting_year_general+7&"/"&RIGHT(Starting_year_general+8,2) -> 2028/29 | O4: =Starting_year_general+8&"/"&RIGHT(Starting_year_general+9,2) -> 2029/30 | P4: =Starting_year_general+9&"/"&RIGHT(Starting_year_general+10,2) -> 2030/31
E5: =IF('Cover Page'!$K$19=TRUE,"$","$") -> $ | G5: =IF('Cover Page'!$K$19=TRUE,"$","$") -> $ | H5: =IF('Cover Page'!$K$19=TRUE,"$","$") -> $ | I5: =IF('Cover Page'!$K$19=TRUE,"$","$") -> $ | J5: =IF('Cover Page'!$K$19=TRUE,"$","$") -> $ | K5: =IF('Cover Page'!$K$19=TRUE,"$","$") -> $ | L5: =IF('Cover Page'!$K$19=TRUE,"$","$") -> $ | M5: =IF('Cover Page'!$K$19=TRUE,"$","$") -> $ | N5: =IF('Cover Page'!$K$19=TRUE,"$","$") -> $ | O5: =IF('Cover Page'!$K$19=TRUE,"$","$") -> $ | P5: =IF('Cover Page'!$K$19=TRUE,"$","$") -> $ | S5: =S412 -> 
A8: Rates & Annual Charges
A10: Budgeted in database
A11: ='Budget Summary 1'!D9 -> Rates - Ordinary | E11: =+'Budget Summary 1'!J9 -> 18495421 | G11: =+'Budget Summary 1'!L9 -> 19105770 | H11: =+'Budget Summary 1'!M9 -> 19831789 | I11: =+'Budget Summary 1'!N9 -> 20585397 | J11: =+'Budget Summary 1'!O9 -> 21367643 | K11: =+'Budget Summary 1'!P9 -> 22179613 | L11: =+'Budget Summary 1'!Q9 -> 23022439 | M11: =+'Budget Summary 1'!R9 -> 23897292 | N11: =+'Budget Summary 1'!S9 -> 24805389 | O11: =+'Budget Summary 1'!T9 -> 25747995 | P11: =+'Budget Summary 1'!U9 -> 26726419
A12: ='Budget Summary 1'!D10 -> Rates - Special | E12: =+'Budget Summary 1'!J10 -> 0 | G12: =+'Budget Summary 1'!L10 -> 0 | H12: =+'Budget Summary 1'!M10 -> 0 | I12: =+'Budget Summary 1'!N10 -> 0 | J12: =+'Budget Summary 1'!O10 -> 0 | K12: =+'Budget Summary 1'!P10 -> 0 | L12: =+'Budget Summary 1'!Q10 -> 0 | M12: =+'Budget Summary 1'!R10 -> 0 | N12: =+'Budget Summary 1'!S10 -> 0 | O12: =+'Budget Summary 1'!T10 -> 0 | P12: =+'Budget Summary 1'!U10 -> 0
A13: ='Budget Summary 1'!D11 -> Rates - Special Variation | E13: =+'Budget Summary 1'!J11 -> 0 | G13: =+'Budget Summary 1'!L11 -> 0 | H13: =+'Budget Summary 1'!M11 -> 0 | I13: =+'Budget Summary 1'!N11 -> 0 | J13: =+'Budget Summary 1'!O11 -> 0 | K13: =+'Budget Summary 1'!P11 -> 0 | L13: =+'Budget Summary 1'!Q11 -> 0 | M13: =+'Budget Summary 1'!R11 -> 0 | N13: =+'Budget Summary 1'!S11 -> 0 | O13: =+'Budget Summary 1'!T11 -> 0 | P13: =+'Budget Summary 1'!U11 -> 0
A14: ='Budget Summary 1'!D12 -> Annual Charges | E14: =+'Budget Summary 1'!J12 -> 8237171 | G14: =+'Budget Summary 1'!L12 -> 8484287 | H14: =+'Budget Summary 1'!M12 -> 8738817 | I14: =+'Budget Summary 1'!N12 -> 8400981 | J14: =+'Budget Summary 1'!O12 -> 8653010 | K14: =+'Budget Summary 1'!P12 -> 8912599 | L14: =+'Budget Summary 1'!Q12 -> 8879977 | M14: =+'Budget Summary 1'!R12 -> 8046377 | N14: =+'Budget Summary 1'!S12 -> 8287769 | O14: =+'Budget Summary 1'!T12 -> 8536402 | P14: =+'Budget Summary 1'!U12 -> 8792494
A15: ='Budget Summary 1'!D149 -> Internal Income - included in Rates & Annual Charges | E15: =+'Budget Summary 1'!J149 -> 0 | G15: =+'Budget Summary 1'!L149 -> 0 | H15: =+'Budget Summary 1'!M149 -> 0 | I15: =+'Budget Summary 1'!N149 -> 0 | J15: =+'Budget Summary 1'!O149 -> 0 | K15: =+'Budget Summary 1'!P149 -> 0 | L15: =+'Budget Summary 1'!Q149 -> 0 | M15: =+'Budget Summary 1'!R149 -> 0 | N15: =+'Budget Summary 1'!S149 -> 0 | O15: =+'Budget Summary 1'!T149 -> 0 | P15: =+'Budget Summary 1'!U149 -> 0
A16: Subtotal - Budgeted | E16: =SUM(E11:E15) -> 26732592 | G16: =SUM(G11:G15) -> 27590057 | H16: =SUM(H11:H15) -> 28570606 | I16: 28986378 | J16: 30020653 | K16: 31092212 | L16: 31902416 | M16: 31943669 | N16: 33093158 | O16: 34284397 | P16: 35518913
A18: LTFP Adjustments
A19: NIL
A20: Subtotal - LTFP Adjustments | E20: =SUM(E18:E19) -> 0 | G20: =SUM(G18:G19) -> 0 | H20: =SUM(H18:H19) -> 0 | I20: 0 | J20: 0 | K20: 0 | L20: 0 | M20: 0 | N20: 0 | O20: 0 | P20: 0
A22: Total Rates & Annual Charges | E22: =E16+E20 -> 26732592 | G22: =G16+G20 -> 27590057 | H22: =H16+H20 -> 28570606 | I22: 28986378 | J22: 30020653 | K22: 31092212 | L22: 31902416 | M22: 31943669 | N22: 33093158 | O22: 34284397 | P22: 35518913
A27: User Charges & Fees
A29: Budgeted in database
A30: ='Budget Summary 1'!D13 -> User Charges - Specific | E30: =+'Budget Summary 1'!J13 -> 3112250 | G30: =+'Budget Summary 1'!L13 -> 3230516 | H30: =+'Budget Summary 1'!M13 -> 3353275 | I30: =+'Budget Summary 1'!N13 -> 3480699 | J30: =+'Budget Summary 1'!O13 -> 3612966 | K30: =+'Budget Summary 1'!P13 -> 3750258 | L30: =+'Budget Summary 1'!Q13 -> 3892768 | M30: =+'Budget Summary 1'!R13 -> 4040693 | N30: =+'Budget Summary 1'!S13 -> 4194239 | O30: =+'Budget Summary 1'!T13 -> 4353620 | P30: =+'Budget Summary 1'!U13 -> 4519057
A31: ='Budget Summary 1'!D14 -> Fees & Charges - Statutory & Regulatory | E31: =+'Budget Summary 1'!J14 -> 1172451 | G31: =+'Budget Summary 1'!L14 -> 1211142 | H31: =+'Budget Summary 1'!M14 -> 1251109 | I31: =+'Budget Summary 1'!N14 -> 1292393 | J31: =+'Budget Summary 1'!O14 -> 1335044 | K31: =+'Budget Summary 1'!P14 -> 1379102 | L31: =+'Budget Summary 1'!Q14 -> 1424611 | M31: =+'Budget Summary 1'!R14 -> 1471621 | N31: =+'Budget Summary 1'!S14 -> 1520183 | O31: =+'Budget Summary 1'!T14 -> 1570350 | P31: =+'Budget Summary 1'!U14 -> 1622172
... 20 more rows

Sheet Balance Sheet
A1: ='Cover Page'!$A$3 -> Armidale Regional Council
A2: ='Cover Page'!$A$5 -> 10 Year Financial Plan for the Years ending 30 June 2031
A3: ="BALANCE SHEET - "&UPPER(general_fund_name) -> BALANCE SHEET - GENERAL FUND | C3: Actuals | E3: Current Year | G3: Projected Years
A4: ="Scenario: "&general_scenario_name -> Scenario: Permanent 8.5% SV plus 2% rate peg 2021/22 | C4: =Starting_year_general-2&"/"&RIGHT(Starting_year_general-1,2) -> 2019/20 | E4: =Starting_year_general-1&"/"&RIGHT(Starting_year_general,2) -> 2020/21 | G4: =Starting_year_general&"/"&RIGHT(Starting_year_general+1,2) -> 2021/22 | H4: =Starting_year_general+1&"/"&RIGHT(Starting_year_general+2,2) -> 2022/23 | I4: =Starting_year_general+2&"/"&RIGHT(Starting_year_general+3,2) -> 2023/24 | J4: =Starting_year_general+3&"/"&RIGHT(Starting_year_general+4,2) -> 2024/25 | K4: =Starting_year_general+4&"/"&RIGHT(Starting_year_general+5,2) -> 2025/26 | L4: =Starting_year_general+5&"/"&RIGHT(Starting_year_general+6,2) -> 2026/27 | M4: =Starting_year_general+6&"/"&RIGHT(Starting_year_general+7,2) -> 2027/28 | N4: =Starting_year_general+7&"/"&RIGHT(Starting_year_general+8,2) -> 2028/29 | O4: =Starting_year_general+8&"/"&RIGHT(Starting_year_general+9,2) -> 2029/30 | P4: =Starting_year_general+9&"/"&RIGHT(Starting_year_general+10,2) -> 2030/31
C5: =IF('Cover Page'!$K$19=TRUE,"$","$'000") -> $'000 | E5: =IF('Cover Page'!$K$19=TRUE,"$","$'000") -> $'000 | G5: =IF('Cover Page'!$K$19=TRUE,"$","$'000") -> $'000 | H5: =IF('Cover Page'!$K$19=TRUE,"$","$'000") -> $'000 | I5: =IF('Cover Page'!$K$19=TRUE,"$","$'000") -> $'000 | J5: =IF('Cover Page'!$K$19=TRUE,"$","$'000") -> $'000 | K5: =IF('Cover Page'!$K$19=TRUE,"$","$'000") -> $'000 | L5: =IF('Cover Page'!$K$19=TRUE,"$","$'000") -> $'000 | M5: =IF('Cover Page'!$K$19=TRUE,"$","$'000") -> $'000 | N5: =IF('Cover Page'!$K$19=TRUE,"$","$'000") -> $'000 | O5: =IF('Cover Page'!$K$19=TRUE,"$","$'000") -> $'000 | P5: =IF('Cover Page'!$K$19=TRUE,"$","$'000") -> $'000
A6: ASSETS
A7: Current Assets
A8: Cash & Cash Equivalents | C8: =SUM('Historical Data'!C701)*1000 -> 20856000 | E8: ='BS workings'!E48 -> 16084682 | G8: ='BS workings'!G48 -> 14484227 | H8: ='BS workings'!H48 -> 14670799 | I8: ='BS workings'!I48 -> 14990288 | J8: ='BS workings'!J48 -> 14406686 | K8: ='BS workings'!K48 -> 15834207 | L8: ='BS workings'!L48 -> 18242357 | M8: ='BS workings'!M48 -> 17574174 | N8: ='BS workings'!N48 -> 24711837 | O8: ='BS workings'!O48 -> 28465005 | P8: ='BS workings'!P48 -> 35090474
A9: Investments | C9: =SUM('Historical Data'!C702)*1000 -> 8778000 | E9: ='BS workings'!E67 -> 8778000 | G9: ='BS workings'!G67 -> 8778000 | H9: ='BS workings'!H67 -> 8778000 | I9: ='BS workings'!I67 -> 8778000 | J9: ='BS workings'!J67 -> 8778000 | K9: ='BS workings'!K67 -> 8778000 | L9: ='BS workings'!L67 -> 8778000 | M9: ='BS workings'!M67 -> 8778000 | N9: ='BS workings'!N67 -> 8778000 | O9: ='BS workings'!O67 -> 8778000 | P9: ='BS workings'!P67 -> 8778000
A10: Receivables | C10: =SUM('Historical Data'!C703)*1000 -> 10578000 | E10: ='BS workings'!E359 -> 10552661.73 | G10: ='BS workings'!G359 -> 10552661.73 | H10: ='BS workings'!H359 -> 10552661.73 | I10: ='BS workings'!I359 -> 10552661.73 | J10: ='BS workings'!J359 -> 10552661.73 | K10: ='BS workings'!K359 -> 10552661.73 | L10: ='BS workings'!L359 -> 10552661.73 | M10: ='BS workings'!M359 -> 10552661.73 | N10: ='BS workings'!N359 -> 10552661.73 | O10: ='BS workings'!O359 -> 10552661.73 | P10: ='BS workings'!P359 -> 10552661.73
A11: Inventories | C11: =SUM('Historical Data'!C704)*1000 -> 539000 | E11: ='BS workings'!E445 -> 539000 | G11: ='BS workings'!G445 -> 539000 | H11: ='BS workings'!H445 -> 539000 | I11: ='BS workings'!I445 -> 539000 | J11: ='BS workings'!J445 -> 539000 | K11: ='BS workings'!K445 -> 539000 | L11: ='BS workings'!L445 -> 539000 | M11: ='BS workings'!M445 -> 539000 | N11: ='BS workings'!N445 -> 539000 | O11: ='BS workings'!O445 -> 539000 | P11: ='BS workings'!P445 -> 539000
A12: Other | C12: =SUM('Historical Data'!C705)*1000 -> 606000 | E12: ='BS workings'!E524 -> 606000 | G12: ='BS workings'!G524 -> 606000 | H12: ='BS workings'!H524 -> 606000 | I12: ='BS workings'!I524 -> 606000 | J12: ='BS workings'!J524 -> 606000 | K12: ='BS workings'!K524 -> 606000 | L12: ='BS workings'!L524 -> 606000 | M12: ='BS workings'!M524 -> 606000 | N12: ='BS workings'!N524 -> 606000 | O12: ='BS workings'!O524 -> 606000 | P12: ='BS workings'!P524 -> 606000
A13: Non-current assets classified as "held for sale" | C13: =SUM('Historical Data'!C706)*1000 -> 1359000 | E13: ='BS workings'!E546 -> 679500 | G13: ='BS workings'!G546 -> 679500 | H13: ='BS workings'!H546 -> 679500 | I13: ='BS workings'!I546 -> 679500 | J13: ='BS workings'!J546 -> 679500 | K13: ='BS workings'!K546 -> 679500 | L13: ='BS workings'!L546 -> 679500 | M13: ='BS workings'!M546 -> 679500 | N13: ='BS workings'!N546 -> 679500 | O13: ='BS workings'!O546 -> 679500 | P13: ='BS workings'!P546 -> 679500
A14: Rounding adjustment (keep line always hidden!!!!!) | C14: =-C66 -> 0 | E14: 0 | G14: 0 | H14: 0 | I14: 0 | J14: 0 | K14: 0 | L14: 0 | M14: 0 | N14: 0 | O14: 0 | P14: 0
A15: Total Current Assets | C15: =SUM(C6:C14) -> 42716000 | E15: 37239843.73 | G15: 35639388.73 | H15: 35825960.73 | I15: 36145449.73 | J15: 35561847.73 | K15: 36989368.73 | L15: 39397518.73 | M15: 38729335.73 | N15: 45866998.73 | O15: 49620166.73 | P15: 56245635.73
A17: Non-Current Assets
A18: Investments | C18: =SUM('Historical Data'!C710)*1000 -> 0 | E18: ='BS workings'!E68 -> 0 | G18: ='BS workings'!G68 -> 0 | H18: ='BS workings'!H68 -> 0 | I18: ='BS workings'!I68 -> 0 | J18: ='BS workings'!J68 -> 0 | K18: ='BS workings'!K68 -> 0 | L18: ='BS workings'!L68 -> 0 | M18: ='BS workings'!M68 -> 0 | N18: ='BS workings'!N68 -> 0 | O18: ='BS workings'!O68 -> 0 | P18: ='BS workings'!P68 -> 0
A19: Receivables | C19: =SUM('Historical Data'!C711)*1000 -> 312000 | E19: ='BS workings'!E360 -> 337338.2736 | G19: ='BS workings'!G360 -> 337338.2736 | H19: ='BS workings'!H360 -> 337338.2736 | I19: ='BS workings'!I360 -> 337338.2736 | J19: ='BS workings'!J360 -> 337338.2736 | K19: ='BS workings'!K360 -> 337338.2736 | L19: ='BS workings'!L360 -> 337338.2736 | M19: ='BS workings'!M360 -> 337338.2736 | N19: ='BS workings'!N360 -> 337338.2736 | O19: ='BS workings'!O360 -> 337338.2736 | P19: ='BS workings'!P360 -> 337338.2736
A20: Inventories | C20: =SUM('Historical Data'!C712)*1000 -> 0 | E20: ='BS workings'!E446 -> 0 | G20: ='BS workings'!G446 -> 0 | H20: ='BS workings'!H446 -> 0 | I20: ='BS workings'!I446 -> 0 | J20: ='BS workings'!J446 -> 0 | K20: ='BS workings'!K446 -> 0 | L20: ='BS workings'!L446 -> 0 | M20: ='BS workings'!M446 -> 0 | N20: ='BS workings'!N446 -> 0 | O20: ='BS workings'!O446 -> 0 | P20: ='BS workings'!P446 -> 0
A21: Infrastructure, Property, Plant & Equipment | C21: =SUM('Historical Data'!C713)*1000 -> 580930000 | E21: ='BS workings'!E576 -> 597745804 | G21: ='BS workings'!G576 -> 602084092 | H21: ='BS workings'!H576 -> 599137424 | I21: ='BS workings'!I576 -> 596097857 | J21: ='BS workings'!J576 -> 594827256 | K21: ='BS workings'!K576 -> 592159434 | L21: ='BS workings'!L576 -> 588565938 | M21: ='BS workings'!M576 -> 588369549 | N21: ='BS workings'!N576 -> 582856086 | O21: ='BS workings'!O576 -> 579695647 | P21: ='BS workings'!P576 -> 573700165
A22: Investments Accounted for using the equity method | C22: =SUM('Historical Data'!C714)*1000 -> 0 | E22: =IF('BS workings'!E613>0,'BS workings'!E613,0) -> 0 | G22: =IF('BS workings'!G613>0,'BS workings'!G613,0) -> 0 | H22: =IF('BS workings'!H613>0,'BS workings'!H613,0) -> 0 | I22: =IF('BS workings'!I613>0,'BS workings'!I613,0) -> 0 | J22: =IF('BS workings'!J613>0,'BS workings'!J613,0) -> 0 | K22: =IF('BS workings'!K613>0,'BS workings'!K613,0) -> 0 | L22: =IF('BS workings'!L613>0,'BS workings'!L613,0) -> 0 | M22: =IF('BS workings'!M613>0,'BS workings'!M613,0) -> 0 | N22: =IF('BS workings'!N613>0,'BS workings'!N613,0) -> 0 | O22: =IF('BS workings'!O613>0,'BS workings'!O613,0) -> 0 | P22: =IF('BS workings'!P613>0,'BS workings'!P613,0) -> 0
A23: Investment Property | C23: =SUM('Historical Data'!C715)*1000 -> 0 | E23: ='BS workings'!E596 -> 0 | G23: ='BS workings'!G596 -> 0 | H23: ='BS workings'!H596 -> 0 | I23: ='BS workings'!I596 -> 0 | J23: ='BS workings'!J596 -> 0 | K23: ='BS workings'!K596 -> 0 | L23: ='BS workings'!L596 -> 0 | M23: ='BS workings'!M596 -> 0 | N23: ='BS workings'!N596 -> 0 | O23: ='BS workings'!O596 -> 0 | P23: ='BS workings'!P596 -> 0
A24: Intangible Assets | C24: =SUM('Historical Data'!C716)*1000 -> 0 | E24: ='BS workings'!E628 -> 0 | G24: ='BS workings'!G628 -> 0 | H24: ='BS workings'!H628 -> 0 | I24: ='BS workings'!I628 -> 0 | J24: ='BS workings'!J628 -> 0 | K24: ='BS workings'!K628 -> 0 | L24: ='BS workings'!L628 -> 0 | M24: ='BS workings'!M628 -> 0 | N24: ='BS workings'!N628 -> 0 | O24: ='BS workings'!O628 -> 0 | P24: ='BS workings'!P628 -> 0
A25: Non-current assets classified as "held for sale" | C25: =SUM('Historical Data'!C717)*1000 -> 0 | E25: ='BS workings'!E547 -> 679500 | G25: ='BS workings'!G547 -> 679500 | H25: ='BS workings'!H547 -> 679500 | I25: ='BS workings'!I547 -> 679500 | J25: ='BS workings'!J547 -> 679500 | K25: ='BS workings'!K547 -> 679500 | L25: ='BS workings'!L547 -> 679500 | M25: ='BS workings'!M547 -> 679500 | N25: ='BS workings'!N547 -> 679500 | O25: ='BS workings'!O547 -> 679500 | P25: ='BS workings'!P547 -> 679500
A26: Other | C26: =SUM('Historical Data'!C718)*1000 -> 279000 | E26: ='BS workings'!E525 -> 279000 | G26: ='BS workings'!G525 -> 279000 | H26: ='BS workings'!H525 -> 279000 | I26: ='BS workings'!I525 -> 279000 | J26: ='BS workings'!J525 -> 279000 | K26: ='BS workings'!K525 -> 279000 | L26: ='BS workings'!L525 -> 279000 | M26: ='BS workings'!M525 -> 279000 | N26: ='BS workings'!N525 -> 279000 | O26: ='BS workings'!O525 -> 279000 | P26: ='BS workings'!P525 -> 279000
A27: Total Non-Current Assets | C27: =SUM(C17:C26) -> 581521000 | E27: 599041642.3 | G27: 603379930.3 | H27: 600433262.3 | I27: 597393695.3 | J27: 596123094.3 | K27: 593455272.3 | L27: 589861776.3 | M27: 589665387.3 | N27: 584151924.3 | O27: 580991485.3 | P27: 574996003.3
A28: TOTAL ASSETS | C28: =C27+C15 -> 624237000 | E28: 636281486 | G28: 639019319 | H28: 636259223 | I28: 633539145 | J28: 631684942 | K28: 630444641 | L28: 629259295 | M28: 628394723 | N28: 630018923 | O28: 630611652 | P28: 631241639
A30: LIABILITIES
A31: Current Liabilities
... 25 more rows

Sheet BS workings (hidden)
A1: ='Cover Page'!$A$3 -> Armidale Regional Council | R1: hide | S1: hide
A2: ='Cover Page'!$A$5 -> 10 Year Financial Plan for the Years ending 30 June 2031
A3: ="BALANCE SHEET - "&UPPER(general_fund_name)&" - WORKINGS" -> BALANCE SHEET - GENERAL FUND - WORKINGS | C3: Actuals | E3: Current Year | G3: Projected Years
A4: ="Scenario: "&general_scenario_name -> Scenario: Permanent 8.5% SV plus 2% rate peg 2021/22 | C4: =Starting_year_general-2&"/"&RIGHT(Starting_year_general-1,2) -> 2019/20 | E4: =Starting_year_general-1&"/"&RIGHT(Starting_year_general,2) -> 2020/21 | G4: =Starting_year_general&"/"&RIGHT(Starting_year_general+1,2) -> 2021/22 | H4: =Starting_year_general+1&"/"&RIGHT(Starting_year_general+2,2) -> 2022/23 | I4: =Starting_year_general+2&"/"&RIGHT(Starting_year_general+3,2) -> 2023/24 | J4: =Starting_year_general+3&"/"&RIGHT(Starting_year_general+4,2) -> 2024/25 | K4: =Starting_year_general+4&"/"&RIGHT(Starting_year_general+5,2) -> 2025/26 | L4: =Starting_year_general+5&"/"&RIGHT(Starting_year_general+6,2) -> 2026/27 | M4: =Starting_year_general+6&"/"&RIGHT(Starting_year_general+7,2) -> 2027/28 | N4: =Starting_year_general+7&"/"&RIGHT(Starting_year_general+8,2) -> 2028/29 | O4: =Starting_year_general+8&"/"&RIGHT(Starting_year_general+9,2) -> 2029/30 | P4: =Starting_year_general+9&"/"&RIGHT(Starting_year_general+10,2) -> 2030/31
C5: =IF('Cover Page'!$K$19=TRUE,"$","$") -> $ | E5: =IF('Cover Page'!$K$19=TRUE,"$","$") -> $ | G5: =IF('Cover Page'!$K$19=TRUE,"$","$") -> $ | H5: =IF('Cover Page'!$K$19=TRUE,"$","$") -> $ | I5: =IF('Cover Page'!$K$19=TRUE,"$","$") -> $ | J5: =IF('Cover Page'!$K$19=TRUE,"$","$") -> $ | K5: =IF('Cover Page'!$K$19=TRUE,"$","$") -> $ | L5: =IF('Cover Page'!$K$19=TRUE,"$","$") -> $ | M5: =IF('Cover Page'!$K$19=TRUE,"$","$") -> $ | N5: =IF('Cover Page'!$K$19=TRUE,"$","$") -> $ | O5: =IF('Cover Page'!$K$19=TRUE,"$","$") -> $ | P5: =IF('Cover Page'!$K$19=TRUE,"$","$") -> $ | S5: =S1013 -> 
A8: Cash & Cash Equivalents
A9: Opening Balance | E9: =(SUM('Historical Data'!C701)-SUM('Historical Data'!C1172))*1000 -> 20856000 | G9: =E46 -> 16084682 | H9: =G46 -> 14484227 | I9: 14670799 | J9: 14990288 | K9: 14406686 | L9: 15834207 | M9: 18242357 | N9: 17574174 | O9: 24711837 | P9: 28465005
A10: Add: Operating Result | E10: ='Income Statement'!F42 -> 14611615 | G10: ='Income Statement'!H42 -> 5444956 | H10: ='Income Statement'!I42 -> 165758 | I10: ='Income Statement'!J42 -> -137666 | J10: ='Income Statement'!K42 -> 567198 | K10: ='Income Statement'!L42 -> 1014486 | L10: ='Income Statement'!M42 -> 734710 | M10: ='Income Statement'!N42 -> -138666 | N10: ='Income Statement'!O42 -> 2209892 | O10: ='Income Statement'!P42 -> 1036352 | P10: ='Income Statement'!Q42 -> 714508
A11: Less: non-cash Income | E11: =-'Budget Summary 1'!BC34-'Budget Summary 1'!BC103-'Income Statement'!BD15-'Income Statement'!BD19+SUM('Budget Summary 1'!BC26:BC33)-'Budget Summary 1'!BC114 -> 0 | G11: =-'Budget Summary 1'!BD34-'Budget Summary 1'!BD103-'Income Statement'!BE15-'Income Statement'!BE19+SUM('Budget Summary 1'!BD26:BD33)-'Budget Summary 1'!BD114 -> 0 | H11: =-'Budget Summary 1'!BE34-'Budget Summary 1'!BE103-'Income Statement'!BF15-'Income Statement'!BF19+SUM('Budget Summary 1'!BE26:BE33)-'Budget Summary 1'!BE114 -> 0 | I11: =-'Budget Summary 1'!BF34-'Budget Summary 1'!BF103-'Income Statement'!BG15-'Income Statement'!BG19+SUM('Budget Summary 1'!BF26:BF33)-'Budget Summary 1'!BF114 -> 0 | J11: =-'Budget Summary 1'!BG34-'Budget Summary 1'!BG103-'Income Statement'!BH15-'Income Statement'!BH19+SUM('Budget Summary 1'!BG26:BG33)-'Budget Summary 1'!BG114 -> 0 | K11: =-'Budget Summary 1'!BH34-'Budget Summary 1'!BH103-'Income Statement'!BI15-'Income Statement'!BI19+SUM('Budget Summary 1'!BH26:BH33)-'Budget Summary 1'!BH114 -> 0 | L11: =-'Budget Summary 1'!BI34-'Budget Summary 1'!BI103-'Income Statement'!BJ15-'Income Statement'!BJ19+SUM('Budget Summary 1'!BI26:BI33)-'Budget Summary 1'!BI114 -> 0 | M11: =-'Budget Summary 1'!BJ34-'Budget Summary 1'!BJ103-'Income Statement'!BK15-'Income Statement'!BK19+SUM('Budget Summary 1'!BJ26:BJ33)-'Budget Summary 1'!BJ114 -> 0 | N11: =-'Budget Summary 1'!BK34-'Budget Summary 1'!BK103-'Income Statement'!BL15-'Income Statement'!BL19+SUM('Budget Summary 1'!BK26:BK33)-'Budget Summary 1'!BK114 -> 0 | O11: =-'Budget Summary 1'!BL34-'Budget Summary 1'!BL103-'Income Statement'!BM15-'Income Statement'!BM19+SUM('Budget Summary 1'!BL26:BL33)-'Budget Summary 1'!BL114 -> 0 | P11: =-'Budget Summary 1'!BM34-'Budget Summary 1'!BM103-'Income Statement'!BN15-'Income Statement'!BN19+SUM('Budget Summary 1'!BM26:BM33)-'Budget Summary 1'!BM114 -> 0
A12: Add: Depreciation & Impairment | E12: =(-'Income Statement'!F17+'Income Statement'!F26+'Income Statement'!F27+'Income Statement'!F32) -> 12404600 | G12: =(-'Income Statement'!H17+'Income Statement'!H26+'Income Statement'!H27+'Income Statement'!H32) -> 12714715 | H12: =(-'Income Statement'!I17+'Income Statement'!I26+'Income Statement'!I27+'Income Statement'!I32) -> 13032586 | I12: =(-'Income Statement'!J17+'Income Statement'!J26+'Income Statement'!J27+'Income Statement'!J32) -> 13358404 | J12: =(-'Income Statement'!K17+'Income Statement'!K26+'Income Statement'!K27+'Income Statement'!K32) -> 13692367 | K12: =(-'Income Statement'!L17+'Income Statement'!L26+'Income Statement'!L27+'Income Statement'!L32) -> 14034677 | L12: =(-'Income Statement'!M17+'Income Statement'!M26+'Income Statement'!M27+'Income Statement'!M32) -> 14385547 | M12: =(-'Income Statement'!N17+'Income Statement'!N26+'Income Statement'!N27+'Income Statement'!N32) -> 14745187 | N12: =(-'Income Statement'!O17+'Income Statement'!O26+'Income Statement'!O27+'Income Statement'!O32) -> 15113814 | O12: =(-'Income Statement'!P17+'Income Statement'!P26+'Income Statement'!P27+'Income Statement'!P32) -> 15491662 | P12: =(-'Income Statement'!Q17+'Income Statement'!Q26+'Income Statement'!Q27+'Income Statement'!Q32) -> 15878954
A13: Add: Depreciation - capitalised
A14: Add: other non-cash Expenditure | E14: ='Income Statement'!BD35-'Income Statement'!BD26-'Income Statement'!BD27-'Income Statement'!BD32-'Income Statement'!BD33+'Budget Summary 1'!BC63 -> 0 | G14: ='Income Statement'!BE35-'Income Statement'!BE26-'Income Statement'!BE27-'Income Statement'!BE32-'Income Statement'!BE33+'Budget Summary 1'!BD63 -> 0 | H14: ='Income Statement'!BF35-'Income Statement'!BF26-'Income Statement'!BF27-'Income Statement'!BF32-'Income Statement'!BF33+'Budget Summary 1'!BE63 -> 0 | I14: ='Income Statement'!BG35-'Income Statement'!BG26-'Income Statement'!BG27-'Income Statement'!BG32-'Income Statement'!BG33+'Budget Summary 1'!BF63 -> 0 | J14: ='Income Statement'!BH35-'Income Statement'!BH26-'Income Statement'!BH27-'Income Statement'!BH32-'Income Statement'!BH33+'Budget Summary 1'!BG63 -> 0 | K14: ='Income Statement'!BI35-'Income Statement'!BI26-'Income Statement'!BI27-'Income Statement'!BI32-'Income Statement'!BI33+'Budget Summary 1'!BH63 -> 0 | L14: ='Income Statement'!BJ35-'Income Statement'!BJ26-'Income Statement'!BJ27-'Income Statement'!BJ32-'Income Statement'!BJ33+'Budget Summary 1'!BI63 -> 0 | M14: ='Income Statement'!BK35-'Income Statement'!BK26-'Income Statement'!BK27-'Income Statement'!BK32-'Income Statement'!BK33+'Budget Summary 1'!BJ63 -> 0 | N14: ='Income Statement'!BL35-'Income Statement'!BL26-'Income Statement'!BL27-'Income Statement'!BL32-'Income Statement'!BL33+'Budget Summary 1'!BK63 -> 0 | O14: ='Income Statement'!BM35-'Income Statement'!BM26-'Income Statement'!BM27-'Income Statement'!BM32-'Income Statement'!BM33+'Budget Summary 1'!BL63 -> 0 | P14: ='Income Statement'!BN35-'Income Statement'!BN26-'Income Statement'!BN27-'Income Statement'!BN32-'Income Statement'!BN33+'Budget Summary 1'!BM63 -> 0
A15: Add: Change in Receivables | E15: =-E363 -> 0 | G15: =-G363 -> 0 | H15: =-H363 -> 0 | I15: =-I363 -> 0 | J15: 0 | K15: 0 | L15: 0 | M15: 0 | N15: 0 | O15: 0 | P15: 0
A16: Less: Additions in Real Estate Assets | E16: =-E422+'Budget Summary 1'!BC116 -> 0 | G16: =-G422+'Budget Summary 1'!BD116 -> 0 | H16: =-H422+'Budget Summary 1'!BE116 -> 0 | I16: =-I422+'Budget Summary 1'!BF116 -> 0 | J16: =-J422+'Budget Summary 1'!BG116 -> 0 | K16: =-K422+'Budget Summary 1'!BH116 -> 0 | L16: =-L422+'Budget Summary 1'!BI116 -> 0 | M16: =-M422+'Budget Summary 1'!BJ116 -> 0 | N16: =-N422+'Budget Summary 1'!BK116 -> 0 | O16: =-O422+'Budget Summary 1'!BL116 -> 0 | P16: =-P422+'Budget Summary 1'!BM116 -> 0
A17: Add: Disposals in Real Estate Assets | E17: =E440 -> 0 | G17: =G440 -> 0 | H17: =H440 -> 0 | I17: 0 | J17: 0 | K17: 0 | L17: 0 | M17: 0 | N17: 0 | O17: 0 | P17: 0
A18: Add: Change in Inventories | E18: =-E449 -> 0 | G18: =-G449 -> 0 | H18: =-H449 -> 0 | I18: 0 | J18: 0 | K18: 0 | L18: 0 | M18: 0 | N18: 0 | O18: 0 | P18: 0
A19: Add: Change in Other Assets | E19: =-E528 -> 0 | G19: =-G528 -> 0 | H19: =-H528 -> 0 | I19: 0 | J19: 0 | K19: 0 | L19: 0 | M19: 0 | N19: 0 | O19: 0 | P19: 0
A20: Less: Additions in IPP&E | E20: =-E561 -> -30488104 | G20: =-G561 -> -18280853 | H20: =-H561 -> -11291268 | I20: -11686087 | J20: -13625066 | K20: -12568405 | L20: -11988901 | M20: -15763533 | N20: -10757301 | O20: -13507973 | P20: -11119822
A21: Add: Disposals in IPP&E (Proceeds) | E21: =E580 -> 1267700 | G21: =G580 -> 1227850 | H21: 1205350 | I21: 1367250 | J21: 1203300 | K21: 1201550 | L21: 1196850 | M21: 1214735 | N21: 1156950 | O21: 1176750 | P21: 1236350
A22: Add: Assets "held for sale" sold | E22: =E550 -> 0 | G22: =G550 -> 0 | H22: =H550 -> 0 | I22: 0 | J22: 0 | K22: 0 | L22: 0 | M22: 0 | N22: 0 | O22: 0 | P22: 0
A23: Less: Additions in Investment property | E23: =-E588+'Budget Summary 1'!BC115 -> 0 | G23: =-G588+'Budget Summary 1'!BD115 -> 0 | H23: =-H588+'Budget Summary 1'!BE115 -> 0 | I23: =-I588+'Budget Summary 1'!BF115 -> 0 | J23: =-J588+'Budget Summary 1'!BG115 -> 0 | K23: =-K588+'Budget Summary 1'!BH115 -> 0 | L23: =-L588+'Budget Summary 1'!BI115 -> 0 | M23: =-M588+'Budget Summary 1'!BJ115 -> 0 | N23: =-N588+'Budget Summary 1'!BK115 -> 0 | O23: =-O588+'Budget Summary 1'!BL115 -> 0 | P23: =-P588+'Budget Summary 1'!BM115 -> 0
A24: Add: Disposals in Investment property | E24: =E598 -> 0 | G24: =G598 -> 0 | H24: =H598 -> 0 | I24: 0 | J24: 0 | K24: 0 | L24: 0 | M24: 0 | N24: 0 | O24: 0 | P24: 0
A25: Add: Disposals in Investments | E25: =E74 -> 0 | G25: =G74 -> 0 | H25: =H74 -> 0 | I25: 0 | J25: 0 | K25: 0 | L25: 0 | M25: 0 | N25: 0 | O25: 0 | P25: 0
A26: Add: Change in Investments Accounted for using the equity method | E26: =E608-E613+E609+E611 -> 0 | G26: =G608-G613+G609+G611 -> 0 | H26: =H608-H613+H609+H611 -> 0 | I26: 0 | J26: 0 | K26: 0 | L26: 0 | M26: 0 | N26: 0 | O26: 0 | P26: 0
A27: Add: Change in Intangible Assets | E27: =E634 -> 0 | G27: =G634 -> 0 | H27: =H634 -> 0 | I27: 0 | J27: 0 | K27: 0 | L27: 0 | M27: 0 | N27: 0 | O27: 0 | P27: 0
A28: Less: Change in Payables | E28: =E787 -> -274000 | G28: =G787 -> 0 | H28: =H787 -> 0 | I28: 0 | J28: 0 | K28: 0 | L28: 0 | M28: 0 | N28: 0 | O28: 0 | P28: 0
A29: Less: Change in Income received in advance | E29: =E808 -> 274000 | G29: =G808 -> 0 | H29: =H808 -> 0 | I29: 0 | J29: 0 | K29: 0 | L29: 0 | M29: 0 | N29: 0 | O29: 0 | P29: 0
A30: Less: Change in Provisions | E30: =(E951+E952)-(C903+C920+C937)-E896-E916-E899-E902-E918-E919-E935 -> 0 | G30: =(G951+G952)-(E903+E920+E937)-G896-G916-G899-G902-G918-G919-G935 -> 0 | H30: =(H951+H952)-(G903+G920+G937)-H896-H916-H899-H902-H918-H919-H935 -> 0 | I30: =(I951+I952)-(H903+H920+H937)-I896-I916-I899-I902-I918-I919-I935 -> 0 | J30: 0 | K30: 0 | L30: 0 | M30: 0 | N30: 0 | O30: 0 | P30: 0
A31: Less: Change in Borrowings | E31: =E880-C880-E861-E820-E855 -> -2567129 | G31: =G880-E880-G861-G820-G855 -> -2707123 | H31: =H880-G880-H861-H820-H855 -> -2925854 | I31: =I880-H880-I861-I820-I855 -> -2582412 | J31: =J880-I880-J861-J820-J855 -> -2421401 | K31: -2254787 | L31: -1920056 | M31: -725906 | N31: -585692 | O31: -443623 | P31: -84521
... 16 more rows

Sheet Cash Flow
A1: ='Cover Page'!$A$3 -> Armidale Regional Council | R1: end | S1: end | T1: end | U1: end | V1: end | W1: end | X1: end | Y1: end | Z1: end | AA1: end | AB1: end | AC1: end | AD1: end | AE1: end | AF1: end | AG1: end | AH1: end | AI1: end | AJ1: end | AK1: end | AL1: end | AM1: end | AN1: end | AO1: end | AP1: end | AQ1: end | AR1: end | AS1: end | AT1: end | AU1: end | AV1: end | AW1: end | AX1: end | AY1: end | AZ1: end
A2: ='Cover Page'!$A$5 -> 10 Year Financial Plan for the Years ending 30 June 2031 | AZ2: end
A3: ="CASH FLOW STATEMENT - "&UPPER(general_fund_name) -> CASH FLOW STATEMENT - GENERAL FUND | C3: Actuals | E3: Current Year | G3: Projected Years | AZ3: end
A4: ="Scenario: "&general_scenario_name -> Scenario: Permanent 8.5% SV plus 2% rate peg 2021/22 | C4: =Starting_year_general-2&"/"&RIGHT(Starting_year_general-1,2) -> 2019/20 | E4: =Starting_year_general-1&"/"&RIGHT(Starting_year_general,2) -> 2020/21 | G4: =Starting_year_general&"/"&RIGHT(Starting_year_general+1,2) -> 2021/22 | H4: =Starting_year_general+1&"/"&RIGHT(Starting_year_general+2,2) -> 2022/23 | I4: =Starting_year_general+2&"/"&RIGHT(Starting_year_general+3,2) -> 2023/24 | J4: =Starting_year_general+3&"/"&RIGHT(Starting_year_general+4,2) -> 2024/25 | K4: =Starting_year_general+4&"/"&RIGHT(Starting_year_general+5,2) -> 2025/26 | L4: =Starting_year_general+5&"/"&RIGHT(Starting_year_general+6,2) -> 2026/27 | M4: =Starting_year_general+6&"/"&RIGHT(Starting_year_general+7,2) -> 2027/28 | N4: =Starting_year_general+7&"/"&RIGHT(Starting_year_general+8,2) -> 2028/29 | O4: =Starting_year_general+8&"/"&RIGHT(Starting_year_general+9,2) -> 2029/30 | P4: =Starting_year_general+9&"/"&RIGHT(Starting_year_general+10,2) -> 2030/31 | V4: =E4 -> 2020/21 | W4: =G4 -> 2021/22 | X4: 2022/23 | Y4: 2023/24 | Z4: 2024/25 | AA4: 2025/26 | AB4: 2026/27 | AC4: 2027/28 | AD4: 2028/29 | AE4: 2029/30 | AF4: 2030/31 | AZ4: end
C5: =IF('Cover Page'!$K$19=TRUE,"$","$'000") -> $'000 | E5: =IF('Cover Page'!$K$19=TRUE,"$","$'000") -> $'000 | G5: =IF('Cover Page'!$K$19=TRUE,"$","$'000") -> $'000 | H5: =IF('Cover Page'!$K$19=TRUE,"$","$'000") -> $'000 | I5: =IF('Cover Page'!$K$19=TRUE,"$","$'000") -> $'000 | J5: =IF('Cover Page'!$K$19=TRUE,"$","$'000") -> $'000 | K5: =IF('Cover Page'!$K$19=TRUE,"$","$'000") -> $'000 | L5: =IF('Cover Page'!$K$19=TRUE,"$","$'000") -> $'000 | M5: =IF('Cover Page'!$K$19=TRUE,"$","$'000") -> $'000 | N5: =IF('Cover Page'!$K$19=TRUE,"$","$'000") -> $'000 | O5: =IF('Cover Page'!$K$19=TRUE,"$","$'000") -> $'000 | P5: =IF('Cover Page'!$K$19=TRUE,"$","$'000") -> $'000 | AZ5: end
A6: Cash Flows from Operating Activities | AZ6: end
A7: Receipts: | R7: Allocate Income Line items here | AZ7: end
A8: Rates & Annual Charges | C8: =SUM('Historical Data'!C787)*1000 -> 0 | E8: ='CF workings'!E16 -> 26732592 | G8: ='CF workings'!G16 -> 27590057 | H8: ='CF workings'!H16 -> 28570606 | I8: ='CF workings'!I16 -> 28986378 | J8: ='CF workings'!J16 -> 30020653 | K8: ='CF workings'!K16 -> 31092212 | L8: ='CF workings'!L16 -> 31902416 | M8: ='CF workings'!M16 -> 31943669 | N8: ='CF workings'!N16 -> 33093158 | O8: ='CF workings'!O16 -> 34284397 | P8: ='CF workings'!P16 -> 35518913 | R8: Rates & Annual Charges | AZ8: end
A9: User Charges & Fees | C9: =SUM('Historical Data'!C788)*1000 -> 0 | E9: ='CF workings'!E24 -> 12355050 | G9: ='CF workings'!G24 -> 13518682 | H9: ='CF workings'!H24 -> 14026334 | I9: ='CF workings'!I24 -> 14553077 | J9: ='CF workings'!J24 -> 15099632 | K9: ='CF workings'!K24 -> 15666743 | L9: ='CF workings'!L24 -> 16255186 | M9: ='CF workings'!M24 -> 16865759 | N9: ='CF workings'!N24 -> 17499298 | O9: ='CF workings'!O24 -> 18156669 | P9: ='CF workings'!P24 -> 18838768 | R9: User Charges & Fees | AZ9: end
A10: Interest & Investment Revenue Received | C10: =SUM('Historical Data'!C789)*1000 -> 0 | E10: ='CF workings'!E32 -> 342000 | G10: ='CF workings'!G32 -> 280809 | H10: ='CF workings'!H32 -> 259663 | I10: ='CF workings'!I32 -> 250152 | J10: ='CF workings'!J32 -> 238839 | K10: ='CF workings'!K32 -> 232167 | L10: ='CF workings'!L32 -> 240931 | M10: ='CF workings'!M32 -> 245165 | N10: ='CF workings'!N32 -> 277569 | O10: ='CF workings'!O32 -> 331011 | P10: ='CF workings'!P32 -> 380735 | R10: Interest & Investment Revenue | AZ10: end
A11: Grants & Contributions | C11: =SUM('Historical Data'!C790)*1000 -> 0 | E11: ='CF workings'!E40 -> 29222944 | G11: ='CF workings'!G40 -> 18304593 | H11: ='CF workings'!H40 -> 12870937 | I11: ='CF workings'!I40 -> 12935484 | J11: ='CF workings'!J40 -> 13499367 | K11: ='CF workings'!K40 -> 13794789 | L11: ='CF workings'!L40 -> 13646387 | M11: ='CF workings'!M40 -> 13739341 | N11: ='CF workings'!N40 -> 15980277 | O11: ='CF workings'!O40 -> 14668998 | P11: ='CF workings'!P40 -> 14216555 | R11: Grants & Contributions provided for Operating Purposes | S11: Grants & Contributions provided for Capital Purposes | AZ11: end
A12: Bonds & Deposits Received | C12: =SUM('Historical Data'!C791)*1000 -> 0 | E12: ='CF workings'!E46 -> 0 | G12: ='CF workings'!G46 -> 0 | H12: ='CF workings'!H46 -> 0 | I12: ='CF workings'!I46 -> 0 | J12: ='CF workings'!J46 -> 0 | K12: ='CF workings'!K46 -> 0 | L12: ='CF workings'!L46 -> 0 | M12: ='CF workings'!M46 -> 0 | N12: ='CF workings'!N46 -> 0 | O12: ='CF workings'!O46 -> 0 | P12: ='CF workings'!P46 -> 0 | AZ12: end
A13: Other | C13: =SUM('Historical Data'!C792)*1000 -> 0 | E13: ='CF workings'!E63 -> 2459350 | G13: ='CF workings'!G63 -> 2239987 | H13: ='CF workings'!H63 -> 2295993 | I13: ='CF workings'!I63 -> 2353392 | J13: ='CF workings'!J63 -> 2412227 | K13: ='CF workings'!K63 -> 2472533 | L13: ='CF workings'!L63 -> 2534346 | M13: ='CF workings'!M63 -> 2597707 | N13: ='CF workings'!N63 -> 2662650 | O13: ='CF workings'!O63 -> 2729217 | P13: ='CF workings'!P63 -> 2797448 | R13: Other Revenues | AZ13: end
A14: Payments: | AZ14: end
A15: Employee Benefits & On-Costs | C15: =SUM('Historical Data'!C795)*1000 -> 0 | E15: =-'CF workings'!E79 -> -22186780 | G15: =-'CF workings'!G79 -> -22454655 | H15: =-'CF workings'!H79 -> -23016030 | I15: =-'CF workings'!I79 -> -23591427 | J15: =-'CF workings'!J79 -> -24181220 | K15: =-'CF workings'!K79 -> -24785754 | L15: =-'CF workings'!L79 -> -25405392 | M15: =-'CF workings'!M79 -> -26040535 | N15: =-'CF workings'!N79 -> -26691548 | O15: =-'CF workings'!O79 -> -27358836 | P15: =-'CF workings'!P79 -> -28042811 | R15: Employee Benefits & On-Costs | AZ15: end
A16: Materials & Contracts | C16: =SUM('Historical Data'!C796)*1000 -> 0 | E16: =-'CF workings'!E94 -> -10609612 | G16: =-'CF workings'!G94 -> -10378326 | H16: =-'CF workings'!H94 -> -10799076 | I16: =-'CF workings'!I94 -> -11238713 | J16: =-'CF workings'!J94 -> -11698164 | K16: =-'CF workings'!K94 -> -12178411 | L16: =-'CF workings'!L94 -> -12680402 | M16: =-'CF workings'!M94 -> -13205234 | N16: =-'CF workings'!N94 -> -13753984 | O16: =-'CF workings'!O94 -> -14327804 | P16: =-'CF workings'!P94 -> -14927934 | R16: Materials & Contracts | AZ16: end
A17: Borrowing Costs | C17: =SUM('Historical Data'!C797)*1000 -> 0 | E17: =-'CF workings'!E103 -> -989360 | G17: =-'CF workings'!G103 -> -850573 | H17: =-'CF workings'!H103 -> -706056 | I17: =-'CF workings'!I103 -> -505915 | J17: =-'CF workings'!J103 -> -387768 | K17: =-'CF workings'!K103 -> -274055 | L17: =-'CF workings'!L103 -> -170255 | M17: =-'CF workings'!M103 -> -99525 | N17: =-'CF workings'!N103 -> -61973 | O17: =-'CF workings'!O103 -> -26812 | P17: =-'CF workings'!P103 -> -7011 | R17: Borrowing Costs | AZ17: end
A18: Bonds & Deposits Refunded | C18: =SUM('Historical Data'!C798)*1000 -> 0 | E18: =-'CF workings'!E109 -> 0 | G18: =-'CF workings'!G109 -> 0 | H18: =-'CF workings'!H109 -> 0 | I18: =-'CF workings'!I109 -> 0 | J18: =-'CF workings'!J109 -> 0 | K18: =-'CF workings'!K109 -> 0 | L18: =-'CF workings'!L109 -> 0 | M18: =-'CF workings'!M109 -> 0 | N18: =-'CF workings'!N109 -> 0 | O18: =-'CF workings'!O109 -> 0 | P18: =-'CF workings'!P109 -> 0 | AZ18: end
A19: Other | C19: =SUM('Historical Data'!C799)*1000 -> 0 | E19: =-'CF workings'!E125 -> -10309969 | G19: =-'CF workings'!G125 -> -10090903 | H19: =-'CF workings'!H125 -> -10304027 | I19: =-'CF workings'!I125 -> -10521690 | J19: =-'CF workings'!J125 -> -10744001 | K19: =-'CF workings'!K125 -> -10971061 | L19: =-'CF workings'!L125 -> -11202960 | M19: =-'CF workings'!M125 -> -11439826 | N19: =-'CF workings'!N125 -> -11681741 | O19: =-'CF workings'!O125 -> -11928826 | P19: =-'CF workings'!P125 -> -12181201 | R19: =-'CF workings'!U125-SUM(R58)+R95+'BS workings'!T918+'BS workings'!T919 ->  | AZ19: end
AZ20: end
A21: Net Cash provided (or used in) Operating Activities | C21: =SUM(C7:C20) -> 0 | E21: =SUM(E7:E20) -> 27016215 | G21: =SUM(G7:G20) -> 18159671 | H21: 13198344 | I21: 13220738 | J21: 14259565 | K21: 15049163 | L21: 15120257 | M21: 14606521 | N21: 17323706 | O21: 16528014 | P21: 16593462 | AZ21: end
AZ22: end
A23: Cash Flows from Investing Activities | AZ23: end
A24: Receipts: | AZ24: end
A25: Sale of Investment Securities | C25: =SUM('Historical Data'!C808)*1000 -> 0 | E25: ='CF workings'!E134 -> 0 | G25: ='CF workings'!G134 -> 0 | H25: ='CF workings'!H134 -> 0 | I25: ='CF workings'!I134 -> 0 | J25: ='CF workings'!J134 -> 0 | K25: ='CF workings'!K134 -> 0 | L25: ='CF workings'!L134 -> 0 | M25: ='CF workings'!M134 -> 0 | N25: ='CF workings'!N134 -> 0 | O25: ='CF workings'!O134 -> 0 | P25: ='CF workings'!P134 -> 0 | AZ25: end
A26: Sale of Investment Property | C26: =SUM('Historical Data'!C809)*1000 -> 0 | E26: ='CF workings'!E139 -> 0 | G26: ='CF workings'!G139 -> 0 | H26: ='CF workings'!H139 -> 0 | I26: ='CF workings'!I139 -> 0 | J26: ='CF workings'!J139 -> 0 | K26: ='CF workings'!K139 -> 0 | L26: ='CF workings'!L139 -> 0 | M26: ='CF workings'!M139 -> 0 | N26: ='CF workings'!N139 -> 0 | O26: ='CF workings'!O139 -> 0 | P26: ='CF workings'!P139 -> 0 | AZ26: end
A27: Sale of Real Estate Assets | C27: =SUM('Historical Data'!C810)*1000 -> 0 | E27: ='CF workings'!E145 -> 0 | G27: ='CF workings'!G145 -> 0 | H27: ='CF workings'!H145 -> 0 | I27: ='CF workings'!I145 -> 0 | J27: ='CF workings'!J145 -> 0 | K27: ='CF workings'!K145 -> 0 | L27: ='CF workings'!L145 -> 0 | M27: ='CF workings'!M145 -> 0 | N27: ='CF workings'!N145 -> 0 | O27: ='CF workings'!O145 -> 0 | P27: ='CF workings'!P145 -> 0 | AZ27: end
A28: Sale of Infrastructure, Property, Plant & Equipment | C28: =SUM('Historical Data'!C811)*1000 -> 0 | E28: ='CF workings'!E152 -> 1267700 | G28: ='CF workings'!G152 -> 1227850 | H28: ='CF workings'!H152 -> 1205350 | I28: ='CF workings'!I152 -> 1367250 | J28: ='CF workings'!J152 -> 1203300 | K28: ='CF workings'!K152 -> 1201550 | L28: ='CF workings'!L152 -> 1196850 | M28: ='CF workings'!M152 -> 1214735 | N28: ='CF workings'!N152 -> 1156950 | O28: ='CF workings'!O152 -> 1176750 | P28: ='CF workings'!P152 -> 1236350 | AZ28: end
A29: Sale of non-current assets classified as "held for sale" | C29: =SUM('Historical Data'!C812)*1000 -> 0 | E29: ='CF workings'!E158 -> 0 | G29: ='CF workings'!G158 -> 0 | H29: ='CF workings'!H158 -> 0 | I29: ='CF workings'!I158 -> 0 | J29: ='CF workings'!J158 -> 0 | K29: ='CF workings'!K158 -> 0 | L29: ='CF workings'!L158 -> 0 | M29: ='CF workings'!M158 -> 0 | N29: ='CF workings'!N158 -> 0 | O29: ='CF workings'!O158 -> 0 | P29: ='CF workings'!P158 -> 0 | AZ29: end
A30: Sale of Interests in Joint Ventures & Associates | C30: =(SUM('Historical Data'!C814)+SUM('Historical Data'!C815))*1000 -> 0 | E30: ='CF workings'!E163 -> 0 | G30: ='CF workings'!G163 -> 0 | H30: ='CF workings'!H163 -> 0 | I30: ='CF workings'!I163 -> 0 | J30: ='CF workings'!J163 -> 0 | K30: ='CF workings'!K163 -> 0 | L30: ='CF workings'!L163 -> 0 | M30: ='CF workings'!M163 -> 0 | N30: ='CF workings'!N163 -> 0 | O30: ='CF workings'!O163 -> 0 | P30: ='CF workings'!P163 -> 0 | AZ30: end
A31: Sale of Intangible Assets | C31: =SUM('Historical Data'!C813)*1000 -> 0 | E31: ='CF workings'!E168 -> 0 | G31: ='CF workings'!G168 -> 0 | H31: ='CF workings'!H168 -> 0 | I31: ='CF workings'!I168 -> 0 | J31: ='CF workings'!J168 -> 0 | K31: ='CF workings'!K168 -> 0 | L31: ='CF workings'!L168 -> 0 | M31: ='CF workings'!M168 -> 0 | N31: ='CF workings'!N168 -> 0 | O31: ='CF workings'!O168 -> 0 | P31: ='CF workings'!P168 -> 0 | AZ31: end
... 38 more rows

Sheet CF workings (hidden)
A1: ='Cover Page'!$A$3 -> Armidale Regional Council | R1: hide | S1: hide
A2: ='Cover Page'!$A$5 -> 10 Year Financial Plan for the Years ending 30 June 2031
A3: ="CASH FLOW - "&UPPER(general_fund_name)&" - WORKINGS" -> CASH FLOW - GENERAL FUND - WORKINGS | C3: Actuals | E3: Current Year | G3: Projected Years
A4: ="Scenario: "&general_scenario_name -> Scenario: Permanent 8.5% SV plus 2% rate peg 2021/22 | C4: =Starting_year_general-2&"/"&RIGHT(Starting_year_general-1,2) -> 2019/20 | E4: =Starting_year_general-1&"/"&RIGHT(Starting_year_general,2) -> 2020/21 | G4: =Starting_year_general&"/"&RIGHT(Starting_year_general+1,2) -> 2021/22 | H4: =Starting_year_general+1&"/"&RIGHT(Starting_year_general+2,2) -> 2022/23 | I4: =Starting_year_general+2&"/"&RIGHT(Starting_year_general+3,2) -> 2023/24 | J4: =Starting_year_general+3&"/"&RIGHT(Starting_year_general+4,2) -> 2024/25 | K4: =Starting_year_general+4&"/"&RIGHT(Starting_year_general+5,2) -> 2025/26 | L4: =Starting_year_general+5&"/"&RIGHT(Starting_year_general+6,2) -> 2026/27 | M4: =Starting_year_general+6&"/"&RIGHT(Starting_year_general+7,2) -> 2027/28 | N4: =Starting_year_general+7&"/"&RIGHT(Starting_year_general+8,2) -> 2028/29 | O4: =Starting_year_general+8&"/"&RIGHT(Starting_year_general+9,2) -> 2029/30 | P4: =Starting_year_general+9&"/"&RIGHT(Starting_year_general+10,2) -> 2030/31
C5: =IF('Cover Page'!$K$19=TRUE,"$","$") -> $ | E5: =IF('Cover Page'!$K$19=TRUE,"$","$") -> $ | G5: =IF('Cover Page'!$K$19=TRUE,"$","$") -> $ | H5: =IF('Cover Page'!$K$19=TRUE,"$","$") -> $ | I5: =IF('Cover Page'!$K$19=TRUE,"$","$") -> $ | J5: =IF('Cover Page'!$K$19=TRUE,"$","$") -> $ | K5: =IF('Cover Page'!$K$19=TRUE,"$","$") -> $ | L5: =IF('Cover Page'!$K$19=TRUE,"$","$") -> $ | M5: =IF('Cover Page'!$K$19=TRUE,"$","$") -> $ | N5: =IF('Cover Page'!$K$19=TRUE,"$","$") -> $ | O5: =IF('Cover Page'!$K$19=TRUE,"$","$") -> $ | P5: =IF('Cover Page'!$K$19=TRUE,"$","$") -> $ | S5: =S291 -> 
A7: Cash Flows from Operating Activities
A9: Receipts
A11: Rates & Annual Charges
A12: Income per Income Statement | E12: ='Income Statement'!F8 -> 26732592 | G12: ='Income Statement'!H8 -> 27590057 | H12: ='Income Statement'!I8 -> 28570606 | I12: ='Income Statement'!J8 -> 28986378 | J12: ='Income Statement'!K8 -> 30020653 | K12: ='Income Statement'!L8 -> 31092212 | L12: ='Income Statement'!M8 -> 31902416 | M12: ='Income Statement'!N8 -> 31943669 | N12: ='Income Statement'!O8 -> 33093158 | O12: ='Income Statement'!P8 -> 34284397 | P12: ='Income Statement'!Q8 -> 35518913
A13: Less: Non-cash Income | E13: =-'Income Statement'!BD8 -> 0 | G13: =-'Income Statement'!BE8 -> 0 | H13: =-'Income Statement'!BF8 -> 0 | I13: =-'Income Statement'!BG8 -> 0 | J13: =-'Income Statement'!BH8 -> 0 | K13: =-'Income Statement'!BI8 -> 0 | L13: =-'Income Statement'!BJ8 -> 0 | M13: =-'Income Statement'!BK8 -> 0 | N13: =-'Income Statement'!BL8 -> 0 | O13: =-'Income Statement'!BM8 -> 0 | P13: =-'Income Statement'!BN8 -> 0
A14: Less: Closing Balance Net Receivables per Balance Sheet workings | E14: =-'BS workings'!E100-'BS workings'!E101 -> -1480000 | G14: =-'BS workings'!G100-'BS workings'!G101 -> -1480000 | H14: =-'BS workings'!H100-'BS workings'!H101 -> -1480000 | I14: =-'BS workings'!I100-'BS workings'!I101 -> -1480000 | J14: =-'BS workings'!J100-'BS workings'!J101 -> -1480000 | K14: =-'BS workings'!K100-'BS workings'!K101 -> -1480000 | L14: =-'BS workings'!L100-'BS workings'!L101 -> -1480000 | M14: =-'BS workings'!M100-'BS workings'!M101 -> -1480000 | N14: =-'BS workings'!N100-'BS workings'!N101 -> -1480000 | O14: =-'BS workings'!O100-'BS workings'!O101 -> -1480000 | P14: =-'BS workings'!P100-'BS workings'!P101 -> -1480000
A15: Add: Opening Balance Net Receivables | E15: =+'BS workings'!C87+'BS workings'!C95 -> 1480000 | G15: =-E14 -> 1480000 | H15: =-G14 -> 1480000 | I15: =-H14 -> 1480000 | J15: 1480000 | K15: 1480000 | L15: 1480000 | M15: 1480000 | N15: 1480000 | O15: 1480000 | P15: 1480000
A16: Cash Receipt of Income | E16: =SUM(E11:E15) -> 26732592 | G16: =SUM(G11:G15) -> 27590057 | H16: =SUM(H11:H15) -> 28570606 | I16: 28986378 | J16: 30020653 | K16: 31092212 | L16: 31902416 | M16: 31943669 | N16: 33093158 | O16: 34284397 | P16: 35518913
A19: User Charges & Fees
A20: Income per Income Statement | E20: ='Income Statement'!F9 -> 12355050 | G20: ='Income Statement'!H9 -> 13518682 | H20: ='Income Statement'!I9 -> 14026334 | I20: ='Income Statement'!J9 -> 14553077 | J20: ='Income Statement'!K9 -> 15099632 | K20: ='Income Statement'!L9 -> 15666743 | L20: ='Income Statement'!M9 -> 16255186 | M20: ='Income Statement'!N9 -> 16865759 | N20: ='Income Statement'!O9 -> 17499298 | O20: ='Income Statement'!P9 -> 18156669 | P20: ='Income Statement'!Q9 -> 18838768
A21: Less: Non-cash Income | E21: =-'Income Statement'!BD9 -> 0 | G21: =-'Income Statement'!BE9 -> 0 | H21: =-'Income Statement'!BF9 -> 0 | I21: =-'Income Statement'!BG9 -> 0 | J21: =-'Income Statement'!BH9 -> 0 | K21: =-'Income Statement'!BI9 -> 0 | L21: =-'Income Statement'!BJ9 -> 0 | M21: =-'Income Statement'!BK9 -> 0 | N21: =-'Income Statement'!BL9 -> 0 | O21: =-'Income Statement'!BM9 -> 0 | P21: =-'Income Statement'!BN9 -> 0
A22: Less: Closing Balance Net Receivables per Balance Sheet workings | E22: =-'BS workings'!E146-'BS workings'!E147 -> -227000 | G22: =-'BS workings'!G146-'BS workings'!G147 -> -227000 | H22: =-'BS workings'!H146-'BS workings'!H147 -> -227000 | I22: =-'BS workings'!I146-'BS workings'!I147 -> -227000 | J22: =-'BS workings'!J146-'BS workings'!J147 -> -227000 | K22: =-'BS workings'!K146-'BS workings'!K147 -> -227000 | L22: =-'BS workings'!L146-'BS workings'!L147 -> -227000 | M22: =-'BS workings'!M146-'BS workings'!M147 -> -227000 | N22: =-'BS workings'!N146-'BS workings'!N147 -> -227000 | O22: =-'BS workings'!O146-'BS workings'!O147 -> -227000 | P22: =-'BS workings'!P146-'BS workings'!P147 -> -227000
A23: Add: Opening Balance Net Receivables | E23: ='BS workings'!C133+'BS workings'!C141 -> 227000 | G23: =-E22 -> 227000 | H23: =-G22 -> 227000 | I23: =-H22 -> 227000 | J23: 227000 | K23: 227000 | L23: 227000 | M23: 227000 | N23: 227000 | O23: 227000 | P23: 227000
A24: Cash Receipt of Income | E24: =SUM(E19:E23) -> 12355050 | G24: =SUM(G19:G23) -> 13518682 | H24: =SUM(H19:H23) -> 14026334 | I24: =SUM(I19:I23) -> 14553077 | J24: =SUM(J19:J23) -> 15099632 | K24: =SUM(K19:K23) -> 15666743 | L24: =SUM(L19:L23) -> 16255186 | M24: =SUM(M19:M23) -> 16865759 | N24: =SUM(N19:N23) -> 17499298 | O24: =SUM(O19:O23) -> 18156669 | P24: =SUM(P19:P23) -> 18838768
A27: Interest & Investment Revenue Received
A28: Income per Income Statement | E28: ='Income Statement'!F10-'Income Statement'!F30 -> 342000 | G28: ='Income Statement'!H10-'Income Statement'!H30 -> 280809 | H28: ='Income Statement'!I10-'Income Statement'!I30 -> 259663 | I28: ='Income Statement'!J10-'Income Statement'!J30 -> 250152 | J28: ='Income Statement'!K10-'Income Statement'!K30 -> 238839 | K28: ='Income Statement'!L10-'Income Statement'!L30 -> 232167 | L28: ='Income Statement'!M10-'Income Statement'!M30 -> 240931 | M28: ='Income Statement'!N10-'Income Statement'!N30 -> 245165 | N28: ='Income Statement'!O10-'Income Statement'!O30 -> 277569 | O28: ='Income Statement'!P10-'Income Statement'!P30 -> 331011 | P28: ='Income Statement'!Q10-'Income Statement'!Q30 -> 380735
A29: Less: Non-cash Income | E29: =-'Income Statement'!BD10 -> 0 | G29: =-'Income Statement'!BE10 -> 0 | H29: =-'Income Statement'!BF10 -> 0 | I29: =-'Income Statement'!BG10 -> 0 | J29: =-'Income Statement'!BH10 -> 0 | K29: =-'Income Statement'!BI10 -> 0 | L29: =-'Income Statement'!BJ10 -> 0 | M29: =-'Income Statement'!BK10 -> 0 | N29: =-'Income Statement'!BL10 -> 0 | O29: =-'Income Statement'!BM10 -> 0 | P29: =-'Income Statement'!BN10 -> 0
A30: Less: Closing Balance Net Receivables per Balance Sheet workings | E30: =-'BS workings'!E192-'BS workings'!E193-'BS workings'!E123-'BS workings'!E124 -> -551000 | G30: =-'BS workings'!G192-'BS workings'!G193-'BS workings'!G123-'BS workings'!G124 -> -551000 | H30: =-'BS workings'!H192-'BS workings'!H193-'BS workings'!H123-'BS workings'!H124 -> -551000 | I30: =-'BS workings'!I192-'BS workings'!I193-'BS workings'!I123-'BS workings'!I124 -> -551000 | J30: =-'BS workings'!J192-'BS workings'!J193-'BS workings'!J123-'BS workings'!J124 -> -551000 | K30: =-'BS workings'!K192-'BS workings'!K193-'BS workings'!K123-'BS workings'!K124 -> -551000 | L30: =-'BS workings'!L192-'BS workings'!L193-'BS workings'!L123-'BS workings'!L124 -> -551000 | M30: =-'BS workings'!M192-'BS workings'!M193-'BS workings'!M123-'BS workings'!M124 -> -551000 | N30: =-'BS workings'!N192-'BS workings'!N193-'BS workings'!N123-'BS workings'!N124 -> -551000 | O30: =-'BS workings'!O192-'BS workings'!O193-'BS workings'!O123-'BS workings'!O124 -> -551000 | P30: =-'BS workings'!P192-'BS workings'!P193-'BS workings'!P123-'BS workings'!P124 -> -551000
A31: Add: Opening Balance Net Receivables | E31: ='BS workings'!C179+'BS workings'!C187+'BS workings'!C110+'BS workings'!C118 -> 551000 | G31: =-E30 -> 551000 | H31: =-G30 -> 551000 | I31: =-H30 -> 551000 | J31: 551000 | K31: 551000 | L31: 551000 | M31: 551000 | N31: 551000 | O31: 551000 | P31: 551000
... 20 more rows

Sheet Equity Statement
A1: ='Cover Page'!$A$3 -> Armidale Regional Council
A2: ='Cover Page'!$A$5 -> 10 Year Financial Plan for the Years ending 30 June 2031
A3: ="EQUITY STATEMENT - "&UPPER(general_fund_name) -> EQUITY STATEMENT - GENERAL FUND | C3: Actuals | E3: Current Year | G3: Projected Years
A4: ="Scenario: "&general_scenario_name -> Scenario: Permanent 8.5% SV plus 2% rate peg 2021/22 | C4: =Starting_year_general-2&"/"&RIGHT(Starting_year_general-1,2) -> 2019/20 | E4: =Starting_year_general-1&"/"&RIGHT(Starting_year_general,2) -> 2020/21 | G4: =Starting_year_general&"/"&RIGHT(Starting_year_general+1,2) -> 2021/22 | H4: =Starting_year_general+1&"/"&RIGHT(Starting_year_general+2,2) -> 2022/23 | I4: =Starting_year_general+2&"/"&RIGHT(Starting_year_general+3,2) -> 2023/24 | J4: =Starting_year_general+3&"/"&RIGHT(Starting_year_general+4,2) -> 2024/25 | K4: =Starting_year_general+4&"/"&RIGHT(Starting_year_general+5,2) -> 2025/26 | L4: =Starting_year_general+5&"/"&RIGHT(Starting_year_general+6,2) -> 2026/27 | M4: =Starting_year_general+6&"/"&RIGHT(Starting_year_general+7,2) -> 2027/28 | N4: =Starting_year_general+7&"/"&RIGHT(Starting_year_general+8,2) -> 2028/29 | O4: =Starting_year_general+8&"/"&RIGHT(Starting_year_general+9,2) -> 2029/30 | P4: =Starting_year_general+9&"/"&RIGHT(Starting_year_general+10,2) -> 2030/31
C5: =IF('Cover Page'!$K$19=TRUE,"$","$'000") -> $'000 | E5: =IF('Cover Page'!$K$19=TRUE,"$","$'000") -> $'000 | G5: =IF('Cover Page'!$K$19=TRUE,"$","$'000") -> $'000 | H5: =IF('Cover Page'!$K$19=TRUE,"$","$'000") -> $'000 | I5: =IF('Cover Page'!$K$19=TRUE,"$","$'000") -> $'000 | J5: =IF('Cover Page'!$K$19=TRUE,"$","$'000") -> $'000 | K5: =IF('Cover Page'!$K$19=TRUE,"$","$'000") -> $'000 | L5: =IF('Cover Page'!$K$19=TRUE,"$","$'000") -> $'000 | M5: =IF('Cover Page'!$K$19=TRUE,"$","$'000") -> $'000 | N5: =IF('Cover Page'!$K$19=TRUE,"$","$'000") -> $'000 | O5: =IF('Cover Page'!$K$19=TRUE,"$","$'000") -> $'000 | P5: =IF('Cover Page'!$K$19=TRUE,"$","$'000") -> $'000
A7: Opening Balance | C7: =SUM('Historical Data'!C756)*1000 -> 575686000 | E7: =SUM('Historical Data'!C748)*1000 -> 557852000 | G7: =E27 -> 572463615 | H7: =G27 -> 577908571 | I7: =H27 -> 578074329 | J7: 577936663 | K7: 578503861 | L7: 579518347 | M7: 580253057 | N7: 580114391 | O7: 582324283 | P7: 583360635
A8: Adjustments to opening balance | C8: =SUM('Historical Data'!C757)*1000 -> -32000 | E8: ='EQS workings'!E9 -> 0 | G8: ='EQS workings'!G9 -> 0 | H8: ='EQS workings'!H9 -> 0 | I8: ='EQS workings'!I9 -> 0 | J8: ='EQS workings'!J9 -> 0 | K8: ='EQS workings'!K9 -> 0 | L8: ='EQS workings'!L9 -> 0 | M8: ='EQS workings'!M9 -> 0 | N8: ='EQS workings'!N9 -> 0 | O8: ='EQS workings'!O9 -> 0 | P8: ='EQS workings'!P9 -> 0
A9: Restated Opening Balance | C9: =SUM('Historical Data'!C758)*1000 -> 575654000 | E9: =SUM(E6:E8) -> 557852000 | G9: =SUM(G6:G8) -> 572463615 | H9: =SUM(H6:H8) -> 577908571 | I9: 578074329 | J9: 577936663 | K9: 578503861 | L9: 579518347 | M9: 580253057 | N9: 580114391 | O9: 582324283 | P9: 583360635
A11: Net Operating Result for the Year | C11: =SUM('Historical Data'!C760)*1000 -> -14452000 | E11: ='Income Statement'!F42 -> 14611615 | G11: ='Income Statement'!H42 -> 5444956 | H11: ='Income Statement'!I42 -> 165758 | I11: ='Income Statement'!J42 -> -137666 | J11: ='Income Statement'!K42 -> 567198 | K11: ='Income Statement'!L42 -> 1014486 | L11: ='Income Statement'!M42 -> 734710 | M11: ='Income Statement'!N42 -> -138666 | N11: ='Income Statement'!O42 -> 2209892 | O11: ='Income Statement'!P42 -> 1036352 | P11: ='Income Statement'!Q42 -> 714508
A12: Adjustments to net operating result | C12: =SUM('Historical Data'!C761)*1000 -> 0 | E12: ='EQS workings'!E13 -> 0 | G12: ='EQS workings'!G13 -> 0 | H12: ='EQS workings'!H13 -> 0 | I12: ='EQS workings'!I13 -> 0 | J12: ='EQS workings'!J13 -> 0 | K12: ='EQS workings'!K13 -> 0 | L12: ='EQS workings'!L13 -> 0 | M12: ='EQS workings'!M13 -> 0 | N12: ='EQS workings'!N13 -> 0 | O12: ='EQS workings'!O13 -> 0 | P12: ='EQS workings'!P13 -> 0
A13: Restated Net Operating Result for the Year | C13: =SUM('Historical Data'!C762)*1000 -> -14452000 | E13: =SUM(E10:E12) -> 14611615 | G13: =SUM(G10:G12) -> 5444956 | H13: =SUM(H10:H12) -> 165758 | I13: =SUM(I10:I12) -> -137666 | J13: =SUM(J10:J12) -> 567198 | K13: =SUM(K10:K12) -> 1014486 | L13: =SUM(L10:L12) -> 734710 | M13: =SUM(M10:M12) -> -138666 | N13: =SUM(N10:N12) -> 2209892 | O13: =SUM(O10:O12) -> 1036352 | P13: =SUM(P10:P12) -> 714508
A15: Current Year Income & Expenses Recognised direct to Equity
A16: - Transfers to/(from) Asset Revaluation Reserve | C16: =SUM('Historical Data'!C765)*1000 -> 3990000 | E16: ='EQS workings'!E20 -> 0 | G16: ='EQS workings'!G20 -> 0 | H16: ='EQS workings'!H20 -> 0 | I16: ='EQS workings'!I20 -> 0 | J16: ='EQS workings'!J20 -> 0 | K16: ='EQS workings'!K20 -> 0 | L16: ='EQS workings'!L20 -> 0 | M16: ='EQS workings'!M20 -> 0 | N16: ='EQS workings'!N20 -> 0 | O16: ='EQS workings'!O20 -> 0 | P16: ='EQS workings'!P20 -> 0
A17: - Transfers to/(from) Other Reserves | C17: =SUM('Historical Data'!C766)*1000 -> 0 | E17: ='EQS workings'!E24 -> 0 | G17: ='EQS workings'!G24 -> 0 | H17: ='EQS workings'!H24 -> 0 | I17: ='EQS workings'!I24 -> 0 | J17: ='EQS workings'!J24 -> 0 | K17: ='EQS workings'!K24 -> 0 | L17: ='EQS workings'!L24 -> 0 | M17: ='EQS workings'!M24 -> 0 | N17: ='EQS workings'!N24 -> 0 | O17: ='EQS workings'!O24 -> 0 | P17: ='EQS workings'!P24 -> 0
A18: - Other Income/Expenses recognised | C18: =SUM('Historical Data'!C767,'Historical Data'!C768)*1000 -> 0 | E18: ='EQS workings'!E28 -> 0 | G18: ='EQS workings'!G28 -> 0 | H18: ='EQS workings'!H28 -> 0 | I18: ='EQS workings'!I28 -> 0 | J18: ='EQS workings'!J28 -> 0 | K18: ='EQS workings'!K28 -> 0 | L18: ='EQS workings'!L28 -> 0 | M18: ='EQS workings'!M28 -> 0 | N18: ='EQS workings'!N28 -> 0 | O18: ='EQS workings'!O28 -> 0 | P18: ='EQS workings'!P28 -> 0
A19: - Other Adjustments | C19: =SUM('Historical Data'!C769)*1000 -> -7340000 | E19: ='EQS workings'!E32 -> 0 | G19: ='EQS workings'!G32 -> 0 | H19: ='EQS workings'!H32 -> 0 | I19: ='EQS workings'!I32 -> 0 | J19: ='EQS workings'!J32 -> 0 | K19: ='EQS workings'!K32 -> 0 | L19: ='EQS workings'!L32 -> 0 | M19: ='EQS workings'!M32 -> 0 | N19: ='EQS workings'!N32 -> 0 | O19: ='EQS workings'!O32 -> 0 | P19: ='EQS workings'!P32 -> 0
A20: Net Income Recognised Directly in Equity | C20: =SUM(C15:C19) -> -3350000 | E20: =SUM(E15:E19) -> 0 | G20: =SUM(G15:G19) -> 0 | H20: =SUM(H15:H19) -> 0 | I20: 0 | J20: 0 | K20: 0 | L20: 0 | M20: 0 | N20: 0 | O20: 0 | P20: 0
A22: Total Recognised Income & Expenses | C22: =C20+C13 -> -17802000 | E22: =E20+E13 -> 14611615 | G22: =G20+G13 -> 5444956 | H22: =H20+H13 -> 165758 | I22: -137666 | J22: 567198 | K22: 1014486 | L22: 734710 | M22: -138666 | N22: 2209892 | O22: 1036352 | P22: 714508
A24: Distributions to/(Contributions from) Minority Interests | C24: =SUM('Historical Data'!C774)*1000 -> 0 | E24: ='EQS workings'!E36 -> 0 | G24: ='EQS workings'!G36 -> 0 | H24: ='EQS workings'!H36 -> 0 | I24: ='EQS workings'!I36 -> 0 | J24: ='EQS workings'!J36 -> 0 | K24: ='EQS workings'!K36 -> 0 | L24: ='EQS workings'!L36 -> 0 | M24: ='EQS workings'!M36 -> 0 | N24: ='EQS workings'!N36 -> 0 | O24: ='EQS workings'!O36 -> 0 | P24: ='EQS workings'!P36 -> 0
A25: Transfers between Equity | C25: =SUM('Historical Data'!C775)*1000 -> 0 | E25: ='EQS workings'!E40 -> 0 | G25: ='EQS workings'!G40 -> 0 | H25: ='EQS workings'!H40 -> 0 | I25: ='EQS workings'!I40 -> 0 | J25: ='EQS workings'!J40 -> 0 | K25: ='EQS workings'!K40 -> 0 | L25: ='EQS workings'!L40 -> 0 | M25: ='EQS workings'!M40 -> 0 | N25: ='EQS workings'!N40 -> 0 | O25: ='EQS workings'!O40 -> 0 | P25: ='EQS workings'!P40 -> 0
A27: Equity - Balance at end of the reporting period | C27: =C9+C22+C24+C25 -> 557852000 | E27: =E9+E22+E24+E25 -> 572463615 | G27: =G9+G22+G24+G25 -> 577908571 | H27: =H9+H22+H24+H25 -> 578074329 | I27: 577936663 | J27: 578503861 | K27: 579518347 | L27: 580253057 | M27: 580114391 | N27: 582324283 | O27: 583360635 | P27: 584075143
A31: Equity per above | E31: =E27 -> 572463615 | G31: =G27 -> 577908571 | H31: 578074329 | I31: 577936663 | J31: 578503861 | K31: 579518347 | L31: 580253057 | M31: 580114391 | N31: 582324283 | O31: 583360635 | P31: 584075143
A32: per Balance Sheet | E32: ='Balance Sheet'!E57 -> 572463615 | G32: ='Balance Sheet'!G57 -> 577908571 | H32: ='Balance Sheet'!H57 -> 578074329 | I32: ='Balance Sheet'!I57 -> 577936663 | J32: ='Balance Sheet'!J57 -> 578503861 | K32: ='Balance Sheet'!K57 -> 579518347 | L32: ='Balance Sheet'!L57 -> 580253057 | M32: ='Balance Sheet'!M57 -> 580114391 | N32: ='Balance Sheet'!N57 -> 582324283 | O32: ='Balance Sheet'!O57 -> 583360635 | P32: ='Balance Sheet'!P57 -> 584075143
A33: Variance | E33: =E27-E32 -> 0 | G33: =G27-G32 -> 0 | H33: 0 | I33: 0 | J33: 0 | K33: 0 | L33: 0 | M33: 0 | N33: 0 | O33: 0 | P33: 0
A34: Check that variance above is NIL | E34: =IF(ABS(ROUND(E33,0))>0,E$4,"") ->  | G34: =IF(ABS(ROUND(G33,0))>0,IF(E34="",G$4,E34&", "&G$4),E34) ->  | H34: =IF(ABS(ROUND(H33,0))>0,IF(G34="",H$4,G34&", "&H$4),G34) -> 
A38: end | B38: end | C38: end | D38: end | E38: end | F38: end | G38: end | H38: end | I38: end | J38: end | K38: end | L38: end | M38: end | N38: end | O38: end | P38: end

Sheet EQS workings (hidden)
A1: ='Cover Page'!$A$3 -> Armidale Regional Council | R1: hide | S1: hide
A2: ='Cover Page'!$A$5 -> 10 Year Financial Plan for the Years ending 30 June 2031
A3: ="EQUITY STATEMENT - "&UPPER(general_fund_name)&" - WORKINGS" -> EQUITY STATEMENT - GENERAL FUND - WORKINGS | C3: Actuals | E3: Current Year | G3: Projected Years
A4: ="Scenario: "&general_scenario_name -> Scenario: Permanent 8.5% SV plus 2% rate peg 2021/22 | C4: =Starting_year_general-2&"/"&RIGHT(Starting_year_general-1,2) -> 2019/20 | E4: =Starting_year_general-1&"/"&RIGHT(Starting_year_general,2) -> 2020/21 | G4: =Starting_year_general&"/"&RIGHT(Starting_year_general+1,2) -> 2021/22 | H4: =Starting_year_general+1&"/"&RIGHT(Starting_year_general+2,2) -> 2022/23 | I4: =Starting_year_general+2&"/"&RIGHT(Starting_year_general+3,2) -> 2023/24 | J4: =Starting_year_general+3&"/"&RIGHT(Starting_year_general+4,2) -> 2024/25 | K4: =Starting_year_general+4&"/"&RIGHT(Starting_year_general+5,2) -> 2025/26 | L4: =Starting_year_general+5&"/"&RIGHT(Starting_year_general+6,2) -> 2026/27 | M4: =Starting_year_general+6&"/"&RIGHT(Starting_year_general+7,2) -> 2027/28 | N4: =Starting_year_general+7&"/"&RIGHT(Starting_year_general+8,2) -> 2028/29 | O4: =Starting_year_general+8&"/"&RIGHT(Starting_year_general+9,2) -> 2029/30 | P4: =Starting_year_general+9&"/"&RIGHT(Starting_year_general+10,2) -> 2030/31
C5: =IF('Cover Page'!$K$19=TRUE,"$","$'000") -> $'000 | E5: =IF('Cover Page'!$K$19=TRUE,"$","$'000") -> $'000 | G5: =IF('Cover Page'!$K$19=TRUE,"$","$'000") -> $'000 | H5: =IF('Cover Page'!$K$19=TRUE,"$","$'000") -> $'000 | I5: =IF('Cover Page'!$K$19=TRUE,"$","$'000") -> $'000 | J5: =IF('Cover Page'!$K$19=TRUE,"$","$'000") -> $'000 | K5: =IF('Cover Page'!$K$19=TRUE,"$","$'000") -> $'000 | L5: =IF('Cover Page'!$K$19=TRUE,"$","$'000") -> $'000 | M5: =IF('Cover Page'!$K$19=TRUE,"$","$'000") -> $'000 | N5: =IF('Cover Page'!$K$19=TRUE,"$","$'000") -> $'000 | O5: =IF('Cover Page'!$K$19=TRUE,"$","$'000") -> $'000 | P5: =IF('Cover Page'!$K$19=TRUE,"$","$'000") -> $'000 | S5: =S39 -> 
A7: Adjustments to opening balance
A8: manual adjustment | R8: =IF(COUNT(E8:P8)>0,ROW(E8),"") ->  | S8: =IF(R8="","",R8) -> 
A9: Total adjustments to opening balance | E9: =SUM(E7:E8) -> 0 | G9: =SUM(G7:G8) -> 0 | H9: =SUM(H7:H8) -> 0 | I9: 0 | J9: 0 | K9: 0 | L9: 0 | M9: 0 | N9: 0 | O9: 0 | P9: 0
A11: Adjustments to net operating result
A12: manual adjustment | R12: =IF(COUNT(E12:P12)>0,ROW(E12),"") ->  | S12: =IF(R12="",IF(S8="","",S8),IF(S8="",R12,S8&", "&R12)) -> 
A13: Total adjustments to net operating result | E13: =SUM(E11:E12) -> 0 | G13: =SUM(G11:G12) -> 0 | H13: =SUM(H11:H12) -> 0 | I13: 0 | J13: 0 | K13: 0 | L13: 0 | M13: 0 | N13: 0 | O13: 0 | P13: 0
A15: Current Year Income & Expenses Recognised direct to Equity
A17: - Transfers to/(from) Asset Revaluation Reserve
A18: Revaluation change (GBV) as per IPP&E reconciliation | E18: ='IPP&E Reconciliation'!D793 -> 0 | G18: ='IPP&E Reconciliation'!E793 -> 0 | H18: ='IPP&E Reconciliation'!F793 -> 0 | I18: ='IPP&E Reconciliation'!G793 -> 0 | J18: ='IPP&E Reconciliation'!H793 -> 0 | K18: ='IPP&E Reconciliation'!I793 -> 0 | L18: ='IPP&E Reconciliation'!J793 -> 0 | M18: ='IPP&E Reconciliation'!K793 -> 0 | N18: ='IPP&E Reconciliation'!L793 -> 0 | O18: ='IPP&E Reconciliation'!M793 -> 0 | P18: ='IPP&E Reconciliation'!N793 -> 0
A19: Revaluation change (GBV) as per IPP&E reconciliation | E19: =-'IPP&E Reconciliation'!D794 -> 0 | G19: =-'IPP&E Reconciliation'!E794 -> 0 | H19: =-'IPP&E Reconciliation'!F794 -> 0 | I19: =-'IPP&E Reconciliation'!G794 -> 0 | J19: =-'IPP&E Reconciliation'!H794 -> 0 | K19: =-'IPP&E Reconciliation'!I794 -> 0 | L19: =-'IPP&E Reconciliation'!J794 -> 0 | M19: =-'IPP&E Reconciliation'!K794 -> 0 | N19: =-'IPP&E Reconciliation'!L794 -> 0 | O19: =-'IPP&E Reconciliation'!M794 -> 0 | P19: =-'IPP&E Reconciliation'!N794 -> 0
A20: - Total transfers to/(from) Asset Revaluation Reserve | E20: =SUM(E17:E19) -> 0 | G20: =SUM(G17:G19) -> 0 | H20: =SUM(H17:H19) -> 0 | I20: 0 | J20: 0 | K20: 0 | L20: 0 | M20: 0 | N20: 0 | O20: 0 | P20: 0
A22: - Transfers to/(from) Other Reserves
A23: manual adjustment | R23: =IF(COUNT(E23:P23)>0,ROW(E23),"") ->  | S23: =IF(R23="",IF(S12="","",S12),IF(S12="",R23,S12&", "&R23)) -> 
A24: - Total transfers to/(from) Other Reserves | E24: =SUM(E22:E23) -> 0 | G24: =SUM(G22:G23) -> 0 | H24: =SUM(H22:H23) -> 0 | I24: =SUM(I22:I23) -> 0 | J24: =SUM(J22:J23) -> 0 | K24: =SUM(K22:K23) -> 0 | L24: =SUM(L22:L23) -> 0 | M24: =SUM(M22:M23) -> 0 | N24: =SUM(N22:N23) -> 0 | O24: =SUM(O22:O23) -> 0 | P24: =SUM(P22:P23) -> 0
A26: - Other Income/Expenses recognised
A27: manual adjustment | R27: =IF(COUNT(E27:P27)>0,ROW(E27),"") ->  | S27: =IF(R27="",IF(S23="","",S23),IF(S23="",R27,S23&", "&R27)) -> 
A28: - Total other Income/Expenses recognised | E28: =SUM(E26:E27) -> 0 | G28: =SUM(G26:G27) -> 0 | H28: =SUM(H26:H27) -> 0 | I28: =SUM(I26:I27) -> 0 | J28: =SUM(J26:J27) -> 0 | K28: =SUM(K26:K27) -> 0 | L28: =SUM(L26:L27) -> 0 | M28: =SUM(M26:M27) -> 0 | N28: =SUM(N26:N27) -> 0 | O28: =SUM(O26:O27) -> 0 | P28: =SUM(P26:P27) -> 0
A30: - Other Adjustments
A31: manual adjustment | R31: =IF(COUNT(E31:P31)>0,ROW(E31),"") ->  | S31: =IF(R31="",IF(S27="","",S27),IF(S27="",R31,S27&", "&R31)) -> 
A32: - Total other Adjustments | E32: =SUM(E15:E31) -> 0 | G32: =SUM(G15:G31) -> 0 | H32: =SUM(H15:H31) -> 0 | I32: 0 | J32: 0 | K32: 0 | L32: 0 | M32: 0 | N32: 0 | O32: 0 | P32: 0
A34: Distributions to/(Contributions from) Minority Interests
A35: manual adjustment | R35: =IF(COUNT(E35:P35)>0,ROW(E35),"") ->  | S35: =IF(R35="",IF(S31="","",S31),IF(S31="",R35,S31&", "&R35)) -> 
A36: Total distributions to/(Contributions from) Minority Interests | E36: =SUM(E19:E35) -> 0 | G36: =SUM(G19:G35) -> 0 | H36: =SUM(H19:H35) -> 0 | I36: 0 | J36: 0 | K36: 0 | L36: 0 | M36: 0 | N36: 0 | O36: 0 | P36: 0
A38: Transfers between Equity
A39: manual adjustment | R39: =IF(COUNT(E39:P39)>0,ROW(E39),"") ->  | S39: =IF(R39="",IF(S35="","",S35),IF(S35="",R39,S35&", "&R39)) -> 
A40: Total transfers between Equity | E40: =SUM(E23:E39) -> 0 | G40: =SUM(G23:G39) -> 0 | H40: =SUM(H23:H39) -> 0 | I40: 0 | J40: 0 | K40: 0 | L40: 0 | M40: 0 | N40: 0 | O40: 0 | P40: 0

Sheet Target % (hidden)
A1: ='Cover Page'!$A$3 -> Armidale Regional Council | S1: hide | T1: hide
A2: ='Cover Page'!$A$5 -> 10 Year Financial Plan for the Years ending 30 June 2031
A3: ="Target % for Balance sheet amounts & ratios - "&PROPER(general_fund_name) -> Target % for Balance sheet amounts & ratios - General Fund
A4: ="Scenario: "&general_scenario_name -> Scenario: Permanent 8.5% SV plus 2% rate peg 2021/22 | C4: =Starting_year_general-5&"/"&RIGHT(Starting_year_general-4,2) -> 2016/17 | D4: =Starting_year_general-4&"/"&RIGHT(Starting_year_general-3,2) -> 2017/18 | E4: =Starting_year_general-3&"/"&RIGHT(Starting_year_general-2,2) -> 2018/19 | F4: =Starting_year_general-2&"/"&RIGHT(Starting_year_general-1,2) -> 2019/20 | G4: =Starting_year_general-1&"/"&RIGHT(Starting_year_general,2) -> 2020/21 | H4: =Starting_year_general&"/"&RIGHT(Starting_year_general+1,2) -> 2021/22 | I4: =Starting_year_general+1&"/"&RIGHT(Starting_year_general+2,2) -> 2022/23 | J4: =Starting_year_general+2&"/"&RIGHT(Starting_year_general+3,2) -> 2023/24 | K4: =Starting_year_general+3&"/"&RIGHT(Starting_year_general+4,2) -> 2024/25 | L4: =Starting_year_general+4&"/"&RIGHT(Starting_year_general+5,2) -> 2025/26 | M4: =Starting_year_general+5&"/"&RIGHT(Starting_year_general+6,2) -> 2026/27 | N4: =Starting_year_general+6&"/"&RIGHT(Starting_year_general+7,2) -> 2027/28 | O4: =Starting_year_general+7&"/"&RIGHT(Starting_year_general+8,2) -> 2028/29 | P4: =Starting_year_general+8&"/"&RIGHT(Starting_year_general+9,2) -> 2029/30 | Q4: =Starting_year_general+9&"/"&RIGHT(Starting_year_general+10,2) -> 2030/31 | T4: =T573 -> 11, 225, 233, 241, 249, 257, 281, 289, 297, 329, 441, 458, 466, 483, 499, 508, 524, 540, 548, 564, 573
A5: Minimum Level of Cash & Cash Equivalents (in $) | D5: Note: the $ field takes precedent if both are entered | S5: =IF(COUNT(G5:Q5)>0,ROW(G5),"") ->  | T5: =IF(S5="","",S5) -> 
A6: Minimum Level of Cash & Cash Equivalents (in % of all cash, cash equivalents & investments) | S6: =IF(COUNT(G6:Q6)>0,ROW(G6),"") ->  | T6: =IF(S6="",IF(T5="","",T5),IF(T5="",S6,T5&", "&S6)) -> 
A8: Maximum Level of Cash & Cash Equivalents (in $) | D8: Note: the $ field takes precedent if both are entered | S8: =IF(COUNT(G8:Q8)>0,ROW(G8),"") ->  | T8: =IF(S8="",IF(T6="","",T6),IF(T6="",S8,T6&", "&S8)) -> 
A9: Maximum Level of Cash & Cash Equivalents (in % of all cash, cash equivalents & investments) | S9: =IF(COUNT(G9:Q9)>0,ROW(G9),"") ->  | T9: =IF(S9="",IF(T8="","",T8),IF(T8="",S9,T8&", "&S9)) -> 
A11: Investment Revenue / Interest Rate (applicable to calculate Investment Revenues) | G11: 0.02 | H11: 0.02 | I11: 0.02 | J11: 0.02 | K11: 0.02 | L11: 0.02 | M11: 0.02 | N11: 0.02 | O11: 0.02 | P11: 0.02 | Q11: 0.02 | S11: =IF(COUNT(G11:Q11)>0,ROW(G11),"") -> 11 | T11: =IF(S11="",IF(T9="","",T9),IF(T9="",S11,T9&", "&S11)) -> 11
A12: Investment Revenue / Interest Rate (applicable to Section 94) | S12: =IF(COUNT(G12:Q12)>0,ROW(G12),"") ->  | T12: =IF(S12="",IF(T11="","",T11),IF(T11="",S12,T11&", "&S12)) -> 11
A15: Current and Non-Current Ratios
A17: Investments - Current | B17: Historical / Average of historical | C17: ='Historical Data'!U$702 -> 1 | D17: ='Historical Data'!T$702 -> 1 | E17: ='Historical Data'!S$702 -> 1 | F17: ='Historical Data'!R$702 -> 1 | G17: ='Historical Data'!V$702 -> 1 | H17: =$G17 -> 1 | I17: 1 | J17: 1 | K17: 1 | L17: 1 | M17: 1 | N17: 1 | O17: 1 | P17: 1 | Q17: 1
B18: Target | S18: =IF(COUNT(G18:Q18)>0,ROW(G18),"") ->  | T18: =IF(S18="",IF(T12="","",T12),IF(T12="",S18,T12&", "&S18)) -> 11
B19: Used in Model | G19: =IF(G18="",G17,G18) -> 1 | H19: =IF(H18="",H17,H18) -> 1 | I19: 1 | J19: 1 | K19: 1 | L19: 1 | M19: 1 | N19: 1 | O19: 1 | P19: 1 | Q19: 1
A21: Receivables
A22: ='Historical Data'!A933 -> Rates & Annual Charges - Current | B22: Historical / Average of historical | C22: ='Historical Data'!U$933 -> 1 | D22: ='Historical Data'!T$933 -> 1 | E22: ='Historical Data'!S$933 -> 1 | F22: ='Historical Data'!R$933 -> 1 | G22: ='Historical Data'!V$933 -> 1 | H22: =$G22 -> 1 | I22: 1 | J22: 1 | K22: 1 | L22: 1 | M22: 1 | N22: 1 | O22: 1 | P22: 1 | Q22: 1
B23: Target | S23: =IF(COUNT(G23:Q23)>0,ROW(G23),"") ->  | T23: =IF(S23="",IF(T18="","",T18),IF(T18="",S23,T18&", "&S23)) -> 11
B24: Used in Model | G24: =IF(G23="",G22,G23) -> 1 | H24: =IF(H23="",H22,H23) -> 1 | I24: 1 | J24: 1 | K24: 1 | L24: 1 | M24: 1 | N24: 1 | O24: 1 | P24: 1 | Q24: 1
A26: ='Historical Data'!A935 -> Interest & Extra Charges - Current | B26: Historical / Average of historical | C26: ='Historical Data'!U$935 -> 1 | D26: ='Historical Data'!T$935 -> 1 | E26: ='Historical Data'!S$935 -> 1 | F26: ='Historical Data'!R$935 -> 1 | G26: ='Historical Data'!V$935 -> 1 | H26: =$G26 -> 1 | I26: 1 | J26: 1 | K26: 1 | L26: 1 | M26: 1 | N26: 1 | O26: 1 | P26: 1 | Q26: 1
B27: Target | S27: =IF(COUNT(G27:Q27)>0,ROW(G27),"") ->  | T27: =IF(S27="",IF(T23="","",T23),IF(T23="",S27,T23&", "&S27)) -> 11
B28: Used in Model | G28: =IF(G27="",G26,G27) -> 1 | H28: =IF(H27="",H26,H27) -> 1 | I28: 1 | J28: 1 | K28: 1 | L28: 1 | M28: 1 | N28: 1 | O28: 1 | P28: 1 | Q28: 1
A30: ='Historical Data'!A937 -> User Charges & Fees and Private Works - Current | B30: Historical / Average of historical | C30: ='Historical Data'!U$937 -> 1 | D30: ='Historical Data'!T$937 -> 1 | E30: ='Historical Data'!S$937 -> 1 | F30: ='Historical Data'!R$937 -> 1 | G30: ='Historical Data'!V$937 -> 1 | H30: =$G30 -> 1 | I30: 1 | J30: 1 | K30: 1 | L30: 1 | M30: 1 | N30: 1 | O30: 1 | P30: 1 | Q30: 1
B31: Target | S31: =IF(COUNT(G31:Q31)>0,ROW(G31),"") ->  | T31: =IF(S31="",IF(T27="","",T27),IF(T27="",S31,T27&", "&S31)) -> 11
... 21 more rows

Sheet TY-LY Comparison (hidden)
A1: ='Cover Page'!$A$3 -> Armidale Regional Council | S1: Paste the Primary Statement figures from LTFP V10 here
A2: ='Cover Page'!$A$5 -> 10 Year Financial Plan for the Years ending 30 June 2031
A3: ="PRIMARY STATEMENTS COMPARISON TO LAST YEAR'S LTFP - "&UPPER(general_fund_name) -> PRIMARY STATEMENTS COMPARISON TO LAST YEAR'S LTFP - GENERAL FUND | C3: Actuals | E3: Current Year | G3: Projected Years | U3: Projected Years
C4: =Starting_year_general-2&"/"&RIGHT(Starting_year_general-1,2) -> 2019/20 | E4: =Starting_year_general-1&"/"&RIGHT(Starting_year_general,2) -> 2020/21 | G4: =Starting_year_general&"/"&RIGHT(Starting_year_general+1,2) -> 2021/22 | H4: =Starting_year_general+1&"/"&RIGHT(Starting_year_general+2,2) -> 2022/23 | I4: =Starting_year_general+2&"/"&RIGHT(Starting_year_general+3,2) -> 2023/24 | J4: =Starting_year_general+3&"/"&RIGHT(Starting_year_general+4,2) -> 2024/25 | K4: =Starting_year_general+4&"/"&RIGHT(Starting_year_general+5,2) -> 2025/26 | L4: =Starting_year_general+5&"/"&RIGHT(Starting_year_general+6,2) -> 2026/27 | M4: =Starting_year_general+6&"/"&RIGHT(Starting_year_general+7,2) -> 2027/28 | N4: =Starting_year_general+7&"/"&RIGHT(Starting_year_general+8,2) -> 2028/29 | O4: =Starting_year_general+8&"/"&RIGHT(Starting_year_general+9,2) -> 2029/30 | S4: =Starting_year_general-2&"/"&RIGHT(Starting_year_general-1,2) -> 2019/20 | U4: =Starting_year_general-1&"/"&RIGHT(Starting_year_general,2) -> 2020/21 | V4: =Starting_year_general&"/"&RIGHT(Starting_year_general+1,2) -> 2021/22 | W4: =Starting_year_general+1&"/"&RIGHT(Starting_year_general+2,2) -> 2022/23 | X4: =Starting_year_general+2&"/"&RIGHT(Starting_year_general+3,2) -> 2023/24 | Y4: =Starting_year_general+3&"/"&RIGHT(Starting_year_general+4,2) -> 2024/25 | Z4: =Starting_year_general+4&"/"&RIGHT(Starting_year_general+5,2) -> 2025/26 | AA4: =Starting_year_general+5&"/"&RIGHT(Starting_year_general+6,2) -> 2026/27 | AB4: =Starting_year_general+6&"/"&RIGHT(Starting_year_general+7,2) -> 2027/28 | AC4: =Starting_year_general+7&"/"&RIGHT(Starting_year_general+8,2) -> 2028/29 | AD4: =Starting_year_general+8&"/"&RIGHT(Starting_year_general+9,2) -> 2029/30
A5: ="Scenario: "&general_scenario_name -> Scenario: Permanent 8.5% SV plus 2% rate peg 2021/22 | C5: =IF('Cover Page'!$K$19=TRUE,"$","$'000") -> $'000 | E5: =IF('Cover Page'!$K$19=TRUE,"$","$'000") -> $'000 | G5: =IF('Cover Page'!$K$19=TRUE,"$","$'000") -> $'000 | H5: =IF('Cover Page'!$K$19=TRUE,"$","$'000") -> $'000 | I5: =IF('Cover Page'!$K$19=TRUE,"$","$'000") -> $'000 | J5: =IF('Cover Page'!$K$19=TRUE,"$","$'000") -> $'000 | K5: =IF('Cover Page'!$K$19=TRUE,"$","$'000") -> $'000 | L5: =IF('Cover Page'!$K$19=TRUE,"$","$'000") -> $'000 | M5: =IF('Cover Page'!$K$19=TRUE,"$","$'000") -> $'000 | N5: =IF('Cover Page'!$K$19=TRUE,"$","$'000") -> $'000 | O5: =IF('Cover Page'!$K$19=TRUE,"$","$'000") -> $'000 | S5: =IF('Cover Page'!$K$19=TRUE,"$","$'000") -> $'000 | U5: =IF('Cover Page'!$K$19=TRUE,"$","$'000") -> $'000 | V5: =IF('Cover Page'!$K$19=TRUE,"$","$'000") -> $'000 | W5: =IF('Cover Page'!$K$19=TRUE,"$","$'000") -> $'000 | X5: =IF('Cover Page'!$K$19=TRUE,"$","$'000") -> $'000 | Y5: =IF('Cover Page'!$K$19=TRUE,"$","$'000") -> $'000 | Z5: =IF('Cover Page'!$K$19=TRUE,"$","$'000") -> $'000 | AA5: =IF('Cover Page'!$K$19=TRUE,"$","$'000") -> $'000 | AB5: =IF('Cover Page'!$K$19=TRUE,"$","$'000") -> $'000 | AC5: =IF('Cover Page'!$K$19=TRUE,"$","$'000") -> $'000 | AD5: =IF('Cover Page'!$K$19=TRUE,"$","$'000") -> $'000
A7: INCOME STATEMENT
A9: Income from Continuing Operations
A10: Revenue:
A11: Rates & Annual Charges | C11: =ROUND('Income Statement'!D8-S11,0) -> 920655 | E11: =ROUND('Income Statement'!F8-U11,0) -> 1535417 | G11: =ROUND('Income Statement'!H8-V11,0) -> 1852952 | H11: =ROUND('Income Statement'!I8-W11,0) -> 2281875 | I11: =ROUND('Income Statement'!J8-X11,0) -> 2134066 | J11: =ROUND('Income Statement'!K8-Y11,0) -> 2592543 | K11: =ROUND('Income Statement'!L8-Z11,0) -> 3075817 | L11: =ROUND('Income Statement'!M8-AA11,0) -> 3284979 | M11: =ROUND('Income Statement'!N8-AB11,0) -> 2712152 | N11: =ROUND('Income Statement'!O8-AC11,0) -> 3234236 | O11: =ROUND('Income Statement'!P8-AD11,0) -> 3784451 | S11: 24469345 | U11: 25197175 | V11: 25737105 | W11: 26288731 | X11: 26852312 | Y11: 27428110 | Z11: 28016395 | AA11: 28617437 | AB11: 29231517 | AC11: 29858922 | AD11: 30499946
A12: User Charges & Fees | C12: =ROUND('Income Statement'!D9-S12,0) -> 3694488 | E12: =ROUND('Income Statement'!F9-U12,0) -> 1836000 | G12: =ROUND('Income Statement'!H9-V12,0) -> 2741067 | H12: =ROUND('Income Statement'!I9-W12,0) -> 2983780 | I12: =ROUND('Income Statement'!J9-X12,0) -> 3239052 | J12: =ROUND('Income Statement'!K9-Y12,0) -> 3507443 | K12: =ROUND('Income Statement'!L9-Z12,0) -> 3789523 | L12: =ROUND('Income Statement'!M9-AA12,0) -> 4085905 | M12: =ROUND('Income Statement'!N9-AB12,0) -> 4397217 | N12: =ROUND('Income Statement'!O9-AC12,0) -> 4724118 | O12: =ROUND('Income Statement'!P9-AD12,0) -> 5067282 | S12: 8831512 | U12: 10519050 | V12: 10777615 | W12: 11042554 | X12: 11314025 | Y12: 11592189 | Z12: 11877220 | AA12: 12169281 | AB12: 12468542 | AC12: 12775180 | AD12: 13089387
A13: Interest & Investment Revenue | C13: =ROUND('Income Statement'!D10-S13,0) -> -212114 | E13: =ROUND('Income Statement'!F10-U13,0) -> -386891 | G13: =ROUND('Income Statement'!H10-V13,0) -> -337191 | H13: =ROUND('Income Statement'!I10-W13,0) -> -378337 | I13: =ROUND('Income Statement'!J10-X13,0) -> -417848 | J13: =ROUND('Income Statement'!K10-Y13,0) -> -469161 | K13: =ROUND('Income Statement'!L10-Z13,0) -> -525833 | L13: =ROUND('Income Statement'!M10-AA13,0) -> -577069 | M13: =ROUND('Income Statement'!N10-AB13,0) -> -602835 | N13: =ROUND('Income Statement'!O10-AC13,0) -> -590431 | O13: =ROUND('Income Statement'!P10-AD13,0) -> -566989 | S13: 650114 | U13: 728891 | V13: 618000 | W13: 638000 | X13: 668000 | Y13: 708000 | Z13: 758000 | AA13: 818000 | AB13: 848000 | AC13: 868000 | AD13: 898000
A14: Other Revenues | C14: =ROUND('Income Statement'!D11-S14,0) -> 11920 | E14: =ROUND('Income Statement'!F11-U14,0) -> -427344 | G14: =ROUND('Income Statement'!H11-V14,0) -> -438028 | H14: =ROUND('Income Statement'!I11-W14,0) -> -448978 | I14: =ROUND('Income Statement'!J11-X14,0) -> -460203 | J14: =ROUND('Income Statement'!K11-Y14,0) -> -471707 | K14: =ROUND('Income Statement'!L11-Z14,0) -> -483500 | L14: =ROUND('Income Statement'!M11-AA14,0) -> -495589 | M14: =ROUND('Income Statement'!N11-AB14,0) -> -507979 | N14: =ROUND('Income Statement'!O11-AC14,0) -> -520680 | O14: =ROUND('Income Statement'!P11-AD14,0) -> -533696 | S14: 2686080 | U14: 2612694 | V14: 2678015 | W14: 2744971 | X14: 2813595 | Y14: 2883934 | Z14: 2956033 | AA14: 3029935 | AB14: 3105686 | AC14: 3183330 | AD14: 3262913
A15: Grants & Contributions provided for Operating Purposes | C15: =ROUND('Income Statement'!D12-S15,0) -> -1442501 | E15: =ROUND('Income Statement'!F12-U15,0) -> 2133044 | G15: =ROUND('Income Statement'!H12-V15,0) -> -404586 | H15: =ROUND('Income Statement'!I12-W15,0) -> -412676 | I15: =ROUND('Income Statement'!J12-X15,0) -> -420926 | J15: =ROUND('Income Statement'!K12-Y15,0) -> -429344 | K15: =ROUND('Income Statement'!L12-Z15,0) -> -437930 | L15: =ROUND('Income Statement'!M12-AA15,0) -> -446686 | M15: =ROUND('Income Statement'!N12-AB15,0) -> -455620 | N15: =ROUND('Income Statement'!O12-AC15,0) -> -464731 | O15: =ROUND('Income Statement'!P12-AD15,0) -> -474025 | S15: 16937501 | U15: 11021808 | V15: 11242245 | W15: 11467090 | X15: 11696427 | Y15: 11930356 | Z15: 12168963 | AA15: 12412340 | AB15: 12660588 | AC15: 12913798 | AD15: 13172073
A16: Grants & Contributions provided for Capital Purposes | C16: =ROUND('Income Statement'!D13-S16,0) -> 15773556 | E16: =ROUND('Income Statement'!F13-U16,0) -> 6918064 | G16: =ROUND('Income Statement'!H13-V16,0) -> 2506397 | H16: =ROUND('Income Statement'!I13-W16,0) -> -183225 | I16: =ROUND('Income Statement'!J13-X16,0) -> -379760 | J16: =ROUND('Income Statement'!K13-Y16,0) -> -82183 | K16: =ROUND('Income Statement'!L13-Z16,0) -> -58393 | L16: =ROUND('Income Statement'!M13-AA16,0) -> -483859 | M16: =ROUND('Income Statement'!N13-AB16,0) -> -673511 | N16: =ROUND('Income Statement'!O13-AC16,0) -> 1279168 | O16: =ROUND('Income Statement'!P13-AD16,0) -> -326133 | S16: 3530444 | U16: 9150028 | V16: 4960537 | W16: 1999748 | X16: 2039743 | Y16: 2080538 | Z16: 2122149 | AA16: 2164592 | AB16: 2207884 | AC16: 2252042 | AD16: 2297083
A17: Other Income:
A18: Net gains from the disposal of assets | C18: =ROUND('Income Statement'!D15-S18,0) -> -459000 | E18: =ROUND('Income Statement'!F15-U18,0) -> 0 | G18: =ROUND('Income Statement'!H15-V18,0) -> 0 | H18: =ROUND('Income Statement'!I15-W18,0) -> 0 | I18: =ROUND('Income Statement'!J15-X18,0) -> 0 | J18: =ROUND('Income Statement'!K15-Y18,0) -> 0 | K18: =ROUND('Income Statement'!L15-Z18,0) -> 0 | L18: =ROUND('Income Statement'!M15-AA18,0) -> 0 | M18: =ROUND('Income Statement'!N15-AB18,0) -> 0 | N18: =ROUND('Income Statement'!O15-AC18,0) -> 0 | O18: =ROUND('Income Statement'!P15-AD18,0) -> 0 | S18: 459000 | U18: 0 | V18: 0 | W18: 0 | X18: 0 | Y18: 0 | Z18: 0 | AA18: 0 | AB18: 0 | AC18: 0 | AD18: 0
A19: Fair value increment on investment properties | C19: =ROUND('Income Statement'!D16-S19,0) -> 0 | E19: =ROUND('Income Statement'!F16-U19,0) -> 0 | G19: =ROUND('Income Statement'!H16-V19,0) -> 0 | H19: =ROUND('Income Statement'!I16-W19,0) -> 0 | I19: =ROUND('Income Statement'!J16-X19,0) -> 0 | J19: =ROUND('Income Statement'!K16-Y19,0) -> 0 | K19: =ROUND('Income Statement'!L16-Z19,0) -> 0 | L19: =ROUND('Income Statement'!M16-AA19,0) -> 0 | M19: =ROUND('Income Statement'!N16-AB19,0) -> 0 | N19: =ROUND('Income Statement'!O16-AC19,0) -> 0 | O19: =ROUND('Income Statement'!P16-AD19,0) -> 0 | Q19: new line
A20: Reversal of revaluation decrements on IPPE previously expensed | C20: =ROUND('Income Statement'!D17-S20,0) -> 0 | E20: =ROUND('Income Statement'!F17-U20,0) -> 0 | G20: =ROUND('Income Statement'!H17-V20,0) -> 0 | H20: =ROUND('Income Statement'!I17-W20,0) -> 0 | I20: =ROUND('Income Statement'!J17-X20,0) -> 0 | J20: =ROUND('Income Statement'!K17-Y20,0) -> 0 | K20: =ROUND('Income Statement'!L17-Z20,0) -> 0 | L20: =ROUND('Income Statement'!M17-AA20,0) -> 0 | M20: =ROUND('Income Statement'!N17-AB20,0) -> 0 | N20: =ROUND('Income Statement'!O17-AC20,0) -> 0 | O20: =ROUND('Income Statement'!P17-AD20,0) -> 0 | Q20: new line
A21: Reversal of impairment losses on receivables | C21: =ROUND('Income Statement'!D18-S21,0) -> 0 | E21: =ROUND('Income Statement'!F18-U21,0) -> 0 | G21: =ROUND('Income Statement'!H18-V21,0) -> 0 | H21: =ROUND('Income Statement'!I18-W21,0) -> 0 | I21: =ROUND('Income Statement'!J18-X21,0) -> 0 | J21: =ROUND('Income Statement'!K18-Y21,0) -> 0 | K21: =ROUND('Income Statement'!L18-Z21,0) -> 0 | L21: =ROUND('Income Statement'!M18-AA21,0) -> 0 | M21: =ROUND('Income Statement'!N18-AB21,0) -> 0 | N21: =ROUND('Income Statement'!O18-AC21,0) -> 0 | O21: =ROUND('Income Statement'!P18-AD21,0) -> 0 | Q21: new line
A22: Joint Ventures & Associated Entities | C22: =ROUND('Income Statement'!D19-S22,0) -> 0 | E22: =ROUND('Income Statement'!F19-U22,0) -> 0 | G22: =ROUND('Income Statement'!H19-V22,0) -> 0 | H22: =ROUND('Income Statement'!I19-W22,0) -> 0 | I22: =ROUND('Income Statement'!J19-X22,0) -> 0 | J22: =ROUND('Income Statement'!K19-Y22,0) -> 0 | K22: =ROUND('Income Statement'!L19-Z22,0) -> 0 | L22: =ROUND('Income Statement'!M19-AA22,0) -> 0 | M22: =ROUND('Income Statement'!N19-AB22,0) -> 0 | N22: =ROUND('Income Statement'!O19-AC22,0) -> 0 | O22: =ROUND('Income Statement'!P19-AD22,0) -> 0 | S22: 0 | U22: 0 | V22: 0 | W22: 0 | X22: 0 | Y22: 0 | Z22: 0 | AA22: 0 | AB22: 0 | AC22: 0 | AD22: 0
A23: Total Income from Continuing Operations | C23: =SUM(C10:C22) -> 18287004 | E23: =SUM(E10:E22) -> 11608290 | G23: 5920611 | H23: 3842439 | I23: 3694381 | J23: 4647591 | K23: 5359684 | L23: 5367681 | M23: 4869424 | N23: 7661680 | O23: 6950890 | S23: 57563996 | U23: 59229646 | V23: 56013517 | W23: 54181094 | X23: 55384102 | Y23: 56623127 | Z23: 57898760 | AA23: 59211585 | AB23: 60522217 | AC23: 61851272 | AD23: 63219402
A25: Expenses from Continuing Operations
A26: Employee Benefits & On-Costs | C26: =ROUND('Income Statement'!D23-S26,0) -> -900729 | E26: =ROUND('Income Statement'!F23-U26,0) -> 131352 | G26: =ROUND('Income Statement'!H23-V26,0) -> -152172 | H26: =ROUND('Income Statement'!I23-W26,0) -> -155975 | I26: =ROUND('Income Statement'!J23-X26,0) -> -159873 | J26: =ROUND('Income Statement'!K23-Y26,0) -> -163864 | K26: =ROUND('Income Statement'!L23-Z26,0) -> -167960 | L26: =ROUND('Income Statement'!M23-AA26,0) -> -172166 | M26: =ROUND('Income Statement'!N23-AB26,0) -> -176471 | N26: =ROUND('Income Statement'!O23-AC26,0) -> -180894 | O26: =ROUND('Income Statement'!P23-AD26,0) -> -185418 | S26: 21069729 | U26: 22055428 | V26: 22606827 | W26: 23172005 | X26: 23751300 | Y26: 24345084 | Z26: 24953714 | AA26: 25577558 | AB26: 26217006 | AC26: 26872442 | AD26: 27544254
A27: Borrowing Costs | C27: =ROUND('Income Statement'!D24-S27,0) -> 396781 | E27: =ROUND('Income Statement'!F24-U27,0) -> -150032 | G27: =ROUND('Income Statement'!H24-V27,0) -> -148126 | H27: =ROUND('Income Statement'!I24-W27,0) -> -153215 | I27: =ROUND('Income Statement'!J24-X27,0) -> -208007 | J27: =ROUND('Income Statement'!K24-Y27,0) -> -146372 | K27: =ROUND('Income Statement'!L24-Z27,0) -> -123544 | L27: =ROUND('Income Statement'!M24-AA27,0) -> -112866 | M27: =ROUND('Income Statement'!N24-AB27,0) -> -79740 | N27: =ROUND('Income Statement'!O24-AC27,0) -> -46887 | O27: =ROUND('Income Statement'!P24-AD27,0) -> -46623 | S27: 1275219 | U27: 1139392 | V27: 998699 | W27: 859271 | X27: 713922 | Y27: 534140 | Z27: 397599 | AA27: 283121 | AB27: 179265 | AC27: 108860 | AD27: 73435
A28: Materials & Contracts | C28: =ROUND('Income Statement'!D25-S28,0) -> 615815 | E28: =ROUND('Income Statement'!F25-U28,0) -> 3785202 | G28: =ROUND('Income Statement'!H25-V28,0) -> 3664127 | H28: =ROUND('Income Statement'!I25-W28,0) -> 3916999 | I28: =ROUND('Income Statement'!J25-X28,0) -> 4184572 | J28: =ROUND('Income Statement'!K25-Y28,0) -> 4467670 | K28: =ROUND('Income Statement'!L25-Z28,0) -> 4767130 | L28: =ROUND('Income Statement'!M25-AA28,0) -> 5083848 | M28: =ROUND('Income Statement'!N25-AB28,0) -> 5418731 | N28: =ROUND('Income Statement'!O25-AC28,0) -> 5772800 | O28: =ROUND('Income Statement'!P25-AD28,0) -> 6147098 | S28: 11151185 | U28: 6550410 | V28: 6714199 | W28: 6882077 | X28: 7054141 | Y28: 7230494 | Z28: 7411281 | AA28: 7596554 | AB28: 7786503 | AC28: 7981184 | AD28: 8180706
A29: Depreciation & Amortisation | C29: =ROUND('Income Statement'!D26-S29,0) -> 39882 | E29: =ROUND('Income Statement'!F26-U29,0) -> 563600 | G29: =ROUND('Income Statement'!H26-V29,0) -> 636895 | H29: =ROUND('Income Statement'!I26-W29,0) -> 713209 | I29: =ROUND('Income Statement'!J26-X29,0) -> 792639 | J29: =ROUND('Income Statement'!K26-Y29,0) -> 875291 | K29: =ROUND('Income Statement'!L26-Z29,0) -> 961257 | L29: =ROUND('Income Statement'!M26-AA29,0) -> 1050662 | M29: =ROUND('Income Statement'!N26-AB29,0) -> 1143605 | N29: =ROUND('Income Statement'!O26-AC29,0) -> 1240199 | O29: =ROUND('Income Statement'!P26-AD29,0) -> 1340570 | S29: 12161118 | U29: 11841000 | V29: 12077820 | W29: 12319377 | X29: 12565765 | Y29: 12817076 | Z29: 13073420 | AA29: 13334885 | AB29: 13601582 | AC29: 13873615 | AD29: 14151092
A30: Impairment of investments | C30: =ROUND('Income Statement'!D27-S30,0) -> 0 | E30: =ROUND('Income Statement'!F27-U30,0) -> 0 | G30: =ROUND('Income Statement'!H27-V30,0) -> 0 | H30: =ROUND('Income Statement'!I27-W30,0) -> 0 | I30: =ROUND('Income Statement'!J27-X30,0) -> 0 | J30: =ROUND('Income Statement'!K27-Y30,0) -> 0 | K30: =ROUND('Income Statement'!L27-Z30,0) -> 0 | L30: =ROUND('Income Statement'!M27-AA30,0) -> 0 | M30: =ROUND('Income Statement'!N27-AB30,0) -> 0 | N30: =ROUND('Income Statement'!O27-AC30,0) -> 0 | O30: =ROUND('Income Statement'!P27-AD30,0) -> 0 | S30: 0 | U30: 0 | V30: 0 | W30: 0 | X30: 0 | Y30: 0 | Z30: 0 | AA30: 0 | AB30: 0 | AC30: 0 | AD30: 0
A31: Impairment of receivables | C31: =ROUND('Income Statement'!D28-S31,0) -> 0 | E31: =ROUND('Income Statement'!F28-U31,0) -> 0 | G31: =ROUND('Income Statement'!H28-V31,0) -> 0 | H31: =ROUND('Income Statement'!I28-W31,0) -> 0 | I31: =ROUND('Income Statement'!J28-X31,0) -> 0 | J31: =ROUND('Income Statement'!K28-Y31,0) -> 0 | K31: =ROUND('Income Statement'!L28-Z31,0) -> 0 | L31: =ROUND('Income Statement'!M28-AA31,0) -> 0 | M31: =ROUND('Income Statement'!N28-AB31,0) -> 0 | N31: =ROUND('Income Statement'!O28-AC31,0) -> 0 | O31: =ROUND('Income Statement'!P28-AD31,0) -> 0 | Q31: new line
... 27 more rows

Sheet Interest Calculation (hidden)
A1: ='Cover Page'!$A$3 -> Armidale Regional Council | IB1: hide | IC1: hide
A2: ='Cover Page'!$A$5 -> 10 Year Financial Plan for the Years ending 30 June 2031
A3: Cash & Investment Balance prediction
A4: and Calculation of Investment Revenue | D4: =Starting_year_general-1&"/"&RIGHT(Starting_year_general,2) -> 2020/21 | S4: =Starting_year_general&"/"&RIGHT(Starting_year_general+1,2) -> 2021/22 | AH4: =Starting_year_general+1&"/"&RIGHT(Starting_year_general+2,2) -> 2022/23 | AW4: =Starting_year_general+2&"/"&RIGHT(Starting_year_general+3,2) -> 2023/24 | BL4: =Starting_year_general+3&"/"&RIGHT(Starting_year_general+4,2) -> 2024/25 | CA4: =Starting_year_general+4&"/"&RIGHT(Starting_year_general+5,2) -> 2025/26 | CP4: =Starting_year_general+5&"/"&RIGHT(Starting_year_general+6,2) -> 2026/27 | DE4: =Starting_year_general+6&"/"&RIGHT(Starting_year_general+7,2) -> 2027/28 | DT4: =Starting_year_general+7&"/"&RIGHT(Starting_year_general+8,2) -> 2028/29 | EI4: =Starting_year_general+8&"/"&RIGHT(Starting_year_general+9,2) -> 2029/30 | EX4: =Starting_year_general+9&"/"&RIGHT(Starting_year_general+10,2) -> 2030/31
A5: ="Scenario: "&general_scenario_name -> Scenario: Permanent 8.5% SV plus 2% rate peg 2021/22 | B5: Time | C5: CF | D5: July | E5: August | F5: September | G5: October | H5: November | I5: December | J5: January | K5: February | L5: March | M5: April | N5: May | O5: June | P5: Total | S5: July | T5: August | U5: September | V5: October | W5: November | X5: December | Y5: January | Z5: February | AA5: March | AB5: April | AC5: May | AD5: June | AE5: Total | AH5: July | AI5: August | AJ5: September | AK5: October | AL5: November | AM5: December | AN5: January | AO5: February | AP5: March | AQ5: April | AR5: May | AS5: June | AT5: Total | AW5: July | AX5: August | AY5: September | AZ5: October | BA5: November | BB5: December | BC5: January | BD5: February | BE5: March | BF5: April | BG5: May | BH5: June | BI5: Total | BL5: July | BM5: August | BN5: September | BO5: October | BP5: November | BQ5: December | BR5: January | BS5: February | BT5: March | BU5: April | BV5: May | BW5: June | BX5: Total | CA5: July | CB5: August | CC5: September | CD5: October | CE5: November | CF5: December | CG5: January | CH5: February | CI5: March | CJ5: April | CK5: May | CL5: June | CM5: Total | CP5: July | CQ5: August | CR5: September | CS5: October | CT5: November | CU5: December | CV5: January | CW5: February | CX5: March | CY5: April | CZ5: May | DA5: June | DB5: Total | DE5: July | DF5: August | DG5: September | DH5: October | DI5: November | DJ5: December | DK5: January | DL5: February | DM5: March | DN5: April | DO5: May | DP5: June | DQ5: Total | DT5: July | DU5: August | DV5: September | DW5: October | DX5: November | DY5: December | DZ5: January | EA5: February | EB5: March | EC5: April | ED5: May | EE5: June | EF5: Total | EI5: July | EJ5: August | EK5: September | EL5: October | EM5: November | EN5: December | EO5: January | EP5: February | EQ5: March | ER5: April | ES5: May | ET5: June | EU5: Total | EX5: July | EY5: August | EZ5: September | FA5: October | FB5: November | FC5: December | FD5: January | FE5: February | FF5: March | FG5: April | FH5: May | FI5: June | FJ5: Total | GI5: ='Income Statement'!F4 -> 2020/21 | GJ5: ='Income Statement'!H4 -> 2021/22 | GK5: ='Income Statement'!I4 -> 2022/23 | GL5: ='Income Statement'!J4 -> 2023/24 | GM5: ='Income Statement'!K4 -> 2024/25 | GN5: ='Income Statement'!L4 -> 2025/26 | GO5: ='Income Statement'!M4 -> 2026/27 | GP5: ='Income Statement'!N4 -> 2027/28 | GQ5: ='Income Statement'!O4 -> 2028/29 | GR5: ='Income Statement'!P4 -> 2029/30 | GS5: ='Income Statement'!Q4 -> 2030/31 | GT5: ='Income Statement'!AG4 -> 2031/32 | GU5: ='Income Statement'!AH4 -> 2032/33 | GV5: ='Income Statement'!AI4 -> 2033/34 | GW5: ='Income Statement'!AJ4 -> 2034/35 | GX5: ='Income Statement'!AK4 -> 2035/36 | GY5: ='Income Statement'!AL4 -> 2036/37 | GZ5: ='Income Statement'!AM4 -> 2037/38 | HA5: ='Income Statement'!AN4 -> 2038/39 | HB5: ='Income Statement'!AO4 -> 2039/40 | HC5: ='Income Statement'!AP4 -> 2040/41 | IC5: =IC187 -> 
A6: Opening Balance Cash & Investments | B6: a) | C6: b) | D6: =('BS workings'!E9+'BS workings'!E56) -> 29634000 | E6: =D65 -> 27305048.25 | F6: 35669133.3 | G6: 31561937.05 | H6: 29232985.3 | I6: 34923811.15 | J6: 32594859.4 | K6: 30265907.65 | L6: 31946844.7 | M6: 27839648.45 | N6: 25510696.7 | O6: 27191633.75 | S6: =('BS workings'!$E48-'BS workings'!$E49+'Balance Sheet'!$E9+'Balance Sheet'!$E18) -> 24862682 | T6: =S65 -> 22726614 | U6: =T65 -> 31626568.8 | V6: 27711652.8 | W6: 25575584.8 | X6: 31716533.9 | Y6: 29580465.9 | Z6: 27444397.9 | AA6: 29446838.45 | AB6: 25531922.45 | AC6: 23395854.45 | AD6: 25398295 | AH6: =('BS workings'!$G48-'BS workings'!$G49+'Balance Sheet'!$G9+'Balance Sheet'!$G18) -> 23262227 | AI6: =AH65 -> 21199550 | AJ6: 30565115.4 | AK6: 26686483.4 | AL6: 24623806.4 | AM6: 31132311.2 | AN6: 29069634.2 | AO6: 27006957.2 | AP6: 29229871.1 | AQ6: 25351239.1 | AR6: 23288562.1 | AS6: 25511476 | AW6: =('BS workings'!$H48-'BS workings'!$H49+'Balance Sheet'!$H9+'Balance Sheet'!$H18) -> 23448799 | AX6: =AW65 -> 21317252.17 | AY6: 30780256.53 | AZ6: 27104546.2 | BA6: 24972999.37 | BB6: 31537365.93 | BC6: 29405819.1 | BD6: 27274272.27 | BE6: 29490682.13 | BF6: 25814971.8 | BG6: 23683424.97 | BH6: 25899834.83 | BL6: =('BS workings'!$I48-'BS workings'!$I49+'Balance Sheet'!$I9+'Balance Sheet'!$I18) -> 23768288 | BM6: =BL65 -> 21452030.83 | BN6: 31144034.87 | BO6: 27423193.2 | BP6: 25106936.03 | BQ6: 31796874.77 | BR6: 29480617.6 | BS6: 27164360.43 | BT6: 29351201.22 | BU6: 25630359.55 | BV6: 23314102.38 | BW6: 25500943.17 | CA6: =('BS workings'!$J48-'BS workings'!$J49+'Balance Sheet'!$J9+'Balance Sheet'!$J18) -> 23184686 | CB6: =CA65 -> 20923365.25 | CC6: 31098929.3 | CD6: 27573187.55 | CE6: 25311866.8 | CF6: 32378209.65 | CG6: 30116888.9 | CH6: 27855568.15 | CI6: 30258079.2 | CJ6: 26732337.45 | CK6: 24471016.7 | CL6: 26873527.75 | CP6: =('BS workings'!$K48-'BS workings'!$K49+'Balance Sheet'!$K9+'Balance Sheet'!$K18) -> 24612207 | CQ6: =CP65 -> 22328544.08 | CR6: 32805847.57 | CS6: 29477029.15 | CT6: 27193366.23 | CU6: 34480428.12 | CV6: 32196765.2 | CW6: 29913102.28 | CX6: 32414801.77 | CY6: 29085983.35 | CZ6: 26802320.43 | DA6: 29304019.92 | DE6: =('BS workings'!$L48-'BS workings'!$L49+'Balance Sheet'!$L9+'Balance Sheet'!$L18) -> 27020357 | DF6: =DE65 -> 24371488.58 | DG6: 34500087.77 | DH6: 31438503.85 | DI6: 28789635.43 | DJ6: 35723867.72 | DK6: 33074999.3 | DL6: 30426130.88 | DM6: 32568812.82 | DN6: 29507228.9 | DO6: 26858360.48 | DP6: 29001042.42 | DT6: =('BS workings'!$M48-'BS workings'!$M49+'Balance Sheet'!$M9+'Balance Sheet'!$M18) -> 26352174 | DU6: =DT65 -> 24243188.17 | DV6: 35371465.53 | DW6: 32938647.2 | DX6: 30829661.37 | DY6: 38648622.93 | DZ6: 36539637.1 | EA6: 34430651.27 | EB6: 37285639.13 | EC6: 34852820.8 | ED6: 32743834.97 | EE6: 35598822.83 | EI6: =('BS workings'!$N48-'BS workings'!$N49+'Balance Sheet'!$N9+'Balance Sheet'!$N18) -> 33489837 | EJ6: =EI65 -> 30984770.83 | EK6: 42193463.47 | EL6: 39453179.8 | EM6: 36948113.63 | EN6: 44728366.57 | EO6: 42223300.4 | EP6: 39718234.23 | EQ6: 42355827.62 | ER6: 39615543.95 | ES6: 37110477.78 | ET6: 39748071.17 | EX6: =('BS workings'!$O48-'BS workings'!$O49+'Balance Sheet'!$O9+'Balance Sheet'!$O18) -> 37243005 | EY6: =EX65 -> 34842845.67 | EZ6: 46650251.53 | FA6: 44204326.2 | FB6: 41804166.87 | FC6: 50059681.43 | FD6: 47659522.1 | FE6: 45259362.77 | FF6: 48187040.38 | FG6: 45741115.05 | FH6: 43340955.72 | FI6: 46268633.33
A8: Operating Inflow
A9: Rates & Annual Charges | B9: 1 | D9: ='Cash Flow'!$E8*SUMIF($B$81:$B$93,$B9,D$81:D$93) -> 0 | E9: ='Cash Flow'!$E8*SUMIF($B$81:$B$93,$B9,E$81:E$93) -> 10693036.8 | F9: ='Cash Flow'!$E8*SUMIF($B$81:$B$93,$B9,F$81:F$93) -> 0 | G9: ='Cash Flow'!$E8*SUMIF($B$81:$B$93,$B9,G$81:G$93) -> 0 | H9: ='Cash Flow'!$E8*SUMIF($B$81:$B$93,$B9,H$81:H$93) -> 8019777.6 | I9: ='Cash Flow'!$E8*SUMIF($B$81:$B$93,$B9,I$81:I$93) -> 0 | J9: ='Cash Flow'!$E8*SUMIF($B$81:$B$93,$B9,J$81:J$93) -> 0 | K9: ='Cash Flow'!$E8*SUMIF($B$81:$B$93,$B9,K$81:K$93) -> 4009888.8 | L9: ='Cash Flow'!$E8*SUMIF($B$81:$B$93,$B9,L$81:L$93) -> 0 | M9: ='Cash Flow'!$E8*SUMIF($B$81:$B$93,$B9,M$81:M$93) -> 0 | N9: ='Cash Flow'!$E8*SUMIF($B$81:$B$93,$B9,N$81:N$93) -> 4009888.8 | O9: ='Cash Flow'!$E8*SUMIF($B$81:$B$93,$B9,O$81:O$93) -> 0 | P9: =SUM(D9:O9) -> 26732592 | S9: ='Cash Flow'!$G8*SUMIF($B$81:$B$93,$B9,S$81:S$93) -> 0 | T9: ='Cash Flow'!$G8*SUMIF($B$81:$B$93,$B9,T$81:T$93) -> 11036022.8 | U9: ='Cash Flow'!$G8*SUMIF($B$81:$B$93,$B9,U$81:U$93) -> 0 | V9: ='Cash Flow'!$G8*SUMIF($B$81:$B$93,$B9,V$81:V$93) -> 0 | W9: ='Cash Flow'!$G8*SUMIF($B$81:$B$93,$B9,W$81:W$93) -> 8277017.1 | X9: ='Cash Flow'!$G8*SUMIF($B$81:$B$93,$B9,X$81:X$93) -> 0 | Y9: ='Cash Flow'!$G8*SUMIF($B$81:$B$93,$B9,Y$81:Y$93) -> 0 | Z9: ='Cash Flow'!$G8*SUMIF($B$81:$B$93,$B9,Z$81:Z$93) -> 4138508.55 | AA9: ='Cash Flow'!$G8*SUMIF($B$81:$B$93,$B9,AA$81:AA$93) -> 0 | AB9: ='Cash Flow'!$G8*SUMIF($B$81:$B$93,$B9,AB$81:AB$93) -> 0 | AC9: ='Cash Flow'!$G8*SUMIF($B$81:$B$93,$B9,AC$81:AC$93) -> 4138508.55 | AD9: ='Cash Flow'!$G8*SUMIF($B$81:$B$93,$B9,AD$81:AD$93) -> 0 | AE9: =SUM(S9:AD9) -> 27590057 | AH9: ='Cash Flow'!$H8*SUMIF($B$81:$B$93,$B9,AH$81:AH$93) -> 0 | AI9: ='Cash Flow'!$H8*SUMIF($B$81:$B$93,$B9,AI$81:AI$93) -> 11428242.4 | AJ9: ='Cash Flow'!$H8*SUMIF($B$81:$B$93,$B9,AJ$81:AJ$93) -> 0 | AK9: ='Cash Flow'!$H8*SUMIF($B$81:$B$93,$B9,AK$81:AK$93) -> 0 | AL9: ='Cash Flow'!$H8*SUMIF($B$81:$B$93,$B9,AL$81:AL$93) -> 8571181.8 | AM9: ='Cash Flow'!$H8*SUMIF($B$81:$B$93,$B9,AM$81:AM$93) -> 0 | AN9: ='Cash Flow'!$H8*SUMIF($B$81:$B$93,$B9,AN$81:AN$93) -> 0 | AO9: ='Cash Flow'!$H8*SUMIF($B$81:$B$93,$B9,AO$81:AO$93) -> 4285590.9 | AP9: ='Cash Flow'!$H8*SUMIF($B$81:$B$93,$B9,AP$81:AP$93) -> 0 | AQ9: ='Cash Flow'!$H8*SUMIF($B$81:$B$93,$B9,AQ$81:AQ$93) -> 0 | AR9: ='Cash Flow'!$H8*SUMIF($B$81:$B$93,$B9,AR$81:AR$93) -> 4285590.9 | AS9: ='Cash Flow'!$H8*SUMIF($B$81:$B$93,$B9,AS$81:AS$93) -> 0 | AT9: =SUM(AH9:AS9) -> 28570606 | AW9: ='Cash Flow'!$I8*SUMIF($B$81:$B$93,$B9,AW$81:AW$93) -> 0 | AX9: ='Cash Flow'!$I8*SUMIF($B$81:$B$93,$B9,AX$81:AX$93) -> 11594551.2 | AY9: ='Cash Flow'!$I8*SUMIF($B$81:$B$93,$B9,AY$81:AY$93) -> 0 | AZ9: ='Cash Flow'!$I8*SUMIF($B$81:$B$93,$B9,AZ$81:AZ$93) -> 0 | BA9: ='Cash Flow'!$I8*SUMIF($B$81:$B$93,$B9,BA$81:BA$93) -> 8695913.4 | BB9: ='Cash Flow'!$I8*SUMIF($B$81:$B$93,$B9,BB$81:BB$93) -> 0 | BC9: ='Cash Flow'!$I8*SUMIF($B$81:$B$93,$B9,BC$81:BC$93) -> 0 | BD9: ='Cash Flow'!$I8*SUMIF($B$81:$B$93,$B9,BD$81:BD$93) -> 4347956.7 | BE9: ='Cash Flow'!$I8*SUMIF($B$81:$B$93,$B9,BE$81:BE$93) -> 0 | BF9: ='Cash Flow'!$I8*SUMIF($B$81:$B$93,$B9,BF$81:BF$93) -> 0 | BG9: ='Cash Flow'!$I8*SUMIF($B$81:$B$93,$B9,BG$81:BG$93) -> 4347956.7 | BH9: ='Cash Flow'!$I8*SUMIF($B$81:$B$93,$B9,BH$81:BH$93) -> 0 | BI9: =SUM(AW9:BH9) -> 28986378 | BL9: ='Cash Flow'!$J8*SUMIF($B$81:$B$93,$B9,BL$81:BL$93) -> 0 | BM9: ='Cash Flow'!$J8*SUMIF($B$81:$B$93,$B9,BM$81:BM$93) -> 12008261.2 | BN9: ='Cash Flow'!$J8*SUMIF($B$81:$B$93,$B9,BN$81:BN$93) -> 0 | BO9: ='Cash Flow'!$J8*SUMIF($B$81:$B$93,$B9,BO$81:BO$93) -> 0 | BP9: ='Cash Flow'!$J8*SUMIF($B$81:$B$93,$B9,BP$81:BP$93) -> 9006195.9 | BQ9: ='Cash Flow'!$J8*SUMIF($B$81:$B$93,$B9,BQ$81:BQ$93) -> 0 | BR9: ='Cash Flow'!$J8*SUMIF($B$81:$B$93,$B9,BR$81:BR$93) -> 0 | BS9: ='Cash Flow'!$J8*SUMIF($B$81:$B$93,$B9,BS$81:BS$93) -> 4503097.95 | BT9: ='Cash Flow'!$J8*SUMIF($B$81:$B$93,$B9,BT$81:BT$93) -> 0 | BU9: ='Cash Flow'!$J8*SUMIF($B$81:$B$93,$B9,BU$81:BU$93) -> 0 | BV9: ='Cash Flow'!$J8*SUMIF($B$81:$B$93,$B9,BV$81:BV$93) -> 4503097.95 | BW9: ='Cash Flow'!$J8*SUMIF($B$81:$B$93,$B9,BW$81:BW$93) -> 0 | BX9: =SUM(BL9:BW9) -> 30020653 | CA9: ='Cash Flow'!$K8*SUMIF($B$81:$B$93,$B9,CA$81:CA$93) -> 0 | CB9: ='Cash Flow'!$K8*SUMIF($B$81:$B$93,$B9,CB$81:CB$93) -> 12436884.8 | CC9: ='Cash Flow'!$K8*SUMIF($B$81:$B$93,$B9,CC$81:CC$93) -> 0 | CD9: ='Cash Flow'!$K8*SUMIF($B$81:$B$93,$B9,CD$81:CD$93) -> 0 | CE9: ='Cash Flow'!$K8*SUMIF($B$81:$B$93,$B9,CE$81:CE$93) -> 9327663.6 | CF9: ='Cash Flow'!$K8*SUMIF($B$81:$B$93,$B9,CF$81:CF$93) -> 0 | CG9: ='Cash Flow'!$K8*SUMIF($B$81:$B$93,$B9,CG$81:CG$93) -> 0 | CH9: ='Cash Flow'!$K8*SUMIF($B$81:$B$93,$B9,CH$81:CH$93) -> 4663831.8 | CI9: ='Cash Flow'!$K8*SUMIF($B$81:$B$93,$B9,CI$81:CI$93) -> 0 | CJ9: ='Cash Flow'!$K8*SUMIF($B$81:$B$93,$B9,CJ$81:CJ$93) -> 0 | CK9: ='Cash Flow'!$K8*SUMIF($B$81:$B$93,$B9,CK$81:CK$93) -> 4663831.8 | CL9: ='Cash Flow'!$K8*SUMIF($B$81:$B$93,$B9,CL$81:CL$93) -> 0 | CM9: =SUM(CA9:CL9) -> 31092212 | CP9: ='Cash Flow'!$L8*SUMIF($B$81:$B$93,$B9,CP$81:CP$93) -> 0 | CQ9: ='Cash Flow'!$L8*SUMIF($B$81:$B$93,$B9,CQ$81:CQ$93) -> 12760966.4 | CR9: ='Cash Flow'!$L8*SUMIF($B$81:$B$93,$B9,CR$81:CR$93) -> 0 | CS9: ='Cash Flow'!$L8*SUMIF($B$81:$B$93,$B9,CS$81:CS$93) -> 0 | CT9: ='Cash Flow'!$L8*SUMIF($B$81:$B$93,$B9,CT$81:CT$93) -> 9570724.8 | CU9: ='Cash Flow'!$L8*SUMIF($B$81:$B$93,$B9,CU$81:CU$93) -> 0 | CV9: ='Cash Flow'!$L8*SUMIF($B$81:$B$93,$B9,CV$81:CV$93) -> 0 | CW9: ='Cash Flow'!$L8*SUMIF($B$81:$B$93,$B9,CW$81:CW$93) -> 4785362.4 | CX9: ='Cash Flow'!$L8*SUMIF($B$81:$B$93,$B9,CX$81:CX$93) -> 0 | CY9: ='Cash Flow'!$L8*SUMIF($B$81:$B$93,$B9,CY$81:CY$93) -> 0 | CZ9: ='Cash Flow'!$L8*SUMIF($B$81:$B$93,$B9,CZ$81:CZ$93) -> 4785362.4 | DA9: ='Cash Flow'!$L8*SUMIF($B$81:$B$93,$B9,DA$81:DA$93) -> 0 | DB9: =SUM(CP9:DA9) -> 31902416 | DE9: ='Cash Flow'!$M8*SUMIF($B$81:$B$93,$B9,DE$81:DE$93) -> 0 | DF9: ='Cash Flow'!$M8*SUMIF($B$81:$B$93,$B9,DF$81:DF$93) -> 12777467.6 | DG9: ='Cash Flow'!$M8*SUMIF($B$81:$B$93,$B9,DG$81:DG$93) -> 0 | DH9: ='Cash Flow'!$M8*SUMIF($B$81:$B$93,$B9,DH$81:DH$93) -> 0 | DI9: ='Cash Flow'!$M8*SUMIF($B$81:$B$93,$B9,DI$81:DI$93) -> 9583100.7 | DJ9: ='Cash Flow'!$M8*SUMIF($B$81:$B$93,$B9,DJ$81:DJ$93) -> 0 | DK9: ='Cash Flow'!$M8*SUMIF($B$81:$B$93,$B9,DK$81:DK$93) -> 0 | DL9: ='Cash Flow'!$M8*SUMIF($B$81:$B$93,$B9,DL$81:DL$93) -> 4791550.35 | DM9: ='Cash Flow'!$M8*SUMIF($B$81:$B$93,$B9,DM$81:DM$93) -> 0 | DN9: ='Cash Flow'!$M8*SUMIF($B$81:$B$93,$B9,DN$81:DN$93) -> 0 | DO9: ='Cash Flow'!$M8*SUMIF($B$81:$B$93,$B9,DO$81:DO$93) -> 4791550.35 | DP9: ='Cash Flow'!$M8*SUMIF($B$81:$B$93,$B9,DP$81:DP$93) -> 0 | DQ9: =SUM(DE9:DP9) -> 31943669 | DT9: ='Cash Flow'!$N8*SUMIF($B$81:$B$93,$B9,DT$81:DT$93) -> 0 | DU9: ='Cash Flow'!$N8*SUMIF($B$81:$B$93,$B9,DU$81:DU$93) -> 13237263.2 | DV9: ='Cash Flow'!$N8*SUMIF($B$81:$B$93,$B9,DV$81:DV$93) -> 0 | DW9: ='Cash Flow'!$N8*SUMIF($B$81:$B$93,$B9,DW$81:DW$93) -> 0 | DX9: ='Cash Flow'!$N8*SUMIF($B$81:$B$93,$B9,DX$81:DX$93) -> 9927947.4 | DY9: ='Cash Flow'!$N8*SUMIF($B$81:$B$93,$B9,DY$81:DY$93) -> 0 | DZ9: ='Cash Flow'!$N8*SUMIF($B$81:$B$93,$B9,DZ$81:DZ$93) -> 0 | EA9: ='Cash Flow'!$N8*SUMIF($B$81:$B$93,$B9,EA$81:EA$93) -> 4963973.7 | EB9: ='Cash Flow'!$N8*SUMIF($B$81:$B$93,$B9,EB$81:EB$93) -> 0 | EC9: ='Cash Flow'!$N8*SUMIF($B$81:$B$93,$B9,EC$81:EC$93) -> 0 | ED9: ='Cash Flow'!$N8*SUMIF($B$81:$B$93,$B9,ED$81:ED$93) -> 4963973.7 | EE9: ='Cash Flow'!$N8*SUMIF($B$81:$B$93,$B9,EE$81:EE$93) -> 0 | EF9: =SUM(DT9:EE9) -> 33093158 | EI9: ='Cash Flow'!$O8*SUMIF($B$81:$B$93,$B9,EI$81:EI$93) -> 0 | EJ9: ='Cash Flow'!$O8*SUMIF($B$81:$B$93,$B9,EJ$81:EJ$93) -> 13713758.8 | EK9: ='Cash Flow'!$O8*SUMIF($B$81:$B$93,$B9,EK$81:EK$93) -> 0 | EL9: ='Cash Flow'!$O8*SUMIF($B$81:$B$93,$B9,EL$81:EL$93) -> 0 | EM9: ='Cash Flow'!$O8*SUMIF($B$81:$B$93,$B9,EM$81:EM$93) -> 10285319.1 | EN9: ='Cash Flow'!$O8*SUMIF($B$81:$B$93,$B9,EN$81:EN$93) -> 0 | EO9: ='Cash Flow'!$O8*SUMIF($B$81:$B$93,$B9,EO$81:EO$93) -> 0 | EP9: ='Cash Flow'!$O8*SUMIF($B$81:$B$93,$B9,EP$81:EP$93) -> 5142659.55 | EQ9: ='Cash Flow'!$O8*SUMIF($B$81:$B$93,$B9,EQ$81:EQ$93) -> 0 | ER9: ='Cash Flow'!$O8*SUMIF($B$81:$B$93,$B9,ER$81:ER$93) -> 0 | ES9: ='Cash Flow'!$O8*SUMIF($B$81:$B$93,$B9,ES$81:ES$93) -> 5142659.55 | ET9: ='Cash Flow'!$O8*SUMIF($B$81:$B$93,$B9,ET$81:ET$93) -> 0 | EU9: =SUM(EI9:ET9) -> 34284397 | EX9: ='Cash Flow'!$P8*SUMIF($B$81:$B$93,$B9,EX$81:EX$93) -> 0 | EY9: ='Cash Flow'!$P8*SUMIF($B$81:$B$93,$B9,EY$81:EY$93) -> 14207565.2 | EZ9: ='Cash Flow'!$P8*SUMIF($B$81:$B$93,$B9,EZ$81:EZ$93) -> 0 | FA9: ='Cash Flow'!$P8*SUMIF($B$81:$B$93,$B9,FA$81:FA$93) -> 0 | FB9: ='Cash Flow'!$P8*SUMIF($B$81:$B$93,$B9,FB$81:FB$93) -> 10655673.9 | FC9: ='Cash Flow'!$P8*SUMIF($B$81:$B$93,$B9,FC$81:FC$93) -> 0 | FD9: ='Cash Flow'!$P8*SUMIF($B$81:$B$93,$B9,FD$81:FD$93) -> 0 | FE9: ='Cash Flow'!$P8*SUMIF($B$81:$B$93,$B9,FE$81:FE$93) -> 5327836.95 | FF9: ='Cash Flow'!$P8*SUMIF($B$81:$B$93,$B9,FF$81:FF$93) -> 0 | FG9: ='Cash Flow'!$P8*SUMIF($B$81:$B$93,$B9,FG$81:FG$93) -> 0 | FH9: ='Cash Flow'!$P8*SUMIF($B$81:$B$93,$B9,FH$81:FH$93) -> 5327836.95 | FI9: ='Cash Flow'!$P8*SUMIF($B$81:$B$93,$B9,FI$81:FI$93) -> 0 | FJ9: =SUM(EX9:FI9) -> 35518913
A10: User Charges & Fees | B10: 4 | D10: ='Cash Flow'!$E9*SUMIF($B$81:$B$93,$B10,D$81:D$93) -> 1029587.5 | E10: ='Cash Flow'!$E9*SUMIF($B$81:$B$93,$B10,E$81:E$93) -> 1029587.5 | F10: ='Cash Flow'!$E9*SUMIF($B$81:$B$93,$B10,F$81:F$93) -> 1029587.5 | G10: ='Cash Flow'!$E9*SUMIF($B$81:$B$93,$B10,G$81:G$93) -> 1029587.5 | H10: ='Cash Flow'!$E9*SUMIF($B$81:$B$93,$B10,H$81:H$93) -> 1029587.5 | I10: ='Cash Flow'!$E9*SUMIF($B$81:$B$93,$B10,I$81:I$93) -> 1029587.5 | J10: ='Cash Flow'!$E9*SUMIF($B$81:$B$93,$B10,J$81:J$93) -> 1029587.5 | K10: ='Cash Flow'!$E9*SUMIF($B$81:$B$93,$B10,K$81:K$93) -> 1029587.5 | L10: ='Cash Flow'!$E9*SUMIF($B$81:$B$93,$B10,L$81:L$93) -> 1029587.5 | M10: ='Cash Flow'!$E9*SUMIF($B$81:$B$93,$B10,M$81:M$93) -> 1029587.5 | N10: ='Cash Flow'!$E9*SUMIF($B$81:$B$93,$B10,N$81:N$93) -> 1029587.5 | O10: ='Cash Flow'!$E9*SUMIF($B$81:$B$93,$B10,O$81:O$93) -> 1029587.5 | P10: 12355050 | S10: ='Cash Flow'!$G9*SUMIF($B$81:$B$93,$B10,S$81:S$93) -> 1126556.833 | T10: ='Cash Flow'!$G9*SUMIF($B$81:$B$93,$B10,T$81:T$93) -> 1126556.833 | U10: ='Cash Flow'!$G9*SUMIF($B$81:$B$93,$B10,U$81:U$93) -> 1126556.833 | V10: ='Cash Flow'!$G9*SUMIF($B$81:$B$93,$B10,V$81:V$93) -> 1126556.833 | W10: ='Cash Flow'!$G9*SUMIF($B$81:$B$93,$B10,W$81:W$93) -> 1126556.833 | X10: ='Cash Flow'!$G9*SUMIF($B$81:$B$93,$B10,X$81:X$93) -> 1126556.833 | Y10: ='Cash Flow'!$G9*SUMIF($B$81:$B$93,$B10,Y$81:Y$93) -> 1126556.833 | Z10: ='Cash Flow'!$G9*SUMIF($B$81:$B$93,$B10,Z$81:Z$93) -> 1126556.833 | AA10: ='Cash Flow'!$G9*SUMIF($B$81:$B$93,$B10,AA$81:AA$93) -> 1126556.833 | AB10: ='Cash Flow'!$G9*SUMIF($B$81:$B$93,$B10,AB$81:AB$93) -> 1126556.833 | AC10: ='Cash Flow'!$G9*SUMIF($B$81:$B$93,$B10,AC$81:AC$93) -> 1126556.833 | AD10: ='Cash Flow'!$G9*SUMIF($B$81:$B$93,$B10,AD$81:AD$93) -> 1126556.833 | AE10: =SUM(S10:AD10) -> 13518682 | AH10: ='Cash Flow'!$H9*SUMIF($B$81:$B$93,$B10,AH$81:AH$93) -> 1168861.167 | AI10: ='Cash Flow'!$H9*SUMIF($B$81:$B$93,$B10,AI$81:AI$93) -> 1168861.167 | AJ10: ='Cash Flow'!$H9*SUMIF($B$81:$B$93,$B10,AJ$81:AJ$93) -> 1168861.167 | AK10: ='Cash Flow'!$H9*SUMIF($B$81:$B$93,$B10,AK$81:AK$93) -> 1168861.167 | AL10: ='Cash Flow'!$H9*SUMIF($B$81:$B$93,$B10,AL$81:AL$93) -> 1168861.167 | AM10: ='Cash Flow'!$H9*SUMIF($B$81:$B$93,$B10,AM$81:AM$93) -> 1168861.167 | AN10: ='Cash Flow'!$H9*SUMIF($B$81:$B$93,$B10,AN$81:AN$93) -> 1168861.167 | AO10: ='Cash Flow'!$H9*SUMIF($B$81:$B$93,$B10,AO$81:AO$93) -> 1168861.167 | AP10: ='Cash Flow'!$H9*SUMIF($B$81:$B$93,$B10,AP$81:AP$93) -> 1168861.167 | AQ10: ='Cash Flow'!$H9*SUMIF($B$81:$B$93,$B10,AQ$81:AQ$93) -> 1168861.167 | AR10: ='Cash Flow'!$H9*SUMIF($B$81:$B$93,$B10,AR$81:AR$93) -> 1168861.167 | AS10: ='Cash Flow'!$H9*SUMIF($B$81:$B$93,$B10,AS$81:AS$93) -> 1168861.167 | AT10: =SUM(AH10:AS10) -> 14026334 | AW10: ='Cash Flow'!$I9*SUMIF($B$81:$B$93,$B10,AW$81:AW$93) -> 1212756.417 | AX10: ='Cash Flow'!$I9*SUMIF($B$81:$B$93,$B10,AX$81:AX$93) -> 1212756.417 | AY10: ='Cash Flow'!$I9*SUMIF($B$81:$B$93,$B10,AY$81:AY$93) -> 1212756.417 | AZ10: ='Cash Flow'!$I9*SUMIF($B$81:$B$93,$B10,AZ$81:AZ$93) -> 1212756.417 | BA10: ='Cash Flow'!$I9*SUMIF($B$81:$B$93,$B10,BA$81:BA$93) -> 1212756.417 | BB10: ='Cash Flow'!$I9*SUMIF($B$81:$B$93,$B10,BB$81:BB$93) -> 1212756.417 | BC10: ='Cash Flow'!$I9*SUMIF($B$81:$B$93,$B10,BC$81:BC$93) -> 1212756.417 | BD10: ='Cash Flow'!$I9*SUMIF($B$81:$B$93,$B10,BD$81:BD$93) -> 1212756.417 | BE10: ='Cash Flow'!$I9*SUMIF($B$81:$B$93,$B10,BE$81:BE$93) -> 1212756.417 | BF10: ='Cash Flow'!$I9*SUMIF($B$81:$B$93,$B10,BF$81:BF$93) -> 1212756.417 | BG10: ='Cash Flow'!$I9*SUMIF($B$81:$B$93,$B10,BG$81:BG$93) -> 1212756.417 | BH10: ='Cash Flow'!$I9*SUMIF($B$81:$B$93,$B10,BH$81:BH$93) -> 1212756.417 | BI10: =SUM(AW10:BH10) -> 14553077 | BL10: ='Cash Flow'!$J9*SUMIF($B$81:$B$93,$B10,BL$81:BL$93) -> 1258302.667 | BM10: ='Cash Flow'!$J9*SUMIF($B$81:$B$93,$B10,BM$81:BM$93) -> 1258302.667 | BN10: ='Cash Flow'!$J9*SUMIF($B$81:$B$93,$B10,BN$81:BN$93) -> 1258302.667 | BO10: ='Cash Flow'!$J9*SUMIF($B$81:$B$93,$B10,BO$81:BO$93) -> 1258302.667 | BP10: ='Cash Flow'!$J9*SUMIF($B$81:$B$93,$B10,BP$81:BP$93) -> 1258302.667 | BQ10: ='Cash Flow'!$J9*SUMIF($B$81:$B$93,$B10,BQ$81:BQ$93) -> 1258302.667 | BR10: ='Cash Flow'!$J9*SUMIF($B$81:$B$93,$B10,BR$81:BR$93) -> 1258302.667 | BS10: ='Cash Flow'!$J9*SUMIF($B$81:$B$93,$B10,BS$81:BS$93) -> 1258302.667 | BT10: ='Cash Flow'!$J9*SUMIF($B$81:$B$93,$B10,BT$81:BT$93) -> 1258302.667 | BU10: ='Cash Flow'!$J9*SUMIF($B$81:$B$93,$B10,BU$81:BU$93) -> 1258302.667 | BV10: ='Cash Flow'!$J9*SUMIF($B$81:$B$93,$B10,BV$81:BV$93) -> 1258302.667 | BW10: ='Cash Flow'!$J9*SUMIF($B$81:$B$93,$B10,BW$81:BW$93) -> 1258302.667 | BX10: =SUM(BL10:BW10) -> 15099632 | CA10: ='Cash Flow'!$K9*SUMIF($B$81:$B$93,$B10,CA$81:CA$93) -> 1305561.917 | CB10: ='Cash Flow'!$K9*SUMIF($B$81:$B$93,$B10,CB$81:CB$93) -> 1305561.917 | CC10: ='Cash Flow'!$K9*SUMIF($B$81:$B$93,$B10,CC$81:CC$93) -> 1305561.917 | CD10: ='Cash Flow'!$K9*SUMIF($B$81:$B$93,$B10,CD$81:CD$93) -> 1305561.917 | CE10: ='Cash Flow'!$K9*SUMIF($B$81:$B$93,$B10,CE$81:CE$93) -> 1305561.917 | CF10: ='Cash Flow'!$K9*SUMIF($B$81:$B$93,$B10,CF$81:CF$93) -> 1305561.917 | CG10: ='Cash Flow'!$K9*SUMIF($B$81:$B$93,$B10,CG$81:CG$93) -> 1305561.917 | CH10: ='Cash Flow'!$K9*SUMIF($B$81:$B$93,$B10,CH$81:CH$93) -> 1305561.917 | CI10: ='Cash Flow'!$K9*SUMIF($B$81:$B$93,$B10,CI$81:CI$93) -> 1305561.917 | CJ10: ='Cash Flow'!$K9*SUMIF($B$81:$B$93,$B10,CJ$81:CJ$93) -> 1305561.917 | CK10: ='Cash Flow'!$K9*SUMIF($B$81:$B$93,$B10,CK$81:CK$93) -> 1305561.917 | CL10: ='Cash Flow'!$K9*SUMIF($B$81:$B$93,$B10,CL$81:CL$93) -> 1305561.917 | CM10: =SUM(CA10:CL10) -> 15666743 | CP10: ='Cash Flow'!$L9*SUMIF($B$81:$B$93,$B10,CP$81:CP$93) -> 1354598.833 | CQ10: ='Cash Flow'!$L9*SUMIF($B$81:$B$93,$B10,CQ$81:CQ$93) -> 1354598.833 | CR10: ='Cash Flow'!$L9*SUMIF($B$81:$B$93,$B10,CR$81:CR$93) -> 1354598.833 | CS10: ='Cash Flow'!$L9*SUMIF($B$81:$B$93,$B10,CS$81:CS$93) -> 1354598.833 | CT10: ='Cash Flow'!$L9*SUMIF($B$81:$B$93,$B10,CT$81:CT$93) -> 1354598.833 | CU10: ='Cash Flow'!$L9*SUMIF($B$81:$B$93,$B10,CU$81:CU$93) -> 1354598.833 | CV10: ='Cash Flow'!$L9*SUMIF($B$81:$B$93,$B10,CV$81:CV$93) -> 1354598.833 | CW10: ='Cash Flow'!$L9*SUMIF($B$81:$B$93,$B10,CW$81:CW$93) -> 1354598.833 | CX10: ='Cash Flow'!$L9*SUMIF($B$81:$B$93,$B10,CX$81:CX$93) -> 1354598.833 | CY10: ='Cash Flow'!$L9*SUMIF($B$81:$B$93,$B10,CY$81:CY$93) -> 1354598.833 | CZ10: ='Cash Flow'!$L9*SUMIF($B$81:$B$93,$B10,CZ$81:CZ$93) -> 1354598.833 | DA10: ='Cash Flow'!$L9*SUMIF($B$81:$B$93,$B10,DA$81:DA$93) -> 1354598.833 | DB10: =SUM(CP10:DA10) -> 16255186 | DE10: ='Cash Flow'!$M9*SUMIF($B$81:$B$93,$B10,DE$81:DE$93) -> 1405479.917 | DF10: ='Cash Flow'!$M9*SUMIF($B$81:$B$93,$B10,DF$81:DF$93) -> 1405479.917 | DG10: ='Cash Flow'!$M9*SUMIF($B$81:$B$93,$B10,DG$81:DG$93) -> 1405479.917 | DH10: ='Cash Flow'!$M9*SUMIF($B$81:$B$93,$B10,DH$81:DH$93) -> 1405479.917 | DI10: ='Cash Flow'!$M9*SUMIF($B$81:$B$93,$B10,DI$81:DI$93) -> 1405479.917 | DJ10: ='Cash Flow'!$M9*SUMIF($B$81:$B$93,$B10,DJ$81:DJ$93) -> 1405479.917 | DK10: ='Cash Flow'!$M9*SUMIF($B$81:$B$93,$B10,DK$81:DK$93) -> 1405479.917 | DL10: ='Cash Flow'!$M9*SUMIF($B$81:$B$93,$B10,DL$81:DL$93) -> 1405479.917 | DM10: ='Cash Flow'!$M9*SUMIF($B$81:$B$93,$B10,DM$81:DM$93) -> 1405479.917 | DN10: ='Cash Flow'!$M9*SUMIF($B$81:$B$93,$B10,DN$81:DN$93) -> 1405479.917 | DO10: ='Cash Flow'!$M9*SUMIF($B$81:$B$93,$B10,DO$81:DO$93) -> 1405479.917 | DP10: ='Cash Flow'!$M9*SUMIF($B$81:$B$93,$B10,DP$81:DP$93) -> 1405479.917 | DQ10: =SUM(DE10:DP10) -> 16865759 | DT10: ='Cash Flow'!$N9*SUMIF($B$81:$B$93,$B10,DT$81:DT$93) -> 1458274.833 | DU10: ='Cash Flow'!$N9*SUMIF($B$81:$B$93,$B10,DU$81:DU$93) -> 1458274.833 | DV10: ='Cash Flow'!$N9*SUMIF($B$81:$B$93,$B10,DV$81:DV$93) -> 1458274.833 | DW10: ='Cash Flow'!$N9*SUMIF($B$81:$B$93,$B10,DW$81:DW$93) -> 1458274.833 | DX10: ='Cash Flow'!$N9*SUMIF($B$81:$B$93,$B10,DX$81:DX$93) -> 1458274.833 | DY10: ='Cash Flow'!$N9*SUMIF($B$81:$B$93,$B10,DY$81:DY$93) -> 1458274.833 | DZ10: ='Cash Flow'!$N9*SUMIF($B$81:$B$93,$B10,DZ$81:DZ$93) -> 1458274.833 | EA10: ='Cash Flow'!$N9*SUMIF($B$81:$B$93,$B10,EA$81:EA$93) -> 1458274.833 | EB10: ='Cash Flow'!$N9*SUMIF($B$81:$B$93,$B10,EB$81:EB$93) -> 1458274.833 | EC10: ='Cash Flow'!$N9*SUMIF($B$81:$B$93,$B10,EC$81:EC$93) -> 1458274.833 | ED10: ='Cash Flow'!$N9*SUMIF($B$81:$B$93,$B10,ED$81:ED$93) -> 1458274.833 | EE10: ='Cash Flow'!$N9*SUMIF($B$81:$B$93,$B10,EE$81:EE$93) -> 1458274.833 | EF10: =SUM(DT10:EE10) -> 17499298 | EI10: ='Cash Flow'!$O9*SUMIF($B$81:$B$93,$B10,EI$81:EI$93) -> 1513055.75 | EJ10: ='Cash Flow'!$O9*SUMIF($B$81:$B$93,$B10,EJ$81:EJ$93) -> 1513055.75 | EK10: ='Cash Flow'!$O9*SUMIF($B$81:$B$93,$B10,EK$81:EK$93) -> 1513055.75 | EL10: ='Cash Flow'!$O9*SUMIF($B$81:$B$93,$B10,EL$81:EL$93) -> 1513055.75 | EM10: ='Cash Flow'!$O9*SUMIF($B$81:$B$93,$B10,EM$81:EM$93) -> 1513055.75 | EN10: ='Cash Flow'!$O9*SUMIF($B$81:$B$93,$B10,EN$81:EN$93) -> 1513055.75 | EO10: ='Cash Flow'!$O9*SUMIF($B$81:$B$93,$B10,EO$81:EO$93) -> 1513055.75 | EP10: ='Cash Flow'!$O9*SUMIF($B$81:$B$93,$B10,EP$81:EP$93) -> 1513055.75 | EQ10: ='Cash Flow'!$O9*SUMIF($B$81:$B$93,$B10,EQ$81:EQ$93) -> 1513055.75 | ER10: ='Cash Flow'!$O9*SUMIF($B$81:$B$93,$B10,ER$81:ER$93) -> 1513055.75 | ES10: ='Cash Flow'!$O9*SUMIF($B$81:$B$93,$B10,ES$81:ES$93) -> 1513055.75 | ET10: ='Cash Flow'!$O9*SUMIF($B$81:$B$93,$B10,ET$81:ET$93) -> 1513055.75 | EU10: =SUM(EI10:ET10) -> 18156669 | EX10: ='Cash Flow'!$P9*SUMIF($B$81:$B$93,$B10,EX$81:EX$93) -> 1569897.333 | EY10: ='Cash Flow'!$P9*SUMIF($B$81:$B$93,$B10,EY$81:EY$93) -> 1569897.333 | EZ10: ='Cash Flow'!$P9*SUMIF($B$81:$B$93,$B10,EZ$81:EZ$93) -> 1569897.333 | FA10: ='Cash Flow'!$P9*SUMIF($B$81:$B$93,$B10,FA$81:FA$93) -> 1569897.333 | FB10: ='Cash Flow'!$P9*SUMIF($B$81:$B$93,$B10,FB$81:FB$93) -> 1569897.333 | FC10: ='Cash Flow'!$P9*SUMIF($B$81:$B$93,$B10,FC$81:FC$93) -> 1569897.333 | FD10: ='Cash Flow'!$P9*SUMIF($B$81:$B$93,$B10,FD$81:FD$93) -> 1569897.333 | FE10: ='Cash Flow'!$P9*SUMIF($B$81:$B$93,$B10,FE$81:FE$93) -> 1569897.333 | FF10: ='Cash Flow'!$P9*SUMIF($B$81:$B$93,$B10,FF$81:FF$93) -> 1569897.333 | FG10: ='Cash Flow'!$P9*SUMIF($B$81:$B$93,$B10,FG$81:FG$93) -> 1569897.333 | FH10: ='Cash Flow'!$P9*SUMIF($B$81:$B$93,$B10,FH$81:FH$93) -> 1569897.333 | FI10: ='Cash Flow'!$P9*SUMIF($B$81:$B$93,$B10,FI$81:FI$93) -> 1569897.333 | FJ10: =SUM(EX10:FI10) -> 18838768
A11: Interest & Investment Revenue | B11: 4 | D11: ='Cash Flow'!$E10*SUMIF($B$81:$B$93,$B11,D$81:D$93) -> 28500 | E11: ='Cash Flow'!$E10*SUMIF($B$81:$B$93,$B11,E$81:E$93) -> 28500 | F11: ='Cash Flow'!$E10*SUMIF($B$81:$B$93,$B11,F$81:F$93) -> 28500 | G11: ='Cash Flow'!$E10*SUMIF($B$81:$B$93,$B11,G$81:G$93) -> 28500 | H11: ='Cash Flow'!$E10*SUMIF($B$81:$B$93,$B11,H$81:H$93) -> 28500 | I11: ='Cash Flow'!$E10*SUMIF($B$81:$B$93,$B11,I$81:I$93) -> 28500 | J11: ='Cash Flow'!$E10*SUMIF($B$81:$B$93,$B11,J$81:J$93) -> 28500 | K11: ='Cash Flow'!$E10*SUMIF($B$81:$B$93,$B11,K$81:K$93) -> 28500 | L11: ='Cash Flow'!$E10*SUMIF($B$81:$B$93,$B11,L$81:L$93) -> 28500 | M11: ='Cash Flow'!$E10*SUMIF($B$81:$B$93,$B11,M$81:M$93) -> 28500 | N11: ='Cash Flow'!$E10*SUMIF($B$81:$B$93,$B11,N$81:N$93) -> 28500 | O11: ='Cash Flow'!$E10*SUMIF($B$81:$B$93,$B11,O$81:O$93) -> 28500 | P11: 342000 | S11: ='Cash Flow'!$G10*SUMIF($B$81:$B$93,$B11,S$81:S$93) -> 23400.75 | T11: ='Cash Flow'!$G10*SUMIF($B$81:$B$93,$B11,T$81:T$93) -> 23400.75 | U11: ='Cash Flow'!$G10*SUMIF($B$81:$B$93,$B11,U$81:U$93) -> 23400.75 | V11: ='Cash Flow'!$G10*SUMIF($B$81:$B$93,$B11,V$81:V$93) -> 23400.75 | W11: ='Cash Flow'!$G10*SUMIF($B$81:$B$93,$B11,W$81:W$93) -> 23400.75 | X11: ='Cash Flow'!$G10*SUMIF($B$81:$B$93,$B11,X$81:X$93) -> 23400.75 | Y11: ='Cash Flow'!$G10*SUMIF($B$81:$B$93,$B11,Y$81:Y$93) -> 23400.75 | Z11: ='Cash Flow'!$G10*SUMIF($B$81:$B$93,$B11,Z$81:Z$93) -> 23400.75 | AA11: ='Cash Flow'!$G10*SUMIF($B$81:$B$93,$B11,AA$81:AA$93) -> 23400.75 | AB11: ='Cash Flow'!$G10*SUMIF($B$81:$B$93,$B11,AB$81:AB$93) -> 23400.75 | AC11: ='Cash Flow'!$G10*SUMIF($B$81:$B$93,$B11,AC$81:AC$93) -> 23400.75 | AD11: ='Cash Flow'!$G10*SUMIF($B$81:$B$93,$B11,AD$81:AD$93) -> 23400.75 | AE11: =SUM(S11:AD11) -> 280809 | AH11: ='Cash Flow'!$H10*SUMIF($B$81:$B$93,$B11,AH$81:AH$93) -> 21638.58333 | AI11: ='Cash Flow'!$H10*SUMIF($B$81:$B$93,$B11,AI$81:AI$93) -> 21638.58333 | AJ11: ='Cash Flow'!$H10*SUMIF($B$81:$B$93,$B11,AJ$81:AJ$93) -> 21638.58333 | AK11: ='Cash Flow'!$H10*SUMIF($B$81:$B$93,$B11,AK$81:AK$93) -> 21638.58333 | AL11: ='Cash Flow'!$H10*SUMIF($B$81:$B$93,$B11,AL$81:AL$93) -> 21638.58333 | AM11: ='Cash Flow'!$H10*SUMIF($B$81:$B$93,$B11,AM$81:AM$93) -> 21638.58333 | AN11: ='Cash Flow'!$H10*SUMIF($B$81:$B$93,$B11,AN$81:AN$93) -> 21638.58333 | AO11: ='Cash Flow'!$H10*SUMIF($B$81:$B$93,$B11,AO$81:AO$93) -> 21638.58333 | AP11: ='Cash Flow'!$H10*SUMIF($B$81:$B$93,$B11,AP$81:AP$93) -> 21638.58333 | AQ11: ='Cash Flow'!$H10*SUMIF($B$81:$B$93,$B11,AQ$81:AQ$93) -> 21638.58333 | AR11: ='Cash Flow'!$H10*SUMIF($B$81:$B$93,$B11,AR$81:AR$93) -> 21638.58333 | AS11: ='Cash Flow'!$H10*SUMIF($B$81:$B$93,$B11,AS$81:AS$93) -> 21638.58333 | AT11: 259663 | AW11: ='Cash Flow'!$I10*SUMIF($B$81:$B$93,$B11,AW$81:AW$93) -> 20846 | AX11: ='Cash Flow'!$I10*SUMIF($B$81:$B$93,$B11,AX$81:AX$93) -> 20846 | AY11: ='Cash Flow'!$I10*SUMIF($B$81:$B$93,$B11,AY$81:AY$93) -> 20846 | AZ11: ='Cash Flow'!$I10*SUMIF($B$81:$B$93,$B11,AZ$81:AZ$93) -> 20846 | BA11: ='Cash Flow'!$I10*SUMIF($B$81:$B$93,$B11,BA$81:BA$93) -> 20846 | BB11: ='Cash Flow'!$I10*SUMIF($B$81:$B$93,$B11,BB$81:BB$93) -> 20846 | BC11: ='Cash Flow'!$I10*SUMIF($B$81:$B$93,$B11,BC$81:BC$93) -> 20846 | BD11: ='Cash Flow'!$I10*SUMIF($B$81:$B$93,$B11,BD$81:BD$93) -> 20846 | BE11: ='Cash Flow'!$I10*SUMIF($B$81:$B$93,$B11,BE$81:BE$93) -> 20846 | BF11: ='Cash Flow'!$I10*SUMIF($B$81:$B$93,$B11,BF$81:BF$93) -> 20846 | BG11: ='Cash Flow'!$I10*SUMIF($B$81:$B$93,$B11,BG$81:BG$93) -> 20846 | BH11: ='Cash Flow'!$I10*SUMIF($B$81:$B$93,$B11,BH$81:BH$93) -> 20846 | BI11: 250152 | BL11: ='Cash Flow'!$J10*SUMIF($B$81:$B$93,$B11,BL$81:BL$93) -> 19903.25 | BM11: ='Cash Flow'!$J10*SUMIF($B$81:$B$93,$B11,BM$81:BM$93) -> 19903.25 | BN11: ='Cash Flow'!$J10*SUMIF($B$81:$B$93,$B11,BN$81:BN$93) -> 19903.25 | BO11: ='Cash Flow'!$J10*SUMIF($B$81:$B$93,$B11,BO$81:BO$93) -> 19903.25 | BP11: ='Cash Flow'!$J10*SUMIF($B$81:$B$93,$B11,BP$81:BP$93) -> 19903.25 | BQ11: ='Cash Flow'!$J10*SUMIF($B$81:$B$93,$B11,BQ$81:BQ$93) -> 19903.25 | BR11: ='Cash Flow'!$J10*SUMIF($B$81:$B$93,$B11,BR$81:BR$93) -> 19903.25 | BS11: ='Cash Flow'!$J10*SUMIF($B$81:$B$93,$B11,BS$81:BS$93) -> 19903.25 | BT11: ='Cash Flow'!$J10*SUMIF($B$81:$B$93,$B11,BT$81:BT$93) -> 19903.25 | BU11: ='Cash Flow'!$J10*SUMIF($B$81:$B$93,$B11,BU$81:BU$93) -> 19903.25 | BV11: ='Cash Flow'!$J10*SUMIF($B$81:$B$93,$B11,BV$81:BV$93) -> 19903.25 | BW11: ='Cash Flow'!$J10*SUMIF($B$81:$B$93,$B11,BW$81:BW$93) -> 19903.25 | BX11: 238839 | CA11: ='Cash Flow'!$K10*SUMIF($B$81:$B$93,$B11,CA$81:CA$93) -> 19347.25 | CB11: ='Cash Flow'!$K10*SUMIF($B$81:$B$93,$B11,CB$81:CB$93) -> 19347.25 | CC11: ='Cash Flow'!$K10*SUMIF($B$81:$B$93,$B11,CC$81:CC$93) -> 19347.25 | CD11: ='Cash Flow'!$K10*SUMIF($B$81:$B$93,$B11,CD$81:CD$93) -> 19347.25 | CE11: ='Cash Flow'!$K10*SUMIF($B$81:$B$93,$B11,CE$81:CE$93) -> 19347.25 | CF11: ='Cash Flow'!$K10*SUMIF($B$81:$B$93,$B11,CF$81:CF$93) -> 19347.25 | CG11: ='Cash Flow'!$K10*SUMIF($B$81:$B$93,$B11,CG$81:CG$93) -> 19347.25 | CH11: ='Cash Flow'!$K10*SUMIF($B$81:$B$93,$B11,CH$81:CH$93) -> 19347.25 | CI11: ='Cash Flow'!$K10*SUMIF($B$81:$B$93,$B11,CI$81:CI$93) -> 19347.25 | CJ11: ='Cash Flow'!$K10*SUMIF($B$81:$B$93,$B11,CJ$81:CJ$93) -> 19347.25 | CK11: ='Cash Flow'!$K10*SUMIF($B$81:$B$93,$B11,CK$81:CK$93) -> 19347.25 | CL11: ='Cash Flow'!$K10*SUMIF($B$81:$B$93,$B11,CL$81:CL$93) -> 19347.25 | CM11: 232167 | CP11: ='Cash Flow'!$L10*SUMIF($B$81:$B$93,$B11,CP$81:CP$93) -> 20077.58333 | CQ11: ='Cash Flow'!$L10*SUMIF($B$81:$B$93,$B11,CQ$81:CQ$93) -> 20077.58333 | CR11: ='Cash Flow'!$L10*SUMIF($B$81:$B$93,$B11,CR$81:CR$93) -> 20077.58333 | CS11: ='Cash Flow'!$L10*SUMIF($B$81:$B$93,$B11,CS$81:CS$93) -> 20077.58333 | CT11: ='Cash Flow'!$L10*SUMIF($B$81:$B$93,$B11,CT$81:CT$93) -> 20077.58333 | CU11: ='Cash Flow'!$L10*SUMIF($B$81:$B$93,$B11,CU$81:CU$93) -> 20077.58333 | CV11: ='Cash Flow'!$L10*SUMIF($B$81:$B$93,$B11,CV$81:CV$93) -> 20077.58333 | CW11: ='Cash Flow'!$L10*SUMIF($B$81:$B$93,$B11,CW$81:CW$93) -> 20077.58333 | CX11: ='Cash Flow'!$L10*SUMIF($B$81:$B$93,$B11,CX$81:CX$93) -> 20077.58333 | CY11: ='Cash Flow'!$L10*SUMIF($B$81:$B$93,$B11,CY$81:CY$93) -> 20077.58333 | CZ11: ='Cash Flow'!$L10*SUMIF($B$81:$B$93,$B11,CZ$81:CZ$93) -> 20077.58333 | DA11: ='Cash Flow'!$L10*SUMIF($B$81:$B$93,$B11,DA$81:DA$93) -> 20077.58333 | DB11: 240931 | DE11: ='Cash Flow'!$M10*SUMIF($B$81:$B$93,$B11,DE$81:DE$93) -> 20430.41667 | DF11: ='Cash Flow'!$M10*SUMIF($B$81:$B$93,$B11,DF$81:DF$93) -> 20430.41667 | DG11: ='Cash Flow'!$M10*SUMIF($B$81:$B$93,$B11,DG$81:DG$93) -> 20430.41667 | DH11: ='Cash Flow'!$M10*SUMIF($B$81:$B$93,$B11,DH$81:DH$93) -> 20430.41667 | DI11: ='Cash Flow'!$M10*SUMIF($B$81:$B$93,$B11,DI$81:DI$93) -> 20430.41667 | DJ11: ='Cash Flow'!$M10*SUMIF($B$81:$B$93,$B11,DJ$81:DJ$93) -> 20430.41667 | DK11: ='Cash Flow'!$M10*SUMIF($B$81:$B$93,$B11,DK$81:DK$93) -> 20430.41667 | DL11: ='Cash Flow'!$M10*SUMIF($B$81:$B$93,$B11,DL$81:DL$93) -> 20430.41667 | DM11: ='Cash Flow'!$M10*SUMIF($B$81:$B$93,$B11,DM$81:DM$93) -> 20430.41667 | DN11: ='Cash Flow'!$M10*SUMIF($B$81:$B$93,$B11,DN$81:DN$93) -> 20430.41667 | DO11: ='Cash Flow'!$M10*SUMIF($B$81:$B$93,$B11,DO$81:DO$93) -> 20430.41667 | DP11: ='Cash Flow'!$M10*SUMIF($B$81:$B$93,$B11,DP$81:DP$93) -> 20430.41667 | DQ11: 245165 | DT11: ='Cash Flow'!$N10*SUMIF($B$81:$B$93,$B11,DT$81:DT$93) -> 23130.75 | DU11: ='Cash Flow'!$N10*SUMIF($B$81:$B$93,$B11,DU$81:DU$93) -> 23130.75 | DV11: ='Cash Flow'!$N10*SUMIF($B$81:$B$93,$B11,DV$81:DV$93) -> 23130.75 | DW11: ='Cash Flow'!$N10*SUMIF($B$81:$B$93,$B11,DW$81:DW$93) -> 23130.75 | DX11: ='Cash Flow'!$N10*SUMIF($B$81:$B$93,$B11,DX$81:DX$93) -> 23130.75 | DY11: ='Cash Flow'!$N10*SUMIF($B$81:$B$93,$B11,DY$81:DY$93) -> 23130.75 | DZ11: ='Cash Flow'!$N10*SUMIF($B$81:$B$93,$B11,DZ$81:DZ$93) -> 23130.75 | EA11: ='Cash Flow'!$N10*SUMIF($B$81:$B$93,$B11,EA$81:EA$93) -> 23130.75 | EB11: ='Cash Flow'!$N10*SUMIF($B$81:$B$93,$B11,EB$81:EB$93) -> 23130.75 | EC11: ='Cash Flow'!$N10*SUMIF($B$81:$B$93,$B11,EC$81:EC$93) -> 23130.75 | ED11: ='Cash Flow'!$N10*SUMIF($B$81:$B$93,$B11,ED$81:ED$93) -> 23130.75 | EE11: ='Cash Flow'!$N10*SUMIF($B$81:$B$93,$B11,EE$81:EE$93) -> 23130.75 | EF11: 277569 | EI11: ='Cash Flow'!$O10*SUMIF($B$81:$B$93,$B11,EI$81:EI$93) -> 27584.25 | EJ11: ='Cash Flow'!$O10*SUMIF($B$81:$B$93,$B11,EJ$81:EJ$93) -> 27584.25 | EK11: ='Cash Flow'!$O10*SUMIF($B$81:$B$93,$B11,EK$81:EK$93) -> 27584.25 | EL11: ='Cash Flow'!$O10*SUMIF($B$81:$B$93,$B11,EL$81:EL$93) -> 27584.25 | EM11: ='Cash Flow'!$O10*SUMIF($B$81:$B$93,$B11,EM$81:EM$93) -> 27584.25 | EN11: ='Cash Flow'!$O10*SUMIF($B$81:$B$93,$B11,EN$81:EN$93) -> 27584.25 | EO11: ='Cash Flow'!$O10*SUMIF($B$81:$B$93,$B11,EO$81:EO$93) -> 27584.25 | EP11: ='Cash Flow'!$O10*SUMIF($B$81:$B$93,$B11,EP$81:EP$93) -> 27584.25 | EQ11: ='Cash Flow'!$O10*SUMIF($B$81:$B$93,$B11,EQ$81:EQ$93) -> 27584.25 | ER11: ='Cash Flow'!$O10*SUMIF($B$81:$B$93,$B11,ER$81:ER$93) -> 27584.25 | ES11: ='Cash Flow'!$O10*SUMIF($B$81:$B$93,$B11,ES$81:ES$93) -> 27584.25 | ET11: ='Cash Flow'!$O10*SUMIF($B$81:$B$93,$B11,ET$81:ET$93) -> 27584.25 | EU11: 331011 | EX11: ='Cash Flow'!$P10*SUMIF($B$81:$B$93,$B11,EX$81:EX$93) -> 31727.91667 | EY11: ='Cash Flow'!$P10*SUMIF($B$81:$B$93,$B11,EY$81:EY$93) -> 31727.91667 | EZ11: ='Cash Flow'!$P10*SUMIF($B$81:$B$93,$B11,EZ$81:EZ$93) -> 31727.91667 | FA11: ='Cash Flow'!$P10*SUMIF($B$81:$B$93,$B11,FA$81:FA$93) -> 31727.91667 | FB11: ='Cash Flow'!$P10*SUMIF($B$81:$B$93,$B11,FB$81:FB$93) -> 31727.91667 | FC11: ='Cash Flow'!$P10*SUMIF($B$81:$B$93,$B11,FC$81:FC$93) -> 31727.91667 | FD11: ='Cash Flow'!$P10*SUMIF($B$81:$B$93,$B11,FD$81:FD$93) -> 31727.91667 | FE11: ='Cash Flow'!$P10*SUMIF($B$81:$B$93,$B11,FE$81:FE$93) -> 31727.91667 | FF11: ='Cash Flow'!$P10*SUMIF($B$81:$B$93,$B11,FF$81:FF$93) -> 31727.91667 | FG11: ='Cash Flow'!$P10*SUMIF($B$81:$B$93,$B11,FG$81:FG$93) -> 31727.91667 | FH11: ='Cash Flow'!$P10*SUMIF($B$81:$B$93,$B11,FH$81:FH$93) -> 31727.91667 | FI11: ='Cash Flow'!$P10*SUMIF($B$81:$B$93,$B11,FI$81:FI$93) -> 31727.91667 | FJ11: 380735
A12: Other Revenues | B12: 4 | D12: ='Cash Flow'!$E13*SUMIF($B$81:$B$93,$B12,D$81:D$93) -> 204945.8333 | E12: ='Cash Flow'!$E13*SUMIF($B$81:$B$93,$B12,E$81:E$93) -> 204945.8333 | F12: ='Cash Flow'!$E13*SUMIF($B$81:$B$93,$B12,F$81:F$93) -> 204945.8333 | G12: ='Cash Flow'!$E13*SUMIF($B$81:$B$93,$B12,G$81:G$93) -> 204945.8333 | H12: ='Cash Flow'!$E13*SUMIF($B$81:$B$93,$B12,H$81:H$93) -> 204945.8333 | I12: ='Cash Flow'!$E13*SUMIF($B$81:$B$93,$B12,I$81:I$93) -> 204945.8333 | J12: ='Cash Flow'!$E13*SUMIF($B$81:$B$93,$B12,J$81:J$93) -> 204945.8333 | K12: ='Cash Flow'!$E13*SUMIF($B$81:$B$93,$B12,K$81:K$93) -> 204945.8333 | L12: ='Cash Flow'!$E13*SUMIF($B$81:$B$93,$B12,L$81:L$93) -> 204945.8333 | M12: ='Cash Flow'!$E13*SUMIF($B$81:$B$93,$B12,M$81:M$93) -> 204945.8333 | N12: ='Cash Flow'!$E13*SUMIF($B$81:$B$93,$B12,N$81:N$93) -> 204945.8333 | O12: ='Cash Flow'!$E13*SUMIF($B$81:$B$93,$B12,O$81:O$93) -> 204945.8333 | P12: 2459350 | S12: ='Cash Flow'!$G13*SUMIF($B$81:$B$93,$B12,S$81:S$93) -> 186665.5833 | T12: ='Cash Flow'!$G13*SUMIF($B$81:$B$93,$B12,T$81:T$93) -> 186665.5833 | U12: ='Cash Flow'!$G13*SUMIF($B$81:$B$93,$B12,U$81:U$93) -> 186665.5833 | V12: ='Cash Flow'!$G13*SUMIF($B$81:$B$93,$B12,V$81:V$93) -> 186665.5833 | W12: ='Cash Flow'!$G13*SUMIF($B$81:$B$93,$B12,W$81:W$93) -> 186665.5833 | X12: ='Cash Flow'!$G13*SUMIF($B$81:$B$93,$B12,X$81:X$93) -> 186665.5833 | Y12: ='Cash Flow'!$G13*SUMIF($B$81:$B$93,$B12,Y$81:Y$93) -> 186665.5833 | Z12: ='Cash Flow'!$G13*SUMIF($B$81:$B$93,$B12,Z$81:Z$93) -> 186665.5833 | AA12: ='Cash Flow'!$G13*SUMIF($B$81:$B$93,$B12,AA$81:AA$93) -> 186665.5833 | AB12: ='Cash Flow'!$G13*SUMIF($B$81:$B$93,$B12,AB$81:AB$93) -> 186665.5833 | AC12: ='Cash Flow'!$G13*SUMIF($B$81:$B$93,$B12,AC$81:AC$93) -> 186665.5833 | AD12: ='Cash Flow'!$G13*SUMIF($B$81:$B$93,$B12,AD$81:AD$93) -> 186665.5833 | AE12: 2239987 | AH12: ='Cash Flow'!$H13*SUMIF($B$81:$B$93,$B12,AH$81:AH$93) -> 191332.75 | AI12: ='Cash Flow'!$H13*SUMIF($B$81:$B$93,$B12,AI$81:AI$93) -> 191332.75 | AJ12: ='Cash Flow'!$H13*SUMIF($B$81:$B$93,$B12,AJ$81:AJ$93) -> 191332.75 | AK12: ='Cash Flow'!$H13*SUMIF($B$81:$B$93,$B12,AK$81:AK$93) -> 191332.75 | AL12: ='Cash Flow'!$H13*SUMIF($B$81:$B$93,$B12,AL$81:AL$93) -> 191332.75 | AM12: ='Cash Flow'!$H13*SUMIF($B$81:$B$93,$B12,AM$81:AM$93) -> 191332.75 | AN12: ='Cash Flow'!$H13*SUMIF($B$81:$B$93,$B12,AN$81:AN$93) -> 191332.75 | AO12: ='Cash Flow'!$H13*SUMIF($B$81:$B$93,$B12,AO$81:AO$93) -> 191332.75 | AP12: ='Cash Flow'!$H13*SUMIF($B$81:$B$93,$B12,AP$81:AP$93) -> 191332.75 | AQ12: ='Cash Flow'!$H13*SUMIF($B$81:$B$93,$B12,AQ$81:AQ$93) -> 191332.75 | AR12: ='Cash Flow'!$H13*SUMIF($B$81:$B$93,$B12,AR$81:AR$93) -> 191332.75 | AS12: ='Cash Flow'!$H13*SUMIF($B$81:$B$93,$B12,AS$81:AS$93) -> 191332.75 | AT12: 2295993 | AW12: ='Cash Flow'!$I13*SUMIF($B$81:$B$93,$B12,AW$81:AW$93) -> 196116 | AX12: ='Cash Flow'!$I13*SUMIF($B$81:$B$93,$B12,AX$81:AX$93) -> 196116 | AY12: ='Cash Flow'!$I13*SUMIF($B$81:$B$93,$B12,AY$81:AY$93) -> 196116 | AZ12: ='Cash Flow'!$I13*SUMIF($B$81:$B$93,$B12,AZ$81:AZ$93) -> 196116 | BA12: ='Cash Flow'!$I13*SUMIF($B$81:$B$93,$B12,BA$81:BA$93) -> 196116 | BB12: ='Cash Flow'!$I13*SUMIF($B$81:$B$93,$B12,BB$81:BB$93) -> 196116 | BC12: ='Cash Flow'!$I13*SUMIF($B$81:$B$93,$B12,BC$81:BC$93) -> 196116 | BD12: ='Cash Flow'!$I13*SUMIF($B$81:$B$93,$B12,BD$81:BD$93) -> 196116 | BE12: ='Cash Flow'!$I13*SUMIF($B$81:$B$93,$B12,BE$81:BE$93) -> 196116 | BF12: ='Cash Flow'!$I13*SUMIF($B$81:$B$93,$B12,BF$81:BF$93) -> 196116 | BG12: ='Cash Flow'!$I13*SUMIF($B$81:$B$93,$B12,BG$81:BG$93) -> 196116 | BH12: ='Cash Flow'!$I13*SUMIF($B$81:$B$93,$B12,BH$81:BH$93) -> 196116 | BI12: 2353392 | BL12: ='Cash Flow'!$J13*SUMIF($B$81:$B$93,$B12,BL$81:BL$93) -> 201018.9167 | BM12: ='Cash Flow'!$J13*SUMIF($B$81:$B$93,$B12,BM$81:BM$93) -> 201018.9167 | BN12: ='Cash Flow'!$J13*SUMIF($B$81:$B$93,$B12,BN$81:BN$93) -> 201018.9167 | BO12: ='Cash Flow'!$J13*SUMIF($B$81:$B$93,$B12,BO$81:BO$93) -> 201018.9167 | BP12: ='Cash Flow'!$J13*SUMIF($B$81:$B$93,$B12,BP$81:BP$93) -> 201018.9167 | BQ12: ='Cash Flow'!$J13*SUMIF($B$81:$B$93,$B12,BQ$81:BQ$93) -> 201018.9167 | BR12: ='Cash Flow'!$J13*SUMIF($B$81:$B$93,$B12,BR$81:BR$93) -> 201018.9167 | BS12: ='Cash Flow'!$J13*SUMIF($B$81:$B$93,$B12,BS$81:BS$93) -> 201018.9167 | BT12: ='Cash Flow'!$J13*SUMIF($B$81:$B$93,$B12,BT$81:BT$93) -> 201018.9167 | BU12: ='Cash Flow'!$J13*SUMIF($B$81:$B$93,$B12,BU$81:BU$93) -> 201018.9167 | BV12: ='Cash Flow'!$J13*SUMIF($B$81:$B$93,$B12,BV$81:BV$93) -> 201018.9167 | BW12: ='Cash Flow'!$J13*SUMIF($B$81:$B$93,$B12,BW$81:BW$93) -> 201018.9167 | BX12: 2412227 | CA12: ='Cash Flow'!$K13*SUMIF($B$81:$B$93,$B12,CA$81:CA$93) -> 206044.4167 | CB12: ='Cash Flow'!$K13*SUMIF($B$81:$B$93,$B12,CB$81:CB$93) -> 206044.4167 | CC12: ='Cash Flow'!$K13*SUMIF($B$81:$B$93,$B12,CC$81:CC$93) -> 206044.4167 | CD12: ='Cash Flow'!$K13*SUMIF($B$81:$B$93,$B12,CD$81:CD$93) -> 206044.4167 | CE12: ='Cash Flow'!$K13*SUMIF($B$81:$B$93,$B12,CE$81:CE$93) -> 206044.4167 | CF12: ='Cash Flow'!$K13*SUMIF($B$81:$B$93,$B12,CF$81:CF$93) -> 206044.4167 | CG12: ='Cash Flow'!$K13*SUMIF($B$81:$B$93,$B12,CG$81:CG$93) -> 206044.4167 | CH12: ='Cash Flow'!$K13*SUMIF($B$81:$B$93,$B12,CH$81:CH$93) -> 206044.4167 | CI12: ='Cash Flow'!$K13*SUMIF($B$81:$B$93,$B12,CI$81:CI$93) -> 206044.4167 | CJ12: ='Cash Flow'!$K13*SUMIF($B$81:$B$93,$B12,CJ$81:CJ$93) -> 206044.4167 | CK12: ='Cash Flow'!$K13*SUMIF($B$81:$B$93,$B12,CK$81:CK$93) -> 206044.4167 | CL12: ='Cash Flow'!$K13*SUMIF($B$81:$B$93,$B12,CL$81:CL$93) -> 206044.4167 | CM12: 2472533 | CP12: ='Cash Flow'!$L13*SUMIF($B$81:$B$93,$B12,CP$81:CP$93) -> 211195.5 | CQ12: ='Cash Flow'!$L13*SUMIF($B$81:$B$93,$B12,CQ$81:CQ$93) -> 211195.5 | CR12: ='Cash Flow'!$L13*SUMIF($B$81:$B$93,$B12,CR$81:CR$93) -> 211195.5 | CS12: ='Cash Flow'!$L13*SUMIF($B$81:$B$93,$B12,CS$81:CS$93) -> 211195.5 | CT12: ='Cash Flow'!$L13*SUMIF($B$81:$B$93,$B12,CT$81:CT$93) -> 211195.5 | CU12: ='Cash Flow'!$L13*SUMIF($B$81:$B$93,$B12,CU$81:CU$93) -> 211195.5 | CV12: ='Cash Flow'!$L13*SUMIF($B$81:$B$93,$B12,CV$81:CV$93) -> 211195.5 | CW12: ='Cash Flow'!$L13*SUMIF($B$81:$B$93,$B12,CW$81:CW$93) -> 211195.5 | CX12: ='Cash Flow'!$L13*SUMIF($B$81:$B$93,$B12,CX$81:CX$93) -> 211195.5 | CY12: ='Cash Flow'!$L13*SUMIF($B$81:$B$93,$B12,CY$81:CY$93) -> 211195.5 | CZ12: ='Cash Flow'!$L13*SUMIF($B$81:$B$93,$B12,CZ$81:CZ$93) -> 211195.5 | DA12: ='Cash Flow'!$L13*SUMIF($B$81:$B$93,$B12,DA$81:DA$93) -> 211195.5 | DB12: 2534346 | DE12: ='Cash Flow'!$M13*SUMIF($B$81:$B$93,$B12,DE$81:DE$93) -> 216475.5833 | DF12: ='Cash Flow'!$M13*SUMIF($B$81:$B$93,$B12,DF$81:DF$93) -> 216475.5833 | DG12: ='Cash Flow'!$M13*SUMIF($B$81:$B$93,$B12,DG$81:DG$93) -> 216475.5833 | DH12: ='Cash Flow'!$M13*SUMIF($B$81:$B$93,$B12,DH$81:DH$93) -> 216475.5833 | DI12: ='Cash Flow'!$M13*SUMIF($B$81:$B$93,$B12,DI$81:DI$93) -> 216475.5833 | DJ12: ='Cash Flow'!$M13*SUMIF($B$81:$B$93,$B12,DJ$81:DJ$93) -> 216475.5833 | DK12: ='Cash Flow'!$M13*SUMIF($B$81:$B$93,$B12,DK$81:DK$93) -> 216475.5833 | DL12: ='Cash Flow'!$M13*SUMIF($B$81:$B$93,$B12,DL$81:DL$93) -> 216475.5833 | DM12: ='Cash Flow'!$M13*SUMIF($B$81:$B$93,$B12,DM$81:DM$93) -> 216475.5833 | DN12: ='Cash Flow'!$M13*SUMIF($B$81:$B$93,$B12,DN$81:DN$93) -> 216475.5833 | DO12: ='Cash Flow'!$M13*SUMIF($B$81:$B$93,$B12,DO$81:DO$93) -> 216475.5833 | DP12: ='Cash Flow'!$M13*SUMIF($B$81:$B$93,$B12,DP$81:DP$93) -> 216475.5833 | DQ12: 2597707 | DT12: ='Cash Flow'!$N13*SUMIF($B$81:$B$93,$B12,DT$81:DT$93) -> 221887.5 | DU12: ='Cash Flow'!$N13*SUMIF($B$81:$B$93,$B12,DU$81:DU$93) -> 221887.5 | DV12: ='Cash Flow'!$N13*SUMIF($B$81:$B$93,$B12,DV$81:DV$93) -> 221887.5 | DW12: ='Cash Flow'!$N13*SUMIF($B$81:$B$93,$B12,DW$81:DW$93) -> 221887.5 | DX12: ='Cash Flow'!$N13*SUMIF($B$81:$B$93,$B12,DX$81:DX$93) -> 221887.5 | DY12: ='Cash Flow'!$N13*SUMIF($B$81:$B$93,$B12,DY$81:DY$93) -> 221887.5 | DZ12: ='Cash Flow'!$N13*SUMIF($B$81:$B$93,$B12,DZ$81:DZ$93) -> 221887.5 | EA12: ='Cash Flow'!$N13*SUMIF($B$81:$B$93,$B12,EA$81:EA$93) -> 221887.5 | EB12: ='Cash Flow'!$N13*SUMIF($B$81:$B$93,$B12,EB$81:EB$93) -> 221887.5 | EC12: ='Cash Flow'!$N13*SUMIF($B$81:$B$93,$B12,EC$81:EC$93) -> 221887.5 | ED12: ='Cash Flow'!$N13*SUMIF($B$81:$B$93,$B12,ED$81:ED$93) -> 221887.5 | EE12: ='Cash Flow'!$N13*SUMIF($B$81:$B$93,$B12,EE$81:EE$93) -> 221887.5 | EF12: 2662650 | EI12: ='Cash Flow'!$O13*SUMIF($B$81:$B$93,$B12,EI$81:EI$93) -> 227434.75 | EJ12: ='Cash Flow'!$O13*SUMIF($B$81:$B$93,$B12,EJ$81:EJ$93) -> 227434.75 | EK12: ='Cash Flow'!$O13*SUMIF($B$81:$B$93,$B12,EK$81:EK$93) -> 227434.75 | EL12: ='Cash Flow'!$O13*SUMIF($B$81:$B$93,$B12,EL$81:EL$93) -> 227434.75 | EM12: ='Cash Flow'!$O13*SUMIF($B$81:$B$93,$B12,EM$81:EM$93) -> 227434.75 | EN12: ='Cash Flow'!$O13*SUMIF($B$81:$B$93,$B12,EN$81:EN$93) -> 227434.75 | EO12: ='Cash Flow'!$O13*SUMIF($B$81:$B$93,$B12,EO$81:EO$93) -> 227434.75 | EP12: ='Cash Flow'!$O13*SUMIF($B$81:$B$93,$B12,EP$81:EP$93) -> 227434.75 | EQ12: ='Cash Flow'!$O13*SUMIF($B$81:$B$93,$B12,EQ$81:EQ$93) -> 227434.75 | ER12: ='Cash Flow'!$O13*SUMIF($B$81:$B$93,$B12,ER$81:ER$93) -> 227434.75 | ES12: ='Cash Flow'!$O13*SUMIF($B$81:$B$93,$B12,ES$81:ES$93) -> 227434.75 | ET12: ='Cash Flow'!$O13*SUMIF($B$81:$B$93,$B12,ET$81:ET$93) -> 227434.75 | EU12: 2729217 | EX12: ='Cash Flow'!$P13*SUMIF($B$81:$B$93,$B12,EX$81:EX$93) -> 233120.6667 | EY12: ='Cash Flow'!$P13*SUMIF($B$81:$B$93,$B12,EY$81:EY$93) -> 233120.6667 | EZ12: ='Cash Flow'!$P13*SUMIF($B$81:$B$93,$B12,EZ$81:EZ$93) -> 233120.6667 | FA12: ='Cash Flow'!$P13*SUMIF($B$81:$B$93,$B12,FA$81:FA$93) -> 233120.6667 | FB12: ='Cash Flow'!$P13*SUMIF($B$81:$B$93,$B12,FB$81:FB$93) -> 233120.6667 | FC12: ='Cash Flow'!$P13*SUMIF($B$81:$B$93,$B12,FC$81:FC$93) -> 233120.6667 | FD12: ='Cash Flow'!$P13*SUMIF($B$81:$B$93,$B12,FD$81:FD$93) -> 233120.6667 | FE12: ='Cash Flow'!$P13*SUMIF($B$81:$B$93,$B12,FE$81:FE$93) -> 233120.6667 | FF12: ='Cash Flow'!$P13*SUMIF($B$81:$B$93,$B12,FF$81:FF$93) -> 233120.6667 | FG12: ='Cash Flow'!$P13*SUMIF($B$81:$B$93,$B12,FG$81:FG$93) -> 233120.6667 | FH12: ='Cash Flow'!$P13*SUMIF($B$81:$B$93,$B12,FH$81:FH$93) -> 233120.6667 | FI12: ='Cash Flow'!$P13*SUMIF($B$81:$B$93,$B12,FI$81:FI$93) -> 233120.6667 | FJ12: 2797448
A13: Grants & Contributions provided for Operating Purposes | B13: 2 | D13: ='Cash Flow'!$E11*SUMIF($B$81:$B$93,$B13,D$81:D$93) -> 2435245.333 | E13: ='Cash Flow'!$E11*SUMIF($B$81:$B$93,$B13,E$81:E$93) -> 2435245.333 | F13: ='Cash Flow'!$E11*SUMIF($B$81:$B$93,$B13,F$81:F$93) -> 2435245.333 | G13: ='Cash Flow'!$E11*SUMIF($B$81:$B$93,$B13,G$81:G$93) -> 2435245.333 | H13: ='Cash Flow'!$E11*SUMIF($B$81:$B$93,$B13,H$81:H$93) -> 2435245.333 | I13: ='Cash Flow'!$E11*SUMIF($B$81:$B$93,$B13,I$81:I$93) -> 2435245.333 | J13: ='Cash Flow'!$E11*SUMIF($B$81:$B$93,$B13,J$81:J$93) -> 2435245.333 | K13: ='Cash Flow'!$E11*SUMIF($B$81:$B$93,$B13,K$81:K$93) -> 2435245.333 | L13: ='Cash Flow'!$E11*SUMIF($B$81:$B$93,$B13,L$81:L$93) -> 2435245.333 | M13: ='Cash Flow'!$E11*SUMIF($B$81:$B$93,$B13,M$81:M$93) -> 2435245.333 | N13: ='Cash Flow'!$E11*SUMIF($B$81:$B$93,$B13,N$81:N$93) -> 2435245.333 | O13: ='Cash Flow'!$E11*SUMIF($B$81:$B$93,$B13,O$81:O$93) -> 2435245.333 | P13: 29222944 | S13: ='Cash Flow'!$G11*SUMIF($B$81:$B$93,$B13,S$81:S$93) -> 1525382.75 | T13: ='Cash Flow'!$G11*SUMIF($B$81:$B$93,$B13,T$81:T$93) -> 1525382.75 | U13: ='Cash Flow'!$G11*SUMIF($B$81:$B$93,$B13,U$81:U$93) -> 1525382.75 | V13: ='Cash Flow'!$G11*SUMIF($B$81:$B$93,$B13,V$81:V$93) -> 1525382.75 | W13: ='Cash Flow'!$G11*SUMIF($B$81:$B$93,$B13,W$81:W$93) -> 1525382.75 | X13: ='Cash Flow'!$G11*SUMIF($B$81:$B$93,$B13,X$81:X$93) -> 1525382.75 | Y13: ='Cash Flow'!$G11*SUMIF($B$81:$B$93,$B13,Y$81:Y$93) -> 1525382.75 | Z13: ='Cash Flow'!$G11*SUMIF($B$81:$B$93,$B13,Z$81:Z$93) -> 1525382.75 | AA13: ='Cash Flow'!$G11*SUMIF($B$81:$B$93,$B13,AA$81:AA$93) -> 1525382.75 | AB13: ='Cash Flow'!$G11*SUMIF($B$81:$B$93,$B13,AB$81:AB$93) -> 1525382.75 | AC13: ='Cash Flow'!$G11*SUMIF($B$81:$B$93,$B13,AC$81:AC$93) -> 1525382.75 | AD13: ='Cash Flow'!$G11*SUMIF($B$81:$B$93,$B13,AD$81:AD$93) -> 1525382.75 | AE13: 18304593 | AH13: ='Cash Flow'!$H11*SUMIF($B$81:$B$93,$B13,AH$81:AH$93) -> 1072578.083 | AI13: ='Cash Flow'!$H11*SUMIF($B$81:$B$93,$B13,AI$81:AI$93) -> 1072578.083 | AJ13: ='Cash Flow'!$H11*SUMIF($B$81:$B$93,$B13,AJ$81:AJ$93) -> 1072578.083 | AK13: ='Cash Flow'!$H11*SUMIF($B$81:$B$93,$B13,AK$81:AK$93) -> 1072578.083 | AL13: ='Cash Flow'!$H11*SUMIF($B$81:$B$93,$B13,AL$81:AL$93) -> 1072578.083 | AM13: ='Cash Flow'!$H11*SUMIF($B$81:$B$93,$B13,AM$81:AM$93) -> 1072578.083 | AN13: ='Cash Flow'!$H11*SUMIF($B$81:$B$93,$B13,AN$81:AN$93) -> 1072578.083 | AO13: ='Cash Flow'!$H11*SUMIF($B$81:$B$93,$B13,AO$81:AO$93) -> 1072578.083 | AP13: ='Cash Flow'!$H11*SUMIF($B$81:$B$93,$B13,AP$81:AP$93) -> 1072578.083 | AQ13: ='Cash Flow'!$H11*SUMIF($B$81:$B$93,$B13,AQ$81:AQ$93) -> 1072578.083 | AR13: ='Cash Flow'!$H11*SUMIF($B$81:$B$93,$B13,AR$81:AR$93) -> 1072578.083 | AS13: ='Cash Flow'!$H11*SUMIF($B$81:$B$93,$B13,AS$81:AS$93) -> 1072578.083 | AT13: 12870937 | AW13: ='Cash Flow'!$I11*SUMIF($B$81:$B$93,$B13,AW$81:AW$93) -> 1077957 | AX13: ='Cash Flow'!$I11*SUMIF($B$81:$B$93,$B13,AX$81:AX$93) -> 1077957 | AY13: ='Cash Flow'!$I11*SUMIF($B$81:$B$93,$B13,AY$81:AY$93) -> 1077957 | AZ13: ='Cash Flow'!$I11*SUMIF($B$81:$B$93,$B13,AZ$81:AZ$93) -> 1077957 | BA13: ='Cash Flow'!$I11*SUMIF($B$81:$B$93,$B13,BA$81:BA$93) -> 1077957 | BB13: ='Cash Flow'!$I11*SUMIF($B$81:$B$93,$B13,BB$81:BB$93) -> 1077957 | BC13: ='Cash Flow'!$I11*SUMIF($B$81:$B$93,$B13,BC$81:BC$93) -> 1077957 | BD13: ='Cash Flow'!$I11*SUMIF($B$81:$B$93,$B13,BD$81:BD$93) -> 1077957 | BE13: ='Cash Flow'!$I11*SUMIF($B$81:$B$93,$B13,BE$81:BE$93) -> 1077957 | BF13: ='Cash Flow'!$I11*SUMIF($B$81:$B$93,$B13,BF$81:BF$93) -> 1077957 | BG13: ='Cash Flow'!$I11*SUMIF($B$81:$B$93,$B13,BG$81:BG$93) -> 1077957 | BH13: ='Cash Flow'!$I11*SUMIF($B$81:$B$93,$B13,BH$81:BH$93) -> 1077957 | BI13: 12935484 | BL13: ='Cash Flow'!$J11*SUMIF($B$81:$B$93,$B13,BL$81:BL$93) -> 1124947.25 | BM13: ='Cash Flow'!$J11*SUMIF($B$81:$B$93,$B13,BM$81:BM$93) -> 1124947.25 | BN13: ='Cash Flow'!$J11*SUMIF($B$81:$B$93,$B13,BN$81:BN$93) -> 1124947.25 | BO13: ='Cash Flow'!$J11*SUMIF($B$81:$B$93,$B13,BO$81:BO$93) -> 1124947.25 | BP13: ='Cash Flow'!$J11*SUMIF($B$81:$B$93,$B13,BP$81:BP$93) -> 1124947.25 | BQ13: ='Cash Flow'!$J11*SUMIF($B$81:$B$93,$B13,BQ$81:BQ$93) -> 1124947.25 | BR13: ='Cash Flow'!$J11*SUMIF($B$81:$B$93,$B13,BR$81:BR$93) -> 1124947.25 | BS13: ='Cash Flow'!$J11*SUMIF($B$81:$B$93,$B13,BS$81:BS$93) -> 1124947.25 | BT13: ='Cash Flow'!$J11*SUMIF($B$81:$B$93,$B13,BT$81:BT$93) -> 1124947.25 | BU13: ='Cash Flow'!$J11*SUMIF($B$81:$B$93,$B13,BU$81:BU$93) -> 1124947.25 | BV13: ='Cash Flow'!$J11*SUMIF($B$81:$B$93,$B13,BV$81:BV$93) -> 1124947.25 | BW13: ='Cash Flow'!$J11*SUMIF($B$81:$B$93,$B13,BW$81:BW$93) -> 1124947.25 | BX13: 13499367 | CA13: ='Cash Flow'!$K11*SUMIF($B$81:$B$93,$B13,CA$81:CA$93) -> 1149565.75 | CB13: ='Cash Flow'!$K11*SUMIF($B$81:$B$93,$B13,CB$81:CB$93) -> 1149565.75 | CC13: ='Cash Flow'!$K11*SUMIF($B$81:$B$93,$B13,CC$81:CC$93) -> 1149565.75 | CD13: ='Cash Flow'!$K11*SUMIF($B$81:$B$93,$B13,CD$81:CD$93) -> 1149565.75 | CE13: ='Cash Flow'!$K11*SUMIF($B$81:$B$93,$B13,CE$81:CE$93) -> 1149565.75 | CF13: ='Cash Flow'!$K11*SUMIF($B$81:$B$93,$B13,CF$81:CF$93) -> 1149565.75 | CG13: ='Cash Flow'!$K11*SUMIF($B$81:$B$93,$B13,CG$81:CG$93) -> 1149565.75 | CH13: ='Cash Flow'!$K11*SUMIF($B$81:$B$93,$B13,CH$81:CH$93) -> 1149565.75 | CI13: ='Cash Flow'!$K11*SUMIF($B$81:$B$93,$B13,CI$81:CI$93) -> 1149565.75 | CJ13: ='Cash Flow'!$K11*SUMIF($B$81:$B$93,$B13,CJ$81:CJ$93) -> 1149565.75 | CK13: ='Cash Flow'!$K11*SUMIF($B$81:$B$93,$B13,CK$81:CK$93) -> 1149565.75 | CL13: ='Cash Flow'!$K11*SUMIF($B$81:$B$93,$B13,CL$81:CL$93) -> 1149565.75 | CM13: 13794789 | CP13: ='Cash Flow'!$L11*SUMIF($B$81:$B$93,$B13,CP$81:CP$93) -> 1137198.917 | CQ13: ='Cash Flow'!$L11*SUMIF($B$81:$B$93,$B13,CQ$81:CQ$93) -> 1137198.917 | CR13: ='Cash Flow'!$L11*SUMIF($B$81:$B$93,$B13,CR$81:CR$93) -> 1137198.917 | CS13: ='Cash Flow'!$L11*SUMIF($B$81:$B$93,$B13,CS$81:CS$93) -> 1137198.917 | CT13: ='Cash Flow'!$L11*SUMIF($B$81:$B$93,$B13,CT$81:CT$93) -> 1137198.917 | CU13: ='Cash Flow'!$L11*SUMIF($B$81:$B$93,$B13,CU$81:CU$93) -> 1137198.917 | CV13: ='Cash Flow'!$L11*SUMIF($B$81:$B$93,$B13,CV$81:CV$93) -> 1137198.917 | CW13: ='Cash Flow'!$L11*SUMIF($B$81:$B$93,$B13,CW$81:CW$93) -> 1137198.917 | CX13: ='Cash Flow'!$L11*SUMIF($B$81:$B$93,$B13,CX$81:CX$93) -> 1137198.917 | CY13: ='Cash Flow'!$L11*SUMIF($B$81:$B$93,$B13,CY$81:CY$93) -> 1137198.917 | CZ13: ='Cash Flow'!$L11*SUMIF($B$81:$B$93,$B13,CZ$81:CZ$93) -> 1137198.917 | DA13: ='Cash Flow'!$L11*SUMIF($B$81:$B$93,$B13,DA$81:DA$93) -> 1137198.917 | DB13: 13646387 | DE13: ='Cash Flow'!$M11*SUMIF($B$81:$B$93,$B13,DE$81:DE$93) -> 1144945.083 | DF13: ='Cash Flow'!$M11*SUMIF($B$81:$B$93,$B13,DF$81:DF$93) -> 1144945.083 | DG13: ='Cash Flow'!$M11*SUMIF($B$81:$B$93,$B13,DG$81:DG$93) -> 1144945.083 | DH13: ='Cash Flow'!$M11*SUMIF($B$81:$B$93,$B13,DH$81:DH$93) -> 1144945.083 | DI13: ='Cash Flow'!$M11*SUMIF($B$81:$B$93,$B13,DI$81:DI$93) -> 1144945.083 | DJ13: ='Cash Flow'!$M11*SUMIF($B$81:$B$93,$B13,DJ$81:DJ$93) -> 1144945.083 | DK13: ='Cash Flow'!$M11*SUMIF($B$81:$B$93,$B13,DK$81:DK$93) -> 1144945.083 | DL13: ='Cash Flow'!$M11*SUMIF($B$81:$B$93,$B13,DL$81:DL$93) -> 1144945.083 | DM13: ='Cash Flow'!$M11*SUMIF($B$81:$B$93,$B13,DM$81:DM$93) -> 1144945.083 | DN13: ='Cash Flow'!$M11*SUMIF($B$81:$B$93,$B13,DN$81:DN$93) -> 1144945.083 | DO13: ='Cash Flow'!$M11*SUMIF($B$81:$B$93,$B13,DO$81:DO$93) -> 1144945.083 | DP13: ='Cash Flow'!$M11*SUMIF($B$81:$B$93,$B13,DP$81:DP$93) -> 1144945.083 | DQ13: 13739341 | DT13: ='Cash Flow'!$N11*SUMIF($B$81:$B$93,$B13,DT$81:DT$93) -> 1331689.75 | DU13: ='Cash Flow'!$N11*SUMIF($B$81:$B$93,$B13,DU$81:DU$93) -> 1331689.75 | DV13: ='Cash Flow'!$N11*SUMIF($B$81:$B$93,$B13,DV$81:DV$93) -> 1331689.75 | DW13: ='Cash Flow'!$N11*SUMIF($B$81:$B$93,$B13,DW$81:DW$93) -> 1331689.75 | DX13: ='Cash Flow'!$N11*SUMIF($B$81:$B$93,$B13,DX$81:DX$93) -> 1331689.75 | DY13: ='Cash Flow'!$N11*SUMIF($B$81:$B$93,$B13,DY$81:DY$93) -> 1331689.75 | DZ13: ='Cash Flow'!$N11*SUMIF($B$81:$B$93,$B13,DZ$81:DZ$93) -> 1331689.75 | EA13: ='Cash Flow'!$N11*SUMIF($B$81:$B$93,$B13,EA$81:EA$93) -> 1331689.75 | EB13: ='Cash Flow'!$N11*SUMIF($B$81:$B$93,$B13,EB$81:EB$93) -> 1331689.75 | EC13: ='Cash Flow'!$N11*SUMIF($B$81:$B$93,$B13,EC$81:EC$93) -> 1331689.75 | ED13: ='Cash Flow'!$N11*SUMIF($B$81:$B$93,$B13,ED$81:ED$93) -> 1331689.75 | EE13: ='Cash Flow'!$N11*SUMIF($B$81:$B$93,$B13,EE$81:EE$93) -> 1331689.75 | EF13: 15980277 | EI13: ='Cash Flow'!$O11*SUMIF($B$81:$B$93,$B13,EI$81:EI$93) -> 1222416.5 | EJ13: ='Cash Flow'!$O11*SUMIF($B$81:$B$93,$B13,EJ$81:EJ$93) -> 1222416.5 | EK13: ='Cash Flow'!$O11*SUMIF($B$81:$B$93,$B13,EK$81:EK$93) -> 1222416.5 | EL13: ='Cash Flow'!$O11*SUMIF($B$81:$B$93,$B13,EL$81:EL$93) -> 1222416.5 | EM13: ='Cash Flow'!$O11*SUMIF($B$81:$B$93,$B13,EM$81:EM$93) -> 1222416.5 | EN13: ='Cash Flow'!$O11*SUMIF($B$81:$B$93,$B13,EN$81:EN$93) -> 1222416.5 | EO13: ='Cash Flow'!$O11*SUMIF($B$81:$B$93,$B13,EO$81:EO$93) -> 1222416.5 | EP13: ='Cash Flow'!$O11*SUMIF($B$81:$B$93,$B13,EP$81:EP$93) -> 1222416.5 | EQ13: ='Cash Flow'!$O11*SUMIF($B$81:$B$93,$B13,EQ$81:EQ$93) -> 1222416.5 | ER13: ='Cash Flow'!$O11*SUMIF($B$81:$B$93,$B13,ER$81:ER$93) -> 1222416.5 | ES13: ='Cash Flow'!$O11*SUMIF($B$81:$B$93,$B13,ES$81:ES$93) -> 1222416.5 | ET13: ='Cash Flow'!$O11*SUMIF($B$81:$B$93,$B13,ET$81:ET$93) -> 1222416.5 | EU13: 14668998 | EX13: ='Cash Flow'!$P11*SUMIF($B$81:$B$93,$B13,EX$81:EX$93) -> 1184712.917 | EY13: ='Cash Flow'!$P11*SUMIF($B$81:$B$93,$B13,EY$81:EY$93) -> 1184712.917 | EZ13: ='Cash Flow'!$P11*SUMIF($B$81:$B$93,$B13,EZ$81:EZ$93) -> 1184712.917 | FA13: ='Cash Flow'!$P11*SUMIF($B$81:$B$93,$B13,FA$81:FA$93) -> 1184712.917 | FB13: ='Cash Flow'!$P11*SUMIF($B$81:$B$93,$B13,FB$81:FB$93) -> 1184712.917 | FC13: ='Cash Flow'!$P11*SUMIF($B$81:$B$93,$B13,FC$81:FC$93) -> 1184712.917 | FD13: ='Cash Flow'!$P11*SUMIF($B$81:$B$93,$B13,FD$81:FD$93) -> 1184712.917 | FE13: ='Cash Flow'!$P11*SUMIF($B$81:$B$93,$B13,FE$81:FE$93) -> 1184712.917 | FF13: ='Cash Flow'!$P11*SUMIF($B$81:$B$93,$B13,FF$81:FF$93) -> 1184712.917 | FG13: ='Cash Flow'!$P11*SUMIF($B$81:$B$93,$B13,FG$81:FG$93) -> 1184712.917 | FH13: ='Cash Flow'!$P11*SUMIF($B$81:$B$93,$B13,FH$81:FH$93) -> 1184712.917 | FI13: ='Cash Flow'!$P11*SUMIF($B$81:$B$93,$B13,FI$81:FI$93) -> 1184712.917 | FJ13: 14216555
A14: Grants & Contributions provided for Capital Purposes | B14: 2 | P14: 0 | AE14: 0 | AT14: 0 | BI14: 0 | BX14: 0 | CM14: 0 | DB14: 0 | DQ14: 0 | EF14: 0 | EU14: 0 | FJ14: 0
A15: Bonds & Deposits | B15: 4 | D15: ='Cash Flow'!$E12*SUMIF($B$81:$B$93,$B15,D$81:D$93) -> 0 | E15: ='Cash Flow'!$E12*SUMIF($B$81:$B$93,$B15,E$81:E$93) -> 0 | F15: ='Cash Flow'!$E12*SUMIF($B$81:$B$93,$B15,F$81:F$93) -> 0 | G15: ='Cash Flow'!$E12*SUMIF($B$81:$B$93,$B15,G$81:G$93) -> 0 | H15: ='Cash Flow'!$E12*SUMIF($B$81:$B$93,$B15,H$81:H$93) -> 0 | I15: ='Cash Flow'!$E12*SUMIF($B$81:$B$93,$B15,I$81:I$93) -> 0 | J15: ='Cash Flow'!$E12*SUMIF($B$81:$B$93,$B15,J$81:J$93) -> 0 | K15: ='Cash Flow'!$E12*SUMIF($B$81:$B$93,$B15,K$81:K$93) -> 0 | L15: ='Cash Flow'!$E12*SUMIF($B$81:$B$93,$B15,L$81:L$93) -> 0 | M15: ='Cash Flow'!$E12*SUMIF($B$81:$B$93,$B15,M$81:M$93) -> 0 | N15: ='Cash Flow'!$E12*SUMIF($B$81:$B$93,$B15,N$81:N$93) -> 0 | O15: ='Cash Flow'!$E12*SUMIF($B$81:$B$93,$B15,O$81:O$93) -> 0 | P15: =SUM(D15:O15) -> 0 | S15: ='Cash Flow'!$G12*SUMIF($B$81:$B$93,$B15,S$81:S$93) -> 0 | T15: ='Cash Flow'!$G12*SUMIF($B$81:$B$93,$B15,T$81:T$93) -> 0 | U15: ='Cash Flow'!$G12*SUMIF($B$81:$B$93,$B15,U$81:U$93) -> 0 | V15: ='Cash Flow'!$G12*SUMIF($B$81:$B$93,$B15,V$81:V$93) -> 0 | W15: ='Cash Flow'!$G12*SUMIF($B$81:$B$93,$B15,W$81:W$93) -> 0 | X15: ='Cash Flow'!$G12*SUMIF($B$81:$B$93,$B15,X$81:X$93) -> 0 | Y15: ='Cash Flow'!$G12*SUMIF($B$81:$B$93,$B15,Y$81:Y$93) -> 0 | Z15: ='Cash Flow'!$G12*SUMIF($B$81:$B$93,$B15,Z$81:Z$93) -> 0 | AA15: ='Cash Flow'!$G12*SUMIF($B$81:$B$93,$B15,AA$81:AA$93) -> 0 | AB15: ='Cash Flow'!$G12*SUMIF($B$81:$B$93,$B15,AB$81:AB$93) -> 0 | AC15: ='Cash Flow'!$G12*SUMIF($B$81:$B$93,$B15,AC$81:AC$93) -> 0 | AD15: ='Cash Flow'!$G12*SUMIF($B$81:$B$93,$B15,AD$81:AD$93) -> 0 | AE15: 0 | AH15: ='Cash Flow'!$H12*SUMIF($B$81:$B$93,$B15,AH$81:AH$93) -> 0 | AI15: ='Cash Flow'!$H12*SUMIF($B$81:$B$93,$B15,AI$81:AI$93) -> 0 | AJ15: ='Cash Flow'!$H12*SUMIF($B$81:$B$93,$B15,AJ$81:AJ$93) -> 0 | AK15: ='Cash Flow'!$H12*SUMIF($B$81:$B$93,$B15,AK$81:AK$93) -> 0 | AL15: ='Cash Flow'!$H12*SUMIF($B$81:$B$93,$B15,AL$81:AL$93) -> 0 | AM15: ='Cash Flow'!$H12*SUMIF($B$81:$B$93,$B15,AM$81:AM$93) -> 0 | AN15: ='Cash Flow'!$H12*SUMIF($B$81:$B$93,$B15,AN$81:AN$93) -> 0 | AO15: ='Cash Flow'!$H12*SUMIF($B$81:$B$93,$B15,AO$81:AO$93) -> 0 | AP15: ='Cash Flow'!$H12*SUMIF($B$81:$B$93,$B15,AP$81:AP$93) -> 0 | AQ15: ='Cash Flow'!$H12*SUMIF($B$81:$B$93,$B15,AQ$81:AQ$93) -> 0 | AR15: ='Cash Flow'!$H12*SUMIF($B$81:$B$93,$B15,AR$81:AR$93) -> 0 | AS15: ='Cash Flow'!$H12*SUMIF($B$81:$B$93,$B15,AS$81:AS$93) -> 0 | AT15: 0 | AW15: ='Cash Flow'!$I12*SUMIF($B$81:$B$93,$B15,AW$81:AW$93) -> 0 | AX15: ='Cash Flow'!$I12*SUMIF($B$81:$B$93,$B15,AX$81:AX$93) -> 0 | AY15: ='Cash Flow'!$I12*SUMIF($B$81:$B$93,$B15,AY$81:AY$93) -> 0 | AZ15: ='Cash Flow'!$I12*SUMIF($B$81:$B$93,$B15,AZ$81:AZ$93) -> 0 | BA15: ='Cash Flow'!$I12*SUMIF($B$81:$B$93,$B15,BA$81:BA$93) -> 0 | BB15: ='Cash Flow'!$I12*SUMIF($B$81:$B$93,$B15,BB$81:BB$93) -> 0 | BC15: ='Cash Flow'!$I12*SUMIF($B$81:$B$93,$B15,BC$81:BC$93) -> 0 | BD15: ='Cash Flow'!$I12*SUMIF($B$81:$B$93,$B15,BD$81:BD$93) -> 0 | BE15: ='Cash Flow'!$I12*SUMIF($B$81:$B$93,$B15,BE$81:BE$93) -> 0 | BF15: ='Cash Flow'!$I12*SUMIF($B$81:$B$93,$B15,BF$81:BF$93) -> 0 | BG15: ='Cash Flow'!$I12*SUMIF($B$81:$B$93,$B15,BG$81:BG$93) -> 0 | BH15: ='Cash Flow'!$I12*SUMIF($B$81:$B$93,$B15,BH$81:BH$93) -> 0 | BI15: 0 | BL15: ='Cash Flow'!$J12*SUMIF($B$81:$B$93,$B15,BL$81:BL$93) -> 0 | BM15: ='Cash Flow'!$J12*SUMIF($B$81:$B$93,$B15,BM$81:BM$93) -> 0 | BN15: ='Cash Flow'!$J12*SUMIF($B$81:$B$93,$B15,BN$81:BN$93) -> 0 | BO15: ='Cash Flow'!$J12*SUMIF($B$81:$B$93,$B15,BO$81:BO$93) -> 0 | BP15: ='Cash Flow'!$J12*SUMIF($B$81:$B$93,$B15,BP$81:BP$93) -> 0 | BQ15: ='Cash Flow'!$J12*SUMIF($B$81:$B$93,$B15,BQ$81:BQ$93) -> 0 | BR15: ='Cash Flow'!$J12*SUMIF($B$81:$B$93,$B15,BR$81:BR$93) -> 0 | BS15: ='Cash Flow'!$J12*SUMIF($B$81:$B$93,$B15,BS$81:BS$93) -> 0 | BT15: ='Cash Flow'!$J12*SUMIF($B$81:$B$93,$B15,BT$81:BT$93) -> 0 | BU15: ='Cash Flow'!$J12*SUMIF($B$81:$B$93,$B15,BU$81:BU$93) -> 0 | BV15: ='Cash Flow'!$J12*SUMIF($B$81:$B$93,$B15,BV$81:BV$93) -> 0 | BW15: ='Cash Flow'!$J12*SUMIF($B$81:$B$93,$B15,BW$81:BW$93) -> 0 | BX15: 0 | CA15: ='Cash Flow'!$K12*SUMIF($B$81:$B$93,$B15,CA$81:CA$93) -> 0 | CB15: ='Cash Flow'!$K12*SUMIF($B$81:$B$93,$B15,CB$81:CB$93) -> 0 | CC15: ='Cash Flow'!$K12*SUMIF($B$81:$B$93,$B15,CC$81:CC$93) -> 0 | CD15: ='Cash Flow'!$K12*SUMIF($B$81:$B$93,$B15,CD$81:CD$93) -> 0 | CE15: ='Cash Flow'!$K12*SUMIF($B$81:$B$93,$B15,CE$81:CE$93) -> 0 | CF15: ='Cash Flow'!$K12*SUMIF($B$81:$B$93,$B15,CF$81:CF$93) -> 0 | CG15: ='Cash Flow'!$K12*SUMIF($B$81:$B$93,$B15,CG$81:CG$93) -> 0 | CH15: ='Cash Flow'!$K12*SUMIF($B$81:$B$93,$B15,CH$81:CH$93) -> 0 | CI15: ='Cash Flow'!$K12*SUMIF($B$81:$B$93,$B15,CI$81:CI$93) -> 0 | CJ15: ='Cash Flow'!$K12*SUMIF($B$81:$B$93,$B15,CJ$81:CJ$93) -> 0 | CK15: ='Cash Flow'!$K12*SUMIF($B$81:$B$93,$B15,CK$81:CK$93) -> 0 | CL15: ='Cash Flow'!$K12*SUMIF($B$81:$B$93,$B15,CL$81:CL$93) -> 0 | CM15: 0 | CP15: ='Cash Flow'!$L12*SUMIF($B$81:$B$93,$B15,CP$81:CP$93) -> 0 | CQ15: ='Cash Flow'!$L12*SUMIF($B$81:$B$93,$B15,CQ$81:CQ$93) -> 0 | CR15: ='Cash Flow'!$L12*SUMIF($B$81:$B$93,$B15,CR$81:CR$93) -> 0 | CS15: ='Cash Flow'!$L12*SUMIF($B$81:$B$93,$B15,CS$81:CS$93) -> 0 | CT15: ='Cash Flow'!$L12*SUMIF($B$81:$B$93,$B15,CT$81:CT$93) -> 0 | CU15: ='Cash Flow'!$L12*SUMIF($B$81:$B$93,$B15,CU$81:CU$93) -> 0 | CV15: ='Cash Flow'!$L12*SUMIF($B$81:$B$93,$B15,CV$81:CV$93) -> 0 | CW15: ='Cash Flow'!$L12*SUMIF($B$81:$B$93,$B15,CW$81:CW$93) -> 0 | CX15: ='Cash Flow'!$L12*SUMIF($B$81:$B$93,$B15,CX$81:CX$93) -> 0 | CY15: ='Cash Flow'!$L12*SUMIF($B$81:$B$93,$B15,CY$81:CY$93) -> 0 | CZ15: ='Cash Flow'!$L12*SUMIF($B$81:$B$93,$B15,CZ$81:CZ$93) -> 0 | DA15: ='Cash Flow'!$L12*SUMIF($B$81:$B$93,$B15,DA$81:DA$93) -> 0 | DB15: 0 | DE15: ='Cash Flow'!$M12*SUMIF($B$81:$B$93,$B15,DE$81:DE$93) -> 0 | DF15: ='Cash Flow'!$M12*SUMIF($B$81:$B$93,$B15,DF$81:DF$93) -> 0 | DG15: ='Cash Flow'!$M12*SUMIF($B$81:$B$93,$B15,DG$81:DG$93) -> 0 | DH15: ='Cash Flow'!$M12*SUMIF($B$81:$B$93,$B15,DH$81:DH$93) -> 0 | DI15: ='Cash Flow'!$M12*SUMIF($B$81:$B$93,$B15,DI$81:DI$93) -> 0 | DJ15: ='Cash Flow'!$M12*SUMIF($B$81:$B$93,$B15,DJ$81:DJ$93) -> 0 | DK15: ='Cash Flow'!$M12*SUMIF($B$81:$B$93,$B15,DK$81:DK$93) -> 0 | DL15: ='Cash Flow'!$M12*SUMIF($B$81:$B$93,$B15,DL$81:DL$93) -> 0 | DM15: ='Cash Flow'!$M12*SUMIF($B$81:$B$93,$B15,DM$81:DM$93) -> 0 | DN15: ='Cash Flow'!$M12*SUMIF($B$81:$B$93,$B15,DN$81:DN$93) -> 0 | DO15: ='Cash Flow'!$M12*SUMIF($B$81:$B$93,$B15,DO$81:DO$93) -> 0 | DP15: ='Cash Flow'!$M12*SUMIF($B$81:$B$93,$B15,DP$81:DP$93) -> 0 | DQ15: 0 | DT15: ='Cash Flow'!$N12*SUMIF($B$81:$B$93,$B15,DT$81:DT$93) -> 0 | DU15: ='Cash Flow'!$N12*SUMIF($B$81:$B$93,$B15,DU$81:DU$93) -> 0 | DV15: ='Cash Flow'!$N12*SUMIF($B$81:$B$93,$B15,DV$81:DV$93) -> 0 | DW15: ='Cash Flow'!$N12*SUMIF($B$81:$B$93,$B15,DW$81:DW$93) -> 0 | DX15: ='Cash Flow'!$N12*SUMIF($B$81:$B$93,$B15,DX$81:DX$93) -> 0 | DY15: ='Cash Flow'!$N12*SUMIF($B$81:$B$93,$B15,DY$81:DY$93) -> 0 | DZ15: ='Cash Flow'!$N12*SUMIF($B$81:$B$93,$B15,DZ$81:DZ$93) -> 0 | EA15: ='Cash Flow'!$N12*SUMIF($B$81:$B$93,$B15,EA$81:EA$93) -> 0 | EB15: ='Cash Flow'!$N12*SUMIF($B$81:$B$93,$B15,EB$81:EB$93) -> 0 | EC15: ='Cash Flow'!$N12*SUMIF($B$81:$B$93,$B15,EC$81:EC$93) -> 0 | ED15: ='Cash Flow'!$N12*SUMIF($B$81:$B$93,$B15,ED$81:ED$93) -> 0 | EE15: ='Cash Flow'!$N12*SUMIF($B$81:$B$93,$B15,EE$81:EE$93) -> 0 | EF15: 0 | EI15: ='Cash Flow'!$O12*SUMIF($B$81:$B$93,$B15,EI$81:EI$93) -> 0 | EJ15: ='Cash Flow'!$O12*SUMIF($B$81:$B$93,$B15,EJ$81:EJ$93) -> 0 | EK15: ='Cash Flow'!$O12*SUMIF($B$81:$B$93,$B15,EK$81:EK$93) -> 0 | EL15: ='Cash Flow'!$O12*SUMIF($B$81:$B$93,$B15,EL$81:EL$93) -> 0 | EM15: ='Cash Flow'!$O12*SUMIF($B$81:$B$93,$B15,EM$81:EM$93) -> 0 | EN15: ='Cash Flow'!$O12*SUMIF($B$81:$B$93,$B15,EN$81:EN$93) -> 0 | EO15: ='Cash Flow'!$O12*SUMIF($B$81:$B$93,$B15,EO$81:EO$93) -> 0 | EP15: ='Cash Flow'!$O12*SUMIF($B$81:$B$93,$B15,EP$81:EP$93) -> 0 | EQ15: ='Cash Flow'!$O12*SUMIF($B$81:$B$93,$B15,EQ$81:EQ$93) -> 0 | ER15: ='Cash Flow'!$O12*SUMIF($B$81:$B$93,$B15,ER$81:ER$93) -> 0 | ES15: ='Cash Flow'!$O12*SUMIF($B$81:$B$93,$B15,ES$81:ES$93) -> 0 | ET15: ='Cash Flow'!$O12*SUMIF($B$81:$B$93,$B15,ET$81:ET$93) -> 0 | EU15: 0 | EX15: ='Cash Flow'!$P12*SUMIF($B$81:$B$93,$B15,EX$81:EX$93) -> 0 | EY15: ='Cash Flow'!$P12*SUMIF($B$81:$B$93,$B15,EY$81:EY$93) -> 0 | EZ15: ='Cash Flow'!$P12*SUMIF($B$81:$B$93,$B15,EZ$81:EZ$93) -> 0 | FA15: ='Cash Flow'!$P12*SUMIF($B$81:$B$93,$B15,FA$81:FA$93) -> 0 | FB15: ='Cash Flow'!$P12*SUMIF($B$81:$B$93,$B15,FB$81:FB$93) -> 0 | FC15: ='Cash Flow'!$P12*SUMIF($B$81:$B$93,$B15,FC$81:FC$93) -> 0 | FD15: ='Cash Flow'!$P12*SUMIF($B$81:$B$93,$B15,FD$81:FD$93) -> 0 | FE15: ='Cash Flow'!$P12*SUMIF($B$81:$B$93,$B15,FE$81:FE$93) -> 0 | FF15: ='Cash Flow'!$P12*SUMIF($B$81:$B$93,$B15,FF$81:FF$93) -> 0 | FG15: ='Cash Flow'!$P12*SUMIF($B$81:$B$93,$B15,FG$81:FG$93) -> 0 | FH15: ='Cash Flow'!$P12*SUMIF($B$81:$B$93,$B15,FH$81:FH$93) -> 0 | FI15: ='Cash Flow'!$P12*SUMIF($B$81:$B$93,$B15,FI$81:FI$93) -> 0 | FJ15: 0
A16: Total Operting Inflow | D16: =SUM(D9:D15) -> 3698278.667 | E16: 14391315.47 | F16: 3698278.667 | G16: 3698278.667 | H16: 11718056.27 | I16: 3698278.667 | J16: 3698278.667 | K16: 7708167.467 | L16: 3698278.667 | M16: 3698278.667 | N16: 7708167.467 | O16: 3698278.667 | P16: 71111936 | S16: =SUM(S9:S15) -> 2862005.917 | T16: 13898028.72 | U16: 2862005.917 | V16: 2862005.917 | W16: 11139023.02 | X16: 2862005.917 | Y16: 2862005.917 | Z16: 7000514.467 | AA16: 2862005.917 | AB16: 2862005.917 | AC16: 7000514.467 | AD16: 2862005.917 | AE16: 61934128 | AH16: =SUM(AH9:AH15) -> 2454410.583 | AI16: 13882652.98 | AJ16: 2454410.583 | AK16: 2454410.583 | AL16: 11025592.38 | AM16: 2454410.583 | AN16: 2454410.583 | AO16: 6740001.483 | AP16: 2454410.583 | AQ16: 2454410.583 | AR16: 6740001.483 | AS16: 2454410.583 | AT16: 58023533 | AW16: =SUM(AW9:AW15) -> 2507675.417 | AX16: 14102226.62 | AY16: 2507675.417 | AZ16: 2507675.417 | BA16: 11203588.82 | BB16: 2507675.417 | BC16: 2507675.417 | BD16: 6855632.117 | BE16: 2507675.417 | BF16: 2507675.417 | BG16: 6855632.117 | BH16: 2507675.417 | BI16: 59078483 | BL16: =SUM(BL9:BL15) -> 2604172.083 | BM16: 14612433.28 | BN16: 2604172.083 | BO16: 2604172.083 | BP16: 11610367.98 | BQ16: 2604172.083 | BR16: 2604172.083 | BS16: 7107270.033 | BT16: 2604172.083 | BU16: 2604172.083 | BV16: 7107270.033 | BW16: 2604172.083 | BX16: 61270718 | CA16: =SUM(CA9:CA15) -> 2680519.333 | CB16: 15117404.13 | CC16: 2680519.333 | CD16: 2680519.333 | CE16: 12008182.93 | CF16: 2680519.333 | CG16: 2680519.333 | CH16: 7344351.133 | CI16: 2680519.333 | CJ16: 2680519.333 | CK16: 7344351.133 | CL16: 2680519.333 | CM16: 63258444 | CP16: =SUM(CP9:CP15) -> 2723070.833 | CQ16: 15484037.23 | CR16: 2723070.833 | CS16: 2723070.833 | CT16: 12293795.63 | CU16: 2723070.833 | CV16: 2723070.833 | CW16: 7508433.233 | CX16: 2723070.833 | CY16: 2723070.833 | CZ16: 7508433.233 | DA16: 2723070.833 | DB16: 64579266 | DE16: =SUM(DE9:DE15) -> 2787331 | DF16: 15564798.6 | DG16: 2787331 | DH16: 2787331 | DI16: 12370431.7 | DJ16: 2787331 | DK16: 2787331 | DL16: 7578881.35 | DM16: 2787331 | DN16: 2787331 | DO16: 7578881.35 | DP16: 2787331 | DQ16: 65391641 | DT16: =SUM(DT9:DT15) -> 3034982.833 | DU16: 16272246.03 | DV16: 3034982.833 | DW16: 3034982.833 | DX16: 12962930.23 | DY16: 3034982.833 | DZ16: 3034982.833 | EA16: 7998956.533 | EB16: 3034982.833 | EC16: 3034982.833 | ED16: 7998956.533 | EE16: 3034982.833 | EF16: 69512952 | EI16: =SUM(EI9:EI15) -> 2990491.25 | EJ16: 16704250.05 | EK16: 2990491.25 | EL16: 2990491.25 | EM16: 13275810.35 | EN16: 2990491.25 | EO16: 2990491.25 | EP16: 8133150.8 | EQ16: 2990491.25 | ER16: 2990491.25 | ES16: 8133150.8 | ET16: 2990491.25 | EU16: 70170292 | EX16: =SUM(EX9:EX15) -> 3019458.833 | EY16: 17227024.03 | EZ16: 3019458.833 | FA16: 3019458.833 | FB16: 13675132.73 | FC16: 3019458.833 | FD16: 3019458.833 | FE16: 8347295.783 | FF16: 3019458.833 | FG16: 3019458.833 | FH16: 8347295.783 | FI16: 3019458.833 | FJ16: 71752419
A18: Capital Inflow
A19: New loans raised | B19: 7 | D19: ='Cash Flow'!$E51*SUMIF($B$81:$B$93,$B19,D$81:D$93) -> 0 | E19: ='Cash Flow'!$E51*SUMIF($B$81:$B$93,$B19,E$81:E$93) -> 0 | F19: ='Cash Flow'!$E51*SUMIF($B$81:$B$93,$B19,F$81:F$93) -> 0 | G19: ='Cash Flow'!$E51*SUMIF($B$81:$B$93,$B19,G$81:G$93) -> 0 | H19: ='Cash Flow'!$E51*SUMIF($B$81:$B$93,$B19,H$81:H$93) -> 0 | I19: ='Cash Flow'!$E51*SUMIF($B$81:$B$93,$B19,I$81:I$93) -> 0 | J19: ='Cash Flow'!$E51*SUMIF($B$81:$B$93,$B19,J$81:J$93) -> 0 | K19: ='Cash Flow'!$E51*SUMIF($B$81:$B$93,$B19,K$81:K$93) -> 0 | L19: ='Cash Flow'!$E51*SUMIF($B$81:$B$93,$B19,L$81:L$93) -> 0 | M19: ='Cash Flow'!$E51*SUMIF($B$81:$B$93,$B19,M$81:M$93) -> 0 | N19: ='Cash Flow'!$E51*SUMIF($B$81:$B$93,$B19,N$81:N$93) -> 0 | O19: ='Cash Flow'!$E51*SUMIF($B$81:$B$93,$B19,O$81:O$93) -> 0 | P19: =SUM(D19:O19) -> 0 | S19: ='Cash Flow'!$G51*SUMIF($B$81:$B$93,$B19,S$81:S$93) -> 0 | T19: ='Cash Flow'!$G51*SUMIF($B$81:$B$93,$B19,T$81:T$93) -> 0 | U19: ='Cash Flow'!$G51*SUMIF($B$81:$B$93,$B19,U$81:U$93) -> 0 | V19: ='Cash Flow'!$G51*SUMIF($B$81:$B$93,$B19,V$81:V$93) -> 0 | W19: ='Cash Flow'!$G51*SUMIF($B$81:$B$93,$B19,W$81:W$93) -> 0 | X19: ='Cash Flow'!$G51*SUMIF($B$81:$B$93,$B19,X$81:X$93) -> 0 | Y19: ='Cash Flow'!$G51*SUMIF($B$81:$B$93,$B19,Y$81:Y$93) -> 0 | Z19: ='Cash Flow'!$G51*SUMIF($B$81:$B$93,$B19,Z$81:Z$93) -> 0 | AA19: ='Cash Flow'!$G51*SUMIF($B$81:$B$93,$B19,AA$81:AA$93) -> 0 | AB19: ='Cash Flow'!$G51*SUMIF($B$81:$B$93,$B19,AB$81:AB$93) -> 0 | AC19: ='Cash Flow'!$G51*SUMIF($B$81:$B$93,$B19,AC$81:AC$93) -> 0 | AD19: ='Cash Flow'!$G51*SUMIF($B$81:$B$93,$B19,AD$81:AD$93) -> 0 | AE19: =SUM(S19:AD19) -> 0 | AH19: ='Cash Flow'!$H51*SUMIF($B$81:$B$93,$B19,AH$81:AH$93) -> 0 | AI19: ='Cash Flow'!$H51*SUMIF($B$81:$B$93,$B19,AI$81:AI$93) -> 0 | AJ19: ='Cash Flow'!$H51*SUMIF($B$81:$B$93,$B19,AJ$81:AJ$93) -> 0 | AK19: ='Cash Flow'!$H51*SUMIF($B$81:$B$93,$B19,AK$81:AK$93) -> 0 | AL19: ='Cash Flow'!$H51*SUMIF($B$81:$B$93,$B19,AL$81:AL$93) -> 0 | AM19: ='Cash Flow'!$H51*SUMIF($B$81:$B$93,$B19,AM$81:AM$93) -> 0 | AN19: ='Cash Flow'!$H51*SUMIF($B$81:$B$93,$B19,AN$81:AN$93) -> 0 | AO19: ='Cash Flow'!$H51*SUMIF($B$81:$B$93,$B19,AO$81:AO$93) -> 0 | AP19: ='Cash Flow'!$H51*SUMIF($B$81:$B$93,$B19,AP$81:AP$93) -> 0 | AQ19: ='Cash Flow'!$H51*SUMIF($B$81:$B$93,$B19,AQ$81:AQ$93) -> 0 | AR19: ='Cash Flow'!$H51*SUMIF($B$81:$B$93,$B19,AR$81:AR$93) -> 0 | AS19: ='Cash Flow'!$H51*SUMIF($B$81:$B$93,$B19,AS$81:AS$93) -> 0 | AT19: =SUM(AH19:AS19) -> 0 | AW19: ='Cash Flow'!$I51*SUMIF($B$81:$B$93,$B19,AW$81:AW$93) -> 0 | AX19: ='Cash Flow'!$I51*SUMIF($B$81:$B$93,$B19,AX$81:AX$93) -> 0 | AY19: ='Cash Flow'!$I51*SUMIF($B$81:$B$93,$B19,AY$81:AY$93) -> 0 | AZ19: ='Cash Flow'!$I51*SUMIF($B$81:$B$93,$B19,AZ$81:AZ$93) -> 0 | BA19: ='Cash Flow'!$I51*SUMIF($B$81:$B$93,$B19,BA$81:BA$93) -> 0 | BB19: ='Cash Flow'!$I51*SUMIF($B$81:$B$93,$B19,BB$81:BB$93) -> 0 | BC19: ='Cash Flow'!$I51*SUMIF($B$81:$B$93,$B19,BC$81:BC$93) -> 0 | BD19: ='Cash Flow'!$I51*SUMIF($B$81:$B$93,$B19,BD$81:BD$93) -> 0 | BE19: ='Cash Flow'!$I51*SUMIF($B$81:$B$93,$B19,BE$81:BE$93) -> 0 | BF19: ='Cash Flow'!$I51*SUMIF($B$81:$B$93,$B19,BF$81:BF$93) -> 0 | BG19: ='Cash Flow'!$I51*SUMIF($B$81:$B$93,$B19,BG$81:BG$93) -> 0 | BH19: ='Cash Flow'!$I51*SUMIF($B$81:$B$93,$B19,BH$81:BH$93) -> 0 | BI19: =SUM(AW19:BH19) -> 0 | BL19: ='Cash Flow'!$J51*SUMIF($B$81:$B$93,$B19,BL$81:BL$93) -> 0 | BM19: ='Cash Flow'!$J51*SUMIF($B$81:$B$93,$B19,BM$81:BM$93) -> 0 | BN19: ='Cash Flow'!$J51*SUMIF($B$81:$B$93,$B19,BN$81:BN$93) -> 0 | BO19: ='Cash Flow'!$J51*SUMIF($B$81:$B$93,$B19,BO$81:BO$93) -> 0 | BP19: ='Cash Flow'!$J51*SUMIF($B$81:$B$93,$B19,BP$81:BP$93) -> 0 | BQ19: ='Cash Flow'!$J51*SUMIF($B$81:$B$93,$B19,BQ$81:BQ$93) -> 0 | BR19: ='Cash Flow'!$J51*SUMIF($B$81:$B$93,$B19,BR$81:BR$93) -> 0 | BS19: ='Cash Flow'!$J51*SUMIF($B$81:$B$93,$B19,BS$81:BS$93) -> 0 | BT19: ='Cash Flow'!$J51*SUMIF($B$81:$B$93,$B19,BT$81:BT$93) -> 0 | BU19: ='Cash Flow'!$J51*SUMIF($B$81:$B$93,$B19,BU$81:BU$93) -> 0 | BV19: ='Cash Flow'!$J51*SUMIF($B$81:$B$93,$B19,BV$81:BV$93) -> 0 | BW19: ='Cash Flow'!$J51*SUMIF($B$81:$B$93,$B19,BW$81:BW$93) -> 0 | BX19: =SUM(BL19:BW19) -> 0 | CA19: ='Cash Flow'!$K51*SUMIF($B$81:$B$93,$B19,CA$81:CA$93) -> 0 | CB19: ='Cash Flow'!$K51*SUMIF($B$81:$B$93,$B19,CB$81:CB$93) -> 0 | CC19: ='Cash Flow'!$K51*SUMIF($B$81:$B$93,$B19,CC$81:CC$93) -> 0 | CD19: ='Cash Flow'!$K51*SUMIF($B$81:$B$93,$B19,CD$81:CD$93) -> 0 | CE19: ='Cash Flow'!$K51*SUMIF($B$81:$B$93,$B19,CE$81:CE$93) -> 0 | CF19: ='Cash Flow'!$K51*SUMIF($B$81:$B$93,$B19,CF$81:CF$93) -> 0 | CG19: ='Cash Flow'!$K51*SUMIF($B$81:$B$93,$B19,CG$81:CG$93) -> 0 | CH19: ='Cash Flow'!$K51*SUMIF($B$81:$B$93,$B19,CH$81:CH$93) -> 0 | CI19: ='Cash Flow'!$K51*SUMIF($B$81:$B$93,$B19,CI$81:CI$93) -> 0 | CJ19: ='Cash Flow'!$K51*SUMIF($B$81:$B$93,$B19,CJ$81:CJ$93) -> 0 | CK19: ='Cash Flow'!$K51*SUMIF($B$81:$B$93,$B19,CK$81:CK$93) -> 0 | CL19: ='Cash Flow'!$K51*SUMIF($B$81:$B$93,$B19,CL$81:CL$93) -> 0 | CM19: =SUM(CA19:CL19) -> 0 | CP19: ='Cash Flow'!$L51*SUMIF($B$81:$B$93,$B19,CP$81:CP$93) -> 0 | CQ19: ='Cash Flow'!$L51*SUMIF($B$81:$B$93,$B19,CQ$81:CQ$93) -> 0 | CR19: ='Cash Flow'!$L51*SUMIF($B$81:$B$93,$B19,CR$81:CR$93) -> 0 | CS19: ='Cash Flow'!$L51*SUMIF($B$81:$B$93,$B19,CS$81:CS$93) -> 0 | CT19: ='Cash Flow'!$L51*SUMIF($B$81:$B$93,$B19,CT$81:CT$93) -> 0 | CU19: ='Cash Flow'!$L51*SUMIF($B$81:$B$93,$B19,CU$81:CU$93) -> 0 | CV19: ='Cash Flow'!$L51*SUMIF($B$81:$B$93,$B19,CV$81:CV$93) -> 0 | CW19: ='Cash Flow'!$L51*SUMIF($B$81:$B$93,$B19,CW$81:CW$93) -> 0 | CX19: ='Cash Flow'!$L51*SUMIF($B$81:$B$93,$B19,CX$81:CX$93) -> 0 | CY19: ='Cash Flow'!$L51*SUMIF($B$81:$B$93,$B19,CY$81:CY$93) -> 0 | CZ19: ='Cash Flow'!$L51*SUMIF($B$81:$B$93,$B19,CZ$81:CZ$93) -> 0 | DA19: ='Cash Flow'!$L51*SUMIF($B$81:$B$93,$B19,DA$81:DA$93) -> 0 | DB19: =SUM(CP19:DA19) -> 0 | DE19: ='Cash Flow'!$M51*SUMIF($B$81:$B$93,$B19,DE$81:DE$93) -> 0 | DF19: ='Cash Flow'!$M51*SUMIF($B$81:$B$93,$B19,DF$81:DF$93) -> 0 | DG19: ='Cash Flow'!$M51*SUMIF($B$81:$B$93,$B19,DG$81:DG$93) -> 0 | DH19: ='Cash Flow'!$M51*SUMIF($B$81:$B$93,$B19,DH$81:DH$93) -> 0 | DI19: ='Cash Flow'!$M51*SUMIF($B$81:$B$93,$B19,DI$81:DI$93) -> 0 | DJ19: ='Cash Flow'!$M51*SUMIF($B$81:$B$93,$B19,DJ$81:DJ$93) -> 0 | DK19: ='Cash Flow'!$M51*SUMIF($B$81:$B$93,$B19,DK$81:DK$93) -> 0 | DL19: ='Cash Flow'!$M51*SUMIF($B$81:$B$93,$B19,DL$81:DL$93) -> 0 | DM19: ='Cash Flow'!$M51*SUMIF($B$81:$B$93,$B19,DM$81:DM$93) -> 0 | DN19: ='Cash Flow'!$M51*SUMIF($B$81:$B$93,$B19,DN$81:DN$93) -> 0 | DO19: ='Cash Flow'!$M51*SUMIF($B$81:$B$93,$B19,DO$81:DO$93) -> 0 | DP19: ='Cash Flow'!$M51*SUMIF($B$81:$B$93,$B19,DP$81:DP$93) -> 0 | DQ19: =SUM(DE19:DP19) -> 0 | DT19: ='Cash Flow'!$N51*SUMIF($B$81:$B$93,$B19,DT$81:DT$93) -> 0 | DU19: ='Cash Flow'!$N51*SUMIF($B$81:$B$93,$B19,DU$81:DU$93) -> 0 | DV19: ='Cash Flow'!$N51*SUMIF($B$81:$B$93,$B19,DV$81:DV$93) -> 0 | DW19: ='Cash Flow'!$N51*SUMIF($B$81:$B$93,$B19,DW$81:DW$93) -> 0 | DX19: ='Cash Flow'!$N51*SUMIF($B$81:$B$93,$B19,DX$81:DX$93) -> 0 | DY19: ='Cash Flow'!$N51*SUMIF($B$81:$B$93,$B19,DY$81:DY$93) -> 0 | DZ19: ='Cash Flow'!$N51*SUMIF($B$81:$B$93,$B19,DZ$81:DZ$93) -> 0 | EA19: ='Cash Flow'!$N51*SUMIF($B$81:$B$93,$B19,EA$81:EA$93) -> 0 | EB19: ='Cash Flow'!$N51*SUMIF($B$81:$B$93,$B19,EB$81:EB$93) -> 0 | EC19: ='Cash Flow'!$N51*SUMIF($B$81:$B$93,$B19,EC$81:EC$93) -> 0 | ED19: ='Cash Flow'!$N51*SUMIF($B$81:$B$93,$B19,ED$81:ED$93) -> 0 | EE19: ='Cash Flow'!$N51*SUMIF($B$81:$B$93,$B19,EE$81:EE$93) -> 0 | EF19: =SUM(DT19:EE19) -> 0 | EI19: ='Cash Flow'!$O51*SUMIF($B$81:$B$93,$B19,EI$81:EI$93) -> 0 | EJ19: ='Cash Flow'!$O51*SUMIF($B$81:$B$93,$B19,EJ$81:EJ$93) -> 0 | EK19: ='Cash Flow'!$O51*SUMIF($B$81:$B$93,$B19,EK$81:EK$93) -> 0 | EL19: ='Cash Flow'!$O51*SUMIF($B$81:$B$93,$B19,EL$81:EL$93) -> 0 | EM19: ='Cash Flow'!$O51*SUMIF($B$81:$B$93,$B19,EM$81:EM$93) -> 0 | EN19: ='Cash Flow'!$O51*SUMIF($B$81:$B$93,$B19,EN$81:EN$93) -> 0 | EO19: ='Cash Flow'!$O51*SUMIF($B$81:$B$93,$B19,EO$81:EO$93) -> 0 | EP19: ='Cash Flow'!$O51*SUMIF($B$81:$B$93,$B19,EP$81:EP$93) -> 0 | EQ19: ='Cash Flow'!$O51*SUMIF($B$81:$B$93,$B19,EQ$81:EQ$93) -> 0 | ER19: ='Cash Flow'!$O51*SUMIF($B$81:$B$93,$B19,ER$81:ER$93) -> 0 | ES19: ='Cash Flow'!$O51*SUMIF($B$81:$B$93,$B19,ES$81:ES$93) -> 0 | ET19: ='Cash Flow'!$O51*SUMIF($B$81:$B$93,$B19,ET$81:ET$93) -> 0 | EU19: =SUM(EI19:ET19) -> 0 | EX19: ='Cash Flow'!$P51*SUMIF($B$81:$B$93,$B19,EX$81:EX$93) -> 0 | EY19: ='Cash Flow'!$P51*SUMIF($B$81:$B$93,$B19,EY$81:EY$93) -> 0 | EZ19: ='Cash Flow'!$P51*SUMIF($B$81:$B$93,$B19,EZ$81:EZ$93) -> 0 | FA19: ='Cash Flow'!$P51*SUMIF($B$81:$B$93,$B19,FA$81:FA$93) -> 0 | FB19: ='Cash Flow'!$P51*SUMIF($B$81:$B$93,$B19,FB$81:FB$93) -> 0 | FC19: ='Cash Flow'!$P51*SUMIF($B$81:$B$93,$B19,FC$81:FC$93) -> 0 | FD19: ='Cash Flow'!$P51*SUMIF($B$81:$B$93,$B19,FD$81:FD$93) -> 0 | FE19: ='Cash Flow'!$P51*SUMIF($B$81:$B$93,$B19,FE$81:FE$93) -> 0 | FF19: ='Cash Flow'!$P51*SUMIF($B$81:$B$93,$B19,FF$81:FF$93) -> 0 | FG19: ='Cash Flow'!$P51*SUMIF($B$81:$B$93,$B19,FG$81:FG$93) -> 0 | FH19: ='Cash Flow'!$P51*SUMIF($B$81:$B$93,$B19,FH$81:FH$93) -> 0 | FI19: ='Cash Flow'!$P51*SUMIF($B$81:$B$93,$B19,FI$81:FI$93) -> 0 | FJ19: =SUM(EX19:FI19) -> 0
A20: New Finance Leases | B20: 7 | D20: ='Cash Flow'!$E52*SUMIF($B$81:$B$93,$B20,D$81:D$93) -> 0 | E20: ='Cash Flow'!$E52*SUMIF($B$81:$B$93,$B20,E$81:E$93) -> 0 | F20: ='Cash Flow'!$E52*SUMIF($B$81:$B$93,$B20,F$81:F$93) -> 0 | G20: ='Cash Flow'!$E52*SUMIF($B$81:$B$93,$B20,G$81:G$93) -> 0 | H20: ='Cash Flow'!$E52*SUMIF($B$81:$B$93,$B20,H$81:H$93) -> 0 | I20: ='Cash Flow'!$E52*SUMIF($B$81:$B$93,$B20,I$81:I$93) -> 0 | J20: ='Cash Flow'!$E52*SUMIF($B$81:$B$93,$B20,J$81:J$93) -> 0 | K20: ='Cash Flow'!$E52*SUMIF($B$81:$B$93,$B20,K$81:K$93) -> 0 | L20: ='Cash Flow'!$E52*SUMIF($B$81:$B$93,$B20,L$81:L$93) -> 0 | M20: ='Cash Flow'!$E52*SUMIF($B$81:$B$93,$B20,M$81:M$93) -> 0 | N20: ='Cash Flow'!$E52*SUMIF($B$81:$B$93,$B20,N$81:N$93) -> 0 | O20: ='Cash Flow'!$E52*SUMIF($B$81:$B$93,$B20,O$81:O$93) -> 0 | P20: 0 | S20: ='Cash Flow'!$G52*SUMIF($B$81:$B$93,$B20,S$81:S$93) -> 0 | T20: ='Cash Flow'!$G52*SUMIF($B$81:$B$93,$B20,T$81:T$93) -> 0 | U20: ='Cash Flow'!$G52*SUMIF($B$81:$B$93,$B20,U$81:U$93) -> 0 | V20: ='Cash Flow'!$G52*SUMIF($B$81:$B$93,$B20,V$81:V$93) -> 0 | W20: ='Cash Flow'!$G52*SUMIF($B$81:$B$93,$B20,W$81:W$93) -> 0 | X20: ='Cash Flow'!$G52*SUMIF($B$81:$B$93,$B20,X$81:X$93) -> 0 | Y20: ='Cash Flow'!$G52*SUMIF($B$81:$B$93,$B20,Y$81:Y$93) -> 0 | Z20: ='Cash Flow'!$G52*SUMIF($B$81:$B$93,$B20,Z$81:Z$93) -> 0 | AA20: ='Cash Flow'!$G52*SUMIF($B$81:$B$93,$B20,AA$81:AA$93) -> 0 | AB20: ='Cash Flow'!$G52*SUMIF($B$81:$B$93,$B20,AB$81:AB$93) -> 0 | AC20: ='Cash Flow'!$G52*SUMIF($B$81:$B$93,$B20,AC$81:AC$93) -> 0 | AD20: ='Cash Flow'!$G52*SUMIF($B$81:$B$93,$B20,AD$81:AD$93) -> 0 | AE20: 0 | AH20: ='Cash Flow'!$H52*SUMIF($B$81:$B$93,$B20,AH$81:AH$93) -> 0 | AI20: ='Cash Flow'!$H52*SUMIF($B$81:$B$93,$B20,AI$81:AI$93) -> 0 | AJ20: ='Cash Flow'!$H52*SUMIF($B$81:$B$93,$B20,AJ$81:AJ$93) -> 0 | AK20: ='Cash Flow'!$H52*SUMIF($B$81:$B$93,$B20,AK$81:AK$93) -> 0 | AL20: ='Cash Flow'!$H52*SUMIF($B$81:$B$93,$B20,AL$81:AL$93) -> 0 | AM20: ='Cash Flow'!$H52*SUMIF($B$81:$B$93,$B20,AM$81:AM$93) -> 0 | AN20: ='Cash Flow'!$H52*SUMIF($B$81:$B$93,$B20,AN$81:AN$93) -> 0 | AO20: ='Cash Flow'!$H52*SUMIF($B$81:$B$93,$B20,AO$81:AO$93) -> 0 | AP20: ='Cash Flow'!$H52*SUMIF($B$81:$B$93,$B20,AP$81:AP$93) -> 0 | AQ20: ='Cash Flow'!$H52*SUMIF($B$81:$B$93,$B20,AQ$81:AQ$93) -> 0 | AR20: ='Cash Flow'!$H52*SUMIF($B$81:$B$93,$B20,AR$81:AR$93) -> 0 | AS20: ='Cash Flow'!$H52*SUMIF($B$81:$B$93,$B20,AS$81:AS$93) -> 0 | AT20: 0 | AW20: ='Cash Flow'!$I52*SUMIF($B$81:$B$93,$B20,AW$81:AW$93) -> 0 | AX20: ='Cash Flow'!$I52*SUMIF($B$81:$B$93,$B20,AX$81:AX$93) -> 0 | AY20: ='Cash Flow'!$I52*SUMIF($B$81:$B$93,$B20,AY$81:AY$93) -> 0 | AZ20: ='Cash Flow'!$I52*SUMIF($B$81:$B$93,$B20,AZ$81:AZ$93) -> 0 | BA20: ='Cash Flow'!$I52*SUMIF($B$81:$B$93,$B20,BA$81:BA$93) -> 0 | BB20: ='Cash Flow'!$I52*SUMIF($B$81:$B$93,$B20,BB$81:BB$93) -> 0 | BC20: ='Cash Flow'!$I52*SUMIF($B$81:$B$93,$B20,BC$81:BC$93) -> 0 | BD20: ='Cash Flow'!$I52*SUMIF($B$81:$B$93,$B20,BD$81:BD$93) -> 0 | BE20: ='Cash Flow'!$I52*SUMIF($B$81:$B$93,$B20,BE$81:BE$93) -> 0 | BF20: ='Cash Flow'!$I52*SUMIF($B$81:$B$93,$B20,BF$81:BF$93) -> 0 | BG20: ='Cash Flow'!$I52*SUMIF($B$81:$B$93,$B20,BG$81:BG$93) -> 0 | BH20: ='Cash Flow'!$I52*SUMIF($B$81:$B$93,$B20,BH$81:BH$93) -> 0 | BI20: 0 | BL20: ='Cash Flow'!$J52*SUMIF($B$81:$B$93,$B20,BL$81:BL$93) -> 0 | BM20: ='Cash Flow'!$J52*SUMIF($B$81:$B$93,$B20,BM$81:BM$93) -> 0 | BN20: ='Cash Flow'!$J52*SUMIF($B$81:$B$93,$B20,BN$81:BN$93) -> 0 | BO20: ='Cash Flow'!$J52*SUMIF($B$81:$B$93,$B20,BO$81:BO$93) -> 0 | BP20: ='Cash Flow'!$J52*SUMIF($B$81:$B$93,$B20,BP$81:BP$93) -> 0 | BQ20: ='Cash Flow'!$J52*SUMIF($B$81:$B$93,$B20,BQ$81:BQ$93) -> 0 | BR20: ='Cash Flow'!$J52*SUMIF($B$81:$B$93,$B20,BR$81:BR$93) -> 0 | BS20: ='Cash Flow'!$J52*SUMIF($B$81:$B$93,$B20,BS$81:BS$93) -> 0 | BT20: ='Cash Flow'!$J52*SUMIF($B$81:$B$93,$B20,BT$81:BT$93) -> 0 | BU20: ='Cash Flow'!$J52*SUMIF($B$81:$B$93,$B20,BU$81:BU$93) -> 0 | BV20: ='Cash Flow'!$J52*SUMIF($B$81:$B$93,$B20,BV$81:BV$93) -> 0 | BW20: ='Cash Flow'!$J52*SUMIF($B$81:$B$93,$B20,BW$81:BW$93) -> 0 | BX20: 0 | CA20: ='Cash Flow'!$K52*SUMIF($B$81:$B$93,$B20,CA$81:CA$93) -> 0 | CB20: ='Cash Flow'!$K52*SUMIF($B$81:$B$93,$B20,CB$81:CB$93) -> 0 | CC20: ='Cash Flow'!$K52*SUMIF($B$81:$B$93,$B20,CC$81:CC$93) -> 0 | CD20: ='Cash Flow'!$K52*SUMIF($B$81:$B$93,$B20,CD$81:CD$93) -> 0 | CE20: ='Cash Flow'!$K52*SUMIF($B$81:$B$93,$B20,CE$81:CE$93) -> 0 | CF20: ='Cash Flow'!$K52*SUMIF($B$81:$B$93,$B20,CF$81:CF$93) -> 0 | CG20: ='Cash Flow'!$K52*SUMIF($B$81:$B$93,$B20,CG$81:CG$93) -> 0 | CH20: ='Cash Flow'!$K52*SUMIF($B$81:$B$93,$B20,CH$81:CH$93) -> 0 | CI20: ='Cash Flow'!$K52*SUMIF($B$81:$B$93,$B20,CI$81:CI$93) -> 0 | CJ20: ='Cash Flow'!$K52*SUMIF($B$81:$B$93,$B20,CJ$81:CJ$93) -> 0 | CK20: ='Cash Flow'!$K52*SUMIF($B$81:$B$93,$B20,CK$81:CK$93) -> 0 | CL20: ='Cash Flow'!$K52*SUMIF($B$81:$B$93,$B20,CL$81:CL$93) -> 0 | CM20: 0 | CP20: ='Cash Flow'!$L52*SUMIF($B$81:$B$93,$B20,CP$81:CP$93) -> 0 | CQ20: ='Cash Flow'!$L52*SUMIF($B$81:$B$93,$B20,CQ$81:CQ$93) -> 0 | CR20: ='Cash Flow'!$L52*SUMIF($B$81:$B$93,$B20,CR$81:CR$93) -> 0 | CS20: ='Cash Flow'!$L52*SUMIF($B$81:$B$93,$B20,CS$81:CS$93) -> 0 | CT20: ='Cash Flow'!$L52*SUMIF($B$81:$B$93,$B20,CT$81:CT$93) -> 0 | CU20: ='Cash Flow'!$L52*SUMIF($B$81:$B$93,$B20,CU$81:CU$93) -> 0 | CV20: ='Cash Flow'!$L52*SUMIF($B$81:$B$93,$B20,CV$81:CV$93) -> 0 | CW20: ='Cash Flow'!$L52*SUMIF($B$81:$B$93,$B20,CW$81:CW$93) -> 0 | CX20: ='Cash Flow'!$L52*SUMIF($B$81:$B$93,$B20,CX$81:CX$93) -> 0 | CY20: ='Cash Flow'!$L52*SUMIF($B$81:$B$93,$B20,CY$81:CY$93) -> 0 | CZ20: ='Cash Flow'!$L52*SUMIF($B$81:$B$93,$B20,CZ$81:CZ$93) -> 0 | DA20: ='Cash Flow'!$L52*SUMIF($B$81:$B$93,$B20,DA$81:DA$93) -> 0 | DB20: 0 | DE20: ='Cash Flow'!$M52*SUMIF($B$81:$B$93,$B20,DE$81:DE$93) -> 0 | DF20: ='Cash Flow'!$M52*SUMIF($B$81:$B$93,$B20,DF$81:DF$93) -> 0 | DG20: ='Cash Flow'!$M52*SUMIF($B$81:$B$93,$B20,DG$81:DG$93) -> 0 | DH20: ='Cash Flow'!$M52*SUMIF($B$81:$B$93,$B20,DH$81:DH$93) -> 0 | DI20: ='Cash Flow'!$M52*SUMIF($B$81:$B$93,$B20,DI$81:DI$93) -> 0 | DJ20: ='Cash Flow'!$M52*SUMIF($B$81:$B$93,$B20,DJ$81:DJ$93) -> 0 | DK20: ='Cash Flow'!$M52*SUMIF($B$81:$B$93,$B20,DK$81:DK$93) -> 0 | DL20: ='Cash Flow'!$M52*SUMIF($B$81:$B$93,$B20,DL$81:DL$93) -> 0 | DM20: ='Cash Flow'!$M52*SUMIF($B$81:$B$93,$B20,DM$81:DM$93) -> 0 | DN20: ='Cash Flow'!$M52*SUMIF($B$81:$B$93,$B20,DN$81:DN$93) -> 0 | DO20: ='Cash Flow'!$M52*SUMIF($B$81:$B$93,$B20,DO$81:DO$93) -> 0 | DP20: ='Cash Flow'!$M52*SUMIF($B$81:$B$93,$B20,DP$81:DP$93) -> 0 | DQ20: 0 | DT20: ='Cash Flow'!$N52*SUMIF($B$81:$B$93,$B20,DT$81:DT$93) -> 0 | DU20: ='Cash Flow'!$N52*SUMIF($B$81:$B$93,$B20,DU$81:DU$93) -> 0 | DV20: ='Cash Flow'!$N52*SUMIF($B$81:$B$93,$B20,DV$81:DV$93) -> 0 | DW20: ='Cash Flow'!$N52*SUMIF($B$81:$B$93,$B20,DW$81:DW$93) -> 0 | DX20: ='Cash Flow'!$N52*SUMIF($B$81:$B$93,$B20,DX$81:DX$93) -> 0 | DY20: ='Cash Flow'!$N52*SUMIF($B$81:$B$93,$B20,DY$81:DY$93) -> 0 | DZ20: ='Cash Flow'!$N52*SUMIF($B$81:$B$93,$B20,DZ$81:DZ$93) -> 0 | EA20: ='Cash Flow'!$N52*SUMIF($B$81:$B$93,$B20,EA$81:EA$93) -> 0 | EB20: ='Cash Flow'!$N52*SUMIF($B$81:$B$93,$B20,EB$81:EB$93) -> 0 | EC20: ='Cash Flow'!$N52*SUMIF($B$81:$B$93,$B20,EC$81:EC$93) -> 0 | ED20: ='Cash Flow'!$N52*SUMIF($B$81:$B$93,$B20,ED$81:ED$93) -> 0 | EE20: ='Cash Flow'!$N52*SUMIF($B$81:$B$93,$B20,EE$81:EE$93) -> 0 | EF20: 0 | EI20: ='Cash Flow'!$O52*SUMIF($B$81:$B$93,$B20,EI$81:EI$93) -> 0 | EJ20: ='Cash Flow'!$O52*SUMIF($B$81:$B$93,$B20,EJ$81:EJ$93) -> 0 | EK20: ='Cash Flow'!$O52*SUMIF($B$81:$B$93,$B20,EK$81:EK$93) -> 0 | EL20: ='Cash Flow'!$O52*SUMIF($B$81:$B$93,$B20,EL$81:EL$93) -> 0 | EM20: ='Cash Flow'!$O52*SUMIF($B$81:$B$93,$B20,EM$81:EM$93) -> 0 | EN20: ='Cash Flow'!$O52*SUMIF($B$81:$B$93,$B20,EN$81:EN$93) -> 0 | EO20: ='Cash Flow'!$O52*SUMIF($B$81:$B$93,$B20,EO$81:EO$93) -> 0 | EP20: ='Cash Flow'!$O52*SUMIF($B$81:$B$93,$B20,EP$81:EP$93) -> 0 | EQ20: ='Cash Flow'!$O52*SUMIF($B$81:$B$93,$B20,EQ$81:EQ$93) -> 0 | ER20: ='Cash Flow'!$O52*SUMIF($B$81:$B$93,$B20,ER$81:ER$93) -> 0 | ES20: ='Cash Flow'!$O52*SUMIF($B$81:$B$93,$B20,ES$81:ES$93) -> 0 | ET20: ='Cash Flow'!$O52*SUMIF($B$81:$B$93,$B20,ET$81:ET$93) -> 0 | EU20: 0 | EX20: ='Cash Flow'!$P52*SUMIF($B$81:$B$93,$B20,EX$81:EX$93) -> 0 | EY20: ='Cash Flow'!$P52*SUMIF($B$81:$B$93,$B20,EY$81:EY$93) -> 0 | EZ20: ='Cash Flow'!$P52*SUMIF($B$81:$B$93,$B20,EZ$81:EZ$93) -> 0 | FA20: ='Cash Flow'!$P52*SUMIF($B$81:$B$93,$B20,FA$81:FA$93) -> 0 | FB20: ='Cash Flow'!$P52*SUMIF($B$81:$B$93,$B20,FB$81:FB$93) -> 0 | FC20: ='Cash Flow'!$P52*SUMIF($B$81:$B$93,$B20,FC$81:FC$93) -> 0 | FD20: ='Cash Flow'!$P52*SUMIF($B$81:$B$93,$B20,FD$81:FD$93) -> 0 | FE20: ='Cash Flow'!$P52*SUMIF($B$81:$B$93,$B20,FE$81:FE$93) -> 0 | FF20: ='Cash Flow'!$P52*SUMIF($B$81:$B$93,$B20,FF$81:FF$93) -> 0 | FG20: ='Cash Flow'!$P52*SUMIF($B$81:$B$93,$B20,FG$81:FG$93) -> 0 | FH20: ='Cash Flow'!$P52*SUMIF($B$81:$B$93,$B20,FH$81:FH$93) -> 0 | FI20: ='Cash Flow'!$P52*SUMIF($B$81:$B$93,$B20,FI$81:FI$93) -> 0 | FJ20: 0
A21: New Other Borrowings | B21: 7 | D21: ='Cash Flow'!$E53*SUMIF($B$81:$B$93,$B21,D$81:D$93) -> 0 | E21: ='Cash Flow'!$E53*SUMIF($B$81:$B$93,$B21,E$81:E$93) -> 0 | F21: ='Cash Flow'!$E53*SUMIF($B$81:$B$93,$B21,F$81:F$93) -> 0 | G21: ='Cash Flow'!$E53*SUMIF($B$81:$B$93,$B21,G$81:G$93) -> 0 | H21: ='Cash Flow'!$E53*SUMIF($B$81:$B$93,$B21,H$81:H$93) -> 0 | I21: ='Cash Flow'!$E53*SUMIF($B$81:$B$93,$B21,I$81:I$93) -> 0 | J21: ='Cash Flow'!$E53*SUMIF($B$81:$B$93,$B21,J$81:J$93) -> 0 | K21: ='Cash Flow'!$E53*SUMIF($B$81:$B$93,$B21,K$81:K$93) -> 0 | L21: ='Cash Flow'!$E53*SUMIF($B$81:$B$93,$B21,L$81:L$93) -> 0 | M21: ='Cash Flow'!$E53*SUMIF($B$81:$B$93,$B21,M$81:M$93) -> 0 | N21: ='Cash Flow'!$E53*SUMIF($B$81:$B$93,$B21,N$81:N$93) -> 0 | O21: ='Cash Flow'!$E53*SUMIF($B$81:$B$93,$B21,O$81:O$93) -> 0 | P21: 0 | S21: ='Cash Flow'!$G53*SUMIF($B$81:$B$93,$B21,S$81:S$93) -> 0 | T21: ='Cash Flow'!$G53*SUMIF($B$81:$B$93,$B21,T$81:T$93) -> 0 | U21: ='Cash Flow'!$G53*SUMIF($B$81:$B$93,$B21,U$81:U$93) -> 0 | V21: ='Cash Flow'!$G53*SUMIF($B$81:$B$93,$B21,V$81:V$93) -> 0 | W21: ='Cash Flow'!$G53*SUMIF($B$81:$B$93,$B21,W$81:W$93) -> 0 | X21: ='Cash Flow'!$G53*SUMIF($B$81:$B$93,$B21,X$81:X$93) -> 0 | Y21: ='Cash Flow'!$G53*SUMIF($B$81:$B$93,$B21,Y$81:Y$93) -> 0 | Z21: ='Cash Flow'!$G53*SUMIF($B$81:$B$93,$B21,Z$81:Z$93) -> 0 | AA21: ='Cash Flow'!$G53*SUMIF($B$81:$B$93,$B21,AA$81:AA$93) -> 0 | AB21: ='Cash Flow'!$G53*SUMIF($B$81:$B$93,$B21,AB$81:AB$93) -> 0 | AC21: ='Cash Flow'!$G53*SUMIF($B$81:$B$93,$B21,AC$81:AC$93) -> 0 | AD21: ='Cash Flow'!$G53*SUMIF($B$81:$B$93,$B21,AD$81:AD$93) -> 0 | AE21: 0 | AH21: ='Cash Flow'!$H53*SUMIF($B$81:$B$93,$B21,AH$81:AH$93) -> 0 | AI21: ='Cash Flow'!$H53*SUMIF($B$81:$B$93,$B21,AI$81:AI$93) -> 0 | AJ21: ='Cash Flow'!$H53*SUMIF($B$81:$B$93,$B21,AJ$81:AJ$93) -> 0 | AK21: ='Cash Flow'!$H53*SUMIF($B$81:$B$93,$B21,AK$81:AK$93) -> 0 | AL21: ='Cash Flow'!$H53*SUMIF($B$81:$B$93,$B21,AL$81:AL$93) -> 0 | AM21: ='Cash Flow'!$H53*SUMIF($B$81:$B$93,$B21,AM$81:AM$93) -> 0 | AN21: ='Cash Flow'!$H53*SUMIF($B$81:$B$93,$B21,AN$81:AN$93) -> 0 | AO21: ='Cash Flow'!$H53*SUMIF($B$81:$B$93,$B21,AO$81:AO$93) -> 0 | AP21: ='Cash Flow'!$H53*SUMIF($B$81:$B$93,$B21,AP$81:AP$93) -> 0 | AQ21: ='Cash Flow'!$H53*SUMIF($B$81:$B$93,$B21,AQ$81:AQ$93) -> 0 | AR21: ='Cash Flow'!$H53*SUMIF($B$81:$B$93,$B21,AR$81:AR$93) -> 0 | AS21: ='Cash Flow'!$H53*SUMIF($B$81:$B$93,$B21,AS$81:AS$93) -> 0 | AT21: 0 | AW21: ='Cash Flow'!$I53*SUMIF($B$81:$B$93,$B21,AW$81:AW$93) -> 0 | AX21: ='Cash Flow'!$I53*SUMIF($B$81:$B$93,$B21,AX$81:AX$93) -> 0 | AY21: ='Cash Flow'!$I53*SUMIF($B$81:$B$93,$B21,AY$81:AY$93) -> 0 | AZ21: ='Cash Flow'!$I53*SUMIF($B$81:$B$93,$B21,AZ$81:AZ$93) -> 0 | BA21: ='Cash Flow'!$I53*SUMIF($B$81:$B$93,$B21,BA$81:BA$93) -> 0 | BB21: ='Cash Flow'!$I53*SUMIF($B$81:$B$93,$B21,BB$81:BB$93) -> 0 | BC21: ='Cash Flow'!$I53*SUMIF($B$81:$B$93,$B21,BC$81:BC$93) -> 0 | BD21: ='Cash Flow'!$I53*SUMIF($B$81:$B$93,$B21,BD$81:BD$93) -> 0 | BE21: ='Cash Flow'!$I53*SUMIF($B$81:$B$93,$B21,BE$81:BE$93) -> 0 | BF21: ='Cash Flow'!$I53*SUMIF($B$81:$B$93,$B21,BF$81:BF$93) -> 0 | BG21: ='Cash Flow'!$I53*SUMIF($B$81:$B$93,$B21,BG$81:BG$93) -> 0 | BH21: ='Cash Flow'!$I53*SUMIF($B$81:$B$93,$B21,BH$81:BH$93) -> 0 | BI21: 0 | BL21: ='Cash Flow'!$J53*SUMIF($B$81:$B$93,$B21,BL$81:BL$93) -> 0 | BM21: ='Cash Flow'!$J53*SUMIF($B$81:$B$93,$B21,BM$81:BM$93) -> 0 | BN21: ='Cash Flow'!$J53*SUMIF($B$81:$B$93,$B21,BN$81:BN$93) -> 0 | BO21: ='Cash Flow'!$J53*SUMIF($B$81:$B$93,$B21,BO$81:BO$93) -> 0 | BP21: ='Cash Flow'!$J53*SUMIF($B$81:$B$93,$B21,BP$81:BP$93) -> 0 | BQ21: ='Cash Flow'!$J53*SUMIF($B$81:$B$93,$B21,BQ$81:BQ$93) -> 0 | BR21: ='Cash Flow'!$J53*SUMIF($B$81:$B$93,$B21,BR$81:BR$93) -> 0 | BS21: ='Cash Flow'!$J53*SUMIF($B$81:$B$93,$B21,BS$81:BS$93) -> 0 | BT21: ='Cash Flow'!$J53*SUMIF($B$81:$B$93,$B21,BT$81:BT$93) -> 0 | BU21: ='Cash Flow'!$J53*SUMIF($B$81:$B$93,$B21,BU$81:BU$93) -> 0 | BV21: ='Cash Flow'!$J53*SUMIF($B$81:$B$93,$B21,BV$81:BV$93) -> 0 | BW21: ='Cash Flow'!$J53*SUMIF($B$81:$B$93,$B21,BW$81:BW$93) -> 0 | BX21: 0 | CA21: ='Cash Flow'!$K53*SUMIF($B$81:$B$93,$B21,CA$81:CA$93) -> 0 | CB21: ='Cash Flow'!$K53*SUMIF($B$81:$B$93,$B21,CB$81:CB$93) -> 0 | CC21: ='Cash Flow'!$K53*SUMIF($B$81:$B$93,$B21,CC$81:CC$93) -> 0 | CD21: ='Cash Flow'!$K53*SUMIF($B$81:$B$93,$B21,CD$81:CD$93) -> 0 | CE21: ='Cash Flow'!$K53*SUMIF($B$81:$B$93,$B21,CE$81:CE$93) -> 0 | CF21: ='Cash Flow'!$K53*SUMIF($B$81:$B$93,$B21,CF$81:CF$93) -> 0 | CG21: ='Cash Flow'!$K53*SUMIF($B$81:$B$93,$B21,CG$81:CG$93) -> 0 | CH21: ='Cash Flow'!$K53*SUMIF($B$81:$B$93,$B21,CH$81:CH$93) -> 0 | CI21: ='Cash Flow'!$K53*SUMIF($B$81:$B$93,$B21,CI$81:CI$93) -> 0 | CJ21: ='Cash Flow'!$K53*SUMIF($B$81:$B$93,$B21,CJ$81:CJ$93) -> 0 | CK21: ='Cash Flow'!$K53*SUMIF($B$81:$B$93,$B21,CK$81:CK$93) -> 0 | CL21: ='Cash Flow'!$K53*SUMIF($B$81:$B$93,$B21,CL$81:CL$93) -> 0 | CM21: 0 | CP21: ='Cash Flow'!$L53*SUMIF($B$81:$B$93,$B21,CP$81:CP$93) -> 0 | CQ21: ='Cash Flow'!$L53*SUMIF($B$81:$B$93,$B21,CQ$81:CQ$93) -> 0 | CR21: ='Cash Flow'!$L53*SUMIF($B$81:$B$93,$B21,CR$81:CR$93) -> 0 | CS21: ='Cash Flow'!$L53*SUMIF($B$81:$B$93,$B21,CS$81:CS$93) -> 0 | CT21: ='Cash Flow'!$L53*SUMIF($B$81:$B$93,$B21,CT$81:CT$93) -> 0 | CU21: ='Cash Flow'!$L53*SUMIF($B$81:$B$93,$B21,CU$81:CU$93) -> 0 | CV21: ='Cash Flow'!$L53*SUMIF($B$81:$B$93,$B21,CV$81:CV$93) -> 0 | CW21: ='Cash Flow'!$L53*SUMIF($B$81:$B$93,$B21,CW$81:CW$93) -> 0 | CX21: ='Cash Flow'!$L53*SUMIF($B$81:$B$93,$B21,CX$81:CX$93) -> 0 | CY21: ='Cash Flow'!$L53*SUMIF($B$81:$B$93,$B21,CY$81:CY$93) -> 0 | CZ21: ='Cash Flow'!$L53*SUMIF($B$81:$B$93,$B21,CZ$81:CZ$93) -> 0 | DA21: ='Cash Flow'!$L53*SUMIF($B$81:$B$93,$B21,DA$81:DA$93) -> 0 | DB21: 0 | DE21: ='Cash Flow'!$M53*SUMIF($B$81:$B$93,$B21,DE$81:DE$93) -> 0 | DF21: ='Cash Flow'!$M53*SUMIF($B$81:$B$93,$B21,DF$81:DF$93) -> 0 | DG21: ='Cash Flow'!$M53*SUMIF($B$81:$B$93,$B21,DG$81:DG$93) -> 0 | DH21: ='Cash Flow'!$M53*SUMIF($B$81:$B$93,$B21,DH$81:DH$93) -> 0 | DI21: ='Cash Flow'!$M53*SUMIF($B$81:$B$93,$B21,DI$81:DI$93) -> 0 | DJ21: ='Cash Flow'!$M53*SUMIF($B$81:$B$93,$B21,DJ$81:DJ$93) -> 0 | DK21: ='Cash Flow'!$M53*SUMIF($B$81:$B$93,$B21,DK$81:DK$93) -> 0 | DL21: ='Cash Flow'!$M53*SUMIF($B$81:$B$93,$B21,DL$81:DL$93) -> 0 | DM21: ='Cash Flow'!$M53*SUMIF($B$81:$B$93,$B21,DM$81:DM$93) -> 0 | DN21: ='Cash Flow'!$M53*SUMIF($B$81:$B$93,$B21,DN$81:DN$93) -> 0 | DO21: ='Cash Flow'!$M53*SUMIF($B$81:$B$93,$B21,DO$81:DO$93) -> 0 | DP21: ='Cash Flow'!$M53*SUMIF($B$81:$B$93,$B21,DP$81:DP$93) -> 0 | DQ21: 0 | DT21: ='Cash Flow'!$N53*SUMIF($B$81:$B$93,$B21,DT$81:DT$93) -> 0 | DU21: ='Cash Flow'!$N53*SUMIF($B$81:$B$93,$B21,DU$81:DU$93) -> 0 | DV21: ='Cash Flow'!$N53*SUMIF($B$81:$B$93,$B21,DV$81:DV$93) -> 0 | DW21: ='Cash Flow'!$N53*SUMIF($B$81:$B$93,$B21,DW$81:DW$93) -> 0 | DX21: ='Cash Flow'!$N53*SUMIF($B$81:$B$93,$B21,DX$81:DX$93) -> 0 | DY21: ='Cash Flow'!$N53*SUMIF($B$81:$B$93,$B21,DY$81:DY$93) -> 0 | DZ21: ='Cash Flow'!$N53*SUMIF($B$81:$B$93,$B21,DZ$81:DZ$93) -> 0 | EA21: ='Cash Flow'!$N53*SUMIF($B$81:$B$93,$B21,EA$81:EA$93) -> 0 | EB21: ='Cash Flow'!$N53*SUMIF($B$81:$B$93,$B21,EB$81:EB$93) -> 0 | EC21: ='Cash Flow'!$N53*SUMIF($B$81:$B$93,$B21,EC$81:EC$93) -> 0 | ED21: ='Cash Flow'!$N53*SUMIF($B$81:$B$93,$B21,ED$81:ED$93) -> 0 | EE21: ='Cash Flow'!$N53*SUMIF($B$81:$B$93,$B21,EE$81:EE$93) -> 0 | EF21: 0 | EI21: ='Cash Flow'!$O53*SUMIF($B$81:$B$93,$B21,EI$81:EI$93) -> 0 | EJ21: ='Cash Flow'!$O53*SUMIF($B$81:$B$93,$B21,EJ$81:EJ$93) -> 0 | EK21: ='Cash Flow'!$O53*SUMIF($B$81:$B$93,$B21,EK$81:EK$93) -> 0 | EL21: ='Cash Flow'!$O53*SUMIF($B$81:$B$93,$B21,EL$81:EL$93) -> 0 | EM21: ='Cash Flow'!$O53*SUMIF($B$81:$B$93,$B21,EM$81:EM$93) -> 0 | EN21: ='Cash Flow'!$O53*SUMIF($B$81:$B$93,$B21,EN$81:EN$93) -> 0 | EO21: ='Cash Flow'!$O53*SUMIF($B$81:$B$93,$B21,EO$81:EO$93) -> 0 | EP21: ='Cash Flow'!$O53*SUMIF($B$81:$B$93,$B21,EP$81:EP$93) -> 0 | EQ21: ='Cash Flow'!$O53*SUMIF($B$81:$B$93,$B21,EQ$81:EQ$93) -> 0 | ER21: ='Cash Flow'!$O53*SUMIF($B$81:$B$93,$B21,ER$81:ER$93) -> 0 | ES21: ='Cash Flow'!$O53*SUMIF($B$81:$B$93,$B21,ES$81:ES$93) -> 0 | ET21: ='Cash Flow'!$O53*SUMIF($B$81:$B$93,$B21,ET$81:ET$93) -> 0 | EU21: 0 | EX21: ='Cash Flow'!$P53*SUMIF($B$81:$B$93,$B21,EX$81:EX$93) -> 0 | EY21: ='Cash Flow'!$P53*SUMIF($B$81:$B$93,$B21,EY$81:EY$93) -> 0 | EZ21: ='Cash Flow'!$P53*SUMIF($B$81:$B$93,$B21,EZ$81:EZ$93) -> 0 | FA21: ='Cash Flow'!$P53*SUMIF($B$81:$B$93,$B21,FA$81:FA$93) -> 0 | FB21: ='Cash Flow'!$P53*SUMIF($B$81:$B$93,$B21,FB$81:FB$93) -> 0 | FC21: ='Cash Flow'!$P53*SUMIF($B$81:$B$93,$B21,FC$81:FC$93) -> 0 | FD21: ='Cash Flow'!$P53*SUMIF($B$81:$B$93,$B21,FD$81:FD$93) -> 0 | FE21: ='Cash Flow'!$P53*SUMIF($B$81:$B$93,$B21,FE$81:FE$93) -> 0 | FF21: ='Cash Flow'!$P53*SUMIF($B$81:$B$93,$B21,FF$81:FF$93) -> 0 | FG21: ='Cash Flow'!$P53*SUMIF($B$81:$B$93,$B21,FG$81:FG$93) -> 0 | FH21: ='Cash Flow'!$P53*SUMIF($B$81:$B$93,$B21,FH$81:FH$93) -> 0 | FI21: ='Cash Flow'!$P53*SUMIF($B$81:$B$93,$B21,FI$81:FI$93) -> 0 | FJ21: 0
A22: Sale of Investments | B22: 12 | D22: =('Cash Flow'!$E25+'BS workings'!$E61)*SUMIF($B$81:$B$93,$B22,D$81:D$93) -> 0 | E22: =('Cash Flow'!$E25+'BS workings'!$E61)*SUMIF($B$81:$B$93,$B22,E$81:E$93) -> 0 | F22: =('Cash Flow'!$E25+'BS workings'!$E61)*SUMIF($B$81:$B$93,$B22,F$81:F$93) -> 0 | G22: =('Cash Flow'!$E25+'BS workings'!$E61)*SUMIF($B$81:$B$93,$B22,G$81:G$93) -> 0 | H22: =('Cash Flow'!$E25+'BS workings'!$E61)*SUMIF($B$81:$B$93,$B22,H$81:H$93) -> 0 | I22: =('Cash Flow'!$E25+'BS workings'!$E61)*SUMIF($B$81:$B$93,$B22,I$81:I$93) -> 0 | J22: =('Cash Flow'!$E25+'BS workings'!$E61)*SUMIF($B$81:$B$93,$B22,J$81:J$93) -> 0 | K22: =('Cash Flow'!$E25+'BS workings'!$E61)*SUMIF($B$81:$B$93,$B22,K$81:K$93) -> 0 | L22: =('Cash Flow'!$E25+'BS workings'!$E61)*SUMIF($B$81:$B$93,$B22,L$81:L$93) -> 0 | M22: =('Cash Flow'!$E25+'BS workings'!$E61)*SUMIF($B$81:$B$93,$B22,M$81:M$93) -> 0 | N22: =('Cash Flow'!$E25+'BS workings'!$E61)*SUMIF($B$81:$B$93,$B22,N$81:N$93) -> 0 | O22: =('Cash Flow'!$E25+'BS workings'!$E61)*SUMIF($B$81:$B$93,$B22,O$81:O$93) -> 0 | P22: 0 | S22: =('Cash Flow'!$G25+'BS workings'!$G61)*SUMIF($B$81:$B$93,$B22,S$81:S$93) -> 0 | T22: =('Cash Flow'!$G25+'BS workings'!$G61)*SUMIF($B$81:$B$93,$B22,T$81:T$93) -> 0 | U22: =('Cash Flow'!$G25+'BS workings'!$G61)*SUMIF($B$81:$B$93,$B22,U$81:U$93) -> 0 | V22: =('Cash Flow'!$G25+'BS workings'!$G61)*SUMIF($B$81:$B$93,$B22,V$81:V$93) -> 0 | W22: =('Cash Flow'!$G25+'BS workings'!$G61)*SUMIF($B$81:$B$93,$B22,W$81:W$93) -> 0 | X22: =('Cash Flow'!$G25+'BS workings'!$G61)*SUMIF($B$81:$B$93,$B22,X$81:X$93) -> 0 | Y22: =('Cash Flow'!$G25+'BS workings'!$G61)*SUMIF($B$81:$B$93,$B22,Y$81:Y$93) -> 0 | Z22: =('Cash Flow'!$G25+'BS workings'!$G61)*SUMIF($B$81:$B$93,$B22,Z$81:Z$93) -> 0 | AA22: =('Cash Flow'!$G25+'BS workings'!$G61)*SUMIF($B$81:$B$93,$B22,AA$81:AA$93) -> 0 | AB22: =('Cash Flow'!$G25+'BS workings'!$G61)*SUMIF($B$81:$B$93,$B22,AB$81:AB$93) -> 0 | AC22: =('Cash Flow'!$G25+'BS workings'!$G61)*SUMIF($B$81:$B$93,$B22,AC$81:AC$93) -> 0 | AD22: =('Cash Flow'!$G25+'BS workings'!$G61)*SUMIF($B$81:$B$93,$B22,AD$81:AD$93) -> 0 | AE22: 0 | AH22: =('Cash Flow'!$H25+'BS workings'!$H61)*SUMIF($B$81:$B$93,$B22,AH$81:AH$93) -> 0 | AI22: =('Cash Flow'!$H25+'BS workings'!$H61)*SUMIF($B$81:$B$93,$B22,AI$81:AI$93) -> 0 | AJ22: =('Cash Flow'!$H25+'BS workings'!$H61)*SUMIF($B$81:$B$93,$B22,AJ$81:AJ$93) -> 0 | AK22: =('Cash Flow'!$H25+'BS workings'!$H61)*SUMIF($B$81:$B$93,$B22,AK$81:AK$93) -> 0 | AL22: =('Cash Flow'!$H25+'BS workings'!$H61)*SUMIF($B$81:$B$93,$B22,AL$81:AL$93) -> 0 | AM22: =('Cash Flow'!$H25+'BS workings'!$H61)*SUMIF($B$81:$B$93,$B22,AM$81:AM$93) -> 0 | AN22: =('Cash Flow'!$H25+'BS workings'!$H61)*SUMIF($B$81:$B$93,$B22,AN$81:AN$93) -> 0 | AO22: =('Cash Flow'!$H25+'BS workings'!$H61)*SUMIF($B$81:$B$93,$B22,AO$81:AO$93) -> 0 | AP22: =('Cash Flow'!$H25+'BS workings'!$H61)*SUMIF($B$81:$B$93,$B22,AP$81:AP$93) -> 0 | AQ22: =('Cash Flow'!$H25+'BS workings'!$H61)*SUMIF($B$81:$B$93,$B22,AQ$81:AQ$93) -> 0 | AR22: =('Cash Flow'!$H25+'BS workings'!$H61)*SUMIF($B$81:$B$93,$B22,AR$81:AR$93) -> 0 | AS22: =('Cash Flow'!$H25+'BS workings'!$H61)*SUMIF($B$81:$B$93,$B22,AS$81:AS$93) -> 0 | AT22: 0 | AW22: =('Cash Flow'!$I25+'BS workings'!$I61)*SUMIF($B$81:$B$93,$B22,AW$81:AW$93) -> 0 | AX22: =('Cash Flow'!$I25+'BS workings'!$I61)*SUMIF($B$81:$B$93,$B22,AX$81:AX$93) -> 0 | AY22: =('Cash Flow'!$I25+'BS workings'!$I61)*SUMIF($B$81:$B$93,$B22,AY$81:AY$93) -> 0 | AZ22: =('Cash Flow'!$I25+'BS workings'!$I61)*SUMIF($B$81:$B$93,$B22,AZ$81:AZ$93) -> 0 | BA22: =('Cash Flow'!$I25+'BS workings'!$I61)*SUMIF($B$81:$B$93,$B22,BA$81:BA$93) -> 0 | BB22: =('Cash Flow'!$I25+'BS workings'!$I61)*SUMIF($B$81:$B$93,$B22,BB$81:BB$93) -> 0 | BC22: =('Cash Flow'!$I25+'BS workings'!$I61)*SUMIF($B$81:$B$93,$B22,BC$81:BC$93) -> 0 | BD22: =('Cash Flow'!$I25+'BS workings'!$I61)*SUMIF($B$81:$B$93,$B22,BD$81:BD$93) -> 0 | BE22: =('Cash Flow'!$I25+'BS workings'!$I61)*SUMIF($B$81:$B$93,$B22,BE$81:BE$93) -> 0 | BF22: =('Cash Flow'!$I25+'BS workings'!$I61)*SUMIF($B$81:$B$93,$B22,BF$81:BF$93) -> 0 | BG22: =('Cash Flow'!$I25+'BS workings'!$I61)*SUMIF($B$81:$B$93,$B22,BG$81:BG$93) -> 0 | BH22: =('Cash Flow'!$I25+'BS workings'!$I61)*SUMIF($B$81:$B$93,$B22,BH$81:BH$93) -> 0 | BI22: 0 | BL22: =('Cash Flow'!$J25+'BS workings'!$J61)*SUMIF($B$81:$B$93,$B22,BL$81:BL$93) -> 0 | BM22: =('Cash Flow'!$J25+'BS workings'!$J61)*SUMIF($B$81:$B$93,$B22,BM$81:BM$93) -> 0 | BN22: =('Cash Flow'!$J25+'BS workings'!$J61)*SUMIF($B$81:$B$93,$B22,BN$81:BN$93) -> 0 | BO22: =('Cash Flow'!$J25+'BS workings'!$J61)*SUMIF($B$81:$B$93,$B22,BO$81:BO$93) -> 0 | BP22: =('Cash Flow'!$J25+'BS workings'!$J61)*SUMIF($B$81:$B$93,$B22,BP$81:BP$93) -> 0 | BQ22: =('Cash Flow'!$J25+'BS workings'!$J61)*SUMIF($B$81:$B$93,$B22,BQ$81:BQ$93) -> 0 | BR22: =('Cash Flow'!$J25+'BS workings'!$J61)*SUMIF($B$81:$B$93,$B22,BR$81:BR$93) -> 0 | BS22: =('Cash Flow'!$J25+'BS workings'!$J61)*SUMIF($B$81:$B$93,$B22,BS$81:BS$93) -> 0 | BT22: =('Cash Flow'!$J25+'BS workings'!$J61)*SUMIF($B$81:$B$93,$B22,BT$81:BT$93) -> 0 | BU22: =('Cash Flow'!$J25+'BS workings'!$J61)*SUMIF($B$81:$B$93,$B22,BU$81:BU$93) -> 0 | BV22: =('Cash Flow'!$J25+'BS workings'!$J61)*SUMIF($B$81:$B$93,$B22,BV$81:BV$93) -> 0 | BW22: =('Cash Flow'!$J25+'BS workings'!$J61)*SUMIF($B$81:$B$93,$B22,BW$81:BW$93) -> 0 | BX22: 0 | CA22: =('Cash Flow'!$K25+'BS workings'!$K61)*SUMIF($B$81:$B$93,$B22,CA$81:CA$93) -> 0 | CB22: =('Cash Flow'!$K25+'BS workings'!$K61)*SUMIF($B$81:$B$93,$B22,CB$81:CB$93) -> 0 | CC22: =('Cash Flow'!$K25+'BS workings'!$K61)*SUMIF($B$81:$B$93,$B22,CC$81:CC$93) -> 0 | CD22: =('Cash Flow'!$K25+'BS workings'!$K61)*SUMIF($B$81:$B$93,$B22,CD$81:CD$93) -> 0 | CE22: =('Cash Flow'!$K25+'BS workings'!$K61)*SUMIF($B$81:$B$93,$B22,CE$81:CE$93) -> 0 | CF22: =('Cash Flow'!$K25+'BS workings'!$K61)*SUMIF($B$81:$B$93,$B22,CF$81:CF$93) -> 0 | CG22: =('Cash Flow'!$K25+'BS workings'!$K61)*SUMIF($B$81:$B$93,$B22,CG$81:CG$93) -> 0 | CH22: =('Cash Flow'!$K25+'BS workings'!$K61)*SUMIF($B$81:$B$93,$B22,CH$81:CH$93) -> 0 | CI22: =('Cash Flow'!$K25+'BS workings'!$K61)*SUMIF($B$81:$B$93,$B22,CI$81:CI$93) -> 0 | CJ22: =('Cash Flow'!$K25+'BS workings'!$K61)*SUMIF($B$81:$B$93,$B22,CJ$81:CJ$93) -> 0 | CK22: =('Cash Flow'!$K25+'BS workings'!$K61)*SUMIF($B$81:$B$93,$B22,CK$81:CK$93) -> 0 | CL22: =('Cash Flow'!$K25+'BS workings'!$K61)*SUMIF($B$81:$B$93,$B22,CL$81:CL$93) -> 0 | CM22: 0 | CP22: =('Cash Flow'!$L25+'BS workings'!$L61)*SUMIF($B$81:$B$93,$B22,CP$81:CP$93) -> 0 | CQ22: =('Cash Flow'!$L25+'BS workings'!$L61)*SUMIF($B$81:$B$93,$B22,CQ$81:CQ$93) -> 0 | CR22: =('Cash Flow'!$L25+'BS workings'!$L61)*SUMIF($B$81:$B$93,$B22,CR$81:CR$93) -> 0 | CS22: =('Cash Flow'!$L25+'BS workings'!$L61)*SUMIF($B$81:$B$93,$B22,CS$81:CS$93) -> 0 | CT22: =('Cash Flow'!$L25+'BS workings'!$L61)*SUMIF($B$81:$B$93,$B22,CT$81:CT$93) -> 0 | CU22: =('Cash Flow'!$L25+'BS workings'!$L61)*SUMIF($B$81:$B$93,$B22,CU$81:CU$93) -> 0 | CV22: =('Cash Flow'!$L25+'BS workings'!$L61)*SUMIF($B$81:$B$93,$B22,CV$81:CV$93) -> 0 | CW22: =('Cash Flow'!$L25+'BS workings'!$L61)*SUMIF($B$81:$B$93,$B22,CW$81:CW$93) -> 0 | CX22: =('Cash Flow'!$L25+'BS workings'!$L61)*SUMIF($B$81:$B$93,$B22,CX$81:CX$93) -> 0 | CY22: =('Cash Flow'!$L25+'BS workings'!$L61)*SUMIF($B$81:$B$93,$B22,CY$81:CY$93) -> 0 | CZ22: =('Cash Flow'!$L25+'BS workings'!$L61)*SUMIF($B$81:$B$93,$B22,CZ$81:CZ$93) -> 0 | DA22: =('Cash Flow'!$L25+'BS workings'!$L61)*SUMIF($B$81:$B$93,$B22,DA$81:DA$93) -> 0 | DB22: 0 | DE22: =('Cash Flow'!$M25+'BS workings'!$M61)*SUMIF($B$81:$B$93,$B22,DE$81:DE$93) -> 0 | DF22: =('Cash Flow'!$M25+'BS workings'!$M61)*SUMIF($B$81:$B$93,$B22,DF$81:DF$93) -> 0 | DG22: =('Cash Flow'!$M25+'BS workings'!$M61)*SUMIF($B$81:$B$93,$B22,DG$81:DG$93) -> 0 | DH22: =('Cash Flow'!$M25+'BS workings'!$M61)*SUMIF($B$81:$B$93,$B22,DH$81:DH$93) -> 0 | DI22: =('Cash Flow'!$M25+'BS workings'!$M61)*SUMIF($B$81:$B$93,$B22,DI$81:DI$93) -> 0 | DJ22: =('Cash Flow'!$M25+'BS workings'!$M61)*SUMIF($B$81:$B$93,$B22,DJ$81:DJ$93) -> 0 | DK22: =('Cash Flow'!$M25+'BS workings'!$M61)*SUMIF($B$81:$B$93,$B22,DK$81:DK$93) -> 0 | DL22: =('Cash Flow'!$M25+'BS workings'!$M61)*SUMIF($B$81:$B$93,$B22,DL$81:DL$93) -> 0 | DM22: =('Cash Flow'!$M25+'BS workings'!$M61)*SUMIF($B$81:$B$93,$B22,DM$81:DM$93) -> 0 | DN22: =('Cash Flow'!$M25+'BS workings'!$M61)*SUMIF($B$81:$B$93,$B22,DN$81:DN$93) -> 0 | DO22: =('Cash Flow'!$M25+'BS workings'!$M61)*SUMIF($B$81:$B$93,$B22,DO$81:DO$93) -> 0 | DP22: =('Cash Flow'!$M25+'BS workings'!$M61)*SUMIF($B$81:$B$93,$B22,DP$81:DP$93) -> 0 | DQ22: 0 | DT22: =('Cash Flow'!$N25+'BS workings'!$N61)*SUMIF($B$81:$B$93,$B22,DT$81:DT$93) -> 0 | DU22: =('Cash Flow'!$N25+'BS workings'!$N61)*SUMIF($B$81:$B$93,$B22,DU$81:DU$93) -> 0 | DV22: =('Cash Flow'!$N25+'BS workings'!$N61)*SUMIF($B$81:$B$93,$B22,DV$81:DV$93) -> 0 | DW22: =('Cash Flow'!$N25+'BS workings'!$N61)*SUMIF($B$81:$B$93,$B22,DW$81:DW$93) -> 0 | DX22: =('Cash Flow'!$N25+'BS workings'!$N61)*SUMIF($B$81:$B$93,$B22,DX$81:DX$93) -> 0 | DY22: =('Cash Flow'!$N25+'BS workings'!$N61)*SUMIF($B$81:$B$93,$B22,DY$81:DY$93) -> 0 | DZ22: =('Cash Flow'!$N25+'BS workings'!$N61)*SUMIF($B$81:$B$93,$B22,DZ$81:DZ$93) -> 0 | EA22: =('Cash Flow'!$N25+'BS workings'!$N61)*SUMIF($B$81:$B$93,$B22,EA$81:EA$93) -> 0 | EB22: =('Cash Flow'!$N25+'BS workings'!$N61)*SUMIF($B$81:$B$93,$B22,EB$81:EB$93) -> 0 | EC22: =('Cash Flow'!$N25+'BS workings'!$N61)*SUMIF($B$81:$B$93,$B22,EC$81:EC$93) -> 0 | ED22: =('Cash Flow'!$N25+'BS workings'!$N61)*SUMIF($B$81:$B$93,$B22,ED$81:ED$93) -> 0 | EE22: =('Cash Flow'!$N25+'BS workings'!$N61)*SUMIF($B$81:$B$93,$B22,EE$81:EE$93) -> 0 | EF22: 0 | EI22: =('Cash Flow'!$O25+'BS workings'!$O61)*SUMIF($B$81:$B$93,$B22,EI$81:EI$93) -> 0 | EJ22: =('Cash Flow'!$O25+'BS workings'!$O61)*SUMIF($B$81:$B$93,$B22,EJ$81:EJ$93) -> 0 | EK22: =('Cash Flow'!$O25+'BS workings'!$O61)*SUMIF($B$81:$B$93,$B22,EK$81:EK$93) -> 0 | EL22: =('Cash Flow'!$O25+'BS workings'!$O61)*SUMIF($B$81:$B$93,$B22,EL$81:EL$93) -> 0 | EM22: =('Cash Flow'!$O25+'BS workings'!$O61)*SUMIF($B$81:$B$93,$B22,EM$81:EM$93) -> 0 | EN22: =('Cash Flow'!$O25+'BS workings'!$O61)*SUMIF($B$81:$B$93,$B22,EN$81:EN$93) -> 0 | EO22: =('Cash Flow'!$O25+'BS workings'!$O61)*SUMIF($B$81:$B$93,$B22,EO$81:EO$93) -> 0 | EP22: =('Cash Flow'!$O25+'BS workings'!$O61)*SUMIF($B$81:$B$93,$B22,EP$81:EP$93) -> 0 | EQ22: =('Cash Flow'!$O25+'BS workings'!$O61)*SUMIF($B$81:$B$93,$B22,EQ$81:EQ$93) -> 0 | ER22: =('Cash Flow'!$O25+'BS workings'!$O61)*SUMIF($B$81:$B$93,$B22,ER$81:ER$93) -> 0 | ES22: =('Cash Flow'!$O25+'BS workings'!$O61)*SUMIF($B$81:$B$93,$B22,ES$81:ES$93) -> 0 | ET22: =('Cash Flow'!$O25+'BS workings'!$O61)*SUMIF($B$81:$B$93,$B22,ET$81:ET$93) -> 0 | EU22: 0 | EX22: =('Cash Flow'!$P25+'BS workings'!$P61)*SUMIF($B$81:$B$93,$B22,EX$81:EX$93) -> 0 | EY22: =('Cash Flow'!$P25+'BS workings'!$P61)*SUMIF($B$81:$B$93,$B22,EY$81:EY$93) -> 0 | EZ22: =('Cash Flow'!$P25+'BS workings'!$P61)*SUMIF($B$81:$B$93,$B22,EZ$81:EZ$93) -> 0 | FA22: =('Cash Flow'!$P25+'BS workings'!$P61)*SUMIF($B$81:$B$93,$B22,FA$81:FA$93) -> 0 | FB22: =('Cash Flow'!$P25+'BS workings'!$P61)*SUMIF($B$81:$B$93,$B22,FB$81:FB$93) -> 0 | FC22: =('Cash Flow'!$P25+'BS workings'!$P61)*SUMIF($B$81:$B$93,$B22,FC$81:FC$93) -> 0 | FD22: =('Cash Flow'!$P25+'BS workings'!$P61)*SUMIF($B$81:$B$93,$B22,FD$81:FD$93) -> 0 | FE22: =('Cash Flow'!$P25+'BS workings'!$P61)*SUMIF($B$81:$B$93,$B22,FE$81:FE$93) -> 0 | FF22: =('Cash Flow'!$P25+'BS workings'!$P61)*SUMIF($B$81:$B$93,$B22,FF$81:FF$93) -> 0 | FG22: =('Cash Flow'!$P25+'BS workings'!$P61)*SUMIF($B$81:$B$93,$B22,FG$81:FG$93) -> 0 | FH22: =('Cash Flow'!$P25+'BS workings'!$P61)*SUMIF($B$81:$B$93,$B22,FH$81:FH$93) -> 0 | FI22: =('Cash Flow'!$P25+'BS workings'!$P61)*SUMIF($B$81:$B$93,$B22,FI$81:FI$93) -> 0 | FJ22: 0
A23: Capital Sales - CAPEX & Property Dev. | B23: 4 | D23: =('Cash Flow'!$E27+'Cash Flow'!$E28)*SUMIF($B$81:$B$93,$B23,D$81:D$93) -> 105641.6667 | E23: =('Cash Flow'!$E27+'Cash Flow'!$E28)*SUMIF($B$81:$B$93,$B23,E$81:E$93) -> 105641.6667 | F23: =('Cash Flow'!$E27+'Cash Flow'!$E28)*SUMIF($B$81:$B$93,$B23,F$81:F$93) -> 105641.6667 | G23: =('Cash Flow'!$E27+'Cash Flow'!$E28)*SUMIF($B$81:$B$93,$B23,G$81:G$93) -> 105641.6667 | H23: =('Cash Flow'!$E27+'Cash Flow'!$E28)*SUMIF($B$81:$B$93,$B23,H$81:H$93) -> 105641.6667 | I23: =('Cash Flow'!$E27+'Cash Flow'!$E28)*SUMIF($B$81:$B$93,$B23,I$81:I$93) -> 105641.6667 | J23: =('Cash Flow'!$E27+'Cash Flow'!$E28)*SUMIF($B$81:$B$93,$B23,J$81:J$93) -> 105641.6667 | K23: =('Cash Flow'!$E27+'Cash Flow'!$E28)*SUMIF($B$81:$B$93,$B23,K$81:K$93) -> 105641.6667 | L23: =('Cash Flow'!$E27+'Cash Flow'!$E28)*SUMIF($B$81:$B$93,$B23,L$81:L$93) -> 105641.6667 | M23: =('Cash Flow'!$E27+'Cash Flow'!$E28)*SUMIF($B$81:$B$93,$B23,M$81:M$93) -> 105641.6667 | N23: =('Cash Flow'!$E27+'Cash Flow'!$E28)*SUMIF($B$81:$B$93,$B23,N$81:N$93) -> 105641.6667 | O23: =('Cash Flow'!$E27+'Cash Flow'!$E28)*SUMIF($B$81:$B$93,$B23,O$81:O$93) -> 105641.6667 | P23: 1267700 | S23: =('Cash Flow'!$G27+'Cash Flow'!$G28)*SUMIF($B$81:$B$93,$B23,S$81:S$93) -> 102320.8333 | T23: =('Cash Flow'!$G27+'Cash Flow'!$G28)*SUMIF($B$81:$B$93,$B23,T$81:T$93) -> 102320.8333 | U23: =('Cash Flow'!$G27+'Cash Flow'!$G28)*SUMIF($B$81:$B$93,$B23,U$81:U$93) -> 102320.8333 | V23: =('Cash Flow'!$G27+'Cash Flow'!$G28)*SUMIF($B$81:$B$93,$B23,V$81:V$93) -> 102320.8333 | W23: =('Cash Flow'!$G27+'Cash Flow'!$G28)*SUMIF($B$81:$B$93,$B23,W$81:W$93) -> 102320.8333 | X23: =('Cash Flow'!$G27+'Cash Flow'!$G28)*SUMIF($B$81:$B$93,$B23,X$81:X$93) -> 102320.8333 | Y23: =('Cash Flow'!$G27+'Cash Flow'!$G28)*SUMIF($B$81:$B$93,$B23,Y$81:Y$93) -> 102320.8333 | Z23: =('Cash Flow'!$G27+'Cash Flow'!$G28)*SUMIF($B$81:$B$93,$B23,Z$81:Z$93) -> 102320.8333 | AA23: =('Cash Flow'!$G27+'Cash Flow'!$G28)*SUMIF($B$81:$B$93,$B23,AA$81:AA$93) -> 102320.8333 | AB23: =('Cash Flow'!$G27+'Cash Flow'!$G28)*SUMIF($B$81:$B$93,$B23,AB$81:AB$93) -> 102320.8333 | AC23: =('Cash Flow'!$G27+'Cash Flow'!$G28)*SUMIF($B$81:$B$93,$B23,AC$81:AC$93) -> 102320.8333 | AD23: =('Cash Flow'!$G27+'Cash Flow'!$G28)*SUMIF($B$81:$B$93,$B23,AD$81:AD$93) -> 102320.8333 | AE23: 1227850 | AH23: =('Cash Flow'!$H27+'Cash Flow'!$H28)*SUMIF($B$81:$B$93,$B23,AH$81:AH$93) -> 100445.8333 | AI23: =('Cash Flow'!$H27+'Cash Flow'!$H28)*SUMIF($B$81:$B$93,$B23,AI$81:AI$93) -> 100445.8333 | AJ23: =('Cash Flow'!$H27+'Cash Flow'!$H28)*SUMIF($B$81:$B$93,$B23,AJ$81:AJ$93) -> 100445.8333 | AK23: =('Cash Flow'!$H27+'Cash Flow'!$H28)*SUMIF($B$81:$B$93,$B23,AK$81:AK$93) -> 100445.8333 | AL23: =('Cash Flow'!$H27+'Cash Flow'!$H28)*SUMIF($B$81:$B$93,$B23,AL$81:AL$93) -> 100445.8333 | AM23: =('Cash Flow'!$H27+'Cash Flow'!$H28)*SUMIF($B$81:$B$93,$B23,AM$81:AM$93) -> 100445.8333 | AN23: =('Cash Flow'!$H27+'Cash Flow'!$H28)*SUMIF($B$81:$B$93,$B23,AN$81:AN$93) -> 100445.8333 | AO23: =('Cash Flow'!$H27+'Cash Flow'!$H28)*SUMIF($B$81:$B$93,$B23,AO$81:AO$93) -> 100445.8333 | AP23: =('Cash Flow'!$H27+'Cash Flow'!$H28)*SUMIF($B$81:$B$93,$B23,AP$81:AP$93) -> 100445.8333 | AQ23: =('Cash Flow'!$H27+'Cash Flow'!$H28)*SUMIF($B$81:$B$93,$B23,AQ$81:AQ$93) -> 100445.8333 | AR23: =('Cash Flow'!$H27+'Cash Flow'!$H28)*SUMIF($B$81:$B$93,$B23,AR$81:AR$93) -> 100445.8333 | AS23: =('Cash Flow'!$H27+'Cash Flow'!$H28)*SUMIF($B$81:$B$93,$B23,AS$81:AS$93) -> 100445.8333 | AT23: 1205350 | AW23: =('Cash Flow'!$I27+'Cash Flow'!$I28)*SUMIF($B$81:$B$93,$B23,AW$81:AW$93) -> 113937.5 | AX23: =('Cash Flow'!$I27+'Cash Flow'!$I28)*SUMIF($B$81:$B$93,$B23,AX$81:AX$93) -> 113937.5 | AY23: =('Cash Flow'!$I27+'Cash Flow'!$I28)*SUMIF($B$81:$B$93,$B23,AY$81:AY$93) -> 113937.5 | AZ23: =('Cash Flow'!$I27+'Cash Flow'!$I28)*SUMIF($B$81:$B$93,$B23,AZ$81:AZ$93) -> 113937.5 | BA23: =('Cash Flow'!$I27+'Cash Flow'!$I28)*SUMIF($B$81:$B$93,$B23,BA$81:BA$93) -> 113937.5 | BB23: =('Cash Flow'!$I27+'Cash Flow'!$I28)*SUMIF($B$81:$B$93,$B23,BB$81:BB$93) -> 113937.5 | BC23: =('Cash Flow'!$I27+'Cash Flow'!$I28)*SUMIF($B$81:$B$93,$B23,BC$81:BC$93) -> 113937.5 | BD23: =('Cash Flow'!$I27+'Cash Flow'!$I28)*SUMIF($B$81:$B$93,$B23,BD$81:BD$93) -> 113937.5 | BE23: =('Cash Flow'!$I27+'Cash Flow'!$I28)*SUMIF($B$81:$B$93,$B23,BE$81:BE$93) -> 113937.5 | BF23: =('Cash Flow'!$I27+'Cash Flow'!$I28)*SUMIF($B$81:$B$93,$B23,BF$81:BF$93) -> 113937.5 | BG23: =('Cash Flow'!$I27+'Cash Flow'!$I28)*SUMIF($B$81:$B$93,$B23,BG$81:BG$93) -> 113937.5 | BH23: =('Cash Flow'!$I27+'Cash Flow'!$I28)*SUMIF($B$81:$B$93,$B23,BH$81:BH$93) -> 113937.5 | BI23: 1367250 | BL23: =('Cash Flow'!$J27+'Cash Flow'!$J28)*SUMIF($B$81:$B$93,$B23,BL$81:BL$93) -> 100275 | BM23: =('Cash Flow'!$J27+'Cash Flow'!$J28)*SUMIF($B$81:$B$93,$B23,BM$81:BM$93) -> 100275 | BN23: =('Cash Flow'!$J27+'Cash Flow'!$J28)*SUMIF($B$81:$B$93,$B23,BN$81:BN$93) -> 100275 | BO23: =('Cash Flow'!$J27+'Cash Flow'!$J28)*SUMIF($B$81:$B$93,$B23,BO$81:BO$93) -> 100275 | BP23: =('Cash Flow'!$J27+'Cash Flow'!$J28)*SUMIF($B$81:$B$93,$B23,BP$81:BP$93) -> 100275 | BQ23: =('Cash Flow'!$J27+'Cash Flow'!$J28)*SUMIF($B$81:$B$93,$B23,BQ$81:BQ$93) -> 100275 | BR23: =('Cash Flow'!$J27+'Cash Flow'!$J28)*SUMIF($B$81:$B$93,$B23,BR$81:BR$93) -> 100275 | BS23: =('Cash Flow'!$J27+'Cash Flow'!$J28)*SUMIF($B$81:$B$93,$B23,BS$81:BS$93) -> 100275 | BT23: =('Cash Flow'!$J27+'Cash Flow'!$J28)*SUMIF($B$81:$B$93,$B23,BT$81:BT$93) -> 100275 | BU23: =('Cash Flow'!$J27+'Cash Flow'!$J28)*SUMIF($B$81:$B$93,$B23,BU$81:BU$93) -> 100275 | BV23: =('Cash Flow'!$J27+'Cash Flow'!$J28)*SUMIF($B$81:$B$93,$B23,BV$81:BV$93) -> 100275 | BW23: =('Cash Flow'!$J27+'Cash Flow'!$J28)*SUMIF($B$81:$B$93,$B23,BW$81:BW$93) -> 100275 | BX23: 1203300 | CA23: =('Cash Flow'!$K27+'Cash Flow'!$K28)*SUMIF($B$81:$B$93,$B23,CA$81:CA$93) -> 100129.1667 | CB23: =('Cash Flow'!$K27+'Cash Flow'!$K28)*SUMIF($B$81:$B$93,$B23,CB$81:CB$93) -> 100129.1667 | CC23: =('Cash Flow'!$K27+'Cash Flow'!$K28)*SUMIF($B$81:$B$93,$B23,CC$81:CC$93) -> 100129.1667 | CD23: =('Cash Flow'!$K27+'Cash Flow'!$K28)*SUMIF($B$81:$B$93,$B23,CD$81:CD$93) -> 100129.1667 | CE23: =('Cash Flow'!$K27+'Cash Flow'!$K28)*SUMIF($B$81:$B$93,$B23,CE$81:CE$93) -> 100129.1667 | CF23: =('Cash Flow'!$K27+'Cash Flow'!$K28)*SUMIF($B$81:$B$93,$B23,CF$81:CF$93) -> 100129.1667 | CG23: =('Cash Flow'!$K27+'Cash Flow'!$K28)*SUMIF($B$81:$B$93,$B23,CG$81:CG$93) -> 100129.1667 | CH23: =('Cash Flow'!$K27+'Cash Flow'!$K28)*SUMIF($B$81:$B$93,$B23,CH$81:CH$93) -> 100129.1667 | CI23: =('Cash Flow'!$K27+'Cash Flow'!$K28)*SUMIF($B$81:$B$93,$B23,CI$81:CI$93) -> 100129.1667 | CJ23: =('Cash Flow'!$K27+'Cash Flow'!$K28)*SUMIF($B$81:$B$93,$B23,CJ$81:CJ$93) -> 100129.1667 | CK23: =('Cash Flow'!$K27+'Cash Flow'!$K28)*SUMIF($B$81:$B$93,$B23,CK$81:CK$93) -> 100129.1667 | CL23: =('Cash Flow'!$K27+'Cash Flow'!$K28)*SUMIF($B$81:$B$93,$B23,CL$81:CL$93) -> 100129.1667 | CM23: 1201550 | CP23: =('Cash Flow'!$L27+'Cash Flow'!$L28)*SUMIF($B$81:$B$93,$B23,CP$81:CP$93) -> 99737.5 | CQ23: =('Cash Flow'!$L27+'Cash Flow'!$L28)*SUMIF($B$81:$B$93,$B23,CQ$81:CQ$93) -> 99737.5 | CR23: =('Cash Flow'!$L27+'Cash Flow'!$L28)*SUMIF($B$81:$B$93,$B23,CR$81:CR$93) -> 99737.5 | CS23: =('Cash Flow'!$L27+'Cash Flow'!$L28)*SUMIF($B$81:$B$93,$B23,CS$81:CS$93) -> 99737.5 | CT23: =('Cash Flow'!$L27+'Cash Flow'!$L28)*SUMIF($B$81:$B$93,$B23,CT$81:CT$93) -> 99737.5 | CU23: =('Cash Flow'!$L27+'Cash Flow'!$L28)*SUMIF($B$81:$B$93,$B23,CU$81:CU$93) -> 99737.5 | CV23: =('Cash Flow'!$L27+'Cash Flow'!$L28)*SUMIF($B$81:$B$93,$B23,CV$81:CV$93) -> 99737.5 | CW23: =('Cash Flow'!$L27+'Cash Flow'!$L28)*SUMIF($B$81:$B$93,$B23,CW$81:CW$93) -> 99737.5 | CX23: =('Cash Flow'!$L27+'Cash Flow'!$L28)*SUMIF($B$81:$B$93,$B23,CX$81:CX$93) -> 99737.5 | CY23: =('Cash Flow'!$L27+'Cash Flow'!$L28)*SUMIF($B$81:$B$93,$B23,CY$81:CY$93) -> 99737.5 | CZ23: =('Cash Flow'!$L27+'Cash Flow'!$L28)*SUMIF($B$81:$B$93,$B23,CZ$81:CZ$93) -> 99737.5 | DA23: =('Cash Flow'!$L27+'Cash Flow'!$L28)*SUMIF($B$81:$B$93,$B23,DA$81:DA$93) -> 99737.5 | DB23: 1196850 | DE23: =('Cash Flow'!$M27+'Cash Flow'!$M28)*SUMIF($B$81:$B$93,$B23,DE$81:DE$93) -> 101227.9167 | DF23: =('Cash Flow'!$M27+'Cash Flow'!$M28)*SUMIF($B$81:$B$93,$B23,DF$81:DF$93) -> 101227.9167 | DG23: =('Cash Flow'!$M27+'Cash Flow'!$M28)*SUMIF($B$81:$B$93,$B23,DG$81:DG$93) -> 101227.9167 | DH23: =('Cash Flow'!$M27+'Cash Flow'!$M28)*SUMIF($B$81:$B$93,$B23,DH$81:DH$93) -> 101227.9167 | DI23: =('Cash Flow'!$M27+'Cash Flow'!$M28)*SUMIF($B$81:$B$93,$B23,DI$81:DI$93) -> 101227.9167 | DJ23: =('Cash Flow'!$M27+'Cash Flow'!$M28)*SUMIF($B$81:$B$93,$B23,DJ$81:DJ$93) -> 101227.9167 | DK23: =('Cash Flow'!$M27+'Cash Flow'!$M28)*SUMIF($B$81:$B$93,$B23,DK$81:DK$93) -> 101227.9167 | DL23: =('Cash Flow'!$M27+'Cash Flow'!$M28)*SUMIF($B$81:$B$93,$B23,DL$81:DL$93) -> 101227.9167 | DM23: =('Cash Flow'!$M27+'Cash Flow'!$M28)*SUMIF($B$81:$B$93,$B23,DM$81:DM$93) -> 101227.9167 | DN23: =('Cash Flow'!$M27+'Cash Flow'!$M28)*SUMIF($B$81:$B$93,$B23,DN$81:DN$93) -> 101227.9167 | DO23: =('Cash Flow'!$M27+'Cash Flow'!$M28)*SUMIF($B$81:$B$93,$B23,DO$81:DO$93) -> 101227.9167 | DP23: =('Cash Flow'!$M27+'Cash Flow'!$M28)*SUMIF($B$81:$B$93,$B23,DP$81:DP$93) -> 101227.9167 | DQ23: 1214735 | DT23: =('Cash Flow'!$N27+'Cash Flow'!$N28)*SUMIF($B$81:$B$93,$B23,DT$81:DT$93) -> 96412.5 | DU23: =('Cash Flow'!$N27+'Cash Flow'!$N28)*SUMIF($B$81:$B$93,$B23,DU$81:DU$93) -> 96412.5 | DV23: =('Cash Flow'!$N27+'Cash Flow'!$N28)*SUMIF($B$81:$B$93,$B23,DV$81:DV$93) -> 96412.5 | DW23: =('Cash Flow'!$N27+'Cash Flow'!$N28)*SUMIF($B$81:$B$93,$B23,DW$81:DW$93) -> 96412.5 | DX23: =('Cash Flow'!$N27+'Cash Flow'!$N28)*SUMIF($B$81:$B$93,$B23,DX$81:DX$93) -> 96412.5 | DY23: =('Cash Flow'!$N27+'Cash Flow'!$N28)*SUMIF($B$81:$B$93,$B23,DY$81:DY$93) -> 96412.5 | DZ23: =('Cash Flow'!$N27+'Cash Flow'!$N28)*SUMIF($B$81:$B$93,$B23,DZ$81:DZ$93) -> 96412.5 | EA23: =('Cash Flow'!$N27+'Cash Flow'!$N28)*SUMIF($B$81:$B$93,$B23,EA$81:EA$93) -> 96412.5 | EB23: =('Cash Flow'!$N27+'Cash Flow'!$N28)*SUMIF($B$81:$B$93,$B23,EB$81:EB$93) -> 96412.5 | EC23: =('Cash Flow'!$N27+'Cash Flow'!$N28)*SUMIF($B$81:$B$93,$B23,EC$81:EC$93) -> 96412.5 | ED23: =('Cash Flow'!$N27+'Cash Flow'!$N28)*SUMIF($B$81:$B$93,$B23,ED$81:ED$93) -> 96412.5 | EE23: =('Cash Flow'!$N27+'Cash Flow'!$N28)*SUMIF($B$81:$B$93,$B23,EE$81:EE$93) -> 96412.5 | EF23: 1156950 | EI23: =('Cash Flow'!$O27+'Cash Flow'!$O28)*SUMIF($B$81:$B$93,$B23,EI$81:EI$93) -> 98062.5 | EJ23: =('Cash Flow'!$O27+'Cash Flow'!$O28)*SUMIF($B$81:$B$93,$B23,EJ$81:EJ$93) -> 98062.5 | EK23: =('Cash Flow'!$O27+'Cash Flow'!$O28)*SUMIF($B$81:$B$93,$B23,EK$81:EK$93) -> 98062.5 | EL23: =('Cash Flow'!$O27+'Cash Flow'!$O28)*SUMIF($B$81:$B$93,$B23,EL$81:EL$93) -> 98062.5 | EM23: =('Cash Flow'!$O27+'Cash Flow'!$O28)*SUMIF($B$81:$B$93,$B23,EM$81:EM$93) -> 98062.5 | EN23: =('Cash Flow'!$O27+'Cash Flow'!$O28)*SUMIF($B$81:$B$93,$B23,EN$81:EN$93) -> 98062.5 | EO23: =('Cash Flow'!$O27+'Cash Flow'!$O28)*SUMIF($B$81:$B$93,$B23,EO$81:EO$93) -> 98062.5 | EP23: =('Cash Flow'!$O27+'Cash Flow'!$O28)*SUMIF($B$81:$B$93,$B23,EP$81:EP$93) -> 98062.5 | EQ23: =('Cash Flow'!$O27+'Cash Flow'!$O28)*SUMIF($B$81:$B$93,$B23,EQ$81:EQ$93) -> 98062.5 | ER23: =('Cash Flow'!$O27+'Cash Flow'!$O28)*SUMIF($B$81:$B$93,$B23,ER$81:ER$93) -> 98062.5 | ES23: =('Cash Flow'!$O27+'Cash Flow'!$O28)*SUMIF($B$81:$B$93,$B23,ES$81:ES$93) -> 98062.5 | ET23: =('Cash Flow'!$O27+'Cash Flow'!$O28)*SUMIF($B$81:$B$93,$B23,ET$81:ET$93) -> 98062.5 | EU23: 1176750 | EX23: =('Cash Flow'!$P27+'Cash Flow'!$P28)*SUMIF($B$81:$B$93,$B23,EX$81:EX$93) -> 103029.1667 | EY23: =('Cash Flow'!$P27+'Cash Flow'!$P28)*SUMIF($B$81:$B$93,$B23,EY$81:EY$93) -> 103029.1667 | EZ23: =('Cash Flow'!$P27+'Cash Flow'!$P28)*SUMIF($B$81:$B$93,$B23,EZ$81:EZ$93) -> 103029.1667 | FA23: =('Cash Flow'!$P27+'Cash Flow'!$P28)*SUMIF($B$81:$B$93,$B23,FA$81:FA$93) -> 103029.1667 | FB23: =('Cash Flow'!$P27+'Cash Flow'!$P28)*SUMIF($B$81:$B$93,$B23,FB$81:FB$93) -> 103029.1667 | FC23: =('Cash Flow'!$P27+'Cash Flow'!$P28)*SUMIF($B$81:$B$93,$B23,FC$81:FC$93) -> 103029.1667 | FD23: =('Cash Flow'!$P27+'Cash Flow'!$P28)*SUMIF($B$81:$B$93,$B23,FD$81:FD$93) -> 103029.1667 | FE23: =('Cash Flow'!$P27+'Cash Flow'!$P28)*SUMIF($B$81:$B$93,$B23,FE$81:FE$93) -> 103029.1667 | FF23: =('Cash Flow'!$P27+'Cash Flow'!$P28)*SUMIF($B$81:$B$93,$B23,FF$81:FF$93) -> 103029.1667 | FG23: =('Cash Flow'!$P27+'Cash Flow'!$P28)*SUMIF($B$81:$B$93,$B23,FG$81:FG$93) -> 103029.1667 | FH23: =('Cash Flow'!$P27+'Cash Flow'!$P28)*SUMIF($B$81:$B$93,$B23,FH$81:FH$93) -> 103029.1667 | FI23: =('Cash Flow'!$P27+'Cash Flow'!$P28)*SUMIF($B$81:$B$93,$B23,FI$81:FI$93) -> 103029.1667 | FJ23: 1236350
A24: Capital Sales - Investment Properties | B24: 12 | D24: ='Cash Flow'!$E26*SUMIF($B$81:$B$93,$B24,D$81:D$93) -> 0 | E24: ='Cash Flow'!$E26*SUMIF($B$81:$B$93,$B24,E$81:E$93) -> 0 | F24: ='Cash Flow'!$E26*SUMIF($B$81:$B$93,$B24,F$81:F$93) -> 0 | G24: ='Cash Flow'!$E26*SUMIF($B$81:$B$93,$B24,G$81:G$93) -> 0 | H24: ='Cash Flow'!$E26*SUMIF($B$81:$B$93,$B24,H$81:H$93) -> 0 | I24: ='Cash Flow'!$E26*SUMIF($B$81:$B$93,$B24,I$81:I$93) -> 0 | J24: ='Cash Flow'!$E26*SUMIF($B$81:$B$93,$B24,J$81:J$93) -> 0 | K24: ='Cash Flow'!$E26*SUMIF($B$81:$B$93,$B24,K$81:K$93) -> 0 | L24: ='Cash Flow'!$E26*SUMIF($B$81:$B$93,$B24,L$81:L$93) -> 0 | M24: ='Cash Flow'!$E26*SUMIF($B$81:$B$93,$B24,M$81:M$93) -> 0 | N24: ='Cash Flow'!$E26*SUMIF($B$81:$B$93,$B24,N$81:N$93) -> 0 | O24: ='Cash Flow'!$E26*SUMIF($B$81:$B$93,$B24,O$81:O$93) -> 0 | P24: 0 | S24: ='Cash Flow'!$G26*SUMIF($B$81:$B$93,$B24,S$81:S$93) -> 0 | T24: ='Cash Flow'!$G26*SUMIF($B$81:$B$93,$B24,T$81:T$93) -> 0 | U24: ='Cash Flow'!$G26*SUMIF($B$81:$B$93,$B24,U$81:U$93) -> 0 | V24: ='Cash Flow'!$G26*SUMIF($B$81:$B$93,$B24,V$81:V$93) -> 0 | W24: ='Cash Flow'!$G26*SUMIF($B$81:$B$93,$B24,W$81:W$93) -> 0 | X24: ='Cash Flow'!$G26*SUMIF($B$81:$B$93,$B24,X$81:X$93) -> 0 | Y24: ='Cash Flow'!$G26*SUMIF($B$81:$B$93,$B24,Y$81:Y$93) -> 0 | Z24: ='Cash Flow'!$G26*SUMIF($B$81:$B$93,$B24,Z$81:Z$93) -> 0 | AA24: ='Cash Flow'!$G26*SUMIF($B$81:$B$93,$B24,AA$81:AA$93) -> 0 | AB24: ='Cash Flow'!$G26*SUMIF($B$81:$B$93,$B24,AB$81:AB$93) -> 0 | AC24: ='Cash Flow'!$G26*SUMIF($B$81:$B$93,$B24,AC$81:AC$93) -> 0 | AD24: ='Cash Flow'!$G26*SUMIF($B$81:$B$93,$B24,AD$81:AD$93) -> 0 | AE24: 0 | AH24: ='Cash Flow'!$H26*SUMIF($B$81:$B$93,$B24,AH$81:AH$93) -> 0 | AI24: ='Cash Flow'!$H26*SUMIF($B$81:$B$93,$B24,AI$81:AI$93) -> 0 | AJ24: ='Cash Flow'!$H26*SUMIF($B$81:$B$93,$B24,AJ$81:AJ$93) -> 0 | AK24: ='Cash Flow'!$H26*SUMIF($B$81:$B$93,$B24,AK$81:AK$93) -> 0 | AL24: ='Cash Flow'!$H26*SUMIF($B$81:$B$93,$B24,AL$81:AL$93) -> 0 | AM24: ='Cash Flow'!$H26*SUMIF($B$81:$B$93,$B24,AM$81:AM$93) -> 0 | AN24: ='Cash Flow'!$H26*SUMIF($B$81:$B$93,$B24,AN$81:AN$93) -> 0 | AO24: ='Cash Flow'!$H26*SUMIF($B$81:$B$93,$B24,AO$81:AO$93) -> 0 | AP24: ='Cash Flow'!$H26*SUMIF($B$81:$B$93,$B24,AP$81:AP$93) -> 0 | AQ24: ='Cash Flow'!$H26*SUMIF($B$81:$B$93,$B24,AQ$81:AQ$93) -> 0 | AR24: ='Cash Flow'!$H26*SUMIF($B$81:$B$93,$B24,AR$81:AR$93) -> 0 | AS24: ='Cash Flow'!$H26*SUMIF($B$81:$B$93,$B24,AS$81:AS$93) -> 0 | AT24: 0 | AW24: ='Cash Flow'!$I26*SUMIF($B$81:$B$93,$B24,AW$81:AW$93) -> 0 | AX24: ='Cash Flow'!$I26*SUMIF($B$81:$B$93,$B24,AX$81:AX$93) -> 0 | AY24: ='Cash Flow'!$I26*SUMIF($B$81:$B$93,$B24,AY$81:AY$93) -> 0 | AZ24: ='Cash Flow'!$I26*SUMIF($B$81:$B$93,$B24,AZ$81:AZ$93) -> 0 | BA24: ='Cash Flow'!$I26*SUMIF($B$81:$B$93,$B24,BA$81:BA$93) -> 0 | BB24: ='Cash Flow'!$I26*SUMIF($B$81:$B$93,$B24,BB$81:BB$93) -> 0 | BC24: ='Cash Flow'!$I26*SUMIF($B$81:$B$93,$B24,BC$81:BC$93) -> 0 | BD24: ='Cash Flow'!$I26*SUMIF($B$81:$B$93,$B24,BD$81:BD$93) -> 0 | BE24: ='Cash Flow'!$I26*SUMIF($B$81:$B$93,$B24,BE$81:BE$93) -> 0 | BF24: ='Cash Flow'!$I26*SUMIF($B$81:$B$93,$B24,BF$81:BF$93) -> 0 | BG24: ='Cash Flow'!$I26*SUMIF($B$81:$B$93,$B24,BG$81:BG$93) -> 0 | BH24: ='Cash Flow'!$I26*SUMIF($B$81:$B$93,$B24,BH$81:BH$93) -> 0 | BI24: 0 | BL24: ='Cash Flow'!$J26*SUMIF($B$81:$B$93,$B24,BL$81:BL$93) -> 0 | BM24: ='Cash Flow'!$J26*SUMIF($B$81:$B$93,$B24,BM$81:BM$93) -> 0 | BN24: ='Cash Flow'!$J26*SUMIF($B$81:$B$93,$B24,BN$81:BN$93) -> 0 | BO24: ='Cash Flow'!$J26*SUMIF($B$81:$B$93,$B24,BO$81:BO$93) -> 0 | BP24: ='Cash Flow'!$J26*SUMIF($B$81:$B$93,$B24,BP$81:BP$93) -> 0 | BQ24: ='Cash Flow'!$J26*SUMIF($B$81:$B$93,$B24,BQ$81:BQ$93) -> 0 | BR24: ='Cash Flow'!$J26*SUMIF($B$81:$B$93,$B24,BR$81:BR$93) -> 0 | BS24: ='Cash Flow'!$J26*SUMIF($B$81:$B$93,$B24,BS$81:BS$93) -> 0 | BT24: ='Cash Flow'!$J26*SUMIF($B$81:$B$93,$B24,BT$81:BT$93) -> 0 | BU24: ='Cash Flow'!$J26*SUMIF($B$81:$B$93,$B24,BU$81:BU$93) -> 0 | BV24: ='Cash Flow'!$J26*SUMIF($B$81:$B$93,$B24,BV$81:BV$93) -> 0 | BW24: ='Cash Flow'!$J26*SUMIF($B$81:$B$93,$B24,BW$81:BW$93) -> 0 | BX24: 0 | CA24: ='Cash Flow'!$K26*SUMIF($B$81:$B$93,$B24,CA$81:CA$93) -> 0 | CB24: ='Cash Flow'!$K26*SUMIF($B$81:$B$93,$B24,CB$81:CB$93) -> 0 | CC24: ='Cash Flow'!$K26*SUMIF($B$81:$B$93,$B24,CC$81:CC$93) -> 0 | CD24: ='Cash Flow'!$K26*SUMIF($B$81:$B$93,$B24,CD$81:CD$93) -> 0 | CE24: ='Cash Flow'!$K26*SUMIF($B$81:$B$93,$B24,CE$81:CE$93) -> 0 | CF24: ='Cash Flow'!$K26*SUMIF($B$81:$B$93,$B24,CF$81:CF$93) -> 0 | CG24: ='Cash Flow'!$K26*SUMIF($B$81:$B$93,$B24,CG$81:CG$93) -> 0 | CH24: ='Cash Flow'!$K26*SUMIF($B$81:$B$93,$B24,CH$81:CH$93) -> 0 | CI24: ='Cash Flow'!$K26*SUMIF($B$81:$B$93,$B24,CI$81:CI$93) -> 0 | CJ24: ='Cash Flow'!$K26*SUMIF($B$81:$B$93,$B24,CJ$81:CJ$93) -> 0 | CK24: ='Cash Flow'!$K26*SUMIF($B$81:$B$93,$B24,CK$81:CK$93) -> 0 | CL24: ='Cash Flow'!$K26*SUMIF($B$81:$B$93,$B24,CL$81:CL$93) -> 0 | CM24: 0 | CP24: ='Cash Flow'!$L26*SUMIF($B$81:$B$93,$B24,CP$81:CP$93) -> 0 | CQ24: ='Cash Flow'!$L26*SUMIF($B$81:$B$93,$B24,CQ$81:CQ$93) -> 0 | CR24: ='Cash Flow'!$L26*SUMIF($B$81:$B$93,$B24,CR$81:CR$93) -> 0 | CS24: ='Cash Flow'!$L26*SUMIF($B$81:$B$93,$B24,CS$81:CS$93) -> 0 | CT24: ='Cash Flow'!$L26*SUMIF($B$81:$B$93,$B24,CT$81:CT$93) -> 0 | CU24: ='Cash Flow'!$L26*SUMIF($B$81:$B$93,$B24,CU$81:CU$93) -> 0 | CV24: ='Cash Flow'!$L26*SUMIF($B$81:$B$93,$B24,CV$81:CV$93) -> 0 | CW24: ='Cash Flow'!$L26*SUMIF($B$81:$B$93,$B24,CW$81:CW$93) -> 0 | CX24: ='Cash Flow'!$L26*SUMIF($B$81:$B$93,$B24,CX$81:CX$93) -> 0 | CY24: ='Cash Flow'!$L26*SUMIF($B$81:$B$93,$B24,CY$81:CY$93) -> 0 | CZ24: ='Cash Flow'!$L26*SUMIF($B$81:$B$93,$B24,CZ$81:CZ$93) -> 0 | DA24: ='Cash Flow'!$L26*SUMIF($B$81:$B$93,$B24,DA$81:DA$93) -> 0 | DB24: 0 | DE24: ='Cash Flow'!$M26*SUMIF($B$81:$B$93,$B24,DE$81:DE$93) -> 0 | DF24: ='Cash Flow'!$M26*SUMIF($B$81:$B$93,$B24,DF$81:DF$93) -> 0 | DG24: ='Cash Flow'!$M26*SUMIF($B$81:$B$93,$B24,DG$81:DG$93) -> 0 | DH24: ='Cash Flow'!$M26*SUMIF($B$81:$B$93,$B24,DH$81:DH$93) -> 0 | DI24: ='Cash Flow'!$M26*SUMIF($B$81:$B$93,$B24,DI$81:DI$93) -> 0 | DJ24: ='Cash Flow'!$M26*SUMIF($B$81:$B$93,$B24,DJ$81:DJ$93) -> 0 | DK24: ='Cash Flow'!$M26*SUMIF($B$81:$B$93,$B24,DK$81:DK$93) -> 0 | DL24: ='Cash Flow'!$M26*SUMIF($B$81:$B$93,$B24,DL$81:DL$93) -> 0 | DM24: ='Cash Flow'!$M26*SUMIF($B$81:$B$93,$B24,DM$81:DM$93) -> 0 | DN24: ='Cash Flow'!$M26*SUMIF($B$81:$B$93,$B24,DN$81:DN$93) -> 0 | DO24: ='Cash Flow'!$M26*SUMIF($B$81:$B$93,$B24,DO$81:DO$93) -> 0 | DP24: ='Cash Flow'!$M26*SUMIF($B$81:$B$93,$B24,DP$81:DP$93) -> 0 | DQ24: 0 | DT24: ='Cash Flow'!$N26*SUMIF($B$81:$B$93,$B24,DT$81:DT$93) -> 0 | DU24: ='Cash Flow'!$N26*SUMIF($B$81:$B$93,$B24,DU$81:DU$93) -> 0 | DV24: ='Cash Flow'!$N26*SUMIF($B$81:$B$93,$B24,DV$81:DV$93) -> 0 | DW24: ='Cash Flow'!$N26*SUMIF($B$81:$B$93,$B24,DW$81:DW$93) -> 0 | DX24: ='Cash Flow'!$N26*SUMIF($B$81:$B$93,$B24,DX$81:DX$93) -> 0 | DY24: ='Cash Flow'!$N26*SUMIF($B$81:$B$93,$B24,DY$81:DY$93) -> 0 | DZ24: ='Cash Flow'!$N26*SUMIF($B$81:$B$93,$B24,DZ$81:DZ$93) -> 0 | EA24: ='Cash Flow'!$N26*SUMIF($B$81:$B$93,$B24,EA$81:EA$93) -> 0 | EB24: ='Cash Flow'!$N26*SUMIF($B$81:$B$93,$B24,EB$81:EB$93) -> 0 | EC24: ='Cash Flow'!$N26*SUMIF($B$81:$B$93,$B24,EC$81:EC$93) -> 0 | ED24: ='Cash Flow'!$N26*SUMIF($B$81:$B$93,$B24,ED$81:ED$93) -> 0 | EE24: ='Cash Flow'!$N26*SUMIF($B$81:$B$93,$B24,EE$81:EE$93) -> 0 | EF24: 0 | EI24: ='Cash Flow'!$O26*SUMIF($B$81:$B$93,$B24,EI$81:EI$93) -> 0 | EJ24: ='Cash Flow'!$O26*SUMIF($B$81:$B$93,$B24,EJ$81:EJ$93) -> 0 | EK24: ='Cash Flow'!$O26*SUMIF($B$81:$B$93,$B24,EK$81:EK$93) -> 0 | EL24: ='Cash Flow'!$O26*SUMIF($B$81:$B$93,$B24,EL$81:EL$93) -> 0 | EM24: ='Cash Flow'!$O26*SUMIF($B$81:$B$93,$B24,EM$81:EM$93) -> 0 | EN24: ='Cash Flow'!$O26*SUMIF($B$81:$B$93,$B24,EN$81:EN$93) -> 0 | EO24: ='Cash Flow'!$O26*SUMIF($B$81:$B$93,$B24,EO$81:EO$93) -> 0 | EP24: ='Cash Flow'!$O26*SUMIF($B$81:$B$93,$B24,EP$81:EP$93) -> 0 | EQ24: ='Cash Flow'!$O26*SUMIF($B$81:$B$93,$B24,EQ$81:EQ$93) -> 0 | ER24: ='Cash Flow'!$O26*SUMIF($B$81:$B$93,$B24,ER$81:ER$93) -> 0 | ES24: ='Cash Flow'!$O26*SUMIF($B$81:$B$93,$B24,ES$81:ES$93) -> 0 | ET24: ='Cash Flow'!$O26*SUMIF($B$81:$B$93,$B24,ET$81:ET$93) -> 0 | EU24: 0 | EX24: ='Cash Flow'!$P26*SUMIF($B$81:$B$93,$B24,EX$81:EX$93) -> 0 | EY24: ='Cash Flow'!$P26*SUMIF($B$81:$B$93,$B24,EY$81:EY$93) -> 0 | EZ24: ='Cash Flow'!$P26*SUMIF($B$81:$B$93,$B24,EZ$81:EZ$93) -> 0 | FA24: ='Cash Flow'!$P26*SUMIF($B$81:$B$93,$B24,FA$81:FA$93) -> 0 | FB24: ='Cash Flow'!$P26*SUMIF($B$81:$B$93,$B24,FB$81:FB$93) -> 0 | FC24: ='Cash Flow'!$P26*SUMIF($B$81:$B$93,$B24,FC$81:FC$93) -> 0 | FD24: ='Cash Flow'!$P26*SUMIF($B$81:$B$93,$B24,FD$81:FD$93) -> 0 | FE24: ='Cash Flow'!$P26*SUMIF($B$81:$B$93,$B24,FE$81:FE$93) -> 0 | FF24: ='Cash Flow'!$P26*SUMIF($B$81:$B$93,$B24,FF$81:FF$93) -> 0 | FG24: ='Cash Flow'!$P26*SUMIF($B$81:$B$93,$B24,FG$81:FG$93) -> 0 | FH24: ='Cash Flow'!$P26*SUMIF($B$81:$B$93,$B24,FH$81:FH$93) -> 0 | FI24: ='Cash Flow'!$P26*SUMIF($B$81:$B$93,$B24,FI$81:FI$93) -> 0 | FJ24: 0
A25: Capital Sales - Intangible Assets | B25: 12 | D25: ='Cash Flow'!$E31*SUMIF($B$81:$B$93,$B25,D$81:D$93) -> 0 | E25: ='Cash Flow'!$E31*SUMIF($B$81:$B$93,$B25,E$81:E$93) -> 0 | F25: ='Cash Flow'!$E31*SUMIF($B$81:$B$93,$B25,F$81:F$93) -> 0 | G25: ='Cash Flow'!$E31*SUMIF($B$81:$B$93,$B25,G$81:G$93) -> 0 | H25: ='Cash Flow'!$E31*SUMIF($B$81:$B$93,$B25,H$81:H$93) -> 0 | I25: ='Cash Flow'!$E31*SUMIF($B$81:$B$93,$B25,I$81:I$93) -> 0 | J25: ='Cash Flow'!$E31*SUMIF($B$81:$B$93,$B25,J$81:J$93) -> 0 | K25: ='Cash Flow'!$E31*SUMIF($B$81:$B$93,$B25,K$81:K$93) -> 0 | L25: ='Cash Flow'!$E31*SUMIF($B$81:$B$93,$B25,L$81:L$93) -> 0 | M25: ='Cash Flow'!$E31*SUMIF($B$81:$B$93,$B25,M$81:M$93) -> 0 | N25: ='Cash Flow'!$E31*SUMIF($B$81:$B$93,$B25,N$81:N$93) -> 0 | O25: ='Cash Flow'!$E31*SUMIF($B$81:$B$93,$B25,O$81:O$93) -> 0 | P25: 0 | S25: ='Cash Flow'!$G31*SUMIF($B$81:$B$93,$B25,S$81:S$93) -> 0 | T25: ='Cash Flow'!$G31*SUMIF($B$81:$B$93,$B25,T$81:T$93) -> 0 | U25: ='Cash Flow'!$G31*SUMIF($B$81:$B$93,$B25,U$81:U$93) -> 0 | V25: ='Cash Flow'!$G31*SUMIF($B$81:$B$93,$B25,V$81:V$93) -> 0 | W25: ='Cash Flow'!$G31*SUMIF($B$81:$B$93,$B25,W$81:W$93) -> 0 | X25: ='Cash Flow'!$G31*SUMIF($B$81:$B$93,$B25,X$81:X$93) -> 0 | Y25: ='Cash Flow'!$G31*SUMIF($B$81:$B$93,$B25,Y$81:Y$93) -> 0 | Z25: ='Cash Flow'!$G31*SUMIF($B$81:$B$93,$B25,Z$81:Z$93) -> 0 | AA25: ='Cash Flow'!$G31*SUMIF($B$81:$B$93,$B25,AA$81:AA$93) -> 0 | AB25: ='Cash Flow'!$G31*SUMIF($B$81:$B$93,$B25,AB$81:AB$93) -> 0 | AC25: ='Cash Flow'!$G31*SUMIF($B$81:$B$93,$B25,AC$81:AC$93) -> 0 | AD25: ='Cash Flow'!$G31*SUMIF($B$81:$B$93,$B25,AD$81:AD$93) -> 0 | AE25: 0 | AH25: ='Cash Flow'!$H31*SUMIF($B$81:$B$93,$B25,AH$81:AH$93) -> 0 | AI25: ='Cash Flow'!$H31*SUMIF($B$81:$B$93,$B25,AI$81:AI$93) -> 0 | AJ25: ='Cash Flow'!$H31*SUMIF($B$81:$B$93,$B25,AJ$81:AJ$93) -> 0 | AK25: ='Cash Flow'!$H31*SUMIF($B$81:$B$93,$B25,AK$81:AK$93) -> 0 | AL25: ='Cash Flow'!$H31*SUMIF($B$81:$B$93,$B25,AL$81:AL$93) -> 0 | AM25: ='Cash Flow'!$H31*SUMIF($B$81:$B$93,$B25,AM$81:AM$93) -> 0 | AN25: ='Cash Flow'!$H31*SUMIF($B$81:$B$93,$B25,AN$81:AN$93) -> 0 | AO25: ='Cash Flow'!$H31*SUMIF($B$81:$B$93,$B25,AO$81:AO$93) -> 0 | AP25: ='Cash Flow'!$H31*SUMIF($B$81:$B$93,$B25,AP$81:AP$93) -> 0 | AQ25: ='Cash Flow'!$H31*SUMIF($B$81:$B$93,$B25,AQ$81:AQ$93) -> 0 | AR25: ='Cash Flow'!$H31*SUMIF($B$81:$B$93,$B25,AR$81:AR$93) -> 0 | AS25: ='Cash Flow'!$H31*SUMIF($B$81:$B$93,$B25,AS$81:AS$93) -> 0 | AT25: 0 | AW25: ='Cash Flow'!$I31*SUMIF($B$81:$B$93,$B25,AW$81:AW$93) -> 0 | AX25: ='Cash Flow'!$I31*SUMIF($B$81:$B$93,$B25,AX$81:AX$93) -> 0 | AY25: ='Cash Flow'!$I31*SUMIF($B$81:$B$93,$B25,AY$81:AY$93) -> 0 | AZ25: ='Cash Flow'!$I31*SUMIF($B$81:$B$93,$B25,AZ$81:AZ$93) -> 0 | BA25: ='Cash Flow'!$I31*SUMIF($B$81:$B$93,$B25,BA$81:BA$93) -> 0 | BB25: ='Cash Flow'!$I31*SUMIF($B$81:$B$93,$B25,BB$81:BB$93) -> 0 | BC25: ='Cash Flow'!$I31*SUMIF($B$81:$B$93,$B25,BC$81:BC$93) -> 0 | BD25: ='Cash Flow'!$I31*SUMIF($B$81:$B$93,$B25,BD$81:BD$93) -> 0 | BE25: ='Cash Flow'!$I31*SUMIF($B$81:$B$93,$B25,BE$81:BE$93) -> 0 | BF25: ='Cash Flow'!$I31*SUMIF($B$81:$B$93,$B25,BF$81:BF$93) -> 0 | BG25: ='Cash Flow'!$I31*SUMIF($B$81:$B$93,$B25,BG$81:BG$93) -> 0 | BH25: ='Cash Flow'!$I31*SUMIF($B$81:$B$93,$B25,BH$81:BH$93) -> 0 | BI25: 0 | BL25: ='Cash Flow'!$J31*SUMIF($B$81:$B$93,$B25,BL$81:BL$93) -> 0 | BM25: ='Cash Flow'!$J31*SUMIF($B$81:$B$93,$B25,BM$81:BM$93) -> 0 | BN25: ='Cash Flow'!$J31*SUMIF($B$81:$B$93,$B25,BN$81:BN$93) -> 0 | BO25: ='Cash Flow'!$J31*SUMIF($B$81:$B$93,$B25,BO$81:BO$93) -> 0 | BP25: ='Cash Flow'!$J31*SUMIF($B$81:$B$93,$B25,BP$81:BP$93) -> 0 | BQ25: ='Cash Flow'!$J31*SUMIF($B$81:$B$93,$B25,BQ$81:BQ$93) -> 0 | BR25: ='Cash Flow'!$J31*SUMIF($B$81:$B$93,$B25,BR$81:BR$93) -> 0 | BS25: ='Cash Flow'!$J31*SUMIF($B$81:$B$93,$B25,BS$81:BS$93) -> 0 | BT25: ='Cash Flow'!$J31*SUMIF($B$81:$B$93,$B25,BT$81:BT$93) -> 0 | BU25: ='Cash Flow'!$J31*SUMIF($B$81:$B$93,$B25,BU$81:BU$93) -> 0 | BV25: ='Cash Flow'!$J31*SUMIF($B$81:$B$93,$B25,BV$81:BV$93) -> 0 | BW25: ='Cash Flow'!$J31*SUMIF($B$81:$B$93,$B25,BW$81:BW$93) -> 0 | BX25: 0 | CA25: ='Cash Flow'!$K31*SUMIF($B$81:$B$93,$B25,CA$81:CA$93) -> 0 | CB25: ='Cash Flow'!$K31*SUMIF($B$81:$B$93,$B25,CB$81:CB$93) -> 0 | CC25: ='Cash Flow'!$K31*SUMIF($B$81:$B$93,$B25,CC$81:CC$93) -> 0 | CD25: ='Cash Flow'!$K31*SUMIF($B$81:$B$93,$B25,CD$81:CD$93) -> 0 | CE25: ='Cash Flow'!$K31*SUMIF($B$81:$B$93,$B25,CE$81:CE$93) -> 0 | CF25: ='Cash Flow'!$K31*SUMIF($B$81:$B$93,$B25,CF$81:CF$93) -> 0 | CG25: ='Cash Flow'!$K31*SUMIF($B$81:$B$93,$B25,CG$81:CG$93) -> 0 | CH25: ='Cash Flow'!$K31*SUMIF($B$81:$B$93,$B25,CH$81:CH$93) -> 0 | CI25: ='Cash Flow'!$K31*SUMIF($B$81:$B$93,$B25,CI$81:CI$93) -> 0 | CJ25: ='Cash Flow'!$K31*SUMIF($B$81:$B$93,$B25,CJ$81:CJ$93) -> 0 | CK25: ='Cash Flow'!$K31*SUMIF($B$81:$B$93,$B25,CK$81:CK$93) -> 0 | CL25: ='Cash Flow'!$K31*SUMIF($B$81:$B$93,$B25,CL$81:CL$93) -> 0 | CM25: 0 | CP25: ='Cash Flow'!$L31*SUMIF($B$81:$B$93,$B25,CP$81:CP$93) -> 0 | CQ25: ='Cash Flow'!$L31*SUMIF($B$81:$B$93,$B25,CQ$81:CQ$93) -> 0 | CR25: ='Cash Flow'!$L31*SUMIF($B$81:$B$93,$B25,CR$81:CR$93) -> 0 | CS25: ='Cash Flow'!$L31*SUMIF($B$81:$B$93,$B25,CS$81:CS$93) -> 0 | CT25: ='Cash Flow'!$L31*SUMIF($B$81:$B$93,$B25,CT$81:CT$93) -> 0 | CU25: ='Cash Flow'!$L31*SUMIF($B$81:$B$93,$B25,CU$81:CU$93) -> 0 | CV25: ='Cash Flow'!$L31*SUMIF($B$81:$B$93,$B25,CV$81:CV$93) -> 0 | CW25: ='Cash Flow'!$L31*SUMIF($B$81:$B$93,$B25,CW$81:CW$93) -> 0 | CX25: ='Cash Flow'!$L31*SUMIF($B$81:$B$93,$B25,CX$81:CX$93) -> 0 | CY25: ='Cash Flow'!$L31*SUMIF($B$81:$B$93,$B25,CY$81:CY$93) -> 0 | CZ25: ='Cash Flow'!$L31*SUMIF($B$81:$B$93,$B25,CZ$81:CZ$93) -> 0 | DA25: ='Cash Flow'!$L31*SUMIF($B$81:$B$93,$B25,DA$81:DA$93) -> 0 | DB25: 0 | DE25: ='Cash Flow'!$M31*SUMIF($B$81:$B$93,$B25,DE$81:DE$93) -> 0 | DF25: ='Cash Flow'!$M31*SUMIF($B$81:$B$93,$B25,DF$81:DF$93) -> 0 | DG25: ='Cash Flow'!$M31*SUMIF($B$81:$B$93,$B25,DG$81:DG$93) -> 0 | DH25: ='Cash Flow'!$M31*SUMIF($B$81:$B$93,$B25,DH$81:DH$93) -> 0 | DI25: ='Cash Flow'!$M31*SUMIF($B$81:$B$93,$B25,DI$81:DI$93) -> 0 | DJ25: ='Cash Flow'!$M31*SUMIF($B$81:$B$93,$B25,DJ$81:DJ$93) -> 0 | DK25: ='Cash Flow'!$M31*SUMIF($B$81:$B$93,$B25,DK$81:DK$93) -> 0 | DL25: ='Cash Flow'!$M31*SUMIF($B$81:$B$93,$B25,DL$81:DL$93) -> 0 | DM25: ='Cash Flow'!$M31*SUMIF($B$81:$B$93,$B25,DM$81:DM$93) -> 0 | DN25: ='Cash Flow'!$M31*SUMIF($B$81:$B$93,$B25,DN$81:DN$93) -> 0 | DO25: ='Cash Flow'!$M31*SUMIF($B$81:$B$93,$B25,DO$81:DO$93) -> 0 | DP25: ='Cash Flow'!$M31*SUMIF($B$81:$B$93,$B25,DP$81:DP$93) -> 0 | DQ25: 0 | DT25: ='Cash Flow'!$N31*SUMIF($B$81:$B$93,$B25,DT$81:DT$93) -> 0 | DU25: ='Cash Flow'!$N31*SUMIF($B$81:$B$93,$B25,DU$81:DU$93) -> 0 | DV25: ='Cash Flow'!$N31*SUMIF($B$81:$B$93,$B25,DV$81:DV$93) -> 0 | DW25: ='Cash Flow'!$N31*SUMIF($B$81:$B$93,$B25,DW$81:DW$93) -> 0 | DX25: ='Cash Flow'!$N31*SUMIF($B$81:$B$93,$B25,DX$81:DX$93) -> 0 | DY25: ='Cash Flow'!$N31*SUMIF($B$81:$B$93,$B25,DY$81:DY$93) -> 0 | DZ25: ='Cash Flow'!$N31*SUMIF($B$81:$B$93,$B25,DZ$81:DZ$93) -> 0 | EA25: ='Cash Flow'!$N31*SUMIF($B$81:$B$93,$B25,EA$81:EA$93) -> 0 | EB25: ='Cash Flow'!$N31*SUMIF($B$81:$B$93,$B25,EB$81:EB$93) -> 0 | EC25: ='Cash Flow'!$N31*SUMIF($B$81:$B$93,$B25,EC$81:EC$93) -> 0 | ED25: ='Cash Flow'!$N31*SUMIF($B$81:$B$93,$B25,ED$81:ED$93) -> 0 | EE25: ='Cash Flow'!$N31*SUMIF($B$81:$B$93,$B25,EE$81:EE$93) -> 0 | EF25: 0 | EI25: ='Cash Flow'!$O31*SUMIF($B$81:$B$93,$B25,EI$81:EI$93) -> 0 | EJ25: ='Cash Flow'!$O31*SUMIF($B$81:$B$93,$B25,EJ$81:EJ$93) -> 0 | EK25: ='Cash Flow'!$O31*SUMIF($B$81:$B$93,$B25,EK$81:EK$93) -> 0 | EL25: ='Cash Flow'!$O31*SUMIF($B$81:$B$93,$B25,EL$81:EL$93) -> 0 | EM25: ='Cash Flow'!$O31*SUMIF($B$81:$B$93,$B25,EM$81:EM$93) -> 0 | EN25: ='Cash Flow'!$O31*SUMIF($B$81:$B$93,$B25,EN$81:EN$93) -> 0 | EO25: ='Cash Flow'!$O31*SUMIF($B$81:$B$93,$B25,EO$81:EO$93) -> 0 | EP25: ='Cash Flow'!$O31*SUMIF($B$81:$B$93,$B25,EP$81:EP$93) -> 0 | EQ25: ='Cash Flow'!$O31*SUMIF($B$81:$B$93,$B25,EQ$81:EQ$93) -> 0 | ER25: ='Cash Flow'!$O31*SUMIF($B$81:$B$93,$B25,ER$81:ER$93) -> 0 | ES25: ='Cash Flow'!$O31*SUMIF($B$81:$B$93,$B25,ES$81:ES$93) -> 0 | ET25: ='Cash Flow'!$O31*SUMIF($B$81:$B$93,$B25,ET$81:ET$93) -> 0 | EU25: 0 | EX25: ='Cash Flow'!$P31*SUMIF($B$81:$B$93,$B25,EX$81:EX$93) -> 0 | EY25: ='Cash Flow'!$P31*SUMIF($B$81:$B$93,$B25,EY$81:EY$93) -> 0 | EZ25: ='Cash Flow'!$P31*SUMIF($B$81:$B$93,$B25,EZ$81:EZ$93) -> 0 | FA25: ='Cash Flow'!$P31*SUMIF($B$81:$B$93,$B25,FA$81:FA$93) -> 0 | FB25: ='Cash Flow'!$P31*SUMIF($B$81:$B$93,$B25,FB$81:FB$93) -> 0 | FC25: ='Cash Flow'!$P31*SUMIF($B$81:$B$93,$B25,FC$81:FC$93) -> 0 | FD25: ='Cash Flow'!$P31*SUMIF($B$81:$B$93,$B25,FD$81:FD$93) -> 0 | FE25: ='Cash Flow'!$P31*SUMIF($B$81:$B$93,$B25,FE$81:FE$93) -> 0 | FF25: ='Cash Flow'!$P31*SUMIF($B$81:$B$93,$B25,FF$81:FF$93) -> 0 | FG25: ='Cash Flow'!$P31*SUMIF($B$81:$B$93,$B25,FG$81:FG$93) -> 0 | FH25: ='Cash Flow'!$P31*SUMIF($B$81:$B$93,$B25,FH$81:FH$93) -> 0 | FI25: ='Cash Flow'!$P31*SUMIF($B$81:$B$93,$B25,FI$81:FI$93) -> 0 | FJ25: 0
